{"text_format":"1","workbook":"xlsx","n_sheets":31,"sheets":["Summary","Trip (1)","Trip (2)","Trip (3)","Trip (4)","Trip (5)","Trip (6)","Trip (7)","Trip (8)","Trip (9)","Trip (10)","Trip (11)","Trip (12)","Trip (13)","Trip (14)","Trip (15)","Trip (16)","Trip (17)","Trip (18)","Trip (19)","Trip (20)","Trip (21)","Trip (22)","Trip (23)","Trip (24)","Trip (25)","Trip (26)","Trip (27)","Trip (28)","Trip (29)","Trip (30)"],"not_rendered":{"charts":0,"images":1,"macros":1,"external_links":1,"defined_names":100,"comments":0,"pivot_tables":0},"unopened":[],"bounds":{"document_bytes":16777216,"sheet_cells":100000,"rows_first":2000,"rows_last":500,"rows_between":2000,"halvings":0,"cell_chars":16384,"cell_head_chars":4096},"cells_cut":0,"cells_raw":0,"read":"whole","date_system":"1900"}

{"sheet":"Summary","index":0,"n_rows":39,"n_cols":11,"rows_kept":39,"cut":false,"hidden":false,"merged":[]}
[]
[null,"Summary Page",null,null,"University of Leeds Speleological Association"]
[]
[]
[]
[]
[]
[null,null,null,null,null,null,null,{"$f":"SUM(H10:H29)","v":0},0,0]
[null,"Links","Members Attending","Trip Name","Date","Organizer:","Caving Hut","Estimated Trip Income","Trip Expenditure","   Profit/ loss for trip","Running Total "]
[null,"Trip 1",{"$f":"'Trip (1)'!K$17","v":0},{"$f":"'Trip (1)'!D$9","v":0},{"$f":"'Trip (1)'!D$13","v":"00:00:00"},{"$f":"'Trip (1)'!K$11","v":0},{"$f":"'Trip (1)'!K$13","v":"-"},{"$f":"'Trip (1)'!D$19","v":0},{"$f":"'Trip (1)'!D$17","v":0},{"$f":"H10-I10","v":0},{"$f":"J10","v":0}]
[null,"Trip 2",{"$f":"'Trip (2)'!K$17","v":0},{"$f":"'Trip (2)'!D$9","v":0},{"$f":"'Trip (2)'!D$13","v":"00:00:00"},{"$f":"'Trip (2)'!K$11","v":0},{"$f":"'Trip (2)'!K$13","v":"-"},{"$f":"'Trip (2)'!D$19","v":0},{"$f":"'Trip (2)'!D$17","v":0},{"$f":"H11-I11","v":0},{"$f":"K10+J11","v":0}]
[null,"Trip 3",{"$f":"'Trip (3)'!K$17","v":0},{"$f":"'Trip (3)'!D$9","v":0},{"$f":"'Trip (3)'!D$13","v":"00:00:00"},{"$f":"'Trip (3)'!K$11","v":0},{"$f":"'Trip (3)'!K$13","v":"-"},{"$f":"'Trip (3)'!D$19","v":0},{"$f":"'Trip (3)'!D$17","v":0},0,{"$f":"K11+J12","v":0}]
[null,"Trip 4",{"$f":"'Trip (4)'!K$17","v":0},{"$f":"'Trip (4)'!D$9","v":0},{"$f":"'Trip (4)'!D$13","v":"00:00:00"},{"$f":"'Trip (4)'!K$11","v":0},{"$f":"'Trip (4)'!K$13","v":"-"},{"$f":"'Trip (4)'!D$19","v":0},{"$f":"'Trip (4)'!D$17","v":0},0,{"$f":"K12+J13","v":0}]
[null,"Trip 5",{"$f":"'Trip (5)'!K$17","v":0},{"$f":"'Trip (5)'!D$9","v":0},{"$f":"'Trip (5)'!D$13","v":"00:00:00"},{"$f":"'Trip (5)'!K$11","v":0},{"$f":"'Trip (5)'!K$13","v":"-"},{"$f":"'Trip (5)'!D$19","v":0},{"$f":"'Trip (5)'!D$17","v":0},0,0]
[null,"Trip 6",{"$f":"'Trip (6)'!K$17","v":0},{"$f":"'Trip (6)'!D$9","v":0},{"$f":"'Trip (6)'!D$13","v":"00:00:00"},{"$f":"'Trip (6)'!K$11","v":0},{"$f":"'Trip (6)'!K$13","v":"-"},{"$f":"'Trip (6)'!D$19","v":0},{"$f":"'Trip (6)'!D$17","v":0},0,0]
[null,"Trip 7",{"$f":"'Trip (7)'!K$17","v":0},{"$f":"'Trip (7)'!D$9","v":0},{"$f":"'Trip (7)'!D$13","v":"00:00:00"},{"$f":"'Trip (7)'!K$11","v":0},{"$f":"'Trip (7)'!K$13","v":"-"},{"$f":"'Trip (7)'!D$19","v":0},{"$f":"'Trip (7)'!D$17","v":0},0,0]
[null,"Trip 8",{"$f":"'Trip (8)'!K$17","v":0},{"$f":"'Trip (8)'!D$9","v":0},{"$f":"'Trip (8)'!D$13","v":"00:00:00"},{"$f":"'Trip (8)'!K$11","v":0},{"$f":"'Trip (8)'!K$13","v":"-"},{"$f":"'Trip (8)'!D$19","v":0},{"$f":"'Trip (8)'!D$17","v":0},0,0]
[null,"Trip 9",{"$f":"'Trip (9)'!K$17","v":0},{"$f":"'Trip (9)'!D$9","v":0},{"$f":"'Trip (9)'!D$13","v":"00:00:00"},{"$f":"'Trip (9)'!K$11","v":0},{"$f":"'Trip (9)'!K$13","v":"-"},{"$f":"'Trip (9)'!D$19","v":0},{"$f":"'Trip (9)'!D$17","v":0},0,0]
[null,"Trip 10",{"$f":"'Trip (10)'!K$17","v":0},{"$f":"'Trip (10)'!D$9","v":0},{"$f":"'Trip (10)'!D$13","v":"00:00:00"},{"$f":"'Trip (10)'!K$11","v":0},{"$f":"'Trip (10)'!K$13","v":"-"},{"$f":"'Trip (10)'!D$19","v":0},{"$f":"'Trip (10)'!D$17","v":0},0,0]
[null,"Trip 11",{"$f":"'Trip (11)'!K$17","v":0},{"$f":"'Trip (11)'!D$9","v":0},{"$f":"'Trip (11)'!D$13","v":"00:00:00"},{"$f":"'Trip (11)'!K$11","v":0},{"$f":"'Trip (11)'!K$13","v":"-"},{"$f":"'Trip (11)'!D$19","v":0},{"$f":"'Trip (11)'!D$17","v":0},0,0]
[null,"Trip 12",{"$f":"'Trip (12)'!K$17","v":0},{"$f":"'Trip (12)'!D$9","v":0},{"$f":"'Trip (12)'!D$13","v":"00:00:00"},{"$f":"'Trip (12)'!K$11","v":0},{"$f":"'Trip (12)'!K$13","v":"-"},{"$f":"'Trip (12)'!D$19","v":0},{"$f":"'Trip (12)'!D$17","v":0},0,0]
[null,"Trip 13",{"$f":"'Trip (13)'!K$17","v":0},{"$f":"'Trip (13)'!D$9","v":0},{"$f":"'Trip (13)'!D$13","v":"00:00:00"},{"$f":"'Trip (13)'!K$11","v":0},{"$f":"'Trip (13)'!K$13","v":"-"},{"$f":"'Trip (13)'!D$19","v":0},{"$f":"'Trip (13)'!D$17","v":0},{"$f":"H22-I22","v":0},0]
[null,"Trip 14",{"$f":"'Trip (14)'!K$17","v":0},{"$f":"'Trip (14)'!D$9","v":0},{"$f":"'Trip (14)'!D$13","v":"00:00:00"},{"$f":"'Trip (14)'!K$11","v":0},{"$f":"'Trip (14)'!K$13","v":"-"},{"$f":"'Trip (14)'!D$19","v":0},{"$f":"'Trip (14)'!D$17","v":0},0,0]
[null,"Trip 15",{"$f":"'Trip (15)'!K$17","v":0},{"$f":"'Trip (15)'!D$9","v":0},{"$f":"'Trip (15)'!D$13","v":"00:00:00"},{"$f":"'Trip (15)'!K$11","v":0},{"$f":"'Trip (15)'!K$13","v":"-"},{"$f":"'Trip (15)'!D$19","v":0},{"$f":"'Trip (15)'!D$17","v":0},0,0]
[null,"Trip 16",{"$f":"'Trip (16)'!K$17","v":0},{"$f":"'Trip (16)'!D$9","v":0},{"$f":"'Trip (16)'!D$13","v":"00:00:00"},{"$f":"'Trip (16)'!K$11","v":0},{"$f":"'Trip (16)'!K$13","v":"-"},{"$f":"'Trip (16)'!D$19","v":0},{"$f":"'Trip (16)'!D$17","v":0},0,0]
[null,"Trip 17",{"$f":"'Trip (17)'!K$17","v":0},{"$f":"'Trip (17)'!D$9","v":0},{"$f":"'Trip (17)'!D$13","v":"00:00:00"},{"$f":"'Trip (17)'!K$11","v":0},{"$f":"'Trip (17)'!K$13","v":"-"},{"$f":"'Trip (17)'!D$19","v":0},{"$f":"'Trip (17)'!D$17","v":0},0,0]
[null,"Trip 18",{"$f":"'Trip (18)'!K$17","v":0},{"$f":"'Trip (18)'!D$9","v":0},{"$f":"'Trip (18)'!D$13","v":"00:00:00"},{"$f":"'Trip (18)'!K$11","v":0},{"$f":"'Trip (18)'!K$13","v":"-"},{"$f":"'Trip (18)'!D$19","v":0},{"$f":"'Trip (18)'!D$17","v":0},0,0]
[null,"Trip 19",{"$f":"'Trip (19)'!K$17","v":0},{"$f":"'Trip (19)'!D$9","v":0},{"$f":"'Trip (19)'!D$13","v":"00:00:00"},{"$f":"'Trip (19)'!K$11","v":0},{"$f":"'Trip (19)'!K$13","v":"-"},{"$f":"'Trip (19)'!D$19","v":0},{"$f":"'Trip (19)'!D$17","v":0},0,0]
[null,"Trip 20",{"$f":"'Trip (20)'!K$17","v":0},{"$f":"'Trip (20)'!D$9","v":0},{"$f":"'Trip (20)'!D$13","v":"00:00:00"},{"$f":"'Trip (20)'!K$11","v":0},{"$f":"'Trip (20)'!K$13","v":"-"},{"$f":"'Trip (20)'!D$19","v":0},{"$f":"'Trip (20)'!D$17","v":0},0,0]
[null,"Trip 21",{"$f":"'Trip (21)'!K$17","v":0},{"$f":"'Trip (21)'!D$9","v":0},{"$f":"'Trip (21)'!D$13","v":"00:00:00"},{"$f":"'Trip (21)'!K$11","v":0},{"$f":"'Trip (21)'!K$13","v":"-"},{"$f":"'Trip (21)'!D$19","v":0},{"$f":"'Trip (21)'!D$17","v":0},0,0]
[null,"Trip 22",{"$f":"'Trip (22)'!K$17","v":0},{"$f":"'Trip (22)'!D$9","v":0},{"$f":"'Trip (22)'!D$13","v":"00:00:00"},{"$f":"'Trip (22)'!K$11","v":0},{"$f":"'Trip (22)'!K$13","v":"-"},{"$f":"'Trip (22)'!D$19","v":0},{"$f":"'Trip (22)'!D$17","v":0},0,0]
[null,"Trip 23",{"$f":"'Trip (23)'!K$17","v":0},{"$f":"'Trip (23)'!D$9","v":0},{"$f":"'Trip (23)'!D$13","v":"00:00:00"},{"$f":"'Trip (23)'!K$11","v":0},{"$f":"'Trip (23)'!K$13","v":"-"},{"$f":"'Trip (23)'!D$19","v":0},{"$f":"'Trip (23)'!D$17","v":0},0,0]
[null,"Trip 24",{"$f":"'Trip (24)'!K$17","v":0},{"$f":"'Trip (24)'!D$9","v":0},{"$f":"'Trip (24)'!D$13","v":"00:00:00"},{"$f":"'Trip (24)'!K$11","v":0},{"$f":"'Trip (24)'!K$13","v":"-"},{"$f":"'Trip (24)'!D$19","v":0},{"$f":"'Trip (24)'!D$17","v":0},0,0]
[null,"Trip 25",{"$f":"'Trip (25)'!K$17","v":0},{"$f":"'Trip (25)'!D$9","v":0},{"$f":"'Trip (25)'!D$13","v":"00:00:00"},{"$f":"'Trip (25)'!K$11","v":0},{"$f":"'Trip (25)'!K$13","v":"-"},{"$f":"'Trip (25)'!D$19","v":0},{"$f":"'Trip (25)'!D$17","v":0},0,0]
[null,"Trip 26",{"$f":"'Trip (26)'!K$17","v":0},{"$f":"'Trip (26)'!D$9","v":0},{"$f":"'Trip (26)'!D$13","v":"00:00:00"},{"$f":"'Trip (26)'!K$11","v":0},{"$f":"'Trip (26)'!K$13","v":"-"},{"$f":"'Trip (26)'!D$19","v":0},{"$f":"'Trip (26)'!D$17","v":0},0,0]
[null,"Trip 27",{"$f":"'Trip (27)'!K$17","v":0},{"$f":"'Trip (27)'!D$9","v":0},{"$f":"'Trip (27)'!D$13","v":"00:00:00"},{"$f":"'Trip (27)'!K$11","v":0},{"$f":"'Trip (27)'!K$13","v":"-"},{"$f":"'Trip (27)'!D$19","v":0},{"$f":"'Trip (27)'!D$17","v":0},0,0]
[null,"Trip 28",{"$f":"'Trip (28)'!K$17","v":0},{"$f":"'Trip (28)'!D$9","v":0},{"$f":"'Trip (28)'!D$13","v":"00:00:00"},{"$f":"'Trip (28)'!K$11","v":0},{"$f":"'Trip (28)'!K$13","v":"-"},{"$f":"'Trip (28)'!D$19","v":0},{"$f":"'Trip (28)'!D$17","v":0},0,0]
[null,"Trip 29",{"$f":"'Trip (29)'!K$17","v":0},{"$f":"'Trip (29)'!D$9","v":0},{"$f":"'Trip (29)'!D$13","v":"00:00:00"},{"$f":"'Trip (29)'!K$11","v":0},{"$f":"'Trip (29)'!K$13","v":"-"},{"$f":"'Trip (29)'!D$19","v":0},{"$f":"'Trip (29)'!D$17","v":0},0,0]
[null,"Trip 30",{"$f":"'Trip (30)'!K$17","v":0},{"$f":"'Trip (30)'!D$9","v":0},{"$f":"'Trip (30)'!D$13","v":"00:00:00"},{"$f":"'Trip (30)'!K$11","v":0},{"$f":"'Trip (30)'!K$13","v":"-"},{"$f":"'Trip (30)'!D$19","v":0},{"$f":"'Trip (30)'!D$17","v":0},0,0]

{"sheet":"Trip (1)","index":1,"n_rows":125,"n_cols":20,"rows_kept":125,"cut":false,"hidden":false,"merged":[[24,19,24,30],[40,8,40,13],[120,19,120,30],[121,19,121,30],[122,19,122,30],[123,19,123,30],[124,19,124,30],[115,19,115,30],[116,19,116,30],[117,19,117,30],[118,19,118,30],[119,19,119,30],[110,19,110,30],[111,19,111,30],[112,19,112,30],[113,19,113,30],[114,19,114,30],[105,19,105,30],[106,19,106,30],[107,19,107,30],[108,19,108,30],[109,19,109,30],[100,19,100,30],[101,19,101,30],[102,19,102,30],[103,19,103,30],[104,19,104,30],[95,19,95,30],[96,19,96,30],[97,19,97,30],[98,19,98,30],[99,19,99,30],[90,19,90,30],[91,19,91,30],[92,19,92,30],[93,19,93,30],[94,19,94,30],[85,19,85,30],[86,19,86,30],[87,19,87,30],[88,19,88,30],[89,19,89,30],[80,19,80,30],[81,19,81,30],[82,19,82,30],[83,19,83,30],[84,19,84,30],[75,19,75,30],[76,19,76,30],[77,19,77,30],[78,19,78,30],[79,19,79,30],[70,19,70,30],[71,19,71,30],[72,19,72,30],[73,19,73,30],[74,19,74,30],[66,19,66,30],[67,19,67,30],[68,19,68,30],[69,19,69,30],[60,19,60,30],[61,19,61,30],[62,19,62,30],[63,19,63,30],[64,19,64,30],[57,19,57,30],[58,19,58,30],[59,19,59,30],[50,19,50,30],[51,19,51,30],[52,19,52,30],[53,19,53,30],[54,19,54,30],[65,19,65,30],[48,19,48,30],[49,19,49,30],[40,19,40,30],[41,19,41,30],[42,19,42,30],[43,19,43,30],[44,19,44,30],[55,19,55,30],[56,19,56,30],[39,19,39,30],[30,19,30,30],[31,19,31,30],[32,19,32,30],[33,19,33,30],[34,19,34,30],[45,19,45,30],[46,19,46,30],[47,19,47,30],[67,8,67,9],[68,8,68,9],[63,8,63,10],[48,8,48,13],[25,19,25,30],[26,19,26,30],[27,19,27,30],[28,19,28,30],[29,19,29,30],[53,8,53,13],[54,8,54,13],[55,8,55,13],[56,8,56,13],[57,8,57,13],[63,12,63,13],[49,8,49,13],[50,8,50,13],[51,8,51,13],[52,8,52,13],[58,8,58,13],[35,19,35,30],[36,19,36,30],[37,19,37,30],[38,19,38,30],[59,8,59,13],[60,8,60,13],[61,8,61,13],[45,8,45,13],[46,8,46,13],[56,2,56,3],[57,2,57,3],[58,2,58,3],[59,2,59,3],[78,8,78,9],[72,8,72,9],[73,8,73,9],[74,8,74,9],[75,8,75,9],[77,8,77,9],[76,8,76,9],[69,8,69,9],[70,8,70,9],[71,8,71,9],[46,2,46,3],[47,8,47,13],[30,8,30,13],[25,8,25,13],[26,8,26,13],[27,8,27,13],[28,8,28,13],[29,8,29,13],[42,8,42,13],[43,8,43,13],[44,8,44,13],[53,2,53,3],[54,2,54,3],[55,2,55,3],[22,18,23,18],[49,2,49,3],[8,3,8,12],[10,10,10,12],[18,10,18,12],[10,3,10,6],[44,2,44,3],[45,2,45,3],[16,10,16,12],[12,10,12,12],[25,2,25,3],[15,17,23,17],[34,2,34,3],[35,2,35,3],[36,2,36,3],[37,2,37,3],[26,2,26,3],[27,2,27,3],[28,2,28,3],[29,2,29,3],[30,2,30,3],[41,2,41,3],[42,2,42,3],[43,2,43,3],[61,2,61,3],[31,8,31,13],[31,2,31,3],[32,2,32,3],[33,2,33,3],[40,2,40,3],[38,2,38,3],[32,8,32,13],[33,8,33,13],[34,8,34,13],[35,8,35,13],[36,8,36,13],[37,8,37,13],[39,10,39,11],[41,8,41,13],[51,2,51,3],[47,2,47,3],[48,2,48,3],[50,2,50,3],[60,2,60,3],[52,2,52,3]]}
[]
[null,null,null,null,null,null,null,"Leeds University Union Caving Society"]
[]
[]
[{"$f":"CONCATENATE(\"Trip Name:  \",D9)","v":"Trip Name:  "}]
[]
[]
[null,"Trip details:",null,"Title"]
[null,null,"Trip Name:"]
[]
[null,null,"Location:",null,null,null,null,null,null,"Organizer:"]
[]
[null,null,"Date/s:",null,null,null,null,null,null,"Caving Hut","-"]
[]
[]
[null,null,null,null,null,null,null,null,null,null,null,null,null,null,null,null,null,"No. of people going"]
[null,null,"Trip Expenses",{"$f":"H39+H63","v":0},null,null,null,null,null,"Number of people going",{"$f":"R25","v":0}]
[]
[null,null,"Trip Revenue",{"$f":"S25","v":0}]
[]
[]
[]
[null,null,null,null,null,null,null,null,null,null,null,null,null,null,null,null,null,null,"Trip cost per person"]
[]
[null,null,null,"Transport","      Days:","Qty.","Cost","Total","Notes",null,null,null,null,null,null,null,"Trip Attenden Names",{"$f":"SUM(R26:R125)","v":0},{"$f":"SUM(S26:S77)","v":0},"  Notes"]
[null,null,null,null,1,1,0,{"$f":"G26*E26*F26","v":0},null,null,null,null,null,null,null,1,null,{"$f":"IF(Q26=\"\",\"\",IF(Q26=\"\",\"\",1))","v":""}]
[null,null,null,null,1,1,0,{"$f":"G27*E27*F27","v":0},null,null,null,null,null,null,null,2,null,{"$f":"IF(Q27=\"\",\"\",IF(Q27=\"\",\"\",1))","v":""}]
[null,null,null,null,1,1,0,0,null,null,null,null,null,null,null,3,null,""]
[null,null,null,null,1,1,0,0,null,null,null,null,null,null,null,4,null,""]
[null,null,null,null,1,1,0,0,null,null,null,null,null,null,null,5,null,""]
[null,null,null,null,1,1,0,0,null,null,null,null,null,null,null,6,null,""]
[null,null,null,null,1,1,0,0,null,null,null,null,null,null,null,7,null,""]
[null,null,null,null,1,1,0,0,null,null,null,null,null,null,null,8,null,""]
[null,null,null,null,1,1,0,0,null,null,null,null,null,null,null,9,null,""]
[null,null,null,null,1,1,0,0,null,null,null,null,null,null,null,10,null,""]
[null,null,null,null,1,1,0,0,null,null,null,null,null,null,null,11,null,""]
[null,null,null,null,1,1,0,0,null,null,null,null,null,null,null,12,null,""]
[null,null,null,null,1,1,0,{"$f":"G38*E38*F38","v":0},null,null,null,null,null,null,null,13,null,""]
[null,null,null,null,null,null,null,{"$f":"SUM(H26:H38)","v":0},null,null,null,null,null,null,null,14,null,""]
[null,null,null,null,null,null,null,null,null,null,null,null,null,null,null,15,null,""]
[null,null,"Other Expenses",null,"Qty","No.","Cost","Total"," Notes",null,null,null,null,null,null,16,null,""]
[null,null,null,null,1,1,0,{"$f":"G42*F42*E42","v":0},null,null,null,null,null,null,null,17,null,""]
[null,null,null,null,1,1,0,{"$f":"G43*F43*E43","v":0},null,null,null,null,null,null,null,18,null,""]
[null,null,null,null,1,1,0,{"$f":"G44*F44*E44","v":0},null,null,null,null,null,null,null,19,null,""]
[null,null,null,null,1,1,0,0,null,null,null,null,null,null,null,20,null,""]
[null,null,null,null,1,1,0,0,null,null,null,null,null,null,null,21,null,""]
[null,null,null,null,1,1,0,0,null,null,null,null,null,null,null,22,null,""]
[null,null,null,null,1,1,0,0,null,null,null,null,null,null,null,23,null,""]
[null,null,null,null,1,1,0,0,null,null,null,null,null,null,null,24,null,""]
[null,null,null,null,1,1,0,0,null,null,null,null,null,null,null,25,null,""]
[null,null,null,null,1,1,0,0,null,null,null,null,null,null,null,26,null,""]
[null,null,null,null,1,1,0,0,null,null,null,null,null,null,null,27,null,""]
[null,null,null,null,1,1,0,0,null,null,null,null,null,null,null,28,null,""]
[null,null,null,null,1,1,0,0,null,null,null,null,null,null,null,29,null,""]
[null,null,null,null,1,1,0,0,null,null,null,null,null,null,null,30,null,""]
[null,null,null,null,1,1,0,0,null,null,null,null,null,null,null,31,null,""]
[null,null,null,null,1,1,0,0,null,null,null,null,null,null,null,32,null,""]
[null,null,null,null,1,1,0,0,null,null,null,null,null,null,null,33,null,""]
[null,null,null,null,1,1,0,0,null,null,null,null,null,null,null,34,null,""]
[null,null,null,null,1,1,0,0,null,null,null,null,null,null,null,35,null,""]
[null,null,null,null,1,1,0,0,null,null,null,null,null,null,null,36,null,""]
[null,null,null,null,1,1,0,0,null,null,null,null,null,null,null,37,null,""]
[null,null,null,null,null,null,null,{"$f":"SUM(H42:H62)","v":0},null,null,null,null,null,null,null,38,null,""]
[null,null,null,null,null,null,null,null,null,null,null,null,null,null,null,39,null,""]
[null,null,null,null,null,null,null,null,null,null,null,null,null,null,null,40,null,""]
[null,null,null,null,null,null,null,null,null,null,null,null,null,null,null,41,null,""]
[null,null,null,null,null,null,null,null,null,null,null,null,null,null,null,42,null,""]
[null,null,null,null,null,null,null,null,null,null,null,null,null,null,null,43,null,""]
[null,null,null,null,null,null,null,null,null,null,null,null,null,null,null,44,null,""]
[null,null,null,null,null,null,null,null,null,null,null,null,null,null,null,45,null,""]
[null,null,null,null,null,null,null,null,null,null,null,null,null,null,null,46,null,""]
[null,null,null,null,null,null,null,null,null,null,null,null,null,null,null,47,null,""]
[null,null,null,null,null,null,null,null,null,null,null,null,null,null,null,48,null,""]
[null,null,null,null,null,null,null,null,null,null,null,null,null,null,null,49,null,""]
[null,null,null,null,null,null,null,null,null,null,null,null,null,null,null,50,null,""]
[null,null,null,null,null,null,null,null,null,null,null,null,null,null,null,51,null,""]
[null,null,null,null,null,null,null,null,null,null,null,null,null,null,null,52,null,""]
[null,null,null,null,null,null,null,null,null,null,null,null,null,null,null,53,null,""]
[null,null,null,null,null,null,null,null,null,null,null,null,null,null,null,54,null,""]
[null,null,null,null,null,null,null,null,null,null,null,null,null,null,null,55,null,""]
[null,null,null,null,null,null,null,null,null,null,null,null,null,null,null,56,null,""]
[null,null,null,null,null,null,null,null,null,null,null,null,null,null,null,57,null,""]
[null,null,null,null,null,null,null,null,null,null,null,null,null,null,null,58,null,""]
[null,null,null,null,null,null,null,null,null,null,null,null,null,null,null,59,null,""]
[null,null,null,null,null,null,null,null,null,null,null,null,null,null,null,60,null,""]
[null,null,null,null,null,null,null,null,null,null,null,null,null,null,null,61,null,""]
[null,null,null,null,null,null,null,null,null,null,null,null,null,null,null,62,null,""]
[null,null,null,null,null,null,null,null,null,null,null,null,null,null,null,63,null,""]
[null,null,null,null,null,null,null,null,null,null,null,null,null,null,null,64,null,""]
[null,null,null,null,null,null,null,null,null,null,null,null,null,null,null,65,null,""]
[null,null,null,null,null,null,null,null,null,null,null,null,null,null,null,66,null,{"$f":"IF(Q91=\"\",\"\",IF(Q91=\"\",\"\",1))","v":""}]
[null,null,null,null,null,null,null,null,null,null,null,null,null,null,null,67,null,""]
[null,null,null,null,null,null,null,null,null,null,null,null,null,null,null,68,null,""]
[null,null,null,null,null,null,null,null,null,null,null,null,null,null,null,69,null,""]
[null,null,null,null,null,null,null,null,null,null,null,null,null,null,null,70,null,""]
[null,null,null,null,null,null,null,null,null,null,null,null,null,null,null,71,null,""]
[null,null,null,null,null,null,null,null,null,null,null,null,null,null,null,72,null,""]
[null,null,null,null,null,null,null,null,null,null,null,null,null,null,null,73,null,""]
[null,null,null,null,null,null,null,null,null,null,null,null,null,null,null,74,null,""]
[null,null,null,null,null,null,null,null,null,null,null,null,null,null,null,75,null,""]
[null,null,null,null,null,null,null,null,null,null,null,null,null,null,null,76,null,""]
[null,null,null,null,null,null,null,null,null,null,null,null,null,null,null,77,null,""]
[null,null,null,null,null,null,null,null,null,null,null,null,null,null,null,78,null,""]
[null,null,null,null,null,null,null,null,null,null,null,null,null,null,null,79,null,""]
[null,null,null,null,null,null,null,null,null,null,null,null,null,null,null,80,null,""]
[null,null,null,null,null,null,null,null,null,null,null,null,null,null,null,81,null,""]
[null,null,null,null,null,null,null,null,null,null,null,null,null,null,null,82,null,""]
[null,null,null,null,null,null,null,null,null,null,null,null,null,null,null,83,null,""]
[null,null,null,null,null,null,null,null,null,null,null,null,null,null,null,84,null,""]
[null,null,null,null,null,null,null,null,null,null,null,null,null,null,null,85,null,""]
[null,null,null,null,null,null,null,null,null,null,null,null,null,null,null,86,null,""]
[null,null,null,null,null,null,null,null,null,null,null,null,null,null,null,87,null,""]
[null,null,null,null,null,null,null,null,null,null,null,null,null,null,null,88,null,""]
[null,null,null,null,null,null,null,null,null,null,null,null,null,null,null,89,null,""]
[null,null,null,null,null,null,null,null,null,null,null,null,null,null,null,90,null,""]
[null,null,null,null,null,null,null,null,null,null,null,null,null,null,null,91,null,""]
[null,null,null,null,null,null,null,null,null,null,null,null,null,null,null,92,null,""]
[null,null,null,null,null,null,null,null,null,null,null,null,null,null,null,93,null,""]
[null,null,null,null,null,null,null,null,null,null,null,null,null,null,null,94,null,""]
[null,null,null,null,null,null,null,null,null,null,null,null,null,null,null,95,null,""]
[null,null,null,null,null,null,null,null,null,null,null,null,null,null,null,96,null,""]
[null,null,null,null,null,null,null,null,null,null,null,null,null,null,null,97,null,""]
[null,null,null,null,null,null,null,null,null,null,null,null,null,null,null,98,null,""]
[null,null,null,null,null,null,null,null,null,null,null,null,null,null,null,99,null,""]
[null,null,null,null,null,null,null,null,null,null,null,null,null,null,null,100,null,""]

{"sheet":"Trip (2)","index":2,"n_rows":125,"n_cols":20,"rows_kept":125,"cut":false,"hidden":false,"merged":[[24,19,24,30],[40,8,40,13],[120,19,120,30],[121,19,121,30],[122,19,122,30],[123,19,123,30],[124,19,124,30],[115,19,115,30],[116,19,116,30],[117,19,117,30],[118,19,118,30],[119,19,119,30],[110,19,110,30],[111,19,111,30],[112,19,112,30],[113,19,113,30],[114,19,114,30],[105,19,105,30],[106,19,106,30],[107,19,107,30],[108,19,108,30],[109,19,109,30],[100,19,100,30],[101,19,101,30],[102,19,102,30],[103,19,103,30],[104,19,104,30],[95,19,95,30],[96,19,96,30],[97,19,97,30],[98,19,98,30],[99,19,99,30],[90,19,90,30],[91,19,91,30],[92,19,92,30],[93,19,93,30],[94,19,94,30],[85,19,85,30],[86,19,86,30],[87,19,87,30],[88,19,88,30],[89,19,89,30],[80,19,80,30],[81,19,81,30],[82,19,82,30],[83,19,83,30],[84,19,84,30],[76,19,76,30],[77,19,77,30],[78,19,78,30],[79,19,79,30],[70,19,70,30],[71,19,71,30],[72,19,72,30],[73,19,73,30],[74,19,74,30],[67,19,67,30],[68,19,68,30],[69,19,69,30],[60,19,60,30],[61,19,61,30],[62,19,62,30],[63,19,63,30],[64,19,64,30],[75,19,75,30],[58,19,58,30],[59,19,59,30],[50,19,50,30],[51,19,51,30],[52,19,52,30],[53,19,53,30],[54,19,54,30],[65,19,65,30],[66,19,66,30],[49,19,49,30],[40,19,40,30],[41,19,41,30],[42,19,42,30],[43,19,43,30],[44,19,44,30],[55,19,55,30],[56,19,56,30],[57,19,57,30],[30,19,30,30],[31,19,31,30],[32,19,32,30],[33,19,33,30],[34,19,34,30],[45,19,45,30],[46,19,46,30],[47,19,47,30],[48,19,48,30],[25,19,25,30],[26,19,26,30],[27,19,27,30],[28,19,28,30],[29,19,29,30],[75,8,75,9],[76,8,76,9],[77,8,77,9],[78,8,78,9],[69,8,69,9],[70,8,70,9],[71,8,71,9],[72,8,72,9],[73,8,73,9],[74,8,74,9],[68,8,68,9],[67,8,67,9],[42,8,42,13],[43,8,43,13],[35,19,35,30],[36,19,36,30],[37,19,37,30],[38,19,38,30],[39,19,39,30],[58,2,58,3],[58,8,58,13],[59,2,59,3],[59,8,59,13],[60,2,60,3],[60,8,60,13],[61,2,61,3],[61,8,61,13],[63,8,63,10],[63,12,63,13],[55,2,55,3],[55,8,55,13],[56,2,56,3],[56,8,56,13],[57,2,57,3],[57,8,57,13],[52,2,52,3],[52,8,52,13],[53,2,53,3],[53,8,53,13],[54,2,54,3],[54,8,54,13],[49,2,49,3],[49,8,49,13],[50,2,50,3],[50,8,50,13],[51,2,51,3],[51,8,51,13],[46,2,46,3],[46,8,46,13],[47,2,47,3],[47,8,47,13],[48,2,48,3],[48,8,48,13],[44,2,44,3],[44,8,44,13],[45,2,45,3],[45,8,45,13],[41,8,41,13],[34,2,34,3],[34,8,34,13],[35,2,35,3],[35,8,35,13],[36,2,36,3],[36,8,36,13],[37,2,37,3],[37,8,37,13],[38,2,38,3],[39,10,39,11],[40,2,40,3],[41,2,41,3],[42,2,42,3],[43,2,43,3],[31,2,31,3],[31,8,31,13],[32,2,32,3],[32,8,32,13],[33,2,33,3],[33,8,33,13],[28,2,28,3],[28,8,28,13],[29,2,29,3],[29,8,29,13],[30,2,30,3],[30,8,30,13],[22,18,23,18],[25,2,25,3],[25,8,25,13],[26,2,26,3],[26,8,26,13],[15,17,23,17],[27,2,27,3],[27,8,27,13],[8,3,8,12],[10,3,10,6],[10,10,10,12],[12,10,12,12],[16,10,16,12],[18,10,18,12]]}
[]
[null,null,null,null,null,null,null,"Leeds University Union Caving Society"]
[]
[]
[{"$f":"CONCATENATE(\"Trip Name:  \",D9)","v":"Trip Name:  "}]
[]
[]
[null,"Trip details:",null,"Title"]
[null,null,"Trip Name:"]
[]
[null,null,"Location:",null,null,null,null,null,null,"Organizer:"]
[]
[null,null,"Date/s:",null,null,null,null,null,null,"Caving Hut","-"]
[]
[]
[null,null,null,null,null,null,null,null,null,null,null,null,null,null,null,null,null,"No. of people going"]
[null,null,"Trip Expenses",{"$f":"H39+H63","v":0},null,null,null,null,null,"Number of people going",{"$f":"R25","v":0}]
[]
[null,null,"Trip Revenue",{"$f":"S25","v":0}]
[]
[]
[]
[null,null,null,null,null,null,null,null,null,null,null,null,null,null,null,null,null,null,"Trip cost per person"]
[]
[null,null,null,"Transport","      Days:","Qty.","Cost","Total","Notes",null,null,null,null,null,null,null,"Trip Attenden Names",{"$f":"SUM(R26:R125)","v":0},{"$f":"SUM(S26:S77)","v":0},"  Notes"]
[null,null,null,null,1,1,0,{"$f":"G26*E26*F26","v":0},null,null,null,null,null,null,null,1,null,{"$f":"IF(Q26=\"\",\"\",IF(Q26=\"\",\"\",1))","v":""}]
[null,null,null,null,1,1,0,{"$f":"G27*E27*F27","v":0},null,null,null,null,null,null,null,2,null,{"$f":"IF(Q27=\"\",\"\",IF(Q27=\"\",\"\",1))","v":""}]
[null,null,null,null,1,1,0,0,null,null,null,null,null,null,null,3,null,""]
[null,null,null,null,1,1,0,0,null,null,null,null,null,null,null,4,null,""]
[null,null,null,null,1,1,0,0,null,null,null,null,null,null,null,5,null,""]
[null,null,null,null,1,1,0,0,null,null,null,null,null,null,null,6,null,""]
[null,null,null,null,1,1,0,0,null,null,null,null,null,null,null,7,null,""]
[null,null,null,null,1,1,0,0,null,null,null,null,null,null,null,8,null,""]
[null,null,null,null,1,1,0,0,null,null,null,null,null,null,null,9,null,""]
[null,null,null,null,1,1,0,0,null,null,null,null,null,null,null,10,null,""]
[null,null,null,null,1,1,0,0,null,null,null,null,null,null,null,11,null,""]
[null,null,null,null,1,1,0,0,null,null,null,null,null,null,null,12,null,""]
[null,null,null,null,1,1,0,{"$f":"G38*E38*F38","v":0},null,null,null,null,null,null,null,13,null,""]
[null,null,null,null,null,null,null,{"$f":"SUM(H26:H38)","v":0},null,null,null,null,null,null,null,14,null,""]
[null,null,null,null,null,null,null,null,null,null,null,null,null,null,null,15,null,""]
[null,null,"Other Expenses",null,"Qty","No.","Cost","Total"," Notes",null,null,null,null,null,null,16,null,""]
[null,null,null,null,1,1,0,{"$f":"G42*F42*E42","v":0},null,null,null,null,null,null,null,17,null,""]
[null,null,null,null,1,1,0,{"$f":"G43*F43*E43","v":0},null,null,null,null,null,null,null,18,null,""]
[null,null,null,null,1,1,0,{"$f":"G44*F44*E44","v":0},null,null,null,null,null,null,null,19,null,""]
[null,null,null,null,1,1,0,0,null,null,null,null,null,null,null,20,null,""]
[null,null,null,null,1,1,0,0,null,null,null,null,null,null,null,21,null,""]
[null,null,null,null,1,1,0,0,null,null,null,null,null,null,null,22,null,""]
[null,null,null,null,1,1,0,0,null,null,null,null,null,null,null,23,null,""]
[null,null,null,null,1,1,0,0,null,null,null,null,null,null,null,24,null,""]
[null,null,null,null,1,1,0,0,null,null,null,null,null,null,null,25,null,""]
[null,null,null,null,1,1,0,0,null,null,null,null,null,null,null,26,null,""]
[null,null,null,null,1,1,0,0,null,null,null,null,null,null,null,27,null,""]
[null,null,null,null,1,1,0,0,null,null,null,null,null,null,null,28,null,""]
[null,null,null,null,1,1,0,0,null,null,null,null,null,null,null,29,null,""]
[null,null,null,null,1,1,0,0,null,null,null,null,null,null,null,30,null,""]
[null,null,null,null,1,1,0,0,null,null,null,null,null,null,null,31,null,""]
[null,null,null,null,1,1,0,0,null,null,null,null,null,null,null,32,null,""]
[null,null,null,null,1,1,0,0,null,null,null,null,null,null,null,33,null,""]
[null,null,null,null,1,1,0,0,null,null,null,null,null,null,null,34,null,""]
[null,null,null,null,1,1,0,0,null,null,null,null,null,null,null,35,null,""]
[null,null,null,null,1,1,0,0,null,null,null,null,null,null,null,36,null,""]
[null,null,null,null,1,1,0,0,null,null,null,null,null,null,null,37,null,""]
[null,null,null,null,null,null,null,{"$f":"SUM(H42:H62)","v":0},null,null,null,null,null,null,null,38,null,""]
[null,null,null,null,null,null,null,null,null,null,null,null,null,null,null,39,null,""]
[null,null,null,null,null,null,null,null,null,null,null,null,null,null,null,40,null,""]
[null,null,null,null,null,null,null,null,null,null,null,null,null,null,null,41,null,""]
[null,null,null,null,null,null,null,null,null,null,null,null,null,null,null,42,null,""]
[null,null,null,null,null,null,null,null,null,null,null,null,null,null,null,43,null,""]
[null,null,null,null,null,null,null,null,null,null,null,null,null,null,null,44,null,""]
[null,null,null,null,null,null,null,null,null,null,null,null,null,null,null,45,null,""]
[null,null,null,null,null,null,null,null,null,null,null,null,null,null,null,46,null,""]
[null,null,null,null,null,null,null,null,null,null,null,null,null,null,null,47,null,""]
[null,null,null,null,null,null,null,null,null,null,null,null,null,null,null,48,null,""]
[null,null,null,null,null,null,null,null,null,null,null,null,null,null,null,49,null,""]
[null,null,null,null,null,null,null,null,null,null,null,null,null,null,null,50,null,""]
[null,null,null,null,null,null,null,null,null,null,null,null,null,null,null,51,null,""]
[null,null,null,null,null,null,null,null,null,null,null,null,null,null,null,52,null,""]
[null,null,null,null,null,null,null,null,null,null,null,null,null,null,null,53,null,""]
[null,null,null,null,null,null,null,null,null,null,null,null,null,null,null,54,null,""]
[null,null,null,null,null,null,null,null,null,null,null,null,null,null,null,55,null,""]
[null,null,null,null,null,null,null,null,null,null,null,null,null,null,null,56,null,""]
[null,null,null,null,null,null,null,null,null,null,null,null,null,null,null,57,null,""]
[null,null,null,null,null,null,null,null,null,null,null,null,null,null,null,58,null,""]
[null,null,null,null,null,null,null,null,null,null,null,null,null,null,null,59,null,""]
[null,null,null,null,null,null,null,null,null,null,null,null,null,null,null,60,null,""]
[null,null,null,null,null,null,null,null,null,null,null,null,null,null,null,61,null,""]
[null,null,null,null,null,null,null,null,null,null,null,null,null,null,null,62,null,""]
[null,null,null,null,null,null,null,null,null,null,null,null,null,null,null,63,null,""]
[null,null,null,null,null,null,null,null,null,null,null,null,null,null,null,64,null,""]
[null,null,null,null,null,null,null,null,null,null,null,null,null,null,null,65,null,""]
[null,null,null,null,null,null,null,null,null,null,null,null,null,null,null,66,null,{"$f":"IF(Q91=\"\",\"\",IF(Q91=\"\",\"\",1))","v":""}]
[null,null,null,null,null,null,null,null,null,null,null,null,null,null,null,67,null,""]
[null,null,null,null,null,null,null,null,null,null,null,null,null,null,null,68,null,""]
[null,null,null,null,null,null,null,null,null,null,null,null,null,null,null,69,null,""]
[null,null,null,null,null,null,null,null,null,null,null,null,null,null,null,70,null,""]
[null,null,null,null,null,null,null,null,null,null,null,null,null,null,null,71,null,""]
[null,null,null,null,null,null,null,null,null,null,null,null,null,null,null,72,null,""]
[null,null,null,null,null,null,null,null,null,null,null,null,null,null,null,73,null,""]
[null,null,null,null,null,null,null,null,null,null,null,null,null,null,null,74,null,""]
[null,null,null,null,null,null,null,null,null,null,null,null,null,null,null,75,null,""]
[null,null,null,null,null,null,null,null,null,null,null,null,null,null,null,76,null,""]
[null,null,null,null,null,null,null,null,null,null,null,null,null,null,null,77,null,""]
[null,null,null,null,null,null,null,null,null,null,null,null,null,null,null,78,null,""]
[null,null,null,null,null,null,null,null,null,null,null,null,null,null,null,79,null,""]
[null,null,null,null,null,null,null,null,null,null,null,null,null,null,null,80,null,""]
[null,null,null,null,null,null,null,null,null,null,null,null,null,null,null,81,null,""]
[null,null,null,null,null,null,null,null,null,null,null,null,null,null,null,82,null,""]
[null,null,null,null,null,null,null,null,null,null,null,null,null,null,null,83,null,""]
[null,null,null,null,null,null,null,null,null,null,null,null,null,null,null,84,null,""]
[null,null,null,null,null,null,null,null,null,null,null,null,null,null,null,85,null,""]
[null,null,null,null,null,null,null,null,null,null,null,null,null,null,null,86,null,""]
[null,null,null,null,null,null,null,null,null,null,null,null,null,null,null,87,null,""]
[null,null,null,null,null,null,null,null,null,null,null,null,null,null,null,88,null,""]
[null,null,null,null,null,null,null,null,null,null,null,null,null,null,null,89,null,""]
[null,null,null,null,null,null,null,null,null,null,null,null,null,null,null,90,null,""]
[null,null,null,null,null,null,null,null,null,null,null,null,null,null,null,91,null,""]
[null,null,null,null,null,null,null,null,null,null,null,null,null,null,null,92,null,""]
[null,null,null,null,null,null,null,null,null,null,null,null,null,null,null,93,null,""]
[null,null,null,null,null,null,null,null,null,null,null,null,null,null,null,94,null,""]
[null,null,null,null,null,null,null,null,null,null,null,null,null,null,null,95,null,""]
[null,null,null,null,null,null,null,null,null,null,null,null,null,null,null,96,null,""]
[null,null,null,null,null,null,null,null,null,null,null,null,null,null,null,97,null,""]
[null,null,null,null,null,null,null,null,null,null,null,null,null,null,null,98,null,""]
[null,null,null,null,null,null,null,null,null,null,null,null,null,null,null,99,null,""]
[null,null,null,null,null,null,null,null,null,null,null,null,null,null,null,100,null,""]

{"sheet":"Trip (3)","index":3,"n_rows":125,"n_cols":20,"rows_kept":125,"cut":false,"hidden":false,"merged":[[24,19,24,30],[40,8,40,13],[120,19,120,30],[121,19,121,30],[122,19,122,30],[123,19,123,30],[124,19,124,30],[115,19,115,30],[116,19,116,30],[117,19,117,30],[118,19,118,30],[119,19,119,30],[110,19,110,30],[111,19,111,30],[112,19,112,30],[113,19,113,30],[114,19,114,30],[105,19,105,30],[106,19,106,30],[107,19,107,30],[108,19,108,30],[109,19,109,30],[100,19,100,30],[101,19,101,30],[102,19,102,30],[103,19,103,30],[104,19,104,30],[95,19,95,30],[96,19,96,30],[97,19,97,30],[98,19,98,30],[99,19,99,30],[90,19,90,30],[91,19,91,30],[92,19,92,30],[93,19,93,30],[94,19,94,30],[85,19,85,30],[86,19,86,30],[87,19,87,30],[88,19,88,30],[89,19,89,30],[80,19,80,30],[81,19,81,30],[82,19,82,30],[83,19,83,30],[84,19,84,30],[76,19,76,30],[77,19,77,30],[78,19,78,30],[79,19,79,30],[70,19,70,30],[71,19,71,30],[72,19,72,30],[73,19,73,30],[74,19,74,30],[67,19,67,30],[68,19,68,30],[69,19,69,30],[60,19,60,30],[61,19,61,30],[62,19,62,30],[63,19,63,30],[64,19,64,30],[75,19,75,30],[58,19,58,30],[59,19,59,30],[50,19,50,30],[51,19,51,30],[52,19,52,30],[53,19,53,30],[54,19,54,30],[65,19,65,30],[66,19,66,30],[49,19,49,30],[40,19,40,30],[41,19,41,30],[42,19,42,30],[43,19,43,30],[44,19,44,30],[55,19,55,30],[56,19,56,30],[57,19,57,30],[30,19,30,30],[31,19,31,30],[32,19,32,30],[33,19,33,30],[34,19,34,30],[45,19,45,30],[46,19,46,30],[47,19,47,30],[48,19,48,30],[25,19,25,30],[26,19,26,30],[27,19,27,30],[28,19,28,30],[29,19,29,30],[75,8,75,9],[76,8,76,9],[77,8,77,9],[78,8,78,9],[69,8,69,9],[70,8,70,9],[71,8,71,9],[72,8,72,9],[73,8,73,9],[74,8,74,9],[68,8,68,9],[67,8,67,9],[42,8,42,13],[43,8,43,13],[35,19,35,30],[36,19,36,30],[37,19,37,30],[38,19,38,30],[39,19,39,30],[58,2,58,3],[58,8,58,13],[59,2,59,3],[59,8,59,13],[60,2,60,3],[60,8,60,13],[61,2,61,3],[61,8,61,13],[63,8,63,10],[63,12,63,13],[55,2,55,3],[55,8,55,13],[56,2,56,3],[56,8,56,13],[57,2,57,3],[57,8,57,13],[52,2,52,3],[52,8,52,13],[53,2,53,3],[53,8,53,13],[54,2,54,3],[54,8,54,13],[49,2,49,3],[49,8,49,13],[50,2,50,3],[50,8,50,13],[51,2,51,3],[51,8,51,13],[46,2,46,3],[46,8,46,13],[47,2,47,3],[47,8,47,13],[48,2,48,3],[48,8,48,13],[44,2,44,3],[44,8,44,13],[45,2,45,3],[45,8,45,13],[41,8,41,13],[34,2,34,3],[34,8,34,13],[35,2,35,3],[35,8,35,13],[36,2,36,3],[36,8,36,13],[37,2,37,3],[37,8,37,13],[38,2,38,3],[39,10,39,11],[40,2,40,3],[41,2,41,3],[42,2,42,3],[43,2,43,3],[31,2,31,3],[31,8,31,13],[32,2,32,3],[32,8,32,13],[33,2,33,3],[33,8,33,13],[28,2,28,3],[28,8,28,13],[29,2,29,3],[29,8,29,13],[30,2,30,3],[30,8,30,13],[22,18,23,18],[25,2,25,3],[25,8,25,13],[26,2,26,3],[26,8,26,13],[15,17,23,17],[27,2,27,3],[27,8,27,13],[8,3,8,12],[10,3,10,6],[10,10,10,12],[12,10,12,12],[16,10,16,12],[18,10,18,12]]}
[]
[null,null,null,null,null,null,null,"Leeds University Union Caving Society"]
[]
[]
[{"$f":"CONCATENATE(\"Trip Name:  \",D9)","v":"Trip Name:  "}]
[]
[]
[null,"Trip details:",null,"Title"]
[null,null,"Trip Name:"]
[]
[null,null,"Location:",null,null,null,null,null,null,"Organizer:"]
[]
[null,null,"Date/s:",null,null,null,null,null,null,"Caving Hut","-"]
[]
[]
[null,null,null,null,null,null,null,null,null,null,null,null,null,null,null,null,null,"No. of people going"]
[null,null,"Trip Expenses",{"$f":"H39+H63","v":0},null,null,null,null,null,"Number of people going",{"$f":"R25","v":0}]
[]
[null,null,"Trip Revenue",{"$f":"S25","v":0}]
[]
[]
[]
[null,null,null,null,null,null,null,null,null,null,null,null,null,null,null,null,null,null,"Trip cost per person"]
[]
[null,null,null,"Transport","      Days:","Qty.","Cost","Total","Notes",null,null,null,null,null,null,null,"Trip Attenden Names",{"$f":"SUM(R26:R125)","v":0},{"$f":"SUM(S26:S77)","v":0},"  Notes"]
[null,null,null,null,1,1,0,{"$f":"G26*E26*F26","v":0},null,null,null,null,null,null,null,1,null,{"$f":"IF(Q26=\"\",\"\",IF(Q26=\"\",\"\",1))","v":""}]
[null,null,null,null,1,1,0,{"$f":"G27*E27*F27","v":0},null,null,null,null,null,null,null,2,null,{"$f":"IF(Q27=\"\",\"\",IF(Q27=\"\",\"\",1))","v":""}]
[null,null,null,null,1,1,0,0,null,null,null,null,null,null,null,3,null,""]
[null,null,null,null,1,1,0,0,null,null,null,null,null,null,null,4,null,""]
[null,null,null,null,1,1,0,0,null,null,null,null,null,null,null,5,null,""]
[null,null,null,null,1,1,0,0,null,null,null,null,null,null,null,6,null,""]
[null,null,null,null,1,1,0,0,null,null,null,null,null,null,null,7,null,""]
[null,null,null,null,1,1,0,0,null,null,null,null,null,null,null,8,null,""]
[null,null,null,null,1,1,0,0,null,null,null,null,null,null,null,9,null,""]
[null,null,null,null,1,1,0,0,null,null,null,null,null,null,null,10,null,""]
[null,null,null,null,1,1,0,0,null,null,null,null,null,null,null,11,null,""]
[null,null,null,null,1,1,0,0,null,null,null,null,null,null,null,12,null,""]
[null,null,null,null,1,1,0,{"$f":"G38*E38*F38","v":0},null,null,null,null,null,null,null,13,null,""]
[null,null,null,null,null,null,null,{"$f":"SUM(H26:H38)","v":0},null,null,null,null,null,null,null,14,null,""]
[null,null,null,null,null,null,null,null,null,null,null,null,null,null,null,15,null,""]
[null,null,"Other Expenses",null,"Qty","No.","Cost","Total"," Notes",null,null,null,null,null,null,16,null,""]
[null,null,null,null,1,1,0,{"$f":"G42*F42*E42","v":0},null,null,null,null,null,null,null,17,null,""]
[null,null,null,null,1,1,0,{"$f":"G43*F43*E43","v":0},null,null,null,null,null,null,null,18,null,""]
[null,null,null,null,1,1,0,{"$f":"G44*F44*E44","v":0},null,null,null,null,null,null,null,19,null,""]
[null,null,null,null,1,1,0,0,null,null,null,null,null,null,null,20,null,""]
[null,null,null,null,1,1,0,0,null,null,null,null,null,null,null,21,null,""]
[null,null,null,null,1,1,0,0,null,null,null,null,null,null,null,22,null,""]
[null,null,null,null,1,1,0,0,null,null,null,null,null,null,null,23,null,""]
[null,null,null,null,1,1,0,0,null,null,null,null,null,null,null,24,null,""]
[null,null,null,null,1,1,0,0,null,null,null,null,null,null,null,25,null,""]
[null,null,null,null,1,1,0,0,null,null,null,null,null,null,null,26,null,""]
[null,null,null,null,1,1,0,0,null,null,null,null,null,null,null,27,null,""]
[null,null,null,null,1,1,0,0,null,null,null,null,null,null,null,28,null,""]
[null,null,null,null,1,1,0,0,null,null,null,null,null,null,null,29,null,""]
[null,null,null,null,1,1,0,0,null,null,null,null,null,null,null,30,null,""]
[null,null,null,null,1,1,0,0,null,null,null,null,null,null,null,31,null,""]
[null,null,null,null,1,1,0,0,null,null,null,null,null,null,null,32,null,""]
[null,null,null,null,1,1,0,0,null,null,null,null,null,null,null,33,null,""]
[null,null,null,null,1,1,0,0,null,null,null,null,null,null,null,34,null,""]
[null,null,null,null,1,1,0,0,null,null,null,null,null,null,null,35,null,""]
[null,null,null,null,1,1,0,0,null,null,null,null,null,null,null,36,null,""]
[null,null,null,null,1,1,0,0,null,null,null,null,null,null,null,37,null,""]
[null,null,null,null,null,null,null,{"$f":"SUM(H42:H62)","v":0},null,null,null,null,null,null,null,38,null,""]
[null,null,null,null,null,null,null,null,null,null,null,null,null,null,null,39,null,""]
[null,null,null,null,null,null,null,null,null,null,null,null,null,null,null,40,null,""]
[null,null,null,null,null,null,null,null,null,null,null,null,null,null,null,41,null,""]
[null,null,null,null,null,null,null,null,null,null,null,null,null,null,null,42,null,""]
[null,null,null,null,null,null,null,null,null,null,null,null,null,null,null,43,null,""]
[null,null,null,null,null,null,null,null,null,null,null,null,null,null,null,44,null,""]
[null,null,null,null,null,null,null,null,null,null,null,null,null,null,null,45,null,""]
[null,null,null,null,null,null,null,null,null,null,null,null,null,null,null,46,null,""]
[null,null,null,null,null,null,null,null,null,null,null,null,null,null,null,47,null,""]
[null,null,null,null,null,null,null,null,null,null,null,null,null,null,null,48,null,""]
[null,null,null,null,null,null,null,null,null,null,null,null,null,null,null,49,null,""]
[null,null,null,null,null,null,null,null,null,null,null,null,null,null,null,50,null,""]
[null,null,null,null,null,null,null,null,null,null,null,null,null,null,null,51,null,""]
[null,null,null,null,null,null,null,null,null,null,null,null,null,null,null,52,null,""]
[null,null,null,null,null,null,null,null,null,null,null,null,null,null,null,53,null,""]
[null,null,null,null,null,null,null,null,null,null,null,null,null,null,null,54,null,""]
[null,null,null,null,null,null,null,null,null,null,null,null,null,null,null,55,null,""]
[null,null,null,null,null,null,null,null,null,null,null,null,null,null,null,56,null,""]
[null,null,null,null,null,null,null,null,null,null,null,null,null,null,null,57,null,""]
[null,null,null,null,null,null,null,null,null,null,null,null,null,null,null,58,null,""]
[null,null,null,null,null,null,null,null,null,null,null,null,null,null,null,59,null,""]
[null,null,null,null,null,null,null,null,null,null,null,null,null,null,null,60,null,""]
[null,null,null,null,null,null,null,null,null,null,null,null,null,null,null,61,null,""]
[null,null,null,null,null,null,null,null,null,null,null,null,null,null,null,62,null,""]
[null,null,null,null,null,null,null,null,null,null,null,null,null,null,null,63,null,""]
[null,null,null,null,null,null,null,null,null,null,null,null,null,null,null,64,null,""]
[null,null,null,null,null,null,null,null,null,null,null,null,null,null,null,65,null,""]
[null,null,null,null,null,null,null,null,null,null,null,null,null,null,null,66,null,{"$f":"IF(Q91=\"\",\"\",IF(Q91=\"\",\"\",1))","v":""}]
[null,null,null,null,null,null,null,null,null,null,null,null,null,null,null,67,null,""]
[null,null,null,null,null,null,null,null,null,null,null,null,null,null,null,68,null,""]
[null,null,null,null,null,null,null,null,null,null,null,null,null,null,null,69,null,""]
[null,null,null,null,null,null,null,null,null,null,null,null,null,null,null,70,null,""]
[null,null,null,null,null,null,null,null,null,null,null,null,null,null,null,71,null,""]
[null,null,null,null,null,null,null,null,null,null,null,null,null,null,null,72,null,""]
[null,null,null,null,null,null,null,null,null,null,null,null,null,null,null,73,null,""]
[null,null,null,null,null,null,null,null,null,null,null,null,null,null,null,74,null,""]
[null,null,null,null,null,null,null,null,null,null,null,null,null,null,null,75,null,""]
[null,null,null,null,null,null,null,null,null,null,null,null,null,null,null,76,null,""]
[null,null,null,null,null,null,null,null,null,null,null,null,null,null,null,77,null,""]
[null,null,null,null,null,null,null,null,null,null,null,null,null,null,null,78,null,""]
[null,null,null,null,null,null,null,null,null,null,null,null,null,null,null,79,null,""]
[null,null,null,null,null,null,null,null,null,null,null,null,null,null,null,80,null,""]
[null,null,null,null,null,null,null,null,null,null,null,null,null,null,null,81,null,""]
[null,null,null,null,null,null,null,null,null,null,null,null,null,null,null,82,null,""]
[null,null,null,null,null,null,null,null,null,null,null,null,null,null,null,83,null,""]
[null,null,null,null,null,null,null,null,null,null,null,null,null,null,null,84,null,""]
[null,null,null,null,null,null,null,null,null,null,null,null,null,null,null,85,null,""]
[null,null,null,null,null,null,null,null,null,null,null,null,null,null,null,86,null,""]
[null,null,null,null,null,null,null,null,null,null,null,null,null,null,null,87,null,""]
[null,null,null,null,null,null,null,null,null,null,null,null,null,null,null,88,null,""]
[null,null,null,null,null,null,null,null,null,null,null,null,null,null,null,89,null,""]
[null,null,null,null,null,null,null,null,null,null,null,null,null,null,null,90,null,""]
[null,null,null,null,null,null,null,null,null,null,null,null,null,null,null,91,null,""]
[null,null,null,null,null,null,null,null,null,null,null,null,null,null,null,92,null,""]
[null,null,null,null,null,null,null,null,null,null,null,null,null,null,null,93,null,""]
[null,null,null,null,null,null,null,null,null,null,null,null,null,null,null,94,null,""]
[null,null,null,null,null,null,null,null,null,null,null,null,null,null,null,95,null,""]
[null,null,null,null,null,null,null,null,null,null,null,null,null,null,null,96,null,""]
[null,null,null,null,null,null,null,null,null,null,null,null,null,null,null,97,null,""]
[null,null,null,null,null,null,null,null,null,null,null,null,null,null,null,98,null,""]
[null,null,null,null,null,null,null,null,null,null,null,null,null,null,null,99,null,""]
[null,null,null,null,null,null,null,null,null,null,null,null,null,null,null,100,null,""]

{"sheet":"Trip (4)","index":4,"n_rows":125,"n_cols":20,"rows_kept":125,"cut":false,"hidden":false,"merged":[[24,19,24,30],[40,8,40,13],[120,19,120,30],[121,19,121,30],[122,19,122,30],[123,19,123,30],[124,19,124,30],[115,19,115,30],[116,19,116,30],[117,19,117,30],[118,19,118,30],[119,19,119,30],[110,19,110,30],[111,19,111,30],[112,19,112,30],[113,19,113,30],[114,19,114,30],[105,19,105,30],[106,19,106,30],[107,19,107,30],[108,19,108,30],[109,19,109,30],[100,19,100,30],[101,19,101,30],[102,19,102,30],[103,19,103,30],[104,19,104,30],[95,19,95,30],[96,19,96,30],[97,19,97,30],[98,19,98,30],[99,19,99,30],[90,19,90,30],[91,19,91,30],[92,19,92,30],[93,19,93,30],[94,19,94,30],[85,19,85,30],[86,19,86,30],[87,19,87,30],[88,19,88,30],[89,19,89,30],[80,19,80,30],[81,19,81,30],[82,19,82,30],[83,19,83,30],[84,19,84,30],[76,19,76,30],[77,19,77,30],[78,19,78,30],[79,19,79,30],[70,19,70,30],[71,19,71,30],[72,19,72,30],[73,19,73,30],[74,19,74,30],[67,19,67,30],[68,19,68,30],[69,19,69,30],[60,19,60,30],[61,19,61,30],[62,19,62,30],[63,19,63,30],[64,19,64,30],[75,19,75,30],[58,19,58,30],[59,19,59,30],[50,19,50,30],[51,19,51,30],[52,19,52,30],[53,19,53,30],[54,19,54,30],[65,19,65,30],[66,19,66,30],[49,19,49,30],[40,19,40,30],[41,19,41,30],[42,19,42,30],[43,19,43,30],[44,19,44,30],[55,19,55,30],[56,19,56,30],[57,19,57,30],[30,19,30,30],[31,19,31,30],[32,19,32,30],[33,19,33,30],[34,19,34,30],[45,19,45,30],[46,19,46,30],[47,19,47,30],[48,19,48,30],[25,19,25,30],[26,19,26,30],[27,19,27,30],[28,19,28,30],[29,19,29,30],[75,8,75,9],[76,8,76,9],[77,8,77,9],[78,8,78,9],[69,8,69,9],[70,8,70,9],[71,8,71,9],[72,8,72,9],[73,8,73,9],[74,8,74,9],[68,8,68,9],[67,8,67,9],[42,8,42,13],[43,8,43,13],[35,19,35,30],[36,19,36,30],[37,19,37,30],[38,19,38,30],[39,19,39,30],[58,2,58,3],[58,8,58,13],[59,2,59,3],[59,8,59,13],[60,2,60,3],[60,8,60,13],[61,2,61,3],[61,8,61,13],[63,8,63,10],[63,12,63,13],[55,2,55,3],[55,8,55,13],[56,2,56,3],[56,8,56,13],[57,2,57,3],[57,8,57,13],[52,2,52,3],[52,8,52,13],[53,2,53,3],[53,8,53,13],[54,2,54,3],[54,8,54,13],[49,2,49,3],[49,8,49,13],[50,2,50,3],[50,8,50,13],[51,2,51,3],[51,8,51,13],[46,2,46,3],[46,8,46,13],[47,2,47,3],[47,8,47,13],[48,2,48,3],[48,8,48,13],[44,2,44,3],[44,8,44,13],[45,2,45,3],[45,8,45,13],[41,8,41,13],[34,2,34,3],[34,8,34,13],[35,2,35,3],[35,8,35,13],[36,2,36,3],[36,8,36,13],[37,2,37,3],[37,8,37,13],[38,2,38,3],[39,10,39,11],[40,2,40,3],[41,2,41,3],[42,2,42,3],[43,2,43,3],[31,2,31,3],[31,8,31,13],[32,2,32,3],[32,8,32,13],[33,2,33,3],[33,8,33,13],[28,2,28,3],[28,8,28,13],[29,2,29,3],[29,8,29,13],[30,2,30,3],[30,8,30,13],[22,18,23,18],[25,2,25,3],[25,8,25,13],[26,2,26,3],[26,8,26,13],[15,17,23,17],[27,2,27,3],[27,8,27,13],[8,3,8,12],[10,3,10,6],[10,10,10,12],[12,10,12,12],[16,10,16,12],[18,10,18,12]]}
[]
[null,null,null,null,null,null,null,"Leeds University Union Caving Society"]
[]
[]
[{"$f":"CONCATENATE(\"Trip Name:  \",D9)","v":"Trip Name:  "}]
[]
[]
[null,"Trip details:",null,"Title"]
[null,null,"Trip Name:"]
[]
[null,null,"Location:",null,null,null,null,null,null,"Organizer:"]
[]
[null,null,"Date/s:",null,null,null,null,null,null,"Caving Hut","-"]
[]
[]
[null,null,null,null,null,null,null,null,null,null,null,null,null,null,null,null,null,"No. of people going"]
[null,null,"Trip Expenses",{"$f":"H39+H63","v":0},null,null,null,null,null,"Number of people going",{"$f":"R25","v":0}]
[]
[null,null,"Trip Revenue",{"$f":"S25","v":0}]
[]
[]
[]
[null,null,null,null,null,null,null,null,null,null,null,null,null,null,null,null,null,null,"Trip cost per person"]
[]
[null,null,null,"Transport","      Days:","Qty.","Cost","Total","Notes",null,null,null,null,null,null,null,"Trip Attenden Names",{"$f":"SUM(R26:R125)","v":0},{"$f":"SUM(S26:S77)","v":0},"  Notes"]
[null,null,null,null,1,1,0,{"$f":"G26*E26*F26","v":0},null,null,null,null,null,null,null,1,null,{"$f":"IF(Q26=\"\",\"\",IF(Q26=\"\",\"\",1))","v":""}]
[null,null,null,null,1,1,0,{"$f":"G27*E27*F27","v":0},null,null,null,null,null,null,null,2,null,{"$f":"IF(Q27=\"\",\"\",IF(Q27=\"\",\"\",1))","v":""}]
[null,null,null,null,1,1,0,0,null,null,null,null,null,null,null,3,null,""]
[null,null,null,null,1,1,0,0,null,null,null,null,null,null,null,4,null,""]
[null,null,null,null,1,1,0,0,null,null,null,null,null,null,null,5,null,""]
[null,null,null,null,1,1,0,0,null,null,null,null,null,null,null,6,null,""]
[null,null,null,null,1,1,0,0,null,null,null,null,null,null,null,7,null,""]
[null,null,null,null,1,1,0,0,null,null,null,null,null,null,null,8,null,""]
[null,null,null,null,1,1,0,0,null,null,null,null,null,null,null,9,null,""]
[null,null,null,null,1,1,0,0,null,null,null,null,null,null,null,10,null,""]
[null,null,null,null,1,1,0,0,null,null,null,null,null,null,null,11,null,""]
[null,null,null,null,1,1,0,0,null,null,null,null,null,null,null,12,null,""]
[null,null,null,null,1,1,0,{"$f":"G38*E38*F38","v":0},null,null,null,null,null,null,null,13,null,""]
[null,null,null,null,null,null,null,{"$f":"SUM(H26:H38)","v":0},null,null,null,null,null,null,null,14,null,""]
[null,null,null,null,null,null,null,null,null,null,null,null,null,null,null,15,null,""]
[null,null,"Other Expenses",null,"Qty","No.","Cost","Total"," Notes",null,null,null,null,null,null,16,null,""]
[null,null,null,null,1,1,0,{"$f":"G42*F42*E42","v":0},null,null,null,null,null,null,null,17,null,""]
[null,null,null,null,1,1,0,{"$f":"G43*F43*E43","v":0},null,null,null,null,null,null,null,18,null,""]
[null,null,null,null,1,1,0,{"$f":"G44*F44*E44","v":0},null,null,null,null,null,null,null,19,null,""]
[null,null,null,null,1,1,0,0,null,null,null,null,null,null,null,20,null,""]
[null,null,null,null,1,1,0,0,null,null,null,null,null,null,null,21,null,""]
[null,null,null,null,1,1,0,0,null,null,null,null,null,null,null,22,null,""]
[null,null,null,null,1,1,0,0,null,null,null,null,null,null,null,23,null,""]
[null,null,null,null,1,1,0,0,null,null,null,null,null,null,null,24,null,""]
[null,null,null,null,1,1,0,0,null,null,null,null,null,null,null,25,null,""]
[null,null,null,null,1,1,0,0,null,null,null,null,null,null,null,26,null,""]
[null,null,null,null,1,1,0,0,null,null,null,null,null,null,null,27,null,""]
[null,null,null,null,1,1,0,0,null,null,null,null,null,null,null,28,null,""]
[null,null,null,null,1,1,0,0,null,null,null,null,null,null,null,29,null,""]
[null,null,null,null,1,1,0,0,null,null,null,null,null,null,null,30,null,""]
[null,null,null,null,1,1,0,0,null,null,null,null,null,null,null,31,null,""]
[null,null,null,null,1,1,0,0,null,null,null,null,null,null,null,32,null,""]
[null,null,null,null,1,1,0,0,null,null,null,null,null,null,null,33,null,""]
[null,null,null,null,1,1,0,0,null,null,null,null,null,null,null,34,null,""]
[null,null,null,null,1,1,0,0,null,null,null,null,null,null,null,35,null,""]
[null,null,null,null,1,1,0,0,null,null,null,null,null,null,null,36,null,""]
[null,null,null,null,1,1,0,0,null,null,null,null,null,null,null,37,null,""]
[null,null,null,null,null,null,null,{"$f":"SUM(H42:H62)","v":0},null,null,null,null,null,null,null,38,null,""]
[null,null,null,null,null,null,null,null,null,null,null,null,null,null,null,39,null,""]
[null,null,null,null,null,null,null,null,null,null,null,null,null,null,null,40,null,""]
[null,null,null,null,null,null,null,null,null,null,null,null,null,null,null,41,null,""]
[null,null,null,null,null,null,null,null,null,null,null,null,null,null,null,42,null,""]
[null,null,null,null,null,null,null,null,null,null,null,null,null,null,null,43,null,""]
[null,null,null,null,null,null,null,null,null,null,null,null,null,null,null,44,null,""]
[null,null,null,null,null,null,null,null,null,null,null,null,null,null,null,45,null,""]
[null,null,null,null,null,null,null,null,null,null,null,null,null,null,null,46,null,""]
[null,null,null,null,null,null,null,null,null,null,null,null,null,null,null,47,null,""]
[null,null,null,null,null,null,null,null,null,null,null,null,null,null,null,48,null,""]
[null,null,null,null,null,null,null,null,null,null,null,null,null,null,null,49,null,""]
[null,null,null,null,null,null,null,null,null,null,null,null,null,null,null,50,null,""]
[null,null,null,null,null,null,null,null,null,null,null,null,null,null,null,51,null,""]
[null,null,null,null,null,null,null,null,null,null,null,null,null,null,null,52,null,""]
[null,null,null,null,null,null,null,null,null,null,null,null,null,null,null,53,null,""]
[null,null,null,null,null,null,null,null,null,null,null,null,null,null,null,54,null,""]
[null,null,null,null,null,null,null,null,null,null,null,null,null,null,null,55,null,""]
[null,null,null,null,null,null,null,null,null,null,null,null,null,null,null,56,null,""]
[null,null,null,null,null,null,null,null,null,null,null,null,null,null,null,57,null,""]
[null,null,null,null,null,null,null,null,null,null,null,null,null,null,null,58,null,""]
[null,null,null,null,null,null,null,null,null,null,null,null,null,null,null,59,null,""]
[null,null,null,null,null,null,null,null,null,null,null,null,null,null,null,60,null,""]
[null,null,null,null,null,null,null,null,null,null,null,null,null,null,null,61,null,""]
[null,null,null,null,null,null,null,null,null,null,null,null,null,null,null,62,null,""]
[null,null,null,null,null,null,null,null,null,null,null,null,null,null,null,63,null,""]
[null,null,null,null,null,null,null,null,null,null,null,null,null,null,null,64,null,""]
[null,null,null,null,null,null,null,null,null,null,null,null,null,null,null,65,null,""]
[null,null,null,null,null,null,null,null,null,null,null,null,null,null,null,66,null,{"$f":"IF(Q91=\"\",\"\",IF(Q91=\"\",\"\",1))","v":""}]
[null,null,null,null,null,null,null,null,null,null,null,null,null,null,null,67,null,""]
[null,null,null,null,null,null,null,null,null,null,null,null,null,null,null,68,null,""]
[null,null,null,null,null,null,null,null,null,null,null,null,null,null,null,69,null,""]
[null,null,null,null,null,null,null,null,null,null,null,null,null,null,null,70,null,""]
[null,null,null,null,null,null,null,null,null,null,null,null,null,null,null,71,null,""]
[null,null,null,null,null,null,null,null,null,null,null,null,null,null,null,72,null,""]
[null,null,null,null,null,null,null,null,null,null,null,null,null,null,null,73,null,""]
[null,null,null,null,null,null,null,null,null,null,null,null,null,null,null,74,null,""]
[null,null,null,null,null,null,null,null,null,null,null,null,null,null,null,75,null,""]
[null,null,null,null,null,null,null,null,null,null,null,null,null,null,null,76,null,""]
[null,null,null,null,null,null,null,null,null,null,null,null,null,null,null,77,null,""]
[null,null,null,null,null,null,null,null,null,null,null,null,null,null,null,78,null,""]
[null,null,null,null,null,null,null,null,null,null,null,null,null,null,null,79,null,""]
[null,null,null,null,null,null,null,null,null,null,null,null,null,null,null,80,null,""]
[null,null,null,null,null,null,null,null,null,null,null,null,null,null,null,81,null,""]
[null,null,null,null,null,null,null,null,null,null,null,null,null,null,null,82,null,""]
[null,null,null,null,null,null,null,null,null,null,null,null,null,null,null,83,null,""]
[null,null,null,null,null,null,null,null,null,null,null,null,null,null,null,84,null,""]
[null,null,null,null,null,null,null,null,null,null,null,null,null,null,null,85,null,""]
[null,null,null,null,null,null,null,null,null,null,null,null,null,null,null,86,null,""]
[null,null,null,null,null,null,null,null,null,null,null,null,null,null,null,87,null,""]
[null,null,null,null,null,null,null,null,null,null,null,null,null,null,null,88,null,""]
[null,null,null,null,null,null,null,null,null,null,null,null,null,null,null,89,null,""]
[null,null,null,null,null,null,null,null,null,null,null,null,null,null,null,90,null,""]
[null,null,null,null,null,null,null,null,null,null,null,null,null,null,null,91,null,""]
[null,null,null,null,null,null,null,null,null,null,null,null,null,null,null,92,null,""]
[null,null,null,null,null,null,null,null,null,null,null,null,null,null,null,93,null,""]
[null,null,null,null,null,null,null,null,null,null,null,null,null,null,null,94,null,""]
[null,null,null,null,null,null,null,null,null,null,null,null,null,null,null,95,null,""]
[null,null,null,null,null,null,null,null,null,null,null,null,null,null,null,96,null,""]
[null,null,null,null,null,null,null,null,null,null,null,null,null,null,null,97,null,""]
[null,null,null,null,null,null,null,null,null,null,null,null,null,null,null,98,null,""]
[null,null,null,null,null,null,null,null,null,null,null,null,null,null,null,99,null,""]
[null,null,null,null,null,null,null,null,null,null,null,null,null,null,null,100,null,""]

{"sheet":"Trip (5)","index":5,"n_rows":125,"n_cols":20,"rows_kept":125,"cut":false,"hidden":false,"merged":[[24,19,24,30],[40,8,40,13],[120,19,120,30],[121,19,121,30],[122,19,122,30],[123,19,123,30],[124,19,124,30],[115,19,115,30],[116,19,116,30],[117,19,117,30],[118,19,118,30],[119,19,119,30],[110,19,110,30],[111,19,111,30],[112,19,112,30],[113,19,113,30],[114,19,114,30],[105,19,105,30],[106,19,106,30],[107,19,107,30],[108,19,108,30],[109,19,109,30],[100,19,100,30],[101,19,101,30],[102,19,102,30],[103,19,103,30],[104,19,104,30],[95,19,95,30],[96,19,96,30],[97,19,97,30],[98,19,98,30],[99,19,99,30],[90,19,90,30],[91,19,91,30],[92,19,92,30],[93,19,93,30],[94,19,94,30],[85,19,85,30],[86,19,86,30],[87,19,87,30],[88,19,88,30],[89,19,89,30],[80,19,80,30],[81,19,81,30],[82,19,82,30],[83,19,83,30],[84,19,84,30],[76,19,76,30],[77,19,77,30],[78,19,78,30],[79,19,79,30],[70,19,70,30],[71,19,71,30],[72,19,72,30],[73,19,73,30],[74,19,74,30],[67,19,67,30],[68,19,68,30],[69,19,69,30],[60,19,60,30],[61,19,61,30],[62,19,62,30],[63,19,63,30],[64,19,64,30],[75,19,75,30],[58,19,58,30],[59,19,59,30],[50,19,50,30],[51,19,51,30],[52,19,52,30],[53,19,53,30],[54,19,54,30],[65,19,65,30],[66,19,66,30],[49,19,49,30],[40,19,40,30],[41,19,41,30],[42,19,42,30],[43,19,43,30],[44,19,44,30],[55,19,55,30],[56,19,56,30],[57,19,57,30],[30,19,30,30],[31,19,31,30],[32,19,32,30],[33,19,33,30],[34,19,34,30],[45,19,45,30],[46,19,46,30],[47,19,47,30],[48,19,48,30],[25,19,25,30],[26,19,26,30],[27,19,27,30],[28,19,28,30],[29,19,29,30],[75,8,75,9],[76,8,76,9],[77,8,77,9],[78,8,78,9],[69,8,69,9],[70,8,70,9],[71,8,71,9],[72,8,72,9],[73,8,73,9],[74,8,74,9],[68,8,68,9],[67,8,67,9],[42,8,42,13],[43,8,43,13],[35,19,35,30],[36,19,36,30],[37,19,37,30],[38,19,38,30],[39,19,39,30],[58,2,58,3],[58,8,58,13],[59,2,59,3],[59,8,59,13],[60,2,60,3],[60,8,60,13],[61,2,61,3],[61,8,61,13],[63,8,63,10],[63,12,63,13],[55,2,55,3],[55,8,55,13],[56,2,56,3],[56,8,56,13],[57,2,57,3],[57,8,57,13],[52,2,52,3],[52,8,52,13],[53,2,53,3],[53,8,53,13],[54,2,54,3],[54,8,54,13],[49,2,49,3],[49,8,49,13],[50,2,50,3],[50,8,50,13],[51,2,51,3],[51,8,51,13],[46,2,46,3],[46,8,46,13],[47,2,47,3],[47,8,47,13],[48,2,48,3],[48,8,48,13],[44,2,44,3],[44,8,44,13],[45,2,45,3],[45,8,45,13],[41,8,41,13],[34,2,34,3],[34,8,34,13],[35,2,35,3],[35,8,35,13],[36,2,36,3],[36,8,36,13],[37,2,37,3],[37,8,37,13],[38,2,38,3],[39,10,39,11],[40,2,40,3],[41,2,41,3],[42,2,42,3],[43,2,43,3],[31,2,31,3],[31,8,31,13],[32,2,32,3],[32,8,32,13],[33,2,33,3],[33,8,33,13],[28,2,28,3],[28,8,28,13],[29,2,29,3],[29,8,29,13],[30,2,30,3],[30,8,30,13],[22,18,23,18],[25,2,25,3],[25,8,25,13],[26,2,26,3],[26,8,26,13],[15,17,23,17],[27,2,27,3],[27,8,27,13],[8,3,8,12],[10,3,10,6],[10,10,10,12],[12,10,12,12],[16,10,16,12],[18,10,18,12]]}
[]
[null,null,null,null,null,null,null,"Leeds University Union Caving Society"]
[]
[]
[{"$f":"CONCATENATE(\"Trip Name:  \",D9)","v":"Trip Name:  "}]
[]
[]
[null,"Trip details:",null,"Title"]
[null,null,"Trip Name:"]
[]
[null,null,"Location:",null,null,null,null,null,null,"Organizer:"]
[]
[null,null,"Date/s:",null,null,null,null,null,null,"Caving Hut","-"]
[]
[]
[null,null,null,null,null,null,null,null,null,null,null,null,null,null,null,null,null,"No. of people going"]
[null,null,"Trip Expenses",{"$f":"H39+H63","v":0},null,null,null,null,null,"Number of people going",{"$f":"R25","v":0}]
[]
[null,null,"Trip Revenue",{"$f":"S25","v":0}]
[]
[]
[]
[null,null,null,null,null,null,null,null,null,null,null,null,null,null,null,null,null,null,"Trip cost per person"]
[]
[null,null,null,"Transport","      Days:","Qty.","Cost","Total","Notes",null,null,null,null,null,null,null,"Trip Attenden Names",{"$f":"SUM(R26:R125)","v":0},{"$f":"SUM(S26:S77)","v":0},"  Notes"]
[null,null,null,null,1,1,0,{"$f":"G26*E26*F26","v":0},null,null,null,null,null,null,null,1,null,{"$f":"IF(Q26=\"\",\"\",IF(Q26=\"\",\"\",1))","v":""}]
[null,null,null,null,1,1,0,{"$f":"G27*E27*F27","v":0},null,null,null,null,null,null,null,2,null,{"$f":"IF(Q27=\"\",\"\",IF(Q27=\"\",\"\",1))","v":""}]
[null,null,null,null,1,1,0,0,null,null,null,null,null,null,null,3,null,""]
[null,null,null,null,1,1,0,0,null,null,null,null,null,null,null,4,null,""]
[null,null,null,null,1,1,0,0,null,null,null,null,null,null,null,5,null,""]
[null,null,null,null,1,1,0,0,null,null,null,null,null,null,null,6,null,""]
[null,null,null,null,1,1,0,0,null,null,null,null,null,null,null,7,null,""]
[null,null,null,null,1,1,0,0,null,null,null,null,null,null,null,8,null,""]
[null,null,null,null,1,1,0,0,null,null,null,null,null,null,null,9,null,""]
[null,null,null,null,1,1,0,0,null,null,null,null,null,null,null,10,null,""]
[null,null,null,null,1,1,0,0,null,null,null,null,null,null,null,11,null,""]
[null,null,null,null,1,1,0,0,null,null,null,null,null,null,null,12,null,""]
[null,null,null,null,1,1,0,{"$f":"G38*E38*F38","v":0},null,null,null,null,null,null,null,13,null,""]
[null,null,null,null,null,null,null,{"$f":"SUM(H26:H38)","v":0},null,null,null,null,null,null,null,14,null,""]
[null,null,null,null,null,null,null,null,null,null,null,null,null,null,null,15,null,""]
[null,null,"Other Expenses",null,"Qty","No.","Cost","Total"," Notes",null,null,null,null,null,null,16,null,""]
[null,null,null,null,1,1,0,{"$f":"G42*F42*E42","v":0},null,null,null,null,null,null,null,17,null,""]
[null,null,null,null,1,1,0,{"$f":"G43*F43*E43","v":0},null,null,null,null,null,null,null,18,null,""]
[null,null,null,null,1,1,0,{"$f":"G44*F44*E44","v":0},null,null,null,null,null,null,null,19,null,""]
[null,null,null,null,1,1,0,0,null,null,null,null,null,null,null,20,null,""]
[null,null,null,null,1,1,0,0,null,null,null,null,null,null,null,21,null,""]
[null,null,null,null,1,1,0,0,null,null,null,null,null,null,null,22,null,""]
[null,null,null,null,1,1,0,0,null,null,null,null,null,null,null,23,null,""]
[null,null,null,null,1,1,0,0,null,null,null,null,null,null,null,24,null,""]
[null,null,null,null,1,1,0,0,null,null,null,null,null,null,null,25,null,""]
[null,null,null,null,1,1,0,0,null,null,null,null,null,null,null,26,null,""]
[null,null,null,null,1,1,0,0,null,null,null,null,null,null,null,27,null,""]
[null,null,null,null,1,1,0,0,null,null,null,null,null,null,null,28,null,""]
[null,null,null,null,1,1,0,0,null,null,null,null,null,null,null,29,null,""]
[null,null,null,null,1,1,0,0,null,null,null,null,null,null,null,30,null,""]
[null,null,null,null,1,1,0,0,null,null,null,null,null,null,null,31,null,""]
[null,null,null,null,1,1,0,0,null,null,null,null,null,null,null,32,null,""]
[null,null,null,null,1,1,0,0,null,null,null,null,null,null,null,33,null,""]
[null,null,null,null,1,1,0,0,null,null,null,null,null,null,null,34,null,""]
[null,null,null,null,1,1,0,0,null,null,null,null,null,null,null,35,null,""]
[null,null,null,null,1,1,0,0,null,null,null,null,null,null,null,36,null,""]
[null,null,null,null,1,1,0,0,null,null,null,null,null,null,null,37,null,""]
[null,null,null,null,null,null,null,{"$f":"SUM(H42:H62)","v":0},null,null,null,null,null,null,null,38,null,""]
[null,null,null,null,null,null,null,null,null,null,null,null,null,null,null,39,null,""]
[null,null,null,null,null,null,null,null,null,null,null,null,null,null,null,40,null,""]
[null,null,null,null,null,null,null,null,null,null,null,null,null,null,null,41,null,""]
[null,null,null,null,null,null,null,null,null,null,null,null,null,null,null,42,null,""]
[null,null,null,null,null,null,null,null,null,null,null,null,null,null,null,43,null,""]
[null,null,null,null,null,null,null,null,null,null,null,null,null,null,null,44,null,""]
[null,null,null,null,null,null,null,null,null,null,null,null,null,null,null,45,null,""]
[null,null,null,null,null,null,null,null,null,null,null,null,null,null,null,46,null,""]
[null,null,null,null,null,null,null,null,null,null,null,null,null,null,null,47,null,""]
[null,null,null,null,null,null,null,null,null,null,null,null,null,null,null,48,null,""]
[null,null,null,null,null,null,null,null,null,null,null,null,null,null,null,49,null,""]
[null,null,null,null,null,null,null,null,null,null,null,null,null,null,null,50,null,""]
[null,null,null,null,null,null,null,null,null,null,null,null,null,null,null,51,null,""]
[null,null,null,null,null,null,null,null,null,null,null,null,null,null,null,52,null,""]
[null,null,null,null,null,null,null,null,null,null,null,null,null,null,null,53,null,""]
[null,null,null,null,null,null,null,null,null,null,null,null,null,null,null,54,null,""]
[null,null,null,null,null,null,null,null,null,null,null,null,null,null,null,55,null,""]
[null,null,null,null,null,null,null,null,null,null,null,null,null,null,null,56,null,""]
[null,null,null,null,null,null,null,null,null,null,null,null,null,null,null,57,null,""]
[null,null,null,null,null,null,null,null,null,null,null,null,null,null,null,58,null,""]
[null,null,null,null,null,null,null,null,null,null,null,null,null,null,null,59,null,""]
[null,null,null,null,null,null,null,null,null,null,null,null,null,null,null,60,null,""]
[null,null,null,null,null,null,null,null,null,null,null,null,null,null,null,61,null,""]
[null,null,null,null,null,null,null,null,null,null,null,null,null,null,null,62,null,""]
[null,null,null,null,null,null,null,null,null,null,null,null,null,null,null,63,null,""]
[null,null,null,null,null,null,null,null,null,null,null,null,null,null,null,64,null,""]
[null,null,null,null,null,null,null,null,null,null,null,null,null,null,null,65,null,""]
[null,null,null,null,null,null,null,null,null,null,null,null,null,null,null,66,null,{"$f":"IF(Q91=\"\",\"\",IF(Q91=\"\",\"\",1))","v":""}]
[null,null,null,null,null,null,null,null,null,null,null,null,null,null,null,67,null,""]
[null,null,null,null,null,null,null,null,null,null,null,null,null,null,null,68,null,""]
[null,null,null,null,null,null,null,null,null,null,null,null,null,null,null,69,null,""]
[null,null,null,null,null,null,null,null,null,null,null,null,null,null,null,70,null,""]
[null,null,null,null,null,null,null,null,null,null,null,null,null,null,null,71,null,""]
[null,null,null,null,null,null,null,null,null,null,null,null,null,null,null,72,null,""]
[null,null,null,null,null,null,null,null,null,null,null,null,null,null,null,73,null,""]
[null,null,null,null,null,null,null,null,null,null,null,null,null,null,null,74,null,""]
[null,null,null,null,null,null,null,null,null,null,null,null,null,null,null,75,null,""]
[null,null,null,null,null,null,null,null,null,null,null,null,null,null,null,76,null,""]
[null,null,null,null,null,null,null,null,null,null,null,null,null,null,null,77,null,""]
[null,null,null,null,null,null,null,null,null,null,null,null,null,null,null,78,null,""]
[null,null,null,null,null,null,null,null,null,null,null,null,null,null,null,79,null,""]
[null,null,null,null,null,null,null,null,null,null,null,null,null,null,null,80,null,""]
[null,null,null,null,null,null,null,null,null,null,null,null,null,null,null,81,null,""]
[null,null,null,null,null,null,null,null,null,null,null,null,null,null,null,82,null,""]
[null,null,null,null,null,null,null,null,null,null,null,null,null,null,null,83,null,""]
[null,null,null,null,null,null,null,null,null,null,null,null,null,null,null,84,null,""]
[null,null,null,null,null,null,null,null,null,null,null,null,null,null,null,85,null,""]
[null,null,null,null,null,null,null,null,null,null,null,null,null,null,null,86,null,""]
[null,null,null,null,null,null,null,null,null,null,null,null,null,null,null,87,null,""]
[null,null,null,null,null,null,null,null,null,null,null,null,null,null,null,88,null,""]
[null,null,null,null,null,null,null,null,null,null,null,null,null,null,null,89,null,""]
[null,null,null,null,null,null,null,null,null,null,null,null,null,null,null,90,null,""]
[null,null,null,null,null,null,null,null,null,null,null,null,null,null,null,91,null,""]
[null,null,null,null,null,null,null,null,null,null,null,null,null,null,null,92,null,""]
[null,null,null,null,null,null,null,null,null,null,null,null,null,null,null,93,null,""]
[null,null,null,null,null,null,null,null,null,null,null,null,null,null,null,94,null,""]
[null,null,null,null,null,null,null,null,null,null,null,null,null,null,null,95,null,""]
[null,null,null,null,null,null,null,null,null,null,null,null,null,null,null,96,null,""]
[null,null,null,null,null,null,null,null,null,null,null,null,null,null,null,97,null,""]
[null,null,null,null,null,null,null,null,null,null,null,null,null,null,null,98,null,""]
[null,null,null,null,null,null,null,null,null,null,null,null,null,null,null,99,null,""]
[null,null,null,null,null,null,null,null,null,null,null,null,null,null,null,100,null,""]

{"sheet":"Trip (6)","index":6,"n_rows":125,"n_cols":20,"rows_kept":125,"cut":false,"hidden":false,"merged":[[24,19,24,30],[40,8,40,13],[120,19,120,30],[121,19,121,30],[122,19,122,30],[123,19,123,30],[124,19,124,30],[115,19,115,30],[116,19,116,30],[117,19,117,30],[118,19,118,30],[119,19,119,30],[110,19,110,30],[111,19,111,30],[112,19,112,30],[113,19,113,30],[114,19,114,30],[105,19,105,30],[106,19,106,30],[107,19,107,30],[108,19,108,30],[109,19,109,30],[100,19,100,30],[101,19,101,30],[102,19,102,30],[103,19,103,30],[104,19,104,30],[95,19,95,30],[96,19,96,30],[97,19,97,30],[98,19,98,30],[99,19,99,30],[90,19,90,30],[91,19,91,30],[92,19,92,30],[93,19,93,30],[94,19,94,30],[85,19,85,30],[86,19,86,30],[87,19,87,30],[88,19,88,30],[89,19,89,30],[80,19,80,30],[81,19,81,30],[82,19,82,30],[83,19,83,30],[84,19,84,30],[76,19,76,30],[77,19,77,30],[78,19,78,30],[79,19,79,30],[70,19,70,30],[71,19,71,30],[72,19,72,30],[73,19,73,30],[74,19,74,30],[67,19,67,30],[68,19,68,30],[69,19,69,30],[60,19,60,30],[61,19,61,30],[62,19,62,30],[63,19,63,30],[64,19,64,30],[75,19,75,30],[58,19,58,30],[59,19,59,30],[50,19,50,30],[51,19,51,30],[52,19,52,30],[53,19,53,30],[54,19,54,30],[65,19,65,30],[66,19,66,30],[49,19,49,30],[40,19,40,30],[41,19,41,30],[42,19,42,30],[43,19,43,30],[44,19,44,30],[55,19,55,30],[56,19,56,30],[57,19,57,30],[30,19,30,30],[31,19,31,30],[32,19,32,30],[33,19,33,30],[34,19,34,30],[45,19,45,30],[46,19,46,30],[47,19,47,30],[48,19,48,30],[25,19,25,30],[26,19,26,30],[27,19,27,30],[28,19,28,30],[29,19,29,30],[75,8,75,9],[76,8,76,9],[77,8,77,9],[78,8,78,9],[69,8,69,9],[70,8,70,9],[71,8,71,9],[72,8,72,9],[73,8,73,9],[74,8,74,9],[68,8,68,9],[67,8,67,9],[42,8,42,13],[43,8,43,13],[35,19,35,30],[36,19,36,30],[37,19,37,30],[38,19,38,30],[39,19,39,30],[58,2,58,3],[58,8,58,13],[59,2,59,3],[59,8,59,13],[60,2,60,3],[60,8,60,13],[61,2,61,3],[61,8,61,13],[63,8,63,10],[63,12,63,13],[55,2,55,3],[55,8,55,13],[56,2,56,3],[56,8,56,13],[57,2,57,3],[57,8,57,13],[52,2,52,3],[52,8,52,13],[53,2,53,3],[53,8,53,13],[54,2,54,3],[54,8,54,13],[49,2,49,3],[49,8,49,13],[50,2,50,3],[50,8,50,13],[51,2,51,3],[51,8,51,13],[46,2,46,3],[46,8,46,13],[47,2,47,3],[47,8,47,13],[48,2,48,3],[48,8,48,13],[44,2,44,3],[44,8,44,13],[45,2,45,3],[45,8,45,13],[41,8,41,13],[34,2,34,3],[34,8,34,13],[35,2,35,3],[35,8,35,13],[36,2,36,3],[36,8,36,13],[37,2,37,3],[37,8,37,13],[38,2,38,3],[39,10,39,11],[40,2,40,3],[41,2,41,3],[42,2,42,3],[43,2,43,3],[31,2,31,3],[31,8,31,13],[32,2,32,3],[32,8,32,13],[33,2,33,3],[33,8,33,13],[28,2,28,3],[28,8,28,13],[29,2,29,3],[29,8,29,13],[30,2,30,3],[30,8,30,13],[22,18,23,18],[25,2,25,3],[25,8,25,13],[26,2,26,3],[26,8,26,13],[15,17,23,17],[27,2,27,3],[27,8,27,13],[8,3,8,12],[10,3,10,6],[10,10,10,12],[12,10,12,12],[16,10,16,12],[18,10,18,12]]}
[]
[null,null,null,null,null,null,null,"Leeds University Union Caving Society"]
[]
[]
[{"$f":"CONCATENATE(\"Trip Name:  \",D9)","v":"Trip Name:  "}]
[]
[]
[null,"Trip details:",null,"Title"]
[null,null,"Trip Name:"]
[]
[null,null,"Location:",null,null,null,null,null,null,"Organizer:"]
[]
[null,null,"Date/s:",null,null,null,null,null,null,"Caving Hut","-"]
[]
[]
[null,null,null,null,null,null,null,null,null,null,null,null,null,null,null,null,null,"No. of people going"]
[null,null,"Trip Expenses",{"$f":"H39+H63","v":0},null,null,null,null,null,"Number of people going",{"$f":"R25","v":0}]
[]
[null,null,"Trip Revenue",{"$f":"S25","v":0}]
[]
[]
[]
[null,null,null,null,null,null,null,null,null,null,null,null,null,null,null,null,null,null,"Trip cost per person"]
[]
[null,null,null,"Transport","      Days:","Qty.","Cost","Total","Notes",null,null,null,null,null,null,null,"Trip Attenden Names",{"$f":"SUM(R26:R125)","v":0},{"$f":"SUM(S26:S77)","v":0},"  Notes"]
[null,null,null,null,1,1,0,{"$f":"G26*E26*F26","v":0},null,null,null,null,null,null,null,1,null,{"$f":"IF(Q26=\"\",\"\",IF(Q26=\"\",\"\",1))","v":""}]
[null,null,null,null,1,1,0,{"$f":"G27*E27*F27","v":0},null,null,null,null,null,null,null,2,null,{"$f":"IF(Q27=\"\",\"\",IF(Q27=\"\",\"\",1))","v":""}]
[null,null,null,null,1,1,0,0,null,null,null,null,null,null,null,3,null,""]
[null,null,null,null,1,1,0,0,null,null,null,null,null,null,null,4,null,""]
[null,null,null,null,1,1,0,0,null,null,null,null,null,null,null,5,null,""]
[null,null,null,null,1,1,0,0,null,null,null,null,null,null,null,6,null,""]
[null,null,null,null,1,1,0,0,null,null,null,null,null,null,null,7,null,""]
[null,null,null,null,1,1,0,0,null,null,null,null,null,null,null,8,null,""]
[null,null,null,null,1,1,0,0,null,null,null,null,null,null,null,9,null,""]
[null,null,null,null,1,1,0,0,null,null,null,null,null,null,null,10,null,""]
[null,null,null,null,1,1,0,0,null,null,null,null,null,null,null,11,null,""]
[null,null,null,null,1,1,0,0,null,null,null,null,null,null,null,12,null,""]
[null,null,null,null,1,1,0,{"$f":"G38*E38*F38","v":0},null,null,null,null,null,null,null,13,null,""]
[null,null,null,null,null,null,null,{"$f":"SUM(H26:H38)","v":0},null,null,null,null,null,null,null,14,null,""]
[null,null,null,null,null,null,null,null,null,null,null,null,null,null,null,15,null,""]
[null,null,"Other Expenses",null,"Qty","No.","Cost","Total"," Notes",null,null,null,null,null,null,16,null,""]
[null,null,null,null,1,1,0,{"$f":"G42*F42*E42","v":0},null,null,null,null,null,null,null,17,null,""]
[null,null,null,null,1,1,0,{"$f":"G43*F43*E43","v":0},null,null,null,null,null,null,null,18,null,""]
[null,null,null,null,1,1,0,{"$f":"G44*F44*E44","v":0},null,null,null,null,null,null,null,19,null,""]
[null,null,null,null,1,1,0,0,null,null,null,null,null,null,null,20,null,""]
[null,null,null,null,1,1,0,0,null,null,null,null,null,null,null,21,null,""]
[null,null,null,null,1,1,0,0,null,null,null,null,null,null,null,22,null,""]
[null,null,null,null,1,1,0,0,null,null,null,null,null,null,null,23,null,""]
[null,null,null,null,1,1,0,0,null,null,null,null,null,null,null,24,null,""]
[null,null,null,null,1,1,0,0,null,null,null,null,null,null,null,25,null,""]
[null,null,null,null,1,1,0,0,null,null,null,null,null,null,null,26,null,""]
[null,null,null,null,1,1,0,0,null,null,null,null,null,null,null,27,null,""]
[null,null,null,null,1,1,0,0,null,null,null,null,null,null,null,28,null,""]
[null,null,null,null,1,1,0,0,null,null,null,null,null,null,null,29,null,""]
[null,null,null,null,1,1,0,0,null,null,null,null,null,null,null,30,null,""]
[null,null,null,null,1,1,0,0,null,null,null,null,null,null,null,31,null,""]
[null,null,null,null,1,1,0,0,null,null,null,null,null,null,null,32,null,""]
[null,null,null,null,1,1,0,0,null,null,null,null,null,null,null,33,null,""]
[null,null,null,null,1,1,0,0,null,null,null,null,null,null,null,34,null,""]
[null,null,null,null,1,1,0,0,null,null,null,null,null,null,null,35,null,""]
[null,null,null,null,1,1,0,0,null,null,null,null,null,null,null,36,null,""]
[null,null,null,null,1,1,0,0,null,null,null,null,null,null,null,37,null,""]
[null,null,null,null,null,null,null,{"$f":"SUM(H42:H62)","v":0},null,null,null,null,null,null,null,38,null,""]
[null,null,null,null,null,null,null,null,null,null,null,null,null,null,null,39,null,""]
[null,null,null,null,null,null,null,null,null,null,null,null,null,null,null,40,null,""]
[null,null,null,null,null,null,null,null,null,null,null,null,null,null,null,41,null,""]
[null,null,null,null,null,null,null,null,null,null,null,null,null,null,null,42,null,""]
[null,null,null,null,null,null,null,null,null,null,null,null,null,null,null,43,null,""]
[null,null,null,null,null,null,null,null,null,null,null,null,null,null,null,44,null,""]
[null,null,null,null,null,null,null,null,null,null,null,null,null,null,null,45,null,""]
[null,null,null,null,null,null,null,null,null,null,null,null,null,null,null,46,null,""]
[null,null,null,null,null,null,null,null,null,null,null,null,null,null,null,47,null,""]
[null,null,null,null,null,null,null,null,null,null,null,null,null,null,null,48,null,""]
[null,null,null,null,null,null,null,null,null,null,null,null,null,null,null,49,null,""]
[null,null,null,null,null,null,null,null,null,null,null,null,null,null,null,50,null,""]
[null,null,null,null,null,null,null,null,null,null,null,null,null,null,null,51,null,""]
[null,null,null,null,null,null,null,null,null,null,null,null,null,null,null,52,null,""]
[null,null,null,null,null,null,null,null,null,null,null,null,null,null,null,53,null,""]
[null,null,null,null,null,null,null,null,null,null,null,null,null,null,null,54,null,""]
[null,null,null,null,null,null,null,null,null,null,null,null,null,null,null,55,null,""]
[null,null,null,null,null,null,null,null,null,null,null,null,null,null,null,56,null,""]
[null,null,null,null,null,null,null,null,null,null,null,null,null,null,null,57,null,""]
[null,null,null,null,null,null,null,null,null,null,null,null,null,null,null,58,null,""]
[null,null,null,null,null,null,null,null,null,null,null,null,null,null,null,59,null,""]
[null,null,null,null,null,null,null,null,null,null,null,null,null,null,null,60,null,""]
[null,null,null,null,null,null,null,null,null,null,null,null,null,null,null,61,null,""]
[null,null,null,null,null,null,null,null,null,null,null,null,null,null,null,62,null,""]
[null,null,null,null,null,null,null,null,null,null,null,null,null,null,null,63,null,""]
[null,null,null,null,null,null,null,null,null,null,null,null,null,null,null,64,null,""]
[null,null,null,null,null,null,null,null,null,null,null,null,null,null,null,65,null,""]
[null,null,null,null,null,null,null,null,null,null,null,null,null,null,null,66,null,{"$f":"IF(Q91=\"\",\"\",IF(Q91=\"\",\"\",1))","v":""}]
[null,null,null,null,null,null,null,null,null,null,null,null,null,null,null,67,null,""]
[null,null,null,null,null,null,null,null,null,null,null,null,null,null,null,68,null,""]
[null,null,null,null,null,null,null,null,null,null,null,null,null,null,null,69,null,""]
[null,null,null,null,null,null,null,null,null,null,null,null,null,null,null,70,null,""]
[null,null,null,null,null,null,null,null,null,null,null,null,null,null,null,71,null,""]
[null,null,null,null,null,null,null,null,null,null,null,null,null,null,null,72,null,""]
[null,null,null,null,null,null,null,null,null,null,null,null,null,null,null,73,null,""]
[null,null,null,null,null,null,null,null,null,null,null,null,null,null,null,74,null,""]
[null,null,null,null,null,null,null,null,null,null,null,null,null,null,null,75,null,""]
[null,null,null,null,null,null,null,null,null,null,null,null,null,null,null,76,null,""]
[null,null,null,null,null,null,null,null,null,null,null,null,null,null,null,77,null,""]
[null,null,null,null,null,null,null,null,null,null,null,null,null,null,null,78,null,""]
[null,null,null,null,null,null,null,null,null,null,null,null,null,null,null,79,null,""]
[null,null,null,null,null,null,null,null,null,null,null,null,null,null,null,80,null,""]
[null,null,null,null,null,null,null,null,null,null,null,null,null,null,null,81,null,""]
[null,null,null,null,null,null,null,null,null,null,null,null,null,null,null,82,null,""]
[null,null,null,null,null,null,null,null,null,null,null,null,null,null,null,83,null,""]
[null,null,null,null,null,null,null,null,null,null,null,null,null,null,null,84,null,""]
[null,null,null,null,null,null,null,null,null,null,null,null,null,null,null,85,null,""]
[null,null,null,null,null,null,null,null,null,null,null,null,null,null,null,86,null,""]
[null,null,null,null,null,null,null,null,null,null,null,null,null,null,null,87,null,""]
[null,null,null,null,null,null,null,null,null,null,null,null,null,null,null,88,null,""]
[null,null,null,null,null,null,null,null,null,null,null,null,null,null,null,89,null,""]
[null,null,null,null,null,null,null,null,null,null,null,null,null,null,null,90,null,""]
[null,null,null,null,null,null,null,null,null,null,null,null,null,null,null,91,null,""]
[null,null,null,null,null,null,null,null,null,null,null,null,null,null,null,92,null,""]
[null,null,null,null,null,null,null,null,null,null,null,null,null,null,null,93,null,""]
[null,null,null,null,null,null,null,null,null,null,null,null,null,null,null,94,null,""]
[null,null,null,null,null,null,null,null,null,null,null,null,null,null,null,95,null,""]
[null,null,null,null,null,null,null,null,null,null,null,null,null,null,null,96,null,""]
[null,null,null,null,null,null,null,null,null,null,null,null,null,null,null,97,null,""]
[null,null,null,null,null,null,null,null,null,null,null,null,null,null,null,98,null,""]
[null,null,null,null,null,null,null,null,null,null,null,null,null,null,null,99,null,""]
[null,null,null,null,null,null,null,null,null,null,null,null,null,null,null,100,null,""]

{"sheet":"Trip (7)","index":7,"n_rows":125,"n_cols":20,"rows_kept":125,"cut":false,"hidden":false,"merged":[[24,19,24,30],[40,8,40,13],[120,19,120,30],[121,19,121,30],[122,19,122,30],[123,19,123,30],[124,19,124,30],[115,19,115,30],[116,19,116,30],[117,19,117,30],[118,19,118,30],[119,19,119,30],[110,19,110,30],[111,19,111,30],[112,19,112,30],[113,19,113,30],[114,19,114,30],[105,19,105,30],[106,19,106,30],[107,19,107,30],[108,19,108,30],[109,19,109,30],[100,19,100,30],[101,19,101,30],[102,19,102,30],[103,19,103,30],[104,19,104,30],[95,19,95,30],[96,19,96,30],[97,19,97,30],[98,19,98,30],[99,19,99,30],[90,19,90,30],[91,19,91,30],[92,19,92,30],[93,19,93,30],[94,19,94,30],[85,19,85,30],[86,19,86,30],[87,19,87,30],[88,19,88,30],[89,19,89,30],[80,19,80,30],[81,19,81,30],[82,19,82,30],[83,19,83,30],[84,19,84,30],[76,19,76,30],[77,19,77,30],[78,19,78,30],[79,19,79,30],[70,19,70,30],[71,19,71,30],[72,19,72,30],[73,19,73,30],[74,19,74,30],[67,19,67,30],[68,19,68,30],[69,19,69,30],[60,19,60,30],[61,19,61,30],[62,19,62,30],[63,19,63,30],[64,19,64,30],[75,19,75,30],[58,19,58,30],[59,19,59,30],[50,19,50,30],[51,19,51,30],[52,19,52,30],[53,19,53,30],[54,19,54,30],[65,19,65,30],[66,19,66,30],[49,19,49,30],[40,19,40,30],[41,19,41,30],[42,19,42,30],[43,19,43,30],[44,19,44,30],[55,19,55,30],[56,19,56,30],[57,19,57,30],[30,19,30,30],[31,19,31,30],[32,19,32,30],[33,19,33,30],[34,19,34,30],[45,19,45,30],[46,19,46,30],[47,19,47,30],[48,19,48,30],[25,19,25,30],[26,19,26,30],[27,19,27,30],[28,19,28,30],[29,19,29,30],[75,8,75,9],[76,8,76,9],[77,8,77,9],[78,8,78,9],[69,8,69,9],[70,8,70,9],[71,8,71,9],[72,8,72,9],[73,8,73,9],[74,8,74,9],[68,8,68,9],[67,8,67,9],[42,8,42,13],[43,8,43,13],[35,19,35,30],[36,19,36,30],[37,19,37,30],[38,19,38,30],[39,19,39,30],[58,2,58,3],[58,8,58,13],[59,2,59,3],[59,8,59,13],[60,2,60,3],[60,8,60,13],[61,2,61,3],[61,8,61,13],[63,8,63,10],[63,12,63,13],[55,2,55,3],[55,8,55,13],[56,2,56,3],[56,8,56,13],[57,2,57,3],[57,8,57,13],[52,2,52,3],[52,8,52,13],[53,2,53,3],[53,8,53,13],[54,2,54,3],[54,8,54,13],[49,2,49,3],[49,8,49,13],[50,2,50,3],[50,8,50,13],[51,2,51,3],[51,8,51,13],[46,2,46,3],[46,8,46,13],[47,2,47,3],[47,8,47,13],[48,2,48,3],[48,8,48,13],[44,2,44,3],[44,8,44,13],[45,2,45,3],[45,8,45,13],[41,8,41,13],[34,2,34,3],[34,8,34,13],[35,2,35,3],[35,8,35,13],[36,2,36,3],[36,8,36,13],[37,2,37,3],[37,8,37,13],[38,2,38,3],[39,10,39,11],[40,2,40,3],[41,2,41,3],[42,2,42,3],[43,2,43,3],[31,2,31,3],[31,8,31,13],[32,2,32,3],[32,8,32,13],[33,2,33,3],[33,8,33,13],[28,2,28,3],[28,8,28,13],[29,2,29,3],[29,8,29,13],[30,2,30,3],[30,8,30,13],[22,18,23,18],[25,2,25,3],[25,8,25,13],[26,2,26,3],[26,8,26,13],[15,17,23,17],[27,2,27,3],[27,8,27,13],[8,3,8,12],[10,3,10,6],[10,10,10,12],[12,10,12,12],[16,10,16,12],[18,10,18,12]]}
[]
[null,null,null,null,null,null,null,"Leeds University Union Caving Society"]
[]
[]
[{"$f":"CONCATENATE(\"Trip Name:  \",D9)","v":"Trip Name:  "}]
[]
[]
[null,"Trip details:",null,"Title"]
[null,null,"Trip Name:"]
[]
[null,null,"Location:",null,null,null,null,null,null,"Organizer:"]
[]
[null,null,"Date/s:",null,null,null,null,null,null,"Caving Hut","-"]
[]
[]
[null,null,null,null,null,null,null,null,null,null,null,null,null,null,null,null,null,"No. of people going"]
[null,null,"Trip Expenses",{"$f":"H39+H63","v":0},null,null,null,null,null,"Number of people going",{"$f":"R25","v":0}]
[]
[null,null,"Trip Revenue",{"$f":"S25","v":0}]
[]
[]
[]
[null,null,null,null,null,null,null,null,null,null,null,null,null,null,null,null,null,null,"Trip cost per person"]
[]
[null,null,null,"Transport","      Days:","Qty.","Cost","Total","Notes",null,null,null,null,null,null,null,"Trip Attenden Names",{"$f":"SUM(R26:R125)","v":0},{"$f":"SUM(S26:S77)","v":0},"  Notes"]
[null,null,null,null,1,1,0,{"$f":"G26*E26*F26","v":0},null,null,null,null,null,null,null,1,null,{"$f":"IF(Q26=\"\",\"\",IF(Q26=\"\",\"\",1))","v":""}]
[null,null,null,null,1,1,0,{"$f":"G27*E27*F27","v":0},null,null,null,null,null,null,null,2,null,{"$f":"IF(Q27=\"\",\"\",IF(Q27=\"\",\"\",1))","v":""}]
[null,null,null,null,1,1,0,0,null,null,null,null,null,null,null,3,null,""]
[null,null,null,null,1,1,0,0,null,null,null,null,null,null,null,4,null,""]
[null,null,null,null,1,1,0,0,null,null,null,null,null,null,null,5,null,""]
[null,null,null,null,1,1,0,0,null,null,null,null,null,null,null,6,null,""]
[null,null,null,null,1,1,0,0,null,null,null,null,null,null,null,7,null,""]
[null,null,null,null,1,1,0,0,null,null,null,null,null,null,null,8,null,""]
[null,null,null,null,1,1,0,0,null,null,null,null,null,null,null,9,null,""]
[null,null,null,null,1,1,0,0,null,null,null,null,null,null,null,10,null,""]
[null,null,null,null,1,1,0,0,null,null,null,null,null,null,null,11,null,""]
[null,null,null,null,1,1,0,0,null,null,null,null,null,null,null,12,null,""]
[null,null,null,null,1,1,0,{"$f":"G38*E38*F38","v":0},null,null,null,null,null,null,null,13,null,""]
[null,null,null,null,null,null,null,{"$f":"SUM(H26:H38)","v":0},null,null,null,null,null,null,null,14,null,""]
[null,null,null,null,null,null,null,null,null,null,null,null,null,null,null,15,null,""]
[null,null,"Other Expenses",null,"Qty","No.","Cost","Total"," Notes",null,null,null,null,null,null,16,null,""]
[null,null,null,null,1,1,0,{"$f":"G42*F42*E42","v":0},null,null,null,null,null,null,null,17,null,""]
[null,null,null,null,1,1,0,{"$f":"G43*F43*E43","v":0},null,null,null,null,null,null,null,18,null,""]
[null,null,null,null,1,1,0,{"$f":"G44*F44*E44","v":0},null,null,null,null,null,null,null,19,null,""]
[null,null,null,null,1,1,0,0,null,null,null,null,null,null,null,20,null,""]
[null,null,null,null,1,1,0,0,null,null,null,null,null,null,null,21,null,""]
[null,null,null,null,1,1,0,0,null,null,null,null,null,null,null,22,null,""]
[null,null,null,null,1,1,0,0,null,null,null,null,null,null,null,23,null,""]
[null,null,null,null,1,1,0,0,null,null,null,null,null,null,null,24,null,""]
[null,null,null,null,1,1,0,0,null,null,null,null,null,null,null,25,null,""]
[null,null,null,null,1,1,0,0,null,null,null,null,null,null,null,26,null,""]
[null,null,null,null,1,1,0,0,null,null,null,null,null,null,null,27,null,""]
[null,null,null,null,1,1,0,0,null,null,null,null,null,null,null,28,null,""]
[null,null,null,null,1,1,0,0,null,null,null,null,null,null,null,29,null,""]
[null,null,null,null,1,1,0,0,null,null,null,null,null,null,null,30,null,""]
[null,null,null,null,1,1,0,0,null,null,null,null,null,null,null,31,null,""]
[null,null,null,null,1,1,0,0,null,null,null,null,null,null,null,32,null,""]
[null,null,null,null,1,1,0,0,null,null,null,null,null,null,null,33,null,""]
[null,null,null,null,1,1,0,0,null,null,null,null,null,null,null,34,null,""]
[null,null,null,null,1,1,0,0,null,null,null,null,null,null,null,35,null,""]
[null,null,null,null,1,1,0,0,null,null,null,null,null,null,null,36,null,""]
[null,null,null,null,1,1,0,0,null,null,null,null,null,null,null,37,null,""]
[null,null,null,null,null,null,null,{"$f":"SUM(H42:H62)","v":0},null,null,null,null,null,null,null,38,null,""]
[null,null,null,null,null,null,null,null,null,null,null,null,null,null,null,39,null,""]
[null,null,null,null,null,null,null,null,null,null,null,null,null,null,null,40,null,""]
[null,null,null,null,null,null,null,null,null,null,null,null,null,null,null,41,null,""]
[null,null,null,null,null,null,null,null,null,null,null,null,null,null,null,42,null,""]
[null,null,null,null,null,null,null,null,null,null,null,null,null,null,null,43,null,""]
[null,null,null,null,null,null,null,null,null,null,null,null,null,null,null,44,null,""]
[null,null,null,null,null,null,null,null,null,null,null,null,null,null,null,45,null,""]
[null,null,null,null,null,null,null,null,null,null,null,null,null,null,null,46,null,""]
[null,null,null,null,null,null,null,null,null,null,null,null,null,null,null,47,null,""]
[null,null,null,null,null,null,null,null,null,null,null,null,null,null,null,48,null,""]
[null,null,null,null,null,null,null,null,null,null,null,null,null,null,null,49,null,""]
[null,null,null,null,null,null,null,null,null,null,null,null,null,null,null,50,null,""]
[null,null,null,null,null,null,null,null,null,null,null,null,null,null,null,51,null,""]
[null,null,null,null,null,null,null,null,null,null,null,null,null,null,null,52,null,""]
[null,null,null,null,null,null,null,null,null,null,null,null,null,null,null,53,null,""]
[null,null,null,null,null,null,null,null,null,null,null,null,null,null,null,54,null,""]
[null,null,null,null,null,null,null,null,null,null,null,null,null,null,null,55,null,""]
[null,null,null,null,null,null,null,null,null,null,null,null,null,null,null,56,null,""]
[null,null,null,null,null,null,null,null,null,null,null,null,null,null,null,57,null,""]
[null,null,null,null,null,null,null,null,null,null,null,null,null,null,null,58,null,""]
[null,null,null,null,null,null,null,null,null,null,null,null,null,null,null,59,null,""]
[null,null,null,null,null,null,null,null,null,null,null,null,null,null,null,60,null,""]
[null,null,null,null,null,null,null,null,null,null,null,null,null,null,null,61,null,""]
[null,null,null,null,null,null,null,null,null,null,null,null,null,null,null,62,null,""]
[null,null,null,null,null,null,null,null,null,null,null,null,null,null,null,63,null,""]
[null,null,null,null,null,null,null,null,null,null,null,null,null,null,null,64,null,""]
[null,null,null,null,null,null,null,null,null,null,null,null,null,null,null,65,null,""]
[null,null,null,null,null,null,null,null,null,null,null,null,null,null,null,66,null,{"$f":"IF(Q91=\"\",\"\",IF(Q91=\"\",\"\",1))","v":""}]
[null,null,null,null,null,null,null,null,null,null,null,null,null,null,null,67,null,""]
[null,null,null,null,null,null,null,null,null,null,null,null,null,null,null,68,null,""]
[null,null,null,null,null,null,null,null,null,null,null,null,null,null,null,69,null,""]
[null,null,null,null,null,null,null,null,null,null,null,null,null,null,null,70,null,""]
[null,null,null,null,null,null,null,null,null,null,null,null,null,null,null,71,null,""]
[null,null,null,null,null,null,null,null,null,null,null,null,null,null,null,72,null,""]
[null,null,null,null,null,null,null,null,null,null,null,null,null,null,null,73,null,""]
[null,null,null,null,null,null,null,null,null,null,null,null,null,null,null,74,null,""]
[null,null,null,null,null,null,null,null,null,null,null,null,null,null,null,75,null,""]
[null,null,null,null,null,null,null,null,null,null,null,null,null,null,null,76,null,""]
[null,null,null,null,null,null,null,null,null,null,null,null,null,null,null,77,null,""]
[null,null,null,null,null,null,null,null,null,null,null,null,null,null,null,78,null,""]
[null,null,null,null,null,null,null,null,null,null,null,null,null,null,null,79,null,""]
[null,null,null,null,null,null,null,null,null,null,null,null,null,null,null,80,null,""]
[null,null,null,null,null,null,null,null,null,null,null,null,null,null,null,81,null,""]
[null,null,null,null,null,null,null,null,null,null,null,null,null,null,null,82,null,""]
[null,null,null,null,null,null,null,null,null,null,null,null,null,null,null,83,null,""]
[null,null,null,null,null,null,null,null,null,null,null,null,null,null,null,84,null,""]
[null,null,null,null,null,null,null,null,null,null,null,null,null,null,null,85,null,""]
[null,null,null,null,null,null,null,null,null,null,null,null,null,null,null,86,null,""]
[null,null,null,null,null,null,null,null,null,null,null,null,null,null,null,87,null,""]
[null,null,null,null,null,null,null,null,null,null,null,null,null,null,null,88,null,""]
[null,null,null,null,null,null,null,null,null,null,null,null,null,null,null,89,null,""]
[null,null,null,null,null,null,null,null,null,null,null,null,null,null,null,90,null,""]
[null,null,null,null,null,null,null,null,null,null,null,null,null,null,null,91,null,""]
[null,null,null,null,null,null,null,null,null,null,null,null,null,null,null,92,null,""]
[null,null,null,null,null,null,null,null,null,null,null,null,null,null,null,93,null,""]
[null,null,null,null,null,null,null,null,null,null,null,null,null,null,null,94,null,""]
[null,null,null,null,null,null,null,null,null,null,null,null,null,null,null,95,null,""]
[null,null,null,null,null,null,null,null,null,null,null,null,null,null,null,96,null,""]
[null,null,null,null,null,null,null,null,null,null,null,null,null,null,null,97,null,""]
[null,null,null,null,null,null,null,null,null,null,null,null,null,null,null,98,null,""]
[null,null,null,null,null,null,null,null,null,null,null,null,null,null,null,99,null,""]
[null,null,null,null,null,null,null,null,null,null,null,null,null,null,null,100,null,""]

{"sheet":"Trip (8)","index":8,"n_rows":125,"n_cols":20,"rows_kept":125,"cut":false,"hidden":false,"merged":[[24,19,24,30],[40,8,40,13],[120,19,120,30],[121,19,121,30],[122,19,122,30],[123,19,123,30],[124,19,124,30],[115,19,115,30],[116,19,116,30],[117,19,117,30],[118,19,118,30],[119,19,119,30],[110,19,110,30],[111,19,111,30],[112,19,112,30],[113,19,113,30],[114,19,114,30],[105,19,105,30],[106,19,106,30],[107,19,107,30],[108,19,108,30],[109,19,109,30],[100,19,100,30],[101,19,101,30],[102,19,102,30],[103,19,103,30],[104,19,104,30],[95,19,95,30],[96,19,96,30],[97,19,97,30],[98,19,98,30],[99,19,99,30],[90,19,90,30],[91,19,91,30],[92,19,92,30],[93,19,93,30],[94,19,94,30],[85,19,85,30],[86,19,86,30],[87,19,87,30],[88,19,88,30],[89,19,89,30],[80,19,80,30],[81,19,81,30],[82,19,82,30],[83,19,83,30],[84,19,84,30],[76,19,76,30],[77,19,77,30],[78,19,78,30],[79,19,79,30],[70,19,70,30],[71,19,71,30],[72,19,72,30],[73,19,73,30],[74,19,74,30],[67,19,67,30],[68,19,68,30],[69,19,69,30],[60,19,60,30],[61,19,61,30],[62,19,62,30],[63,19,63,30],[64,19,64,30],[75,19,75,30],[58,19,58,30],[59,19,59,30],[50,19,50,30],[51,19,51,30],[52,19,52,30],[53,19,53,30],[54,19,54,30],[65,19,65,30],[66,19,66,30],[49,19,49,30],[40,19,40,30],[41,19,41,30],[42,19,42,30],[43,19,43,30],[44,19,44,30],[55,19,55,30],[56,19,56,30],[57,19,57,30],[30,19,30,30],[31,19,31,30],[32,19,32,30],[33,19,33,30],[34,19,34,30],[45,19,45,30],[46,19,46,30],[47,19,47,30],[48,19,48,30],[25,19,25,30],[26,19,26,30],[27,19,27,30],[28,19,28,30],[29,19,29,30],[75,8,75,9],[76,8,76,9],[77,8,77,9],[78,8,78,9],[69,8,69,9],[70,8,70,9],[71,8,71,9],[72,8,72,9],[73,8,73,9],[74,8,74,9],[68,8,68,9],[67,8,67,9],[42,8,42,13],[43,8,43,13],[35,19,35,30],[36,19,36,30],[37,19,37,30],[38,19,38,30],[39,19,39,30],[58,2,58,3],[58,8,58,13],[59,2,59,3],[59,8,59,13],[60,2,60,3],[60,8,60,13],[61,2,61,3],[61,8,61,13],[63,8,63,10],[63,12,63,13],[55,2,55,3],[55,8,55,13],[56,2,56,3],[56,8,56,13],[57,2,57,3],[57,8,57,13],[52,2,52,3],[52,8,52,13],[53,2,53,3],[53,8,53,13],[54,2,54,3],[54,8,54,13],[49,2,49,3],[49,8,49,13],[50,2,50,3],[50,8,50,13],[51,2,51,3],[51,8,51,13],[46,2,46,3],[46,8,46,13],[47,2,47,3],[47,8,47,13],[48,2,48,3],[48,8,48,13],[44,2,44,3],[44,8,44,13],[45,2,45,3],[45,8,45,13],[41,8,41,13],[34,2,34,3],[34,8,34,13],[35,2,35,3],[35,8,35,13],[36,2,36,3],[36,8,36,13],[37,2,37,3],[37,8,37,13],[38,2,38,3],[39,10,39,11],[40,2,40,3],[41,2,41,3],[42,2,42,3],[43,2,43,3],[31,2,31,3],[31,8,31,13],[32,2,32,3],[32,8,32,13],[33,2,33,3],[33,8,33,13],[28,2,28,3],[28,8,28,13],[29,2,29,3],[29,8,29,13],[30,2,30,3],[30,8,30,13],[22,18,23,18],[25,2,25,3],[25,8,25,13],[26,2,26,3],[26,8,26,13],[15,17,23,17],[27,2,27,3],[27,8,27,13],[8,3,8,12],[10,3,10,6],[10,10,10,12],[12,10,12,12],[16,10,16,12],[18,10,18,12]]}
[]
[null,null,null,null,null,null,null,"Leeds University Union Caving Society"]
[]
[]
[{"$f":"CONCATENATE(\"Trip Name:  \",D9)","v":"Trip Name:  "}]
[]
[]
[null,"Trip details:",null,"Title"]
[null,null,"Trip Name:"]
[]
[null,null,"Location:",null,null,null,null,null,null,"Organizer:"]
[]
[null,null,"Date/s:",null,null,null,null,null,null,"Caving Hut","-"]
[]
[]
[null,null,null,null,null,null,null,null,null,null,null,null,null,null,null,null,null,"No. of people going"]
[null,null,"Trip Expenses",{"$f":"H39+H63","v":0},null,null,null,null,null,"Number of people going",{"$f":"R25","v":0}]
[]
[null,null,"Trip Revenue",{"$f":"S25","v":0}]
[]
[]
[]
[null,null,null,null,null,null,null,null,null,null,null,null,null,null,null,null,null,null,"Trip cost per person"]
[]
[null,null,null,"Transport","      Days:","Qty.","Cost","Total","Notes",null,null,null,null,null,null,null,"Trip Attenden Names",{"$f":"SUM(R26:R125)","v":0},{"$f":"SUM(S26:S77)","v":0},"  Notes"]
[null,null,null,null,1,1,0,{"$f":"G26*E26*F26","v":0},null,null,null,null,null,null,null,1,null,{"$f":"IF(Q26=\"\",\"\",IF(Q26=\"\",\"\",1))","v":""}]
[null,null,null,null,1,1,0,{"$f":"G27*E27*F27","v":0},null,null,null,null,null,null,null,2,null,{"$f":"IF(Q27=\"\",\"\",IF(Q27=\"\",\"\",1))","v":""}]
[null,null,null,null,1,1,0,0,null,null,null,null,null,null,null,3,null,""]
[null,null,null,null,1,1,0,0,null,null,null,null,null,null,null,4,null,""]
[null,null,null,null,1,1,0,0,null,null,null,null,null,null,null,5,null,""]
[null,null,null,null,1,1,0,0,null,null,null,null,null,null,null,6,null,""]
[null,null,null,null,1,1,0,0,null,null,null,null,null,null,null,7,null,""]
[null,null,null,null,1,1,0,0,null,null,null,null,null,null,null,8,null,""]
[null,null,null,null,1,1,0,0,null,null,null,null,null,null,null,9,null,""]
[null,null,null,null,1,1,0,0,null,null,null,null,null,null,null,10,null,""]
[null,null,null,null,1,1,0,0,null,null,null,null,null,null,null,11,null,""]
[null,null,null,null,1,1,0,0,null,null,null,null,null,null,null,12,null,""]
[null,null,null,null,1,1,0,{"$f":"G38*E38*F38","v":0},null,null,null,null,null,null,null,13,null,""]
[null,null,null,null,null,null,null,{"$f":"SUM(H26:H38)","v":0},null,null,null,null,null,null,null,14,null,""]
[null,null,null,null,null,null,null,null,null,null,null,null,null,null,null,15,null,""]
[null,null,"Other Expenses",null,"Qty","No.","Cost","Total"," Notes",null,null,null,null,null,null,16,null,""]
[null,null,null,null,1,1,0,{"$f":"G42*F42*E42","v":0},null,null,null,null,null,null,null,17,null,""]
[null,null,null,null,1,1,0,{"$f":"G43*F43*E43","v":0},null,null,null,null,null,null,null,18,null,""]
[null,null,null,null,1,1,0,{"$f":"G44*F44*E44","v":0},null,null,null,null,null,null,null,19,null,""]
[null,null,null,null,1,1,0,0,null,null,null,null,null,null,null,20,null,""]
[null,null,null,null,1,1,0,0,null,null,null,null,null,null,null,21,null,""]
[null,null,null,null,1,1,0,0,null,null,null,null,null,null,null,22,null,""]
[null,null,null,null,1,1,0,0,null,null,null,null,null,null,null,23,null,""]
[null,null,null,null,1,1,0,0,null,null,null,null,null,null,null,24,null,""]
[null,null,null,null,1,1,0,0,null,null,null,null,null,null,null,25,null,""]
[null,null,null,null,1,1,0,0,null,null,null,null,null,null,null,26,null,""]
[null,null,null,null,1,1,0,0,null,null,null,null,null,null,null,27,null,""]
[null,null,null,null,1,1,0,0,null,null,null,null,null,null,null,28,null,""]
[null,null,null,null,1,1,0,0,null,null,null,null,null,null,null,29,null,""]
[null,null,null,null,1,1,0,0,null,null,null,null,null,null,null,30,null,""]
[null,null,null,null,1,1,0,0,null,null,null,null,null,null,null,31,null,""]
[null,null,null,null,1,1,0,0,null,null,null,null,null,null,null,32,null,""]
[null,null,null,null,1,1,0,0,null,null,null,null,null,null,null,33,null,""]
[null,null,null,null,1,1,0,0,null,null,null,null,null,null,null,34,null,""]
[null,null,null,null,1,1,0,0,null,null,null,null,null,null,null,35,null,""]
[null,null,null,null,1,1,0,0,null,null,null,null,null,null,null,36,null,""]
[null,null,null,null,1,1,0,0,null,null,null,null,null,null,null,37,null,""]
[null,null,null,null,null,null,null,{"$f":"SUM(H42:H62)","v":0},null,null,null,null,null,null,null,38,null,""]
[null,null,null,null,null,null,null,null,null,null,null,null,null,null,null,39,null,""]
[null,null,null,null,null,null,null,null,null,null,null,null,null,null,null,40,null,""]
[null,null,null,null,null,null,null,null,null,null,null,null,null,null,null,41,null,""]
[null,null,null,null,null,null,null,null,null,null,null,null,null,null,null,42,null,""]
[null,null,null,null,null,null,null,null,null,null,null,null,null,null,null,43,null,""]
[null,null,null,null,null,null,null,null,null,null,null,null,null,null,null,44,null,""]
[null,null,null,null,null,null,null,null,null,null,null,null,null,null,null,45,null,""]
[null,null,null,null,null,null,null,null,null,null,null,null,null,null,null,46,null,""]
[null,null,null,null,null,null,null,null,null,null,null,null,null,null,null,47,null,""]
[null,null,null,null,null,null,null,null,null,null,null,null,null,null,null,48,null,""]
[null,null,null,null,null,null,null,null,null,null,null,null,null,null,null,49,null,""]
[null,null,null,null,null,null,null,null,null,null,null,null,null,null,null,50,null,""]
[null,null,null,null,null,null,null,null,null,null,null,null,null,null,null,51,null,""]
[null,null,null,null,null,null,null,null,null,null,null,null,null,null,null,52,null,""]
[null,null,null,null,null,null,null,null,null,null,null,null,null,null,null,53,null,""]
[null,null,null,null,null,null,null,null,null,null,null,null,null,null,null,54,null,""]
[null,null,null,null,null,null,null,null,null,null,null,null,null,null,null,55,null,""]
[null,null,null,null,null,null,null,null,null,null,null,null,null,null,null,56,null,""]
[null,null,null,null,null,null,null,null,null,null,null,null,null,null,null,57,null,""]
[null,null,null,null,null,null,null,null,null,null,null,null,null,null,null,58,null,""]
[null,null,null,null,null,null,null,null,null,null,null,null,null,null,null,59,null,""]
[null,null,null,null,null,null,null,null,null,null,null,null,null,null,null,60,null,""]
[null,null,null,null,null,null,null,null,null,null,null,null,null,null,null,61,null,""]
[null,null,null,null,null,null,null,null,null,null,null,null,null,null,null,62,null,""]
[null,null,null,null,null,null,null,null,null,null,null,null,null,null,null,63,null,""]
[null,null,null,null,null,null,null,null,null,null,null,null,null,null,null,64,null,""]
[null,null,null,null,null,null,null,null,null,null,null,null,null,null,null,65,null,""]
[null,null,null,null,null,null,null,null,null,null,null,null,null,null,null,66,null,{"$f":"IF(Q91=\"\",\"\",IF(Q91=\"\",\"\",1))","v":""}]
[null,null,null,null,null,null,null,null,null,null,null,null,null,null,null,67,null,""]
[null,null,null,null,null,null,null,null,null,null,null,null,null,null,null,68,null,""]
[null,null,null,null,null,null,null,null,null,null,null,null,null,null,null,69,null,""]
[null,null,null,null,null,null,null,null,null,null,null,null,null,null,null,70,null,""]
[null,null,null,null,null,null,null,null,null,null,null,null,null,null,null,71,null,""]
[null,null,null,null,null,null,null,null,null,null,null,null,null,null,null,72,null,""]
[null,null,null,null,null,null,null,null,null,null,null,null,null,null,null,73,null,""]
[null,null,null,null,null,null,null,null,null,null,null,null,null,null,null,74,null,""]
[null,null,null,null,null,null,null,null,null,null,null,null,null,null,null,75,null,""]
[null,null,null,null,null,null,null,null,null,null,null,null,null,null,null,76,null,""]
[null,null,null,null,null,null,null,null,null,null,null,null,null,null,null,77,null,""]
[null,null,null,null,null,null,null,null,null,null,null,null,null,null,null,78,null,""]
[null,null,null,null,null,null,null,null,null,null,null,null,null,null,null,79,null,""]
[null,null,null,null,null,null,null,null,null,null,null,null,null,null,null,80,null,""]
[null,null,null,null,null,null,null,null,null,null,null,null,null,null,null,81,null,""]
[null,null,null,null,null,null,null,null,null,null,null,null,null,null,null,82,null,""]
[null,null,null,null,null,null,null,null,null,null,null,null,null,null,null,83,null,""]
[null,null,null,null,null,null,null,null,null,null,null,null,null,null,null,84,null,""]
[null,null,null,null,null,null,null,null,null,null,null,null,null,null,null,85,null,""]
[null,null,null,null,null,null,null,null,null,null,null,null,null,null,null,86,null,""]
[null,null,null,null,null,null,null,null,null,null,null,null,null,null,null,87,null,""]
[null,null,null,null,null,null,null,null,null,null,null,null,null,null,null,88,null,""]
[null,null,null,null,null,null,null,null,null,null,null,null,null,null,null,89,null,""]
[null,null,null,null,null,null,null,null,null,null,null,null,null,null,null,90,null,""]
[null,null,null,null,null,null,null,null,null,null,null,null,null,null,null,91,null,""]
[null,null,null,null,null,null,null,null,null,null,null,null,null,null,null,92,null,""]
[null,null,null,null,null,null,null,null,null,null,null,null,null,null,null,93,null,""]
[null,null,null,null,null,null,null,null,null,null,null,null,null,null,null,94,null,""]
[null,null,null,null,null,null,null,null,null,null,null,null,null,null,null,95,null,""]
[null,null,null,null,null,null,null,null,null,null,null,null,null,null,null,96,null,""]
[null,null,null,null,null,null,null,null,null,null,null,null,null,null,null,97,null,""]
[null,null,null,null,null,null,null,null,null,null,null,null,null,null,null,98,null,""]
[null,null,null,null,null,null,null,null,null,null,null,null,null,null,null,99,null,""]
[null,null,null,null,null,null,null,null,null,null,null,null,null,null,null,100,null,""]

{"sheet":"Trip (9)","index":9,"n_rows":125,"n_cols":20,"rows_kept":125,"cut":false,"hidden":false,"merged":[[24,19,24,30],[40,8,40,13],[120,19,120,30],[121,19,121,30],[122,19,122,30],[123,19,123,30],[124,19,124,30],[115,19,115,30],[116,19,116,30],[117,19,117,30],[118,19,118,30],[119,19,119,30],[110,19,110,30],[111,19,111,30],[112,19,112,30],[113,19,113,30],[114,19,114,30],[105,19,105,30],[106,19,106,30],[107,19,107,30],[108,19,108,30],[109,19,109,30],[100,19,100,30],[101,19,101,30],[102,19,102,30],[103,19,103,30],[104,19,104,30],[95,19,95,30],[96,19,96,30],[97,19,97,30],[98,19,98,30],[99,19,99,30],[90,19,90,30],[91,19,91,30],[92,19,92,30],[93,19,93,30],[94,19,94,30],[85,19,85,30],[86,19,86,30],[87,19,87,30],[88,19,88,30],[89,19,89,30],[80,19,80,30],[81,19,81,30],[82,19,82,30],[83,19,83,30],[84,19,84,30],[76,19,76,30],[77,19,77,30],[78,19,78,30],[79,19,79,30],[70,19,70,30],[71,19,71,30],[72,19,72,30],[73,19,73,30],[74,19,74,30],[67,19,67,30],[68,19,68,30],[69,19,69,30],[60,19,60,30],[61,19,61,30],[62,19,62,30],[63,19,63,30],[64,19,64,30],[75,19,75,30],[58,19,58,30],[59,19,59,30],[50,19,50,30],[51,19,51,30],[52,19,52,30],[53,19,53,30],[54,19,54,30],[65,19,65,30],[66,19,66,30],[49,19,49,30],[40,19,40,30],[41,19,41,30],[42,19,42,30],[43,19,43,30],[44,19,44,30],[55,19,55,30],[56,19,56,30],[57,19,57,30],[30,19,30,30],[31,19,31,30],[32,19,32,30],[33,19,33,30],[34,19,34,30],[45,19,45,30],[46,19,46,30],[47,19,47,30],[48,19,48,30],[25,19,25,30],[26,19,26,30],[27,19,27,30],[28,19,28,30],[29,19,29,30],[75,8,75,9],[76,8,76,9],[77,8,77,9],[78,8,78,9],[69,8,69,9],[70,8,70,9],[71,8,71,9],[72,8,72,9],[73,8,73,9],[74,8,74,9],[68,8,68,9],[67,8,67,9],[42,8,42,13],[43,8,43,13],[35,19,35,30],[36,19,36,30],[37,19,37,30],[38,19,38,30],[39,19,39,30],[58,2,58,3],[58,8,58,13],[59,2,59,3],[59,8,59,13],[60,2,60,3],[60,8,60,13],[61,2,61,3],[61,8,61,13],[63,8,63,10],[63,12,63,13],[55,2,55,3],[55,8,55,13],[56,2,56,3],[56,8,56,13],[57,2,57,3],[57,8,57,13],[52,2,52,3],[52,8,52,13],[53,2,53,3],[53,8,53,13],[54,2,54,3],[54,8,54,13],[49,2,49,3],[49,8,49,13],[50,2,50,3],[50,8,50,13],[51,2,51,3],[51,8,51,13],[46,2,46,3],[46,8,46,13],[47,2,47,3],[47,8,47,13],[48,2,48,3],[48,8,48,13],[44,2,44,3],[44,8,44,13],[45,2,45,3],[45,8,45,13],[41,8,41,13],[34,2,34,3],[34,8,34,13],[35,2,35,3],[35,8,35,13],[36,2,36,3],[36,8,36,13],[37,2,37,3],[37,8,37,13],[38,2,38,3],[39,10,39,11],[40,2,40,3],[41,2,41,3],[42,2,42,3],[43,2,43,3],[31,2,31,3],[31,8,31,13],[32,2,32,3],[32,8,32,13],[33,2,33,3],[33,8,33,13],[28,2,28,3],[28,8,28,13],[29,2,29,3],[29,8,29,13],[30,2,30,3],[30,8,30,13],[22,18,23,18],[25,2,25,3],[25,8,25,13],[26,2,26,3],[26,8,26,13],[15,17,23,17],[27,2,27,3],[27,8,27,13],[8,3,8,12],[10,3,10,6],[10,10,10,12],[12,10,12,12],[16,10,16,12],[18,10,18,12]]}
[]
[null,null,null,null,null,null,null,"Leeds University Union Caving Society"]
[]
[]
[{"$f":"CONCATENATE(\"Trip Name:  \",D9)","v":"Trip Name:  "}]
[]
[]
[null,"Trip details:",null,"Title"]
[null,null,"Trip Name:"]
[]
[null,null,"Location:",null,null,null,null,null,null,"Organizer:"]
[]
[null,null,"Date/s:",null,null,null,null,null,null,"Caving Hut","-"]
[]
[]
[null,null,null,null,null,null,null,null,null,null,null,null,null,null,null,null,null,"No. of people going"]
[null,null,"Trip Expenses",{"$f":"H39+H63","v":0},null,null,null,null,null,"Number of people going",{"$f":"R25","v":0}]
[]
[null,null,"Trip Revenue",{"$f":"S25","v":0}]
[]
[]
[]
[null,null,null,null,null,null,null,null,null,null,null,null,null,null,null,null,null,null,"Trip cost per person"]
[]
[null,null,null,"Transport","      Days:","Qty.","Cost","Total","Notes",null,null,null,null,null,null,null,"Trip Attenden Names",{"$f":"SUM(R26:R125)","v":0},{"$f":"SUM(S26:S77)","v":0},"  Notes"]
[null,null,null,null,1,1,0,{"$f":"G26*E26*F26","v":0},null,null,null,null,null,null,null,1,null,{"$f":"IF(Q26=\"\",\"\",IF(Q26=\"\",\"\",1))","v":""}]
[null,null,null,null,1,1,0,{"$f":"G27*E27*F27","v":0},null,null,null,null,null,null,null,2,null,{"$f":"IF(Q27=\"\",\"\",IF(Q27=\"\",\"\",1))","v":""}]
[null,null,null,null,1,1,0,0,null,null,null,null,null,null,null,3,null,""]
[null,null,null,null,1,1,0,0,null,null,null,null,null,null,null,4,null,""]
[null,null,null,null,1,1,0,0,null,null,null,null,null,null,null,5,null,""]
[null,null,null,null,1,1,0,0,null,null,null,null,null,null,null,6,null,""]
[null,null,null,null,1,1,0,0,null,null,null,null,null,null,null,7,null,""]
[null,null,null,null,1,1,0,0,null,null,null,null,null,null,null,8,null,""]
[null,null,null,null,1,1,0,0,null,null,null,null,null,null,null,9,null,""]
[null,null,null,null,1,1,0,0,null,null,null,null,null,null,null,10,null,""]
[null,null,null,null,1,1,0,0,null,null,null,null,null,null,null,11,null,""]
[null,null,null,null,1,1,0,0,null,null,null,null,null,null,null,12,null,""]
[null,null,null,null,1,1,0,{"$f":"G38*E38*F38","v":0},null,null,null,null,null,null,null,13,null,""]
[null,null,null,null,null,null,null,{"$f":"SUM(H26:H38)","v":0},null,null,null,null,null,null,null,14,null,""]
[null,null,null,null,null,null,null,null,null,null,null,null,null,null,null,15,null,""]
[null,null,"Other Expenses",null,"Qty","No.","Cost","Total"," Notes",null,null,null,null,null,null,16,null,""]
[null,null,null,null,1,1,0,{"$f":"G42*F42*E42","v":0},null,null,null,null,null,null,null,17,null,""]
[null,null,null,null,1,1,0,{"$f":"G43*F43*E43","v":0},null,null,null,null,null,null,null,18,null,""]
[null,null,null,null,1,1,0,{"$f":"G44*F44*E44","v":0},null,null,null,null,null,null,null,19,null,""]
[null,null,null,null,1,1,0,0,null,null,null,null,null,null,null,20,null,""]
[null,null,null,null,1,1,0,0,null,null,null,null,null,null,null,21,null,""]
[null,null,null,null,1,1,0,0,null,null,null,null,null,null,null,22,null,""]
[null,null,null,null,1,1,0,0,null,null,null,null,null,null,null,23,null,""]
[null,null,null,null,1,1,0,0,null,null,null,null,null,null,null,24,null,""]
[null,null,null,null,1,1,0,0,null,null,null,null,null,null,null,25,null,""]
[null,null,null,null,1,1,0,0,null,null,null,null,null,null,null,26,null,""]
[null,null,null,null,1,1,0,0,null,null,null,null,null,null,null,27,null,""]
[null,null,null,null,1,1,0,0,null,null,null,null,null,null,null,28,null,""]
[null,null,null,null,1,1,0,0,null,null,null,null,null,null,null,29,null,""]
[null,null,null,null,1,1,0,0,null,null,null,null,null,null,null,30,null,""]
[null,null,null,null,1,1,0,0,null,null,null,null,null,null,null,31,null,""]
[null,null,null,null,1,1,0,0,null,null,null,null,null,null,null,32,null,""]
[null,null,null,null,1,1,0,0,null,null,null,null,null,null,null,33,null,""]
[null,null,null,null,1,1,0,0,null,null,null,null,null,null,null,34,null,""]
[null,null,null,null,1,1,0,0,null,null,null,null,null,null,null,35,null,""]
[null,null,null,null,1,1,0,0,null,null,null,null,null,null,null,36,null,""]
[null,null,null,null,1,1,0,0,null,null,null,null,null,null,null,37,null,""]
[null,null,null,null,null,null,null,{"$f":"SUM(H42:H62)","v":0},null,null,null,null,null,null,null,38,null,""]
[null,null,null,null,null,null,null,null,null,null,null,null,null,null,null,39,null,""]
[null,null,null,null,null,null,null,null,null,null,null,null,null,null,null,40,null,""]
[null,null,null,null,null,null,null,null,null,null,null,null,null,null,null,41,null,""]
[null,null,null,null,null,null,null,null,null,null,null,null,null,null,null,42,null,""]
[null,null,null,null,null,null,null,null,null,null,null,null,null,null,null,43,null,""]
[null,null,null,null,null,null,null,null,null,null,null,null,null,null,null,44,null,""]
[null,null,null,null,null,null,null,null,null,null,null,null,null,null,null,45,null,""]
[null,null,null,null,null,null,null,null,null,null,null,null,null,null,null,46,null,""]
[null,null,null,null,null,null,null,null,null,null,null,null,null,null,null,47,null,""]
[null,null,null,null,null,null,null,null,null,null,null,null,null,null,null,48,null,""]
[null,null,null,null,null,null,null,null,null,null,null,null,null,null,null,49,null,""]
[null,null,null,null,null,null,null,null,null,null,null,null,null,null,null,50,null,""]
[null,null,null,null,null,null,null,null,null,null,null,null,null,null,null,51,null,""]
[null,null,null,null,null,null,null,null,null,null,null,null,null,null,null,52,null,""]
[null,null,null,null,null,null,null,null,null,null,null,null,null,null,null,53,null,""]
[null,null,null,null,null,null,null,null,null,null,null,null,null,null,null,54,null,""]
[null,null,null,null,null,null,null,null,null,null,null,null,null,null,null,55,null,""]
[null,null,null,null,null,null,null,null,null,null,null,null,null,null,null,56,null,""]
[null,null,null,null,null,null,null,null,null,null,null,null,null,null,null,57,null,""]
[null,null,null,null,null,null,null,null,null,null,null,null,null,null,null,58,null,""]
[null,null,null,null,null,null,null,null,null,null,null,null,null,null,null,59,null,""]
[null,null,null,null,null,null,null,null,null,null,null,null,null,null,null,60,null,""]
[null,null,null,null,null,null,null,null,null,null,null,null,null,null,null,61,null,""]
[null,null,null,null,null,null,null,null,null,null,null,null,null,null,null,62,null,""]
[null,null,null,null,null,null,null,null,null,null,null,null,null,null,null,63,null,""]
[null,null,null,null,null,null,null,null,null,null,null,null,null,null,null,64,null,""]
[null,null,null,null,null,null,null,null,null,null,null,null,null,null,null,65,null,""]
[null,null,null,null,null,null,null,null,null,null,null,null,null,null,null,66,null,{"$f":"IF(Q91=\"\",\"\",IF(Q91=\"\",\"\",1))","v":""}]
[null,null,null,null,null,null,null,null,null,null,null,null,null,null,null,67,null,""]
[null,null,null,null,null,null,null,null,null,null,null,null,null,null,null,68,null,""]
[null,null,null,null,null,null,null,null,null,null,null,null,null,null,null,69,null,""]
[null,null,null,null,null,null,null,null,null,null,null,null,null,null,null,70,null,""]
[null,null,null,null,null,null,null,null,null,null,null,null,null,null,null,71,null,""]
[null,null,null,null,null,null,null,null,null,null,null,null,null,null,null,72,null,""]
[null,null,null,null,null,null,null,null,null,null,null,null,null,null,null,73,null,""]
[null,null,null,null,null,null,null,null,null,null,null,null,null,null,null,74,null,""]
[null,null,null,null,null,null,null,null,null,null,null,null,null,null,null,75,null,""]
[null,null,null,null,null,null,null,null,null,null,null,null,null,null,null,76,null,""]
[null,null,null,null,null,null,null,null,null,null,null,null,null,null,null,77,null,""]
[null,null,null,null,null,null,null,null,null,null,null,null,null,null,null,78,null,""]
[null,null,null,null,null,null,null,null,null,null,null,null,null,null,null,79,null,""]
[null,null,null,null,null,null,null,null,null,null,null,null,null,null,null,80,null,""]
[null,null,null,null,null,null,null,null,null,null,null,null,null,null,null,81,null,""]
[null,null,null,null,null,null,null,null,null,null,null,null,null,null,null,82,null,""]
[null,null,null,null,null,null,null,null,null,null,null,null,null,null,null,83,null,""]
[null,null,null,null,null,null,null,null,null,null,null,null,null,null,null,84,null,""]
[null,null,null,null,null,null,null,null,null,null,null,null,null,null,null,85,null,""]
[null,null,null,null,null,null,null,null,null,null,null,null,null,null,null,86,null,""]
[null,null,null,null,null,null,null,null,null,null,null,null,null,null,null,87,null,""]
[null,null,null,null,null,null,null,null,null,null,null,null,null,null,null,88,null,""]
[null,null,null,null,null,null,null,null,null,null,null,null,null,null,null,89,null,""]
[null,null,null,null,null,null,null,null,null,null,null,null,null,null,null,90,null,""]
[null,null,null,null,null,null,null,null,null,null,null,null,null,null,null,91,null,""]
[null,null,null,null,null,null,null,null,null,null,null,null,null,null,null,92,null,""]
[null,null,null,null,null,null,null,null,null,null,null,null,null,null,null,93,null,""]
[null,null,null,null,null,null,null,null,null,null,null,null,null,null,null,94,null,""]
[null,null,null,null,null,null,null,null,null,null,null,null,null,null,null,95,null,""]
[null,null,null,null,null,null,null,null,null,null,null,null,null,null,null,96,null,""]
[null,null,null,null,null,null,null,null,null,null,null,null,null,null,null,97,null,""]
[null,null,null,null,null,null,null,null,null,null,null,null,null,null,null,98,null,""]
[null,null,null,null,null,null,null,null,null,null,null,null,null,null,null,99,null,""]
[null,null,null,null,null,null,null,null,null,null,null,null,null,null,null,100,null,""]

{"sheet":"Trip (10)","index":10,"n_rows":125,"n_cols":20,"rows_kept":125,"cut":false,"hidden":false,"merged":[[24,19,24,30],[40,8,40,13],[120,19,120,30],[121,19,121,30],[122,19,122,30],[123,19,123,30],[124,19,124,30],[115,19,115,30],[116,19,116,30],[117,19,117,30],[118,19,118,30],[119,19,119,30],[110,19,110,30],[111,19,111,30],[112,19,112,30],[113,19,113,30],[114,19,114,30],[105,19,105,30],[106,19,106,30],[107,19,107,30],[108,19,108,30],[109,19,109,30],[100,19,100,30],[101,19,101,30],[102,19,102,30],[103,19,103,30],[104,19,104,30],[95,19,95,30],[96,19,96,30],[97,19,97,30],[98,19,98,30],[99,19,99,30],[90,19,90,30],[91,19,91,30],[92,19,92,30],[93,19,93,30],[94,19,94,30],[85,19,85,30],[86,19,86,30],[87,19,87,30],[88,19,88,30],[89,19,89,30],[80,19,80,30],[81,19,81,30],[82,19,82,30],[83,19,83,30],[84,19,84,30],[76,19,76,30],[77,19,77,30],[78,19,78,30],[79,19,79,30],[70,19,70,30],[71,19,71,30],[72,19,72,30],[73,19,73,30],[74,19,74,30],[67,19,67,30],[68,19,68,30],[69,19,69,30],[60,19,60,30],[61,19,61,30],[62,19,62,30],[63,19,63,30],[64,19,64,30],[75,19,75,30],[58,19,58,30],[59,19,59,30],[50,19,50,30],[51,19,51,30],[52,19,52,30],[53,19,53,30],[54,19,54,30],[65,19,65,30],[66,19,66,30],[49,19,49,30],[40,19,40,30],[41,19,41,30],[42,19,42,30],[43,19,43,30],[44,19,44,30],[55,19,55,30],[56,19,56,30],[57,19,57,30],[30,19,30,30],[31,19,31,30],[32,19,32,30],[33,19,33,30],[34,19,34,30],[45,19,45,30],[46,19,46,30],[47,19,47,30],[48,19,48,30],[25,19,25,30],[26,19,26,30],[27,19,27,30],[28,19,28,30],[29,19,29,30],[75,8,75,9],[76,8,76,9],[77,8,77,9],[78,8,78,9],[69,8,69,9],[70,8,70,9],[71,8,71,9],[72,8,72,9],[73,8,73,9],[74,8,74,9],[68,8,68,9],[67,8,67,9],[42,8,42,13],[43,8,43,13],[35,19,35,30],[36,19,36,30],[37,19,37,30],[38,19,38,30],[39,19,39,30],[58,2,58,3],[58,8,58,13],[59,2,59,3],[59,8,59,13],[60,2,60,3],[60,8,60,13],[61,2,61,3],[61,8,61,13],[63,8,63,10],[63,12,63,13],[55,2,55,3],[55,8,55,13],[56,2,56,3],[56,8,56,13],[57,2,57,3],[57,8,57,13],[52,2,52,3],[52,8,52,13],[53,2,53,3],[53,8,53,13],[54,2,54,3],[54,8,54,13],[49,2,49,3],[49,8,49,13],[50,2,50,3],[50,8,50,13],[51,2,51,3],[51,8,51,13],[46,2,46,3],[46,8,46,13],[47,2,47,3],[47,8,47,13],[48,2,48,3],[48,8,48,13],[44,2,44,3],[44,8,44,13],[45,2,45,3],[45,8,45,13],[41,8,41,13],[34,2,34,3],[34,8,34,13],[35,2,35,3],[35,8,35,13],[36,2,36,3],[36,8,36,13],[37,2,37,3],[37,8,37,13],[38,2,38,3],[39,10,39,11],[40,2,40,3],[41,2,41,3],[42,2,42,3],[43,2,43,3],[31,2,31,3],[31,8,31,13],[32,2,32,3],[32,8,32,13],[33,2,33,3],[33,8,33,13],[28,2,28,3],[28,8,28,13],[29,2,29,3],[29,8,29,13],[30,2,30,3],[30,8,30,13],[22,18,23,18],[25,2,25,3],[25,8,25,13],[26,2,26,3],[26,8,26,13],[15,17,23,17],[27,2,27,3],[27,8,27,13],[8,3,8,12],[10,3,10,6],[10,10,10,12],[12,10,12,12],[16,10,16,12],[18,10,18,12]]}
[]
[null,null,null,null,null,null,null,"Leeds University Union Caving Society"]
[]
[]
[{"$f":"CONCATENATE(\"Trip Name:  \",D9)","v":"Trip Name:  "}]
[]
[]
[null,"Trip details:",null,"Title"]
[null,null,"Trip Name:"]
[]
[null,null,"Location:",null,null,null,null,null,null,"Organizer:"]
[]
[null,null,"Date/s:",null,null,null,null,null,null,"Caving Hut","-"]
[]
[]
[null,null,null,null,null,null,null,null,null,null,null,null,null,null,null,null,null,"No. of people going"]
[null,null,"Trip Expenses",{"$f":"H39+H63","v":0},null,null,null,null,null,"Number of people going",{"$f":"R25","v":0}]
[]
[null,null,"Trip Revenue",{"$f":"S25","v":0}]
[]
[]
[]
[null,null,null,null,null,null,null,null,null,null,null,null,null,null,null,null,null,null,"Trip cost per person"]
[]
[null,null,null,"Transport","      Days:","Qty.","Cost","Total","Notes",null,null,null,null,null,null,null,"Trip Attenden Names",{"$f":"SUM(R26:R125)","v":0},{"$f":"SUM(S26:S77)","v":0},"  Notes"]
[null,null,null,null,1,1,0,{"$f":"G26*E26*F26","v":0},null,null,null,null,null,null,null,1,null,{"$f":"IF(Q26=\"\",\"\",IF(Q26=\"\",\"\",1))","v":""}]
[null,null,null,null,1,1,0,{"$f":"G27*E27*F27","v":0},null,null,null,null,null,null,null,2,null,{"$f":"IF(Q27=\"\",\"\",IF(Q27=\"\",\"\",1))","v":""}]
[null,null,null,null,1,1,0,0,null,null,null,null,null,null,null,3,null,""]
[null,null,null,null,1,1,0,0,null,null,null,null,null,null,null,4,null,""]
[null,null,null,null,1,1,0,0,null,null,null,null,null,null,null,5,null,""]
[null,null,null,null,1,1,0,0,null,null,null,null,null,null,null,6,null,""]
[null,null,null,null,1,1,0,0,null,null,null,null,null,null,null,7,null,""]
[null,null,null,null,1,1,0,0,null,null,null,null,null,null,null,8,null,""]
[null,null,null,null,1,1,0,0,null,null,null,null,null,null,null,9,null,""]
[null,null,null,null,1,1,0,0,null,null,null,null,null,null,null,10,null,""]
[null,null,null,null,1,1,0,0,null,null,null,null,null,null,null,11,null,""]
[null,null,null,null,1,1,0,0,null,null,null,null,null,null,null,12,null,""]
[null,null,null,null,1,1,0,{"$f":"G38*E38*F38","v":0},null,null,null,null,null,null,null,13,null,""]
[null,null,null,null,null,null,null,{"$f":"SUM(H26:H38)","v":0},null,null,null,null,null,null,null,14,null,""]
[null,null,null,null,null,null,null,null,null,null,null,null,null,null,null,15,null,""]
[null,null,"Other Expenses",null,"Qty","No.","Cost","Total"," Notes",null,null,null,null,null,null,16,null,""]
[null,null,null,null,1,1,0,{"$f":"G42*F42*E42","v":0},null,null,null,null,null,null,null,17,null,""]
[null,null,null,null,1,1,0,{"$f":"G43*F43*E43","v":0},null,null,null,null,null,null,null,18,null,""]
[null,null,null,null,1,1,0,{"$f":"G44*F44*E44","v":0},null,null,null,null,null,null,null,19,null,""]
[null,null,null,null,1,1,0,0,null,null,null,null,null,null,null,20,null,""]
[null,null,null,null,1,1,0,0,null,null,null,null,null,null,null,21,null,""]
[null,null,null,null,1,1,0,0,null,null,null,null,null,null,null,22,null,""]
[null,null,null,null,1,1,0,0,null,null,null,null,null,null,null,23,null,""]
[null,null,null,null,1,1,0,0,null,null,null,null,null,null,null,24,null,""]
[null,null,null,null,1,1,0,0,null,null,null,null,null,null,null,25,null,""]
[null,null,null,null,1,1,0,0,null,null,null,null,null,null,null,26,null,""]
[null,null,null,null,1,1,0,0,null,null,null,null,null,null,null,27,null,""]
[null,null,null,null,1,1,0,0,null,null,null,null,null,null,null,28,null,""]
[null,null,null,null,1,1,0,0,null,null,null,null,null,null,null,29,null,""]
[null,null,null,null,1,1,0,0,null,null,null,null,null,null,null,30,null,""]
[null,null,null,null,1,1,0,0,null,null,null,null,null,null,null,31,null,""]
[null,null,null,null,1,1,0,0,null,null,null,null,null,null,null,32,null,""]
[null,null,null,null,1,1,0,0,null,null,null,null,null,null,null,33,null,""]
[null,null,null,null,1,1,0,0,null,null,null,null,null,null,null,34,null,""]
[null,null,null,null,1,1,0,0,null,null,null,null,null,null,null,35,null,""]
[null,null,null,null,1,1,0,0,null,null,null,null,null,null,null,36,null,""]
[null,null,null,null,1,1,0,0,null,null,null,null,null,null,null,37,null,""]
[null,null,null,null,null,null,null,{"$f":"SUM(H42:H62)","v":0},null,null,null,null,null,null,null,38,null,""]
[null,null,null,null,null,null,null,null,null,null,null,null,null,null,null,39,null,""]
[null,null,null,null,null,null,null,null,null,null,null,null,null,null,null,40,null,""]
[null,null,null,null,null,null,null,null,null,null,null,null,null,null,null,41,null,""]
[null,null,null,null,null,null,null,null,null,null,null,null,null,null,null,42,null,""]
[null,null,null,null,null,null,null,null,null,null,null,null,null,null,null,43,null,""]
[null,null,null,null,null,null,null,null,null,null,null,null,null,null,null,44,null,""]
[null,null,null,null,null,null,null,null,null,null,null,null,null,null,null,45,null,""]
[null,null,null,null,null,null,null,null,null,null,null,null,null,null,null,46,null,""]
[null,null,null,null,null,null,null,null,null,null,null,null,null,null,null,47,null,""]
[null,null,null,null,null,null,null,null,null,null,null,null,null,null,null,48,null,""]
[null,null,null,null,null,null,null,null,null,null,null,null,null,null,null,49,null,""]
[null,null,null,null,null,null,null,null,null,null,null,null,null,null,null,50,null,""]
[null,null,null,null,null,null,null,null,null,null,null,null,null,null,null,51,null,""]
[null,null,null,null,null,null,null,null,null,null,null,null,null,null,null,52,null,""]
[null,null,null,null,null,null,null,null,null,null,null,null,null,null,null,53,null,""]
[null,null,null,null,null,null,null,null,null,null,null,null,null,null,null,54,null,""]
[null,null,null,null,null,null,null,null,null,null,null,null,null,null,null,55,null,""]
[null,null,null,null,null,null,null,null,null,null,null,null,null,null,null,56,null,""]
[null,null,null,null,null,null,null,null,null,null,null,null,null,null,null,57,null,""]
[null,null,null,null,null,null,null,null,null,null,null,null,null,null,null,58,null,""]
[null,null,null,null,null,null,null,null,null,null,null,null,null,null,null,59,null,""]
[null,null,null,null,null,null,null,null,null,null,null,null,null,null,null,60,null,""]
[null,null,null,null,null,null,null,null,null,null,null,null,null,null,null,61,null,""]
[null,null,null,null,null,null,null,null,null,null,null,null,null,null,null,62,null,""]
[null,null,null,null,null,null,null,null,null,null,null,null,null,null,null,63,null,""]
[null,null,null,null,null,null,null,null,null,null,null,null,null,null,null,64,null,""]
[null,null,null,null,null,null,null,null,null,null,null,null,null,null,null,65,null,""]
[null,null,null,null,null,null,null,null,null,null,null,null,null,null,null,66,null,{"$f":"IF(Q91=\"\",\"\",IF(Q91=\"\",\"\",1))","v":""}]
[null,null,null,null,null,null,null,null,null,null,null,null,null,null,null,67,null,""]
[null,null,null,null,null,null,null,null,null,null,null,null,null,null,null,68,null,""]
[null,null,null,null,null,null,null,null,null,null,null,null,null,null,null,69,null,""]
[null,null,null,null,null,null,null,null,null,null,null,null,null,null,null,70,null,""]
[null,null,null,null,null,null,null,null,null,null,null,null,null,null,null,71,null,""]
[null,null,null,null,null,null,null,null,null,null,null,null,null,null,null,72,null,""]
[null,null,null,null,null,null,null,null,null,null,null,null,null,null,null,73,null,""]
[null,null,null,null,null,null,null,null,null,null,null,null,null,null,null,74,null,""]
[null,null,null,null,null,null,null,null,null,null,null,null,null,null,null,75,null,""]
[null,null,null,null,null,null,null,null,null,null,null,null,null,null,null,76,null,""]
[null,null,null,null,null,null,null,null,null,null,null,null,null,null,null,77,null,""]
[null,null,null,null,null,null,null,null,null,null,null,null,null,null,null,78,null,""]
[null,null,null,null,null,null,null,null,null,null,null,null,null,null,null,79,null,""]
[null,null,null,null,null,null,null,null,null,null,null,null,null,null,null,80,null,""]
[null,null,null,null,null,null,null,null,null,null,null,null,null,null,null,81,null,""]
[null,null,null,null,null,null,null,null,null,null,null,null,null,null,null,82,null,""]
[null,null,null,null,null,null,null,null,null,null,null,null,null,null,null,83,null,""]
[null,null,null,null,null,null,null,null,null,null,null,null,null,null,null,84,null,""]
[null,null,null,null,null,null,null,null,null,null,null,null,null,null,null,85,null,""]
[null,null,null,null,null,null,null,null,null,null,null,null,null,null,null,86,null,""]
[null,null,null,null,null,null,null,null,null,null,null,null,null,null,null,87,null,""]
[null,null,null,null,null,null,null,null,null,null,null,null,null,null,null,88,null,""]
[null,null,null,null,null,null,null,null,null,null,null,null,null,null,null,89,null,""]
[null,null,null,null,null,null,null,null,null,null,null,null,null,null,null,90,null,""]
[null,null,null,null,null,null,null,null,null,null,null,null,null,null,null,91,null,""]
[null,null,null,null,null,null,null,null,null,null,null,null,null,null,null,92,null,""]
[null,null,null,null,null,null,null,null,null,null,null,null,null,null,null,93,null,""]
[null,null,null,null,null,null,null,null,null,null,null,null,null,null,null,94,null,""]
[null,null,null,null,null,null,null,null,null,null,null,null,null,null,null,95,null,""]
[null,null,null,null,null,null,null,null,null,null,null,null,null,null,null,96,null,""]
[null,null,null,null,null,null,null,null,null,null,null,null,null,null,null,97,null,""]
[null,null,null,null,null,null,null,null,null,null,null,null,null,null,null,98,null,""]
[null,null,null,null,null,null,null,null,null,null,null,null,null,null,null,99,null,""]
[null,null,null,null,null,null,null,null,null,null,null,null,null,null,null,100,null,""]

{"sheet":"Trip (11)","index":11,"n_rows":125,"n_cols":20,"rows_kept":125,"cut":false,"hidden":false,"merged":[[24,19,24,30],[40,8,40,13],[120,19,120,30],[121,19,121,30],[122,19,122,30],[123,19,123,30],[124,19,124,30],[115,19,115,30],[116,19,116,30],[117,19,117,30],[118,19,118,30],[119,19,119,30],[110,19,110,30],[111,19,111,30],[112,19,112,30],[113,19,113,30],[114,19,114,30],[105,19,105,30],[106,19,106,30],[107,19,107,30],[108,19,108,30],[109,19,109,30],[100,19,100,30],[101,19,101,30],[102,19,102,30],[103,19,103,30],[104,19,104,30],[95,19,95,30],[96,19,96,30],[97,19,97,30],[98,19,98,30],[99,19,99,30],[90,19,90,30],[91,19,91,30],[92,19,92,30],[93,19,93,30],[94,19,94,30],[85,19,85,30],[86,19,86,30],[87,19,87,30],[88,19,88,30],[89,19,89,30],[80,19,80,30],[81,19,81,30],[82,19,82,30],[83,19,83,30],[84,19,84,30],[76,19,76,30],[77,19,77,30],[78,19,78,30],[79,19,79,30],[70,19,70,30],[71,19,71,30],[72,19,72,30],[73,19,73,30],[74,19,74,30],[67,19,67,30],[68,19,68,30],[69,19,69,30],[60,19,60,30],[61,19,61,30],[62,19,62,30],[63,19,63,30],[64,19,64,30],[75,19,75,30],[58,19,58,30],[59,19,59,30],[50,19,50,30],[51,19,51,30],[52,19,52,30],[53,19,53,30],[54,19,54,30],[65,19,65,30],[66,19,66,30],[49,19,49,30],[40,19,40,30],[41,19,41,30],[42,19,42,30],[43,19,43,30],[44,19,44,30],[55,19,55,30],[56,19,56,30],[57,19,57,30],[30,19,30,30],[31,19,31,30],[32,19,32,30],[33,19,33,30],[34,19,34,30],[45,19,45,30],[46,19,46,30],[47,19,47,30],[48,19,48,30],[25,19,25,30],[26,19,26,30],[27,19,27,30],[28,19,28,30],[29,19,29,30],[75,8,75,9],[76,8,76,9],[77,8,77,9],[78,8,78,9],[69,8,69,9],[70,8,70,9],[71,8,71,9],[72,8,72,9],[73,8,73,9],[74,8,74,9],[68,8,68,9],[67,8,67,9],[42,8,42,13],[43,8,43,13],[35,19,35,30],[36,19,36,30],[37,19,37,30],[38,19,38,30],[39,19,39,30],[58,2,58,3],[58,8,58,13],[59,2,59,3],[59,8,59,13],[60,2,60,3],[60,8,60,13],[61,2,61,3],[61,8,61,13],[63,8,63,10],[63,12,63,13],[55,2,55,3],[55,8,55,13],[56,2,56,3],[56,8,56,13],[57,2,57,3],[57,8,57,13],[52,2,52,3],[52,8,52,13],[53,2,53,3],[53,8,53,13],[54,2,54,3],[54,8,54,13],[49,2,49,3],[49,8,49,13],[50,2,50,3],[50,8,50,13],[51,2,51,3],[51,8,51,13],[46,2,46,3],[46,8,46,13],[47,2,47,3],[47,8,47,13],[48,2,48,3],[48,8,48,13],[44,2,44,3],[44,8,44,13],[45,2,45,3],[45,8,45,13],[41,8,41,13],[34,2,34,3],[34,8,34,13],[35,2,35,3],[35,8,35,13],[36,2,36,3],[36,8,36,13],[37,2,37,3],[37,8,37,13],[38,2,38,3],[39,10,39,11],[40,2,40,3],[41,2,41,3],[42,2,42,3],[43,2,43,3],[31,2,31,3],[31,8,31,13],[32,2,32,3],[32,8,32,13],[33,2,33,3],[33,8,33,13],[28,2,28,3],[28,8,28,13],[29,2,29,3],[29,8,29,13],[30,2,30,3],[30,8,30,13],[22,18,23,18],[25,2,25,3],[25,8,25,13],[26,2,26,3],[26,8,26,13],[15,17,23,17],[27,2,27,3],[27,8,27,13],[8,3,8,12],[10,3,10,6],[10,10,10,12],[12,10,12,12],[16,10,16,12],[18,10,18,12]]}
[]
[null,null,null,null,null,null,null,"Leeds University Union Caving Society"]
[]
[]
[{"$f":"CONCATENATE(\"Trip Name:  \",D9)","v":"Trip Name:  "}]
[]
[]
[null,"Trip details:",null,"Title"]
[null,null,"Trip Name:"]
[]
[null,null,"Location:",null,null,null,null,null,null,"Organizer:"]
[]
[null,null,"Date/s:",null,null,null,null,null,null,"Caving Hut","-"]
[]
[]
[null,null,null,null,null,null,null,null,null,null,null,null,null,null,null,null,null,"No. of people going"]
[null,null,"Trip Expenses",{"$f":"H39+H63","v":0},null,null,null,null,null,"Number of people going",{"$f":"R25","v":0}]
[]
[null,null,"Trip Revenue",{"$f":"S25","v":0}]
[]
[]
[]
[null,null,null,null,null,null,null,null,null,null,null,null,null,null,null,null,null,null,"Trip cost per person"]
[]
[null,null,null,"Transport","      Days:","Qty.","Cost","Total","Notes",null,null,null,null,null,null,null,"Trip Attenden Names",{"$f":"SUM(R26:R125)","v":0},{"$f":"SUM(S26:S77)","v":0},"  Notes"]
[null,null,null,null,1,1,0,{"$f":"G26*E26*F26","v":0},null,null,null,null,null,null,null,1,null,{"$f":"IF(Q26=\"\",\"\",IF(Q26=\"\",\"\",1))","v":""}]
[null,null,null,null,1,1,0,{"$f":"G27*E27*F27","v":0},null,null,null,null,null,null,null,2,null,{"$f":"IF(Q27=\"\",\"\",IF(Q27=\"\",\"\",1))","v":""}]
[null,null,null,null,1,1,0,0,null,null,null,null,null,null,null,3,null,""]
[null,null,null,null,1,1,0,0,null,null,null,null,null,null,null,4,null,""]
[null,null,null,null,1,1,0,0,null,null,null,null,null,null,null,5,null,""]
[null,null,null,null,1,1,0,0,null,null,null,null,null,null,null,6,null,""]
[null,null,null,null,1,1,0,0,null,null,null,null,null,null,null,7,null,""]
[null,null,null,null,1,1,0,0,null,null,null,null,null,null,null,8,null,""]
[null,null,null,null,1,1,0,0,null,null,null,null,null,null,null,9,null,""]
[null,null,null,null,1,1,0,0,null,null,null,null,null,null,null,10,null,""]
[null,null,null,null,1,1,0,0,null,null,null,null,null,null,null,11,null,""]
[null,null,null,null,1,1,0,0,null,null,null,null,null,null,null,12,null,""]
[null,null,null,null,1,1,0,{"$f":"G38*E38*F38","v":0},null,null,null,null,null,null,null,13,null,""]
[null,null,null,null,null,null,null,{"$f":"SUM(H26:H38)","v":0},null,null,null,null,null,null,null,14,null,""]
[null,null,null,null,null,null,null,null,null,null,null,null,null,null,null,15,null,""]
[null,null,"Other Expenses",null,"Qty","No.","Cost","Total"," Notes",null,null,null,null,null,null,16,null,""]
[null,null,null,null,1,1,0,{"$f":"G42*F42*E42","v":0},null,null,null,null,null,null,null,17,null,""]
[null,null,null,null,1,1,0,{"$f":"G43*F43*E43","v":0},null,null,null,null,null,null,null,18,null,""]
[null,null,null,null,1,1,0,{"$f":"G44*F44*E44","v":0},null,null,null,null,null,null,null,19,null,""]
[null,null,null,null,1,1,0,0,null,null,null,null,null,null,null,20,null,""]
[null,null,null,null,1,1,0,0,null,null,null,null,null,null,null,21,null,""]
[null,null,null,null,1,1,0,0,null,null,null,null,null,null,null,22,null,""]
[null,null,null,null,1,1,0,0,null,null,null,null,null,null,null,23,null,""]
[null,null,null,null,1,1,0,0,null,null,null,null,null,null,null,24,null,""]
[null,null,null,null,1,1,0,0,null,null,null,null,null,null,null,25,null,""]
[null,null,null,null,1,1,0,0,null,null,null,null,null,null,null,26,null,""]
[null,null,null,null,1,1,0,0,null,null,null,null,null,null,null,27,null,""]
[null,null,null,null,1,1,0,0,null,null,null,null,null,null,null,28,null,""]
[null,null,null,null,1,1,0,0,null,null,null,null,null,null,null,29,null,""]
[null,null,null,null,1,1,0,0,null,null,null,null,null,null,null,30,null,""]
[null,null,null,null,1,1,0,0,null,null,null,null,null,null,null,31,null,""]
[null,null,null,null,1,1,0,0,null,null,null,null,null,null,null,32,null,""]
[null,null,null,null,1,1,0,0,null,null,null,null,null,null,null,33,null,""]
[null,null,null,null,1,1,0,0,null,null,null,null,null,null,null,34,null,""]
[null,null,null,null,1,1,0,0,null,null,null,null,null,null,null,35,null,""]
[null,null,null,null,1,1,0,0,null,null,null,null,null,null,null,36,null,""]
[null,null,null,null,1,1,0,0,null,null,null,null,null,null,null,37,null,""]
[null,null,null,null,null,null,null,{"$f":"SUM(H42:H62)","v":0},null,null,null,null,null,null,null,38,null,""]
[null,null,null,null,null,null,null,null,null,null,null,null,null,null,null,39,null,""]
[null,null,null,null,null,null,null,null,null,null,null,null,null,null,null,40,null,""]
[null,null,null,null,null,null,null,null,null,null,null,null,null,null,null,41,null,""]
[null,null,null,null,null,null,null,null,null,null,null,null,null,null,null,42,null,""]
[null,null,null,null,null,null,null,null,null,null,null,null,null,null,null,43,null,""]
[null,null,null,null,null,null,null,null,null,null,null,null,null,null,null,44,null,""]
[null,null,null,null,null,null,null,null,null,null,null,null,null,null,null,45,null,""]
[null,null,null,null,null,null,null,null,null,null,null,null,null,null,null,46,null,""]
[null,null,null,null,null,null,null,null,null,null,null,null,null,null,null,47,null,""]
[null,null,null,null,null,null,null,null,null,null,null,null,null,null,null,48,null,""]
[null,null,null,null,null,null,null,null,null,null,null,null,null,null,null,49,null,""]
[null,null,null,null,null,null,null,null,null,null,null,null,null,null,null,50,null,""]
[null,null,null,null,null,null,null,null,null,null,null,null,null,null,null,51,null,""]
[null,null,null,null,null,null,null,null,null,null,null,null,null,null,null,52,null,""]
[null,null,null,null,null,null,null,null,null,null,null,null,null,null,null,53,null,""]
[null,null,null,null,null,null,null,null,null,null,null,null,null,null,null,54,null,""]
[null,null,null,null,null,null,null,null,null,null,null,null,null,null,null,55,null,""]
[null,null,null,null,null,null,null,null,null,null,null,null,null,null,null,56,null,""]
[null,null,null,null,null,null,null,null,null,null,null,null,null,null,null,57,null,""]
[null,null,null,null,null,null,null,null,null,null,null,null,null,null,null,58,null,""]
[null,null,null,null,null,null,null,null,null,null,null,null,null,null,null,59,null,""]
[null,null,null,null,null,null,null,null,null,null,null,null,null,null,null,60,null,""]
[null,null,null,null,null,null,null,null,null,null,null,null,null,null,null,61,null,""]
[null,null,null,null,null,null,null,null,null,null,null,null,null,null,null,62,null,""]
[null,null,null,null,null,null,null,null,null,null,null,null,null,null,null,63,null,""]
[null,null,null,null,null,null,null,null,null,null,null,null,null,null,null,64,null,""]
[null,null,null,null,null,null,null,null,null,null,null,null,null,null,null,65,null,""]
[null,null,null,null,null,null,null,null,null,null,null,null,null,null,null,66,null,{"$f":"IF(Q91=\"\",\"\",IF(Q91=\"\",\"\",1))","v":""}]
[null,null,null,null,null,null,null,null,null,null,null,null,null,null,null,67,null,""]
[null,null,null,null,null,null,null,null,null,null,null,null,null,null,null,68,null,""]
[null,null,null,null,null,null,null,null,null,null,null,null,null,null,null,69,null,""]
[null,null,null,null,null,null,null,null,null,null,null,null,null,null,null,70,null,""]
[null,null,null,null,null,null,null,null,null,null,null,null,null,null,null,71,null,""]
[null,null,null,null,null,null,null,null,null,null,null,null,null,null,null,72,null,""]
[null,null,null,null,null,null,null,null,null,null,null,null,null,null,null,73,null,""]
[null,null,null,null,null,null,null,null,null,null,null,null,null,null,null,74,null,""]
[null,null,null,null,null,null,null,null,null,null,null,null,null,null,null,75,null,""]
[null,null,null,null,null,null,null,null,null,null,null,null,null,null,null,76,null,""]
[null,null,null,null,null,null,null,null,null,null,null,null,null,null,null,77,null,""]
[null,null,null,null,null,null,null,null,null,null,null,null,null,null,null,78,null,""]
[null,null,null,null,null,null,null,null,null,null,null,null,null,null,null,79,null,""]
[null,null,null,null,null,null,null,null,null,null,null,null,null,null,null,80,null,""]
[null,null,null,null,null,null,null,null,null,null,null,null,null,null,null,81,null,""]
[null,null,null,null,null,null,null,null,null,null,null,null,null,null,null,82,null,""]
[null,null,null,null,null,null,null,null,null,null,null,null,null,null,null,83,null,""]
[null,null,null,null,null,null,null,null,null,null,null,null,null,null,null,84,null,""]
[null,null,null,null,null,null,null,null,null,null,null,null,null,null,null,85,null,""]
[null,null,null,null,null,null,null,null,null,null,null,null,null,null,null,86,null,""]
[null,null,null,null,null,null,null,null,null,null,null,null,null,null,null,87,null,""]
[null,null,null,null,null,null,null,null,null,null,null,null,null,null,null,88,null,""]
[null,null,null,null,null,null,null,null,null,null,null,null,null,null,null,89,null,""]
[null,null,null,null,null,null,null,null,null,null,null,null,null,null,null,90,null,""]
[null,null,null,null,null,null,null,null,null,null,null,null,null,null,null,91,null,""]
[null,null,null,null,null,null,null,null,null,null,null,null,null,null,null,92,null,""]
[null,null,null,null,null,null,null,null,null,null,null,null,null,null,null,93,null,""]
[null,null,null,null,null,null,null,null,null,null,null,null,null,null,null,94,null,""]
[null,null,null,null,null,null,null,null,null,null,null,null,null,null,null,95,null,""]
[null,null,null,null,null,null,null,null,null,null,null,null,null,null,null,96,null,""]
[null,null,null,null,null,null,null,null,null,null,null,null,null,null,null,97,null,""]
[null,null,null,null,null,null,null,null,null,null,null,null,null,null,null,98,null,""]
[null,null,null,null,null,null,null,null,null,null,null,null,null,null,null,99,null,""]
[null,null,null,null,null,null,null,null,null,null,null,null,null,null,null,100,null,""]

{"sheet":"Trip (12)","index":12,"n_rows":125,"n_cols":20,"rows_kept":125,"cut":false,"hidden":false,"merged":[[24,19,24,30],[40,8,40,13],[120,19,120,30],[121,19,121,30],[122,19,122,30],[123,19,123,30],[124,19,124,30],[115,19,115,30],[116,19,116,30],[117,19,117,30],[118,19,118,30],[119,19,119,30],[110,19,110,30],[111,19,111,30],[112,19,112,30],[113,19,113,30],[114,19,114,30],[105,19,105,30],[106,19,106,30],[107,19,107,30],[108,19,108,30],[109,19,109,30],[100,19,100,30],[101,19,101,30],[102,19,102,30],[103,19,103,30],[104,19,104,30],[95,19,95,30],[96,19,96,30],[97,19,97,30],[98,19,98,30],[99,19,99,30],[90,19,90,30],[91,19,91,30],[92,19,92,30],[93,19,93,30],[94,19,94,30],[85,19,85,30],[86,19,86,30],[87,19,87,30],[88,19,88,30],[89,19,89,30],[80,19,80,30],[81,19,81,30],[82,19,82,30],[83,19,83,30],[84,19,84,30],[76,19,76,30],[77,19,77,30],[78,19,78,30],[79,19,79,30],[70,19,70,30],[71,19,71,30],[72,19,72,30],[73,19,73,30],[74,19,74,30],[67,19,67,30],[68,19,68,30],[69,19,69,30],[60,19,60,30],[61,19,61,30],[62,19,62,30],[63,19,63,30],[64,19,64,30],[75,19,75,30],[58,19,58,30],[59,19,59,30],[50,19,50,30],[51,19,51,30],[52,19,52,30],[53,19,53,30],[54,19,54,30],[65,19,65,30],[66,19,66,30],[49,19,49,30],[40,19,40,30],[41,19,41,30],[42,19,42,30],[43,19,43,30],[44,19,44,30],[55,19,55,30],[56,19,56,30],[57,19,57,30],[30,19,30,30],[31,19,31,30],[32,19,32,30],[33,19,33,30],[34,19,34,30],[45,19,45,30],[46,19,46,30],[47,19,47,30],[48,19,48,30],[25,19,25,30],[26,19,26,30],[27,19,27,30],[28,19,28,30],[29,19,29,30],[75,8,75,9],[76,8,76,9],[77,8,77,9],[78,8,78,9],[69,8,69,9],[70,8,70,9],[71,8,71,9],[72,8,72,9],[73,8,73,9],[74,8,74,9],[68,8,68,9],[67,8,67,9],[42,8,42,13],[43,8,43,13],[35,19,35,30],[36,19,36,30],[37,19,37,30],[38,19,38,30],[39,19,39,30],[58,2,58,3],[58,8,58,13],[59,2,59,3],[59,8,59,13],[60,2,60,3],[60,8,60,13],[61,2,61,3],[61,8,61,13],[63,8,63,10],[63,12,63,13],[55,2,55,3],[55,8,55,13],[56,2,56,3],[56,8,56,13],[57,2,57,3],[57,8,57,13],[52,2,52,3],[52,8,52,13],[53,2,53,3],[53,8,53,13],[54,2,54,3],[54,8,54,13],[49,2,49,3],[49,8,49,13],[50,2,50,3],[50,8,50,13],[51,2,51,3],[51,8,51,13],[46,2,46,3],[46,8,46,13],[47,2,47,3],[47,8,47,13],[48,2,48,3],[48,8,48,13],[44,2,44,3],[44,8,44,13],[45,2,45,3],[45,8,45,13],[41,8,41,13],[34,2,34,3],[34,8,34,13],[35,2,35,3],[35,8,35,13],[36,2,36,3],[36,8,36,13],[37,2,37,3],[37,8,37,13],[38,2,38,3],[39,10,39,11],[40,2,40,3],[41,2,41,3],[42,2,42,3],[43,2,43,3],[31,2,31,3],[31,8,31,13],[32,2,32,3],[32,8,32,13],[33,2,33,3],[33,8,33,13],[28,2,28,3],[28,8,28,13],[29,2,29,3],[29,8,29,13],[30,2,30,3],[30,8,30,13],[22,18,23,18],[25,2,25,3],[25,8,25,13],[26,2,26,3],[26,8,26,13],[15,17,23,17],[27,2,27,3],[27,8,27,13],[8,3,8,12],[10,3,10,6],[10,10,10,12],[12,10,12,12],[16,10,16,12],[18,10,18,12]]}
[]
[null,null,null,null,null,null,null,"Leeds University Union Caving Society"]
[]
[]
[{"$f":"CONCATENATE(\"Trip Name:  \",D9)","v":"Trip Name:  "}]
[]
[]
[null,"Trip details:",null,"Title"]
[null,null,"Trip Name:"]
[]
[null,null,"Location:",null,null,null,null,null,null,"Organizer:"]
[]
[null,null,"Date/s:",null,null,null,null,null,null,"Caving Hut","-"]
[]
[]
[null,null,null,null,null,null,null,null,null,null,null,null,null,null,null,null,null,"No. of people going"]
[null,null,"Trip Expenses",{"$f":"H39+H63","v":0},null,null,null,null,null,"Number of people going",{"$f":"R25","v":0}]
[]
[null,null,"Trip Revenue",{"$f":"S25","v":0}]
[]
[]
[]
[null,null,null,null,null,null,null,null,null,null,null,null,null,null,null,null,null,null,"Trip cost per person"]
[]
[null,null,null,"Transport","      Days:","Qty.","Cost","Total","Notes",null,null,null,null,null,null,null,"Trip Attenden Names",{"$f":"SUM(R26:R125)","v":0},{"$f":"SUM(S26:S77)","v":0},"  Notes"]
[null,null,null,null,1,1,0,{"$f":"G26*E26*F26","v":0},null,null,null,null,null,null,null,1,null,{"$f":"IF(Q26=\"\",\"\",IF(Q26=\"\",\"\",1))","v":""}]
[null,null,null,null,1,1,0,{"$f":"G27*E27*F27","v":0},null,null,null,null,null,null,null,2,null,{"$f":"IF(Q27=\"\",\"\",IF(Q27=\"\",\"\",1))","v":""}]
[null,null,null,null,1,1,0,0,null,null,null,null,null,null,null,3,null,""]
[null,null,null,null,1,1,0,0,null,null,null,null,null,null,null,4,null,""]
[null,null,null,null,1,1,0,0,null,null,null,null,null,null,null,5,null,""]
[null,null,null,null,1,1,0,0,null,null,null,null,null,null,null,6,null,""]
[null,null,null,null,1,1,0,0,null,null,null,null,null,null,null,7,null,""]
[null,null,null,null,1,1,0,0,null,null,null,null,null,null,null,8,null,""]
[null,null,null,null,1,1,0,0,null,null,null,null,null,null,null,9,null,""]
[null,null,null,null,1,1,0,0,null,null,null,null,null,null,null,10,null,""]
[null,null,null,null,1,1,0,0,null,null,null,null,null,null,null,11,null,""]
[null,null,null,null,1,1,0,0,null,null,null,null,null,null,null,12,null,""]
[null,null,null,null,1,1,0,{"$f":"G38*E38*F38","v":0},null,null,null,null,null,null,null,13,null,""]
[null,null,null,null,null,null,null,{"$f":"SUM(H26:H38)","v":0},null,null,null,null,null,null,null,14,null,""]
[null,null,null,null,null,null,null,null,null,null,null,null,null,null,null,15,null,""]
[null,null,"Other Expenses",null,"Qty","No.","Cost","Total"," Notes",null,null,null,null,null,null,16,null,""]
[null,null,null,null,1,1,0,{"$f":"G42*F42*E42","v":0},null,null,null,null,null,null,null,17,null,""]
[null,null,null,null,1,1,0,{"$f":"G43*F43*E43","v":0},null,null,null,null,null,null,null,18,null,""]
[null,null,null,null,1,1,0,{"$f":"G44*F44*E44","v":0},null,null,null,null,null,null,null,19,null,""]
[null,null,null,null,1,1,0,0,null,null,null,null,null,null,null,20,null,""]
[null,null,null,null,1,1,0,0,null,null,null,null,null,null,null,21,null,""]
[null,null,null,null,1,1,0,0,null,null,null,null,null,null,null,22,null,""]
[null,null,null,null,1,1,0,0,null,null,null,null,null,null,null,23,null,""]
[null,null,null,null,1,1,0,0,null,null,null,null,null,null,null,24,null,""]
[null,null,null,null,1,1,0,0,null,null,null,null,null,null,null,25,null,""]
[null,null,null,null,1,1,0,0,null,null,null,null,null,null,null,26,null,""]
[null,null,null,null,1,1,0,0,null,null,null,null,null,null,null,27,null,""]
[null,null,null,null,1,1,0,0,null,null,null,null,null,null,null,28,null,""]
[null,null,null,null,1,1,0,0,null,null,null,null,null,null,null,29,null,""]
[null,null,null,null,1,1,0,0,null,null,null,null,null,null,null,30,null,""]
[null,null,null,null,1,1,0,0,null,null,null,null,null,null,null,31,null,""]
[null,null,null,null,1,1,0,0,null,null,null,null,null,null,null,32,null,""]
[null,null,null,null,1,1,0,0,null,null,null,null,null,null,null,33,null,""]
[null,null,null,null,1,1,0,0,null,null,null,null,null,null,null,34,null,""]
[null,null,null,null,1,1,0,0,null,null,null,null,null,null,null,35,null,""]
[null,null,null,null,1,1,0,0,null,null,null,null,null,null,null,36,null,""]
[null,null,null,null,1,1,0,0,null,null,null,null,null,null,null,37,null,""]
[null,null,null,null,null,null,null,{"$f":"SUM(H42:H62)","v":0},null,null,null,null,null,null,null,38,null,""]
[null,null,null,null,null,null,null,null,null,null,null,null,null,null,null,39,null,""]
[null,null,null,null,null,null,null,null,null,null,null,null,null,null,null,40,null,""]
[null,null,null,null,null,null,null,null,null,null,null,null,null,null,null,41,null,""]
[null,null,null,null,null,null,null,null,null,null,null,null,null,null,null,42,null,""]
[null,null,null,null,null,null,null,null,null,null,null,null,null,null,null,43,null,""]
[null,null,null,null,null,null,null,null,null,null,null,null,null,null,null,44,null,""]
[null,null,null,null,null,null,null,null,null,null,null,null,null,null,null,45,null,""]
[null,null,null,null,null,null,null,null,null,null,null,null,null,null,null,46,null,""]
[null,null,null,null,null,null,null,null,null,null,null,null,null,null,null,47,null,""]
[null,null,null,null,null,null,null,null,null,null,null,null,null,null,null,48,null,""]
[null,null,null,null,null,null,null,null,null,null,null,null,null,null,null,49,null,""]
[null,null,null,null,null,null,null,null,null,null,null,null,null,null,null,50,null,""]
[null,null,null,null,null,null,null,null,null,null,null,null,null,null,null,51,null,""]
[null,null,null,null,null,null,null,null,null,null,null,null,null,null,null,52,null,""]
[null,null,null,null,null,null,null,null,null,null,null,null,null,null,null,53,null,""]
[null,null,null,null,null,null,null,null,null,null,null,null,null,null,null,54,null,""]
[null,null,null,null,null,null,null,null,null,null,null,null,null,null,null,55,null,""]
[null,null,null,null,null,null,null,null,null,null,null,null,null,null,null,56,null,""]
[null,null,null,null,null,null,null,null,null,null,null,null,null,null,null,57,null,""]
[null,null,null,null,null,null,null,null,null,null,null,null,null,null,null,58,null,""]
[null,null,null,null,null,null,null,null,null,null,null,null,null,null,null,59,null,""]
[null,null,null,null,null,null,null,null,null,null,null,null,null,null,null,60,null,""]
[null,null,null,null,null,null,null,null,null,null,null,null,null,null,null,61,null,""]
[null,null,null,null,null,null,null,null,null,null,null,null,null,null,null,62,null,""]
[null,null,null,null,null,null,null,null,null,null,null,null,null,null,null,63,null,""]
[null,null,null,null,null,null,null,null,null,null,null,null,null,null,null,64,null,""]
[null,null,null,null,null,null,null,null,null,null,null,null,null,null,null,65,null,""]
[null,null,null,null,null,null,null,null,null,null,null,null,null,null,null,66,null,{"$f":"IF(Q91=\"\",\"\",IF(Q91=\"\",\"\",1))","v":""}]
[null,null,null,null,null,null,null,null,null,null,null,null,null,null,null,67,null,""]
[null,null,null,null,null,null,null,null,null,null,null,null,null,null,null,68,null,""]
[null,null,null,null,null,null,null,null,null,null,null,null,null,null,null,69,null,""]
[null,null,null,null,null,null,null,null,null,null,null,null,null,null,null,70,null,""]
[null,null,null,null,null,null,null,null,null,null,null,null,null,null,null,71,null,""]
[null,null,null,null,null,null,null,null,null,null,null,null,null,null,null,72,null,""]
[null,null,null,null,null,null,null,null,null,null,null,null,null,null,null,73,null,""]
[null,null,null,null,null,null,null,null,null,null,null,null,null,null,null,74,null,""]
[null,null,null,null,null,null,null,null,null,null,null,null,null,null,null,75,null,""]
[null,null,null,null,null,null,null,null,null,null,null,null,null,null,null,76,null,""]
[null,null,null,null,null,null,null,null,null,null,null,null,null,null,null,77,null,""]
[null,null,null,null,null,null,null,null,null,null,null,null,null,null,null,78,null,""]
[null,null,null,null,null,null,null,null,null,null,null,null,null,null,null,79,null,""]
[null,null,null,null,null,null,null,null,null,null,null,null,null,null,null,80,null,""]
[null,null,null,null,null,null,null,null,null,null,null,null,null,null,null,81,null,""]
[null,null,null,null,null,null,null,null,null,null,null,null,null,null,null,82,null,""]
[null,null,null,null,null,null,null,null,null,null,null,null,null,null,null,83,null,""]
[null,null,null,null,null,null,null,null,null,null,null,null,null,null,null,84,null,""]
[null,null,null,null,null,null,null,null,null,null,null,null,null,null,null,85,null,""]
[null,null,null,null,null,null,null,null,null,null,null,null,null,null,null,86,null,""]
[null,null,null,null,null,null,null,null,null,null,null,null,null,null,null,87,null,""]
[null,null,null,null,null,null,null,null,null,null,null,null,null,null,null,88,null,""]
[null,null,null,null,null,null,null,null,null,null,null,null,null,null,null,89,null,""]
[null,null,null,null,null,null,null,null,null,null,null,null,null,null,null,90,null,""]
[null,null,null,null,null,null,null,null,null,null,null,null,null,null,null,91,null,""]
[null,null,null,null,null,null,null,null,null,null,null,null,null,null,null,92,null,""]
[null,null,null,null,null,null,null,null,null,null,null,null,null,null,null,93,null,""]
[null,null,null,null,null,null,null,null,null,null,null,null,null,null,null,94,null,""]
[null,null,null,null,null,null,null,null,null,null,null,null,null,null,null,95,null,""]
[null,null,null,null,null,null,null,null,null,null,null,null,null,null,null,96,null,""]
[null,null,null,null,null,null,null,null,null,null,null,null,null,null,null,97,null,""]
[null,null,null,null,null,null,null,null,null,null,null,null,null,null,null,98,null,""]
[null,null,null,null,null,null,null,null,null,null,null,null,null,null,null,99,null,""]
[null,null,null,null,null,null,null,null,null,null,null,null,null,null,null,100,null,""]

{"sheet":"Trip (13)","index":13,"n_rows":125,"n_cols":20,"rows_kept":125,"cut":false,"hidden":false,"merged":[[24,19,24,30],[40,8,40,13],[120,19,120,30],[121,19,121,30],[122,19,122,30],[123,19,123,30],[124,19,124,30],[115,19,115,30],[116,19,116,30],[117,19,117,30],[118,19,118,30],[119,19,119,30],[110,19,110,30],[111,19,111,30],[112,19,112,30],[113,19,113,30],[114,19,114,30],[105,19,105,30],[106,19,106,30],[107,19,107,30],[108,19,108,30],[109,19,109,30],[100,19,100,30],[101,19,101,30],[102,19,102,30],[103,19,103,30],[104,19,104,30],[95,19,95,30],[96,19,96,30],[97,19,97,30],[98,19,98,30],[99,19,99,30],[90,19,90,30],[91,19,91,30],[92,19,92,30],[93,19,93,30],[94,19,94,30],[85,19,85,30],[86,19,86,30],[87,19,87,30],[88,19,88,30],[89,19,89,30],[80,19,80,30],[81,19,81,30],[82,19,82,30],[83,19,83,30],[84,19,84,30],[76,19,76,30],[77,19,77,30],[78,19,78,30],[79,19,79,30],[70,19,70,30],[71,19,71,30],[72,19,72,30],[73,19,73,30],[74,19,74,30],[67,19,67,30],[68,19,68,30],[69,19,69,30],[60,19,60,30],[61,19,61,30],[62,19,62,30],[63,19,63,30],[64,19,64,30],[75,19,75,30],[58,19,58,30],[59,19,59,30],[50,19,50,30],[51,19,51,30],[52,19,52,30],[53,19,53,30],[54,19,54,30],[65,19,65,30],[66,19,66,30],[49,19,49,30],[40,19,40,30],[41,19,41,30],[42,19,42,30],[43,19,43,30],[44,19,44,30],[55,19,55,30],[56,19,56,30],[57,19,57,30],[30,19,30,30],[31,19,31,30],[32,19,32,30],[33,19,33,30],[34,19,34,30],[45,19,45,30],[46,19,46,30],[47,19,47,30],[48,19,48,30],[25,19,25,30],[26,19,26,30],[27,19,27,30],[28,19,28,30],[29,19,29,30],[75,8,75,9],[76,8,76,9],[77,8,77,9],[78,8,78,9],[69,8,69,9],[70,8,70,9],[71,8,71,9],[72,8,72,9],[73,8,73,9],[74,8,74,9],[68,8,68,9],[67,8,67,9],[42,8,42,13],[43,8,43,13],[35,19,35,30],[36,19,36,30],[37,19,37,30],[38,19,38,30],[39,19,39,30],[58,2,58,3],[58,8,58,13],[59,2,59,3],[59,8,59,13],[60,2,60,3],[60,8,60,13],[61,2,61,3],[61,8,61,13],[63,8,63,10],[63,12,63,13],[55,2,55,3],[55,8,55,13],[56,2,56,3],[56,8,56,13],[57,2,57,3],[57,8,57,13],[52,2,52,3],[52,8,52,13],[53,2,53,3],[53,8,53,13],[54,2,54,3],[54,8,54,13],[49,2,49,3],[49,8,49,13],[50,2,50,3],[50,8,50,13],[51,2,51,3],[51,8,51,13],[46,2,46,3],[46,8,46,13],[47,2,47,3],[47,8,47,13],[48,2,48,3],[48,8,48,13],[44,2,44,3],[44,8,44,13],[45,2,45,3],[45,8,45,13],[41,8,41,13],[34,2,34,3],[34,8,34,13],[35,2,35,3],[35,8,35,13],[36,2,36,3],[36,8,36,13],[37,2,37,3],[37,8,37,13],[38,2,38,3],[39,10,39,11],[40,2,40,3],[41,2,41,3],[42,2,42,3],[43,2,43,3],[31,2,31,3],[31,8,31,13],[32,2,32,3],[32,8,32,13],[33,2,33,3],[33,8,33,13],[28,2,28,3],[28,8,28,13],[29,2,29,3],[29,8,29,13],[30,2,30,3],[30,8,30,13],[22,18,23,18],[25,2,25,3],[25,8,25,13],[26,2,26,3],[26,8,26,13],[15,17,23,17],[27,2,27,3],[27,8,27,13],[8,3,8,12],[10,3,10,6],[10,10,10,12],[12,10,12,12],[16,10,16,12],[18,10,18,12]]}
[]
[null,null,null,null,null,null,null,"Leeds University Union Caving Society"]
[]
[]
[{"$f":"CONCATENATE(\"Trip Name:  \",D9)","v":"Trip Name:  "}]
[]
[]
[null,"Trip details:",null,"Title"]
[null,null,"Trip Name:"]
[]
[null,null,"Location:",null,null,null,null,null,null,"Organizer:"]
[]
[null,null,"Date/s:",null,null,null,null,null,null,"Caving Hut","-"]
[]
[]
[null,null,null,null,null,null,null,null,null,null,null,null,null,null,null,null,null,"No. of people going"]
[null,null,"Trip Expenses",{"$f":"H39+H63","v":0},null,null,null,null,null,"Number of people going",{"$f":"R25","v":0}]
[]
[null,null,"Trip Revenue",{"$f":"S25","v":0}]
[]
[]
[]
[null,null,null,null,null,null,null,null,null,null,null,null,null,null,null,null,null,null,"Trip cost per person"]
[]
[null,null,null,"Transport","      Days:","Qty.","Cost","Total","Notes",null,null,null,null,null,null,null,"Trip Attenden Names",{"$f":"SUM(R26:R125)","v":0},{"$f":"SUM(S26:S77)","v":0},"  Notes"]
[null,null,null,null,1,1,0,{"$f":"G26*E26*F26","v":0},null,null,null,null,null,null,null,1,null,{"$f":"IF(Q26=\"\",\"\",IF(Q26=\"\",\"\",1))","v":""}]
[null,null,null,null,1,1,0,{"$f":"G27*E27*F27","v":0},null,null,null,null,null,null,null,2,null,{"$f":"IF(Q27=\"\",\"\",IF(Q27=\"\",\"\",1))","v":""}]
[null,null,null,null,1,1,0,0,null,null,null,null,null,null,null,3,null,""]
[null,null,null,null,1,1,0,0,null,null,null,null,null,null,null,4,null,""]
[null,null,null,null,1,1,0,0,null,null,null,null,null,null,null,5,null,""]
[null,null,null,null,1,1,0,0,null,null,null,null,null,null,null,6,null,""]
[null,null,null,null,1,1,0,0,null,null,null,null,null,null,null,7,null,""]
[null,null,null,null,1,1,0,0,null,null,null,null,null,null,null,8,null,""]
[null,null,null,null,1,1,0,0,null,null,null,null,null,null,null,9,null,""]
[null,null,null,null,1,1,0,0,null,null,null,null,null,null,null,10,null,""]
[null,null,null,null,1,1,0,0,null,null,null,null,null,null,null,11,null,""]
[null,null,null,null,1,1,0,0,null,null,null,null,null,null,null,12,null,""]
[null,null,null,null,1,1,0,{"$f":"G38*E38*F38","v":0},null,null,null,null,null,null,null,13,null,""]
[null,null,null,null,null,null,null,{"$f":"SUM(H26:H38)","v":0},null,null,null,null,null,null,null,14,null,""]
[null,null,null,null,null,null,null,null,null,null,null,null,null,null,null,15,null,""]
[null,null,"Other Expenses",null,"Qty","No.","Cost","Total"," Notes",null,null,null,null,null,null,16,null,""]
[null,null,null,null,1,1,0,{"$f":"G42*F42*E42","v":0},null,null,null,null,null,null,null,17,null,""]
[null,null,null,null,1,1,0,{"$f":"G43*F43*E43","v":0},null,null,null,null,null,null,null,18,null,""]
[null,null,null,null,1,1,0,{"$f":"G44*F44*E44","v":0},null,null,null,null,null,null,null,19,null,""]
[null,null,null,null,1,1,0,0,null,null,null,null,null,null,null,20,null,""]
[null,null,null,null,1,1,0,0,null,null,null,null,null,null,null,21,null,""]
[null,null,null,null,1,1,0,0,null,null,null,null,null,null,null,22,null,""]
[null,null,null,null,1,1,0,0,null,null,null,null,null,null,null,23,null,""]
[null,null,null,null,1,1,0,0,null,null,null,null,null,null,null,24,null,""]
[null,null,null,null,1,1,0,0,null,null,null,null,null,null,null,25,null,""]
[null,null,null,null,1,1,0,0,null,null,null,null,null,null,null,26,null,""]
[null,null,null,null,1,1,0,0,null,null,null,null,null,null,null,27,null,""]
[null,null,null,null,1,1,0,0,null,null,null,null,null,null,null,28,null,""]
[null,null,null,null,1,1,0,0,null,null,null,null,null,null,null,29,null,""]
[null,null,null,null,1,1,0,0,null,null,null,null,null,null,null,30,null,""]
[null,null,null,null,1,1,0,0,null,null,null,null,null,null,null,31,null,""]
[null,null,null,null,1,1,0,0,null,null,null,null,null,null,null,32,null,""]
[null,null,null,null,1,1,0,0,null,null,null,null,null,null,null,33,null,""]
[null,null,null,null,1,1,0,0,null,null,null,null,null,null,null,34,null,""]
[null,null,null,null,1,1,0,0,null,null,null,null,null,null,null,35,null,""]
[null,null,null,null,1,1,0,0,null,null,null,null,null,null,null,36,null,""]
[null,null,null,null,1,1,0,0,null,null,null,null,null,null,null,37,null,""]
[null,null,null,null,null,null,null,{"$f":"SUM(H42:H62)","v":0},null,null,null,null,null,null,null,38,null,""]
[null,null,null,null,null,null,null,null,null,null,null,null,null,null,null,39,null,""]
[null,null,null,null,null,null,null,null,null,null,null,null,null,null,null,40,null,""]
[null,null,null,null,null,null,null,null,null,null,null,null,null,null,null,41,null,""]
[null,null,null,null,null,null,null,null,null,null,null,null,null,null,null,42,null,""]
[null,null,null,null,null,null,null,null,null,null,null,null,null,null,null,43,null,""]
[null,null,null,null,null,null,null,null,null,null,null,null,null,null,null,44,null,""]
[null,null,null,null,null,null,null,null,null,null,null,null,null,null,null,45,null,""]
[null,null,null,null,null,null,null,null,null,null,null,null,null,null,null,46,null,""]
[null,null,null,null,null,null,null,null,null,null,null,null,null,null,null,47,null,""]
[null,null,null,null,null,null,null,null,null,null,null,null,null,null,null,48,null,""]
[null,null,null,null,null,null,null,null,null,null,null,null,null,null,null,49,null,""]
[null,null,null,null,null,null,null,null,null,null,null,null,null,null,null,50,null,""]
[null,null,null,null,null,null,null,null,null,null,null,null,null,null,null,51,null,""]
[null,null,null,null,null,null,null,null,null,null,null,null,null,null,null,52,null,""]
[null,null,null,null,null,null,null,null,null,null,null,null,null,null,null,53,null,""]
[null,null,null,null,null,null,null,null,null,null,null,null,null,null,null,54,null,""]
[null,null,null,null,null,null,null,null,null,null,null,null,null,null,null,55,null,""]
[null,null,null,null,null,null,null,null,null,null,null,null,null,null,null,56,null,""]
[null,null,null,null,null,null,null,null,null,null,null,null,null,null,null,57,null,""]
[null,null,null,null,null,null,null,null,null,null,null,null,null,null,null,58,null,""]
[null,null,null,null,null,null,null,null,null,null,null,null,null,null,null,59,null,""]
[null,null,null,null,null,null,null,null,null,null,null,null,null,null,null,60,null,""]
[null,null,null,null,null,null,null,null,null,null,null,null,null,null,null,61,null,""]
[null,null,null,null,null,null,null,null,null,null,null,null,null,null,null,62,null,""]
[null,null,null,null,null,null,null,null,null,null,null,null,null,null,null,63,null,""]
[null,null,null,null,null,null,null,null,null,null,null,null,null,null,null,64,null,""]
[null,null,null,null,null,null,null,null,null,null,null,null,null,null,null,65,null,""]
[null,null,null,null,null,null,null,null,null,null,null,null,null,null,null,66,null,{"$f":"IF(Q91=\"\",\"\",IF(Q91=\"\",\"\",1))","v":""}]
[null,null,null,null,null,null,null,null,null,null,null,null,null,null,null,67,null,""]
[null,null,null,null,null,null,null,null,null,null,null,null,null,null,null,68,null,""]
[null,null,null,null,null,null,null,null,null,null,null,null,null,null,null,69,null,""]
[null,null,null,null,null,null,null,null,null,null,null,null,null,null,null,70,null,""]
[null,null,null,null,null,null,null,null,null,null,null,null,null,null,null,71,null,""]
[null,null,null,null,null,null,null,null,null,null,null,null,null,null,null,72,null,""]
[null,null,null,null,null,null,null,null,null,null,null,null,null,null,null,73,null,""]
[null,null,null,null,null,null,null,null,null,null,null,null,null,null,null,74,null,""]
[null,null,null,null,null,null,null,null,null,null,null,null,null,null,null,75,null,""]
[null,null,null,null,null,null,null,null,null,null,null,null,null,null,null,76,null,""]
[null,null,null,null,null,null,null,null,null,null,null,null,null,null,null,77,null,""]
[null,null,null,null,null,null,null,null,null,null,null,null,null,null,null,78,null,""]
[null,null,null,null,null,null,null,null,null,null,null,null,null,null,null,79,null,""]
[null,null,null,null,null,null,null,null,null,null,null,null,null,null,null,80,null,""]
[null,null,null,null,null,null,null,null,null,null,null,null,null,null,null,81,null,""]
[null,null,null,null,null,null,null,null,null,null,null,null,null,null,null,82,null,""]
[null,null,null,null,null,null,null,null,null,null,null,null,null,null,null,83,null,""]
[null,null,null,null,null,null,null,null,null,null,null,null,null,null,null,84,null,""]
[null,null,null,null,null,null,null,null,null,null,null,null,null,null,null,85,null,""]
[null,null,null,null,null,null,null,null,null,null,null,null,null,null,null,86,null,""]
[null,null,null,null,null,null,null,null,null,null,null,null,null,null,null,87,null,""]
[null,null,null,null,null,null,null,null,null,null,null,null,null,null,null,88,null,""]
[null,null,null,null,null,null,null,null,null,null,null,null,null,null,null,89,null,""]
[null,null,null,null,null,null,null,null,null,null,null,null,null,null,null,90,null,""]
[null,null,null,null,null,null,null,null,null,null,null,null,null,null,null,91,null,""]
[null,null,null,null,null,null,null,null,null,null,null,null,null,null,null,92,null,""]
[null,null,null,null,null,null,null,null,null,null,null,null,null,null,null,93,null,""]
[null,null,null,null,null,null,null,null,null,null,null,null,null,null,null,94,null,""]
[null,null,null,null,null,null,null,null,null,null,null,null,null,null,null,95,null,""]
[null,null,null,null,null,null,null,null,null,null,null,null,null,null,null,96,null,""]
[null,null,null,null,null,null,null,null,null,null,null,null,null,null,null,97,null,""]
[null,null,null,null,null,null,null,null,null,null,null,null,null,null,null,98,null,""]
[null,null,null,null,null,null,null,null,null,null,null,null,null,null,null,99,null,""]
[null,null,null,null,null,null,null,null,null,null,null,null,null,null,null,100,null,""]

{"sheet":"Trip (14)","index":14,"n_rows":125,"n_cols":20,"rows_kept":125,"cut":false,"hidden":false,"merged":[[24,19,24,30],[40,8,40,13],[120,19,120,30],[121,19,121,30],[122,19,122,30],[123,19,123,30],[124,19,124,30],[115,19,115,30],[116,19,116,30],[117,19,117,30],[118,19,118,30],[119,19,119,30],[110,19,110,30],[111,19,111,30],[112,19,112,30],[113,19,113,30],[114,19,114,30],[105,19,105,30],[106,19,106,30],[107,19,107,30],[108,19,108,30],[109,19,109,30],[100,19,100,30],[101,19,101,30],[102,19,102,30],[103,19,103,30],[104,19,104,30],[95,19,95,30],[96,19,96,30],[97,19,97,30],[98,19,98,30],[99,19,99,30],[90,19,90,30],[91,19,91,30],[92,19,92,30],[93,19,93,30],[94,19,94,30],[85,19,85,30],[86,19,86,30],[87,19,87,30],[88,19,88,30],[89,19,89,30],[80,19,80,30],[81,19,81,30],[82,19,82,30],[83,19,83,30],[84,19,84,30],[76,19,76,30],[77,19,77,30],[78,19,78,30],[79,19,79,30],[70,19,70,30],[71,19,71,30],[72,19,72,30],[73,19,73,30],[74,19,74,30],[67,19,67,30],[68,19,68,30],[69,19,69,30],[60,19,60,30],[61,19,61,30],[62,19,62,30],[63,19,63,30],[64,19,64,30],[75,19,75,30],[58,19,58,30],[59,19,59,30],[50,19,50,30],[51,19,51,30],[52,19,52,30],[53,19,53,30],[54,19,54,30],[65,19,65,30],[66,19,66,30],[49,19,49,30],[40,19,40,30],[41,19,41,30],[42,19,42,30],[43,19,43,30],[44,19,44,30],[55,19,55,30],[56,19,56,30],[57,19,57,30],[30,19,30,30],[31,19,31,30],[32,19,32,30],[33,19,33,30],[34,19,34,30],[45,19,45,30],[46,19,46,30],[47,19,47,30],[48,19,48,30],[25,19,25,30],[26,19,26,30],[27,19,27,30],[28,19,28,30],[29,19,29,30],[75,8,75,9],[76,8,76,9],[77,8,77,9],[78,8,78,9],[69,8,69,9],[70,8,70,9],[71,8,71,9],[72,8,72,9],[73,8,73,9],[74,8,74,9],[68,8,68,9],[67,8,67,9],[42,8,42,13],[43,8,43,13],[35,19,35,30],[36,19,36,30],[37,19,37,30],[38,19,38,30],[39,19,39,30],[58,2,58,3],[58,8,58,13],[59,2,59,3],[59,8,59,13],[60,2,60,3],[60,8,60,13],[61,2,61,3],[61,8,61,13],[63,8,63,10],[63,12,63,13],[55,2,55,3],[55,8,55,13],[56,2,56,3],[56,8,56,13],[57,2,57,3],[57,8,57,13],[52,2,52,3],[52,8,52,13],[53,2,53,3],[53,8,53,13],[54,2,54,3],[54,8,54,13],[49,2,49,3],[49,8,49,13],[50,2,50,3],[50,8,50,13],[51,2,51,3],[51,8,51,13],[46,2,46,3],[46,8,46,13],[47,2,47,3],[47,8,47,13],[48,2,48,3],[48,8,48,13],[44,2,44,3],[44,8,44,13],[45,2,45,3],[45,8,45,13],[41,8,41,13],[34,2,34,3],[34,8,34,13],[35,2,35,3],[35,8,35,13],[36,2,36,3],[36,8,36,13],[37,2,37,3],[37,8,37,13],[38,2,38,3],[39,10,39,11],[40,2,40,3],[41,2,41,3],[42,2,42,3],[43,2,43,3],[31,2,31,3],[31,8,31,13],[32,2,32,3],[32,8,32,13],[33,2,33,3],[33,8,33,13],[28,2,28,3],[28,8,28,13],[29,2,29,3],[29,8,29,13],[30,2,30,3],[30,8,30,13],[22,18,23,18],[25,2,25,3],[25,8,25,13],[26,2,26,3],[26,8,26,13],[15,17,23,17],[27,2,27,3],[27,8,27,13],[8,3,8,12],[10,3,10,6],[10,10,10,12],[12,10,12,12],[16,10,16,12],[18,10,18,12]]}
[]
[null,null,null,null,null,null,null,"Leeds University Union Caving Society"]
[]
[]
[{"$f":"CONCATENATE(\"Trip Name:  \",D9)","v":"Trip Name:  "}]
[]
[]
[null,"Trip details:",null,"Title"]
[null,null,"Trip Name:"]
[]
[null,null,"Location:",null,null,null,null,null,null,"Organizer:"]
[]
[null,null,"Date/s:",null,null,null,null,null,null,"Caving Hut","-"]
[]
[]
[null,null,null,null,null,null,null,null,null,null,null,null,null,null,null,null,null,"No. of people going"]
[null,null,"Trip Expenses",{"$f":"H39+H63","v":0},null,null,null,null,null,"Number of people going",{"$f":"R25","v":0}]
[]
[null,null,"Trip Revenue",{"$f":"S25","v":0}]
[]
[]
[]
[null,null,null,null,null,null,null,null,null,null,null,null,null,null,null,null,null,null,"Trip cost per person"]
[]
[null,null,null,"Transport","      Days:","Qty.","Cost","Total","Notes",null,null,null,null,null,null,null,"Trip Attenden Names",{"$f":"SUM(R26:R125)","v":0},{"$f":"SUM(S26:S77)","v":0},"  Notes"]
[null,null,null,null,1,1,0,{"$f":"G26*E26*F26","v":0},null,null,null,null,null,null,null,1,null,{"$f":"IF(Q26=\"\",\"\",IF(Q26=\"\",\"\",1))","v":""}]
[null,null,null,null,1,1,0,{"$f":"G27*E27*F27","v":0},null,null,null,null,null,null,null,2,null,{"$f":"IF(Q27=\"\",\"\",IF(Q27=\"\",\"\",1))","v":""}]
[null,null,null,null,1,1,0,0,null,null,null,null,null,null,null,3,null,""]
[null,null,null,null,1,1,0,0,null,null,null,null,null,null,null,4,null,""]
[null,null,null,null,1,1,0,0,null,null,null,null,null,null,null,5,null,""]
[null,null,null,null,1,1,0,0,null,null,null,null,null,null,null,6,null,""]
[null,null,null,null,1,1,0,0,null,null,null,null,null,null,null,7,null,""]
[null,null,null,null,1,1,0,0,null,null,null,null,null,null,null,8,null,""]
[null,null,null,null,1,1,0,0,null,null,null,null,null,null,null,9,null,""]
[null,null,null,null,1,1,0,0,null,null,null,null,null,null,null,10,null,""]
[null,null,null,null,1,1,0,0,null,null,null,null,null,null,null,11,null,""]
[null,null,null,null,1,1,0,0,null,null,null,null,null,null,null,12,null,""]
[null,null,null,null,1,1,0,{"$f":"G38*E38*F38","v":0},null,null,null,null,null,null,null,13,null,""]
[null,null,null,null,null,null,null,{"$f":"SUM(H26:H38)","v":0},null,null,null,null,null,null,null,14,null,""]
[null,null,null,null,null,null,null,null,null,null,null,null,null,null,null,15,null,""]
[null,null,"Other Expenses",null,"Qty","No.","Cost","Total"," Notes",null,null,null,null,null,null,16,null,""]
[null,null,null,null,1,1,0,{"$f":"G42*F42*E42","v":0},null,null,null,null,null,null,null,17,null,""]
[null,null,null,null,1,1,0,{"$f":"G43*F43*E43","v":0},null,null,null,null,null,null,null,18,null,""]
[null,null,null,null,1,1,0,{"$f":"G44*F44*E44","v":0},null,null,null,null,null,null,null,19,null,""]
[null,null,null,null,1,1,0,0,null,null,null,null,null,null,null,20,null,""]
[null,null,null,null,1,1,0,0,null,null,null,null,null,null,null,21,null,""]
[null,null,null,null,1,1,0,0,null,null,null,null,null,null,null,22,null,""]
[null,null,null,null,1,1,0,0,null,null,null,null,null,null,null,23,null,""]
[null,null,null,null,1,1,0,0,null,null,null,null,null,null,null,24,null,""]
[null,null,null,null,1,1,0,0,null,null,null,null,null,null,null,25,null,""]
[null,null,null,null,1,1,0,0,null,null,null,null,null,null,null,26,null,""]
[null,null,null,null,1,1,0,0,null,null,null,null,null,null,null,27,null,""]
[null,null,null,null,1,1,0,0,null,null,null,null,null,null,null,28,null,""]
[null,null,null,null,1,1,0,0,null,null,null,null,null,null,null,29,null,""]
[null,null,null,null,1,1,0,0,null,null,null,null,null,null,null,30,null,""]
[null,null,null,null,1,1,0,0,null,null,null,null,null,null,null,31,null,""]
[null,null,null,null,1,1,0,0,null,null,null,null,null,null,null,32,null,""]
[null,null,null,null,1,1,0,0,null,null,null,null,null,null,null,33,null,""]
[null,null,null,null,1,1,0,0,null,null,null,null,null,null,null,34,null,""]
[null,null,null,null,1,1,0,0,null,null,null,null,null,null,null,35,null,""]
[null,null,null,null,1,1,0,0,null,null,null,null,null,null,null,36,null,""]
[null,null,null,null,1,1,0,0,null,null,null,null,null,null,null,37,null,""]
[null,null,null,null,null,null,null,{"$f":"SUM(H42:H62)","v":0},null,null,null,null,null,null,null,38,null,""]
[null,null,null,null,null,null,null,null,null,null,null,null,null,null,null,39,null,""]
[null,null,null,null,null,null,null,null,null,null,null,null,null,null,null,40,null,""]
[null,null,null,null,null,null,null,null,null,null,null,null,null,null,null,41,null,""]
[null,null,null,null,null,null,null,null,null,null,null,null,null,null,null,42,null,""]
[null,null,null,null,null,null,null,null,null,null,null,null,null,null,null,43,null,""]
[null,null,null,null,null,null,null,null,null,null,null,null,null,null,null,44,null,""]
[null,null,null,null,null,null,null,null,null,null,null,null,null,null,null,45,null,""]
[null,null,null,null,null,null,null,null,null,null,null,null,null,null,null,46,null,""]
[null,null,null,null,null,null,null,null,null,null,null,null,null,null,null,47,null,""]
[null,null,null,null,null,null,null,null,null,null,null,null,null,null,null,48,null,""]
[null,null,null,null,null,null,null,null,null,null,null,null,null,null,null,49,null,""]
[null,null,null,null,null,null,null,null,null,null,null,null,null,null,null,50,null,""]
[null,null,null,null,null,null,null,null,null,null,null,null,null,null,null,51,null,""]
[null,null,null,null,null,null,null,null,null,null,null,null,null,null,null,52,null,""]
[null,null,null,null,null,null,null,null,null,null,null,null,null,null,null,53,null,""]
[null,null,null,null,null,null,null,null,null,null,null,null,null,null,null,54,null,""]
[null,null,null,null,null,null,null,null,null,null,null,null,null,null,null,55,null,""]
[null,null,null,null,null,null,null,null,null,null,null,null,null,null,null,56,null,""]
[null,null,null,null,null,null,null,null,null,null,null,null,null,null,null,57,null,""]
[null,null,null,null,null,null,null,null,null,null,null,null,null,null,null,58,null,""]
[null,null,null,null,null,null,null,null,null,null,null,null,null,null,null,59,null,""]
[null,null,null,null,null,null,null,null,null,null,null,null,null,null,null,60,null,""]
[null,null,null,null,null,null,null,null,null,null,null,null,null,null,null,61,null,""]
[null,null,null,null,null,null,null,null,null,null,null,null,null,null,null,62,null,""]
[null,null,null,null,null,null,null,null,null,null,null,null,null,null,null,63,null,""]
[null,null,null,null,null,null,null,null,null,null,null,null,null,null,null,64,null,""]
[null,null,null,null,null,null,null,null,null,null,null,null,null,null,null,65,null,""]
[null,null,null,null,null,null,null,null,null,null,null,null,null,null,null,66,null,{"$f":"IF(Q91=\"\",\"\",IF(Q91=\"\",\"\",1))","v":""}]
[null,null,null,null,null,null,null,null,null,null,null,null,null,null,null,67,null,""]
[null,null,null,null,null,null,null,null,null,null,null,null,null,null,null,68,null,""]
[null,null,null,null,null,null,null,null,null,null,null,null,null,null,null,69,null,""]
[null,null,null,null,null,null,null,null,null,null,null,null,null,null,null,70,null,""]
[null,null,null,null,null,null,null,null,null,null,null,null,null,null,null,71,null,""]
[null,null,null,null,null,null,null,null,null,null,null,null,null,null,null,72,null,""]
[null,null,null,null,null,null,null,null,null,null,null,null,null,null,null,73,null,""]
[null,null,null,null,null,null,null,null,null,null,null,null,null,null,null,74,null,""]
[null,null,null,null,null,null,null,null,null,null,null,null,null,null,null,75,null,""]
[null,null,null,null,null,null,null,null,null,null,null,null,null,null,null,76,null,""]
[null,null,null,null,null,null,null,null,null,null,null,null,null,null,null,77,null,""]
[null,null,null,null,null,null,null,null,null,null,null,null,null,null,null,78,null,""]
[null,null,null,null,null,null,null,null,null,null,null,null,null,null,null,79,null,""]
[null,null,null,null,null,null,null,null,null,null,null,null,null,null,null,80,null,""]
[null,null,null,null,null,null,null,null,null,null,null,null,null,null,null,81,null,""]
[null,null,null,null,null,null,null,null,null,null,null,null,null,null,null,82,null,""]
[null,null,null,null,null,null,null,null,null,null,null,null,null,null,null,83,null,""]
[null,null,null,null,null,null,null,null,null,null,null,null,null,null,null,84,null,""]
[null,null,null,null,null,null,null,null,null,null,null,null,null,null,null,85,null,""]
[null,null,null,null,null,null,null,null,null,null,null,null,null,null,null,86,null,""]
[null,null,null,null,null,null,null,null,null,null,null,null,null,null,null,87,null,""]
[null,null,null,null,null,null,null,null,null,null,null,null,null,null,null,88,null,""]
[null,null,null,null,null,null,null,null,null,null,null,null,null,null,null,89,null,""]
[null,null,null,null,null,null,null,null,null,null,null,null,null,null,null,90,null,""]
[null,null,null,null,null,null,null,null,null,null,null,null,null,null,null,91,null,""]
[null,null,null,null,null,null,null,null,null,null,null,null,null,null,null,92,null,""]
[null,null,null,null,null,null,null,null,null,null,null,null,null,null,null,93,null,""]
[null,null,null,null,null,null,null,null,null,null,null,null,null,null,null,94,null,""]
[null,null,null,null,null,null,null,null,null,null,null,null,null,null,null,95,null,""]
[null,null,null,null,null,null,null,null,null,null,null,null,null,null,null,96,null,""]
[null,null,null,null,null,null,null,null,null,null,null,null,null,null,null,97,null,""]
[null,null,null,null,null,null,null,null,null,null,null,null,null,null,null,98,null,""]
[null,null,null,null,null,null,null,null,null,null,null,null,null,null,null,99,null,""]
[null,null,null,null,null,null,null,null,null,null,null,null,null,null,null,100,null,""]

{"sheet":"Trip (15)","index":15,"n_rows":125,"n_cols":20,"rows_kept":125,"cut":false,"hidden":false,"merged":[[24,19,24,30],[40,8,40,13],[120,19,120,30],[121,19,121,30],[122,19,122,30],[123,19,123,30],[124,19,124,30],[115,19,115,30],[116,19,116,30],[117,19,117,30],[118,19,118,30],[119,19,119,30],[110,19,110,30],[111,19,111,30],[112,19,112,30],[113,19,113,30],[114,19,114,30],[105,19,105,30],[106,19,106,30],[107,19,107,30],[108,19,108,30],[109,19,109,30],[100,19,100,30],[101,19,101,30],[102,19,102,30],[103,19,103,30],[104,19,104,30],[95,19,95,30],[96,19,96,30],[97,19,97,30],[98,19,98,30],[99,19,99,30],[90,19,90,30],[91,19,91,30],[92,19,92,30],[93,19,93,30],[94,19,94,30],[85,19,85,30],[86,19,86,30],[87,19,87,30],[88,19,88,30],[89,19,89,30],[80,19,80,30],[81,19,81,30],[82,19,82,30],[83,19,83,30],[84,19,84,30],[76,19,76,30],[77,19,77,30],[78,19,78,30],[79,19,79,30],[70,19,70,30],[71,19,71,30],[72,19,72,30],[73,19,73,30],[74,19,74,30],[67,19,67,30],[68,19,68,30],[69,19,69,30],[60,19,60,30],[61,19,61,30],[62,19,62,30],[63,19,63,30],[64,19,64,30],[75,19,75,30],[58,19,58,30],[59,19,59,30],[50,19,50,30],[51,19,51,30],[52,19,52,30],[53,19,53,30],[54,19,54,30],[65,19,65,30],[66,19,66,30],[49,19,49,30],[40,19,40,30],[41,19,41,30],[42,19,42,30],[43,19,43,30],[44,19,44,30],[55,19,55,30],[56,19,56,30],[57,19,57,30],[30,19,30,30],[31,19,31,30],[32,19,32,30],[33,19,33,30],[34,19,34,30],[45,19,45,30],[46,19,46,30],[47,19,47,30],[48,19,48,30],[25,19,25,30],[26,19,26,30],[27,19,27,30],[28,19,28,30],[29,19,29,30],[75,8,75,9],[76,8,76,9],[77,8,77,9],[78,8,78,9],[69,8,69,9],[70,8,70,9],[71,8,71,9],[72,8,72,9],[73,8,73,9],[74,8,74,9],[68,8,68,9],[67,8,67,9],[42,8,42,13],[43,8,43,13],[35,19,35,30],[36,19,36,30],[37,19,37,30],[38,19,38,30],[39,19,39,30],[58,2,58,3],[58,8,58,13],[59,2,59,3],[59,8,59,13],[60,2,60,3],[60,8,60,13],[61,2,61,3],[61,8,61,13],[63,8,63,10],[63,12,63,13],[55,2,55,3],[55,8,55,13],[56,2,56,3],[56,8,56,13],[57,2,57,3],[57,8,57,13],[52,2,52,3],[52,8,52,13],[53,2,53,3],[53,8,53,13],[54,2,54,3],[54,8,54,13],[49,2,49,3],[49,8,49,13],[50,2,50,3],[50,8,50,13],[51,2,51,3],[51,8,51,13],[46,2,46,3],[46,8,46,13],[47,2,47,3],[47,8,47,13],[48,2,48,3],[48,8,48,13],[44,2,44,3],[44,8,44,13],[45,2,45,3],[45,8,45,13],[41,8,41,13],[34,2,34,3],[34,8,34,13],[35,2,35,3],[35,8,35,13],[36,2,36,3],[36,8,36,13],[37,2,37,3],[37,8,37,13],[38,2,38,3],[39,10,39,11],[40,2,40,3],[41,2,41,3],[42,2,42,3],[43,2,43,3],[31,2,31,3],[31,8,31,13],[32,2,32,3],[32,8,32,13],[33,2,33,3],[33,8,33,13],[28,2,28,3],[28,8,28,13],[29,2,29,3],[29,8,29,13],[30,2,30,3],[30,8,30,13],[22,18,23,18],[25,2,25,3],[25,8,25,13],[26,2,26,3],[26,8,26,13],[15,17,23,17],[27,2,27,3],[27,8,27,13],[8,3,8,12],[10,3,10,6],[10,10,10,12],[12,10,12,12],[16,10,16,12],[18,10,18,12]]}
[]
[null,null,null,null,null,null,null,"Leeds University Union Caving Society"]
[]
[]
[{"$f":"CONCATENATE(\"Trip Name:  \",D9)","v":"Trip Name:  "}]
[]
[]
[null,"Trip details:",null,"Title"]
[null,null,"Trip Name:"]
[]
[null,null,"Location:",null,null,null,null,null,null,"Organizer:"]
[]
[null,null,"Date/s:",null,null,null,null,null,null,"Caving Hut","-"]
[]
[]
[null,null,null,null,null,null,null,null,null,null,null,null,null,null,null,null,null,"No. of people going"]
[null,null,"Trip Expenses",{"$f":"H39+H63","v":0},null,null,null,null,null,"Number of people going",{"$f":"R25","v":0}]
[]
[null,null,"Trip Revenue",{"$f":"S25","v":0}]
[]
[]
[]
[null,null,null,null,null,null,null,null,null,null,null,null,null,null,null,null,null,null,"Trip cost per person"]
[]
[null,null,null,"Transport","      Days:","Qty.","Cost","Total","Notes",null,null,null,null,null,null,null,"Trip Attenden Names",{"$f":"SUM(R26:R125)","v":0},{"$f":"SUM(S26:S77)","v":0},"  Notes"]
[null,null,null,null,1,1,0,{"$f":"G26*E26*F26","v":0},null,null,null,null,null,null,null,1,null,{"$f":"IF(Q26=\"\",\"\",IF(Q26=\"\",\"\",1))","v":""}]
[null,null,null,null,1,1,0,{"$f":"G27*E27*F27","v":0},null,null,null,null,null,null,null,2,null,{"$f":"IF(Q27=\"\",\"\",IF(Q27=\"\",\"\",1))","v":""}]
[null,null,null,null,1,1,0,0,null,null,null,null,null,null,null,3,null,""]
[null,null,null,null,1,1,0,0,null,null,null,null,null,null,null,4,null,""]
[null,null,null,null,1,1,0,0,null,null,null,null,null,null,null,5,null,""]
[null,null,null,null,1,1,0,0,null,null,null,null,null,null,null,6,null,""]
[null,null,null,null,1,1,0,0,null,null,null,null,null,null,null,7,null,""]
[null,null,null,null,1,1,0,0,null,null,null,null,null,null,null,8,null,""]
[null,null,null,null,1,1,0,0,null,null,null,null,null,null,null,9,null,""]
[null,null,null,null,1,1,0,0,null,null,null,null,null,null,null,10,null,""]
[null,null,null,null,1,1,0,0,null,null,null,null,null,null,null,11,null,""]
[null,null,null,null,1,1,0,0,null,null,null,null,null,null,null,12,null,""]
[null,null,null,null,1,1,0,{"$f":"G38*E38*F38","v":0},null,null,null,null,null,null,null,13,null,""]
[null,null,null,null,null,null,null,{"$f":"SUM(H26:H38)","v":0},null,null,null,null,null,null,null,14,null,""]
[null,null,null,null,null,null,null,null,null,null,null,null,null,null,null,15,null,""]
[null,null,"Other Expenses",null,"Qty","No.","Cost","Total"," Notes",null,null,null,null,null,null,16,null,""]
[null,null,null,null,1,1,0,{"$f":"G42*F42*E42","v":0},null,null,null,null,null,null,null,17,null,""]
[null,null,null,null,1,1,0,{"$f":"G43*F43*E43","v":0},null,null,null,null,null,null,null,18,null,""]
[null,null,null,null,1,1,0,{"$f":"G44*F44*E44","v":0},null,null,null,null,null,null,null,19,null,""]
[null,null,null,null,1,1,0,0,null,null,null,null,null,null,null,20,null,""]
[null,null,null,null,1,1,0,0,null,null,null,null,null,null,null,21,null,""]
[null,null,null,null,1,1,0,0,null,null,null,null,null,null,null,22,null,""]
[null,null,null,null,1,1,0,0,null,null,null,null,null,null,null,23,null,""]
[null,null,null,null,1,1,0,0,null,null,null,null,null,null,null,24,null,""]
[null,null,null,null,1,1,0,0,null,null,null,null,null,null,null,25,null,""]
[null,null,null,null,1,1,0,0,null,null,null,null,null,null,null,26,null,""]
[null,null,null,null,1,1,0,0,null,null,null,null,null,null,null,27,null,""]
[null,null,null,null,1,1,0,0,null,null,null,null,null,null,null,28,null,""]
[null,null,null,null,1,1,0,0,null,null,null,null,null,null,null,29,null,""]
[null,null,null,null,1,1,0,0,null,null,null,null,null,null,null,30,null,""]
[null,null,null,null,1,1,0,0,null,null,null,null,null,null,null,31,null,""]
[null,null,null,null,1,1,0,0,null,null,null,null,null,null,null,32,null,""]
[null,null,null,null,1,1,0,0,null,null,null,null,null,null,null,33,null,""]
[null,null,null,null,1,1,0,0,null,null,null,null,null,null,null,34,null,""]
[null,null,null,null,1,1,0,0,null,null,null,null,null,null,null,35,null,""]
[null,null,null,null,1,1,0,0,null,null,null,null,null,null,null,36,null,""]
[null,null,null,null,1,1,0,0,null,null,null,null,null,null,null,37,null,""]
[null,null,null,null,null,null,null,{"$f":"SUM(H42:H62)","v":0},null,null,null,null,null,null,null,38,null,""]
[null,null,null,null,null,null,null,null,null,null,null,null,null,null,null,39,null,""]
[null,null,null,null,null,null,null,null,null,null,null,null,null,null,null,40,null,""]
[null,null,null,null,null,null,null,null,null,null,null,null,null,null,null,41,null,""]
[null,null,null,null,null,null,null,null,null,null,null,null,null,null,null,42,null,""]
[null,null,null,null,null,null,null,null,null,null,null,null,null,null,null,43,null,""]
[null,null,null,null,null,null,null,null,null,null,null,null,null,null,null,44,null,""]
[null,null,null,null,null,null,null,null,null,null,null,null,null,null,null,45,null,""]
[null,null,null,null,null,null,null,null,null,null,null,null,null,null,null,46,null,""]
[null,null,null,null,null,null,null,null,null,null,null,null,null,null,null,47,null,""]
[null,null,null,null,null,null,null,null,null,null,null,null,null,null,null,48,null,""]
[null,null,null,null,null,null,null,null,null,null,null,null,null,null,null,49,null,""]
[null,null,null,null,null,null,null,null,null,null,null,null,null,null,null,50,null,""]
[null,null,null,null,null,null,null,null,null,null,null,null,null,null,null,51,null,""]
[null,null,null,null,null,null,null,null,null,null,null,null,null,null,null,52,null,""]
[null,null,null,null,null,null,null,null,null,null,null,null,null,null,null,53,null,""]
[null,null,null,null,null,null,null,null,null,null,null,null,null,null,null,54,null,""]
[null,null,null,null,null,null,null,null,null,null,null,null,null,null,null,55,null,""]
[null,null,null,null,null,null,null,null,null,null,null,null,null,null,null,56,null,""]
[null,null,null,null,null,null,null,null,null,null,null,null,null,null,null,57,null,""]
[null,null,null,null,null,null,null,null,null,null,null,null,null,null,null,58,null,""]
[null,null,null,null,null,null,null,null,null,null,null,null,null,null,null,59,null,""]
[null,null,null,null,null,null,null,null,null,null,null,null,null,null,null,60,null,""]
[null,null,null,null,null,null,null,null,null,null,null,null,null,null,null,61,null,""]
[null,null,null,null,null,null,null,null,null,null,null,null,null,null,null,62,null,""]
[null,null,null,null,null,null,null,null,null,null,null,null,null,null,null,63,null,""]
[null,null,null,null,null,null,null,null,null,null,null,null,null,null,null,64,null,""]
[null,null,null,null,null,null,null,null,null,null,null,null,null,null,null,65,null,""]
[null,null,null,null,null,null,null,null,null,null,null,null,null,null,null,66,null,{"$f":"IF(Q91=\"\",\"\",IF(Q91=\"\",\"\",1))","v":""}]
[null,null,null,null,null,null,null,null,null,null,null,null,null,null,null,67,null,""]
[null,null,null,null,null,null,null,null,null,null,null,null,null,null,null,68,null,""]
[null,null,null,null,null,null,null,null,null,null,null,null,null,null,null,69,null,""]
[null,null,null,null,null,null,null,null,null,null,null,null,null,null,null,70,null,""]
[null,null,null,null,null,null,null,null,null,null,null,null,null,null,null,71,null,""]
[null,null,null,null,null,null,null,null,null,null,null,null,null,null,null,72,null,""]
[null,null,null,null,null,null,null,null,null,null,null,null,null,null,null,73,null,""]
[null,null,null,null,null,null,null,null,null,null,null,null,null,null,null,74,null,""]
[null,null,null,null,null,null,null,null,null,null,null,null,null,null,null,75,null,""]
[null,null,null,null,null,null,null,null,null,null,null,null,null,null,null,76,null,""]
[null,null,null,null,null,null,null,null,null,null,null,null,null,null,null,77,null,""]
[null,null,null,null,null,null,null,null,null,null,null,null,null,null,null,78,null,""]
[null,null,null,null,null,null,null,null,null,null,null,null,null,null,null,79,null,""]
[null,null,null,null,null,null,null,null,null,null,null,null,null,null,null,80,null,""]
[null,null,null,null,null,null,null,null,null,null,null,null,null,null,null,81,null,""]
[null,null,null,null,null,null,null,null,null,null,null,null,null,null,null,82,null,""]
[null,null,null,null,null,null,null,null,null,null,null,null,null,null,null,83,null,""]
[null,null,null,null,null,null,null,null,null,null,null,null,null,null,null,84,null,""]
[null,null,null,null,null,null,null,null,null,null,null,null,null,null,null,85,null,""]
[null,null,null,null,null,null,null,null,null,null,null,null,null,null,null,86,null,""]
[null,null,null,null,null,null,null,null,null,null,null,null,null,null,null,87,null,""]
[null,null,null,null,null,null,null,null,null,null,null,null,null,null,null,88,null,""]
[null,null,null,null,null,null,null,null,null,null,null,null,null,null,null,89,null,""]
[null,null,null,null,null,null,null,null,null,null,null,null,null,null,null,90,null,""]
[null,null,null,null,null,null,null,null,null,null,null,null,null,null,null,91,null,""]
[null,null,null,null,null,null,null,null,null,null,null,null,null,null,null,92,null,""]
[null,null,null,null,null,null,null,null,null,null,null,null,null,null,null,93,null,""]
[null,null,null,null,null,null,null,null,null,null,null,null,null,null,null,94,null,""]
[null,null,null,null,null,null,null,null,null,null,null,null,null,null,null,95,null,""]
[null,null,null,null,null,null,null,null,null,null,null,null,null,null,null,96,null,""]
[null,null,null,null,null,null,null,null,null,null,null,null,null,null,null,97,null,""]
[null,null,null,null,null,null,null,null,null,null,null,null,null,null,null,98,null,""]
[null,null,null,null,null,null,null,null,null,null,null,null,null,null,null,99,null,""]
[null,null,null,null,null,null,null,null,null,null,null,null,null,null,null,100,null,""]

{"sheet":"Trip (16)","index":16,"n_rows":125,"n_cols":20,"rows_kept":125,"cut":false,"hidden":false,"merged":[[24,19,24,30],[40,8,40,13],[120,19,120,30],[121,19,121,30],[122,19,122,30],[123,19,123,30],[124,19,124,30],[115,19,115,30],[116,19,116,30],[117,19,117,30],[118,19,118,30],[119,19,119,30],[110,19,110,30],[111,19,111,30],[112,19,112,30],[113,19,113,30],[114,19,114,30],[105,19,105,30],[106,19,106,30],[107,19,107,30],[108,19,108,30],[109,19,109,30],[100,19,100,30],[101,19,101,30],[102,19,102,30],[103,19,103,30],[104,19,104,30],[95,19,95,30],[96,19,96,30],[97,19,97,30],[98,19,98,30],[99,19,99,30],[90,19,90,30],[91,19,91,30],[92,19,92,30],[93,19,93,30],[94,19,94,30],[85,19,85,30],[86,19,86,30],[87,19,87,30],[88,19,88,30],[89,19,89,30],[80,19,80,30],[81,19,81,30],[82,19,82,30],[83,19,83,30],[84,19,84,30],[76,19,76,30],[77,19,77,30],[78,19,78,30],[79,19,79,30],[70,19,70,30],[71,19,71,30],[72,19,72,30],[73,19,73,30],[74,19,74,30],[67,19,67,30],[68,19,68,30],[69,19,69,30],[60,19,60,30],[61,19,61,30],[62,19,62,30],[63,19,63,30],[64,19,64,30],[75,19,75,30],[58,19,58,30],[59,19,59,30],[50,19,50,30],[51,19,51,30],[52,19,52,30],[53,19,53,30],[54,19,54,30],[65,19,65,30],[66,19,66,30],[49,19,49,30],[40,19,40,30],[41,19,41,30],[42,19,42,30],[43,19,43,30],[44,19,44,30],[55,19,55,30],[56,19,56,30],[57,19,57,30],[30,19,30,30],[31,19,31,30],[32,19,32,30],[33,19,33,30],[34,19,34,30],[45,19,45,30],[46,19,46,30],[47,19,47,30],[48,19,48,30],[25,19,25,30],[26,19,26,30],[27,19,27,30],[28,19,28,30],[29,19,29,30],[75,8,75,9],[76,8,76,9],[77,8,77,9],[78,8,78,9],[69,8,69,9],[70,8,70,9],[71,8,71,9],[72,8,72,9],[73,8,73,9],[74,8,74,9],[68,8,68,9],[67,8,67,9],[42,8,42,13],[43,8,43,13],[35,19,35,30],[36,19,36,30],[37,19,37,30],[38,19,38,30],[39,19,39,30],[58,2,58,3],[58,8,58,13],[59,2,59,3],[59,8,59,13],[60,2,60,3],[60,8,60,13],[61,2,61,3],[61,8,61,13],[63,8,63,10],[63,12,63,13],[55,2,55,3],[55,8,55,13],[56,2,56,3],[56,8,56,13],[57,2,57,3],[57,8,57,13],[52,2,52,3],[52,8,52,13],[53,2,53,3],[53,8,53,13],[54,2,54,3],[54,8,54,13],[49,2,49,3],[49,8,49,13],[50,2,50,3],[50,8,50,13],[51,2,51,3],[51,8,51,13],[46,2,46,3],[46,8,46,13],[47,2,47,3],[47,8,47,13],[48,2,48,3],[48,8,48,13],[44,2,44,3],[44,8,44,13],[45,2,45,3],[45,8,45,13],[41,8,41,13],[34,2,34,3],[34,8,34,13],[35,2,35,3],[35,8,35,13],[36,2,36,3],[36,8,36,13],[37,2,37,3],[37,8,37,13],[38,2,38,3],[39,10,39,11],[40,2,40,3],[41,2,41,3],[42,2,42,3],[43,2,43,3],[31,2,31,3],[31,8,31,13],[32,2,32,3],[32,8,32,13],[33,2,33,3],[33,8,33,13],[28,2,28,3],[28,8,28,13],[29,2,29,3],[29,8,29,13],[30,2,30,3],[30,8,30,13],[22,18,23,18],[25,2,25,3],[25,8,25,13],[26,2,26,3],[26,8,26,13],[15,17,23,17],[27,2,27,3],[27,8,27,13],[8,3,8,12],[10,3,10,6],[10,10,10,12],[12,10,12,12],[16,10,16,12],[18,10,18,12]]}
[]
[null,null,null,null,null,null,null,"Leeds University Union Caving Society"]
[]
[]
[{"$f":"CONCATENATE(\"Trip Name:  \",D9)","v":"Trip Name:  "}]
[]
[]
[null,"Trip details:",null,"Title"]
[null,null,"Trip Name:"]
[]
[null,null,"Location:",null,null,null,null,null,null,"Organizer:"]
[]
[null,null,"Date/s:",null,null,null,null,null,null,"Caving Hut","-"]
[]
[]
[null,null,null,null,null,null,null,null,null,null,null,null,null,null,null,null,null,"No. of people going"]
[null,null,"Trip Expenses",{"$f":"H39+H63","v":0},null,null,null,null,null,"Number of people going",{"$f":"R25","v":0}]
[]
[null,null,"Trip Revenue",{"$f":"S25","v":0}]
[]
[]
[]
[null,null,null,null,null,null,null,null,null,null,null,null,null,null,null,null,null,null,"Trip cost per person"]
[]
[null,null,null,"Transport","      Days:","Qty.","Cost","Total","Notes",null,null,null,null,null,null,null,"Trip Attenden Names",{"$f":"SUM(R26:R125)","v":0},{"$f":"SUM(S26:S77)","v":0},"  Notes"]
[null,null,null,null,1,1,0,{"$f":"G26*E26*F26","v":0},null,null,null,null,null,null,null,1,null,{"$f":"IF(Q26=\"\",\"\",IF(Q26=\"\",\"\",1))","v":""}]
[null,null,null,null,1,1,0,{"$f":"G27*E27*F27","v":0},null,null,null,null,null,null,null,2,null,{"$f":"IF(Q27=\"\",\"\",IF(Q27=\"\",\"\",1))","v":""}]
[null,null,null,null,1,1,0,0,null,null,null,null,null,null,null,3,null,""]
[null,null,null,null,1,1,0,0,null,null,null,null,null,null,null,4,null,""]
[null,null,null,null,1,1,0,0,null,null,null,null,null,null,null,5,null,""]
[null,null,null,null,1,1,0,0,null,null,null,null,null,null,null,6,null,""]
[null,null,null,null,1,1,0,0,null,null,null,null,null,null,null,7,null,""]
[null,null,null,null,1,1,0,0,null,null,null,null,null,null,null,8,null,""]
[null,null,null,null,1,1,0,0,null,null,null,null,null,null,null,9,null,""]
[null,null,null,null,1,1,0,0,null,null,null,null,null,null,null,10,null,""]
[null,null,null,null,1,1,0,0,null,null,null,null,null,null,null,11,null,""]
[null,null,null,null,1,1,0,0,null,null,null,null,null,null,null,12,null,""]
[null,null,null,null,1,1,0,{"$f":"G38*E38*F38","v":0},null,null,null,null,null,null,null,13,null,""]
[null,null,null,null,null,null,null,{"$f":"SUM(H26:H38)","v":0},null,null,null,null,null,null,null,14,null,""]
[null,null,null,null,null,null,null,null,null,null,null,null,null,null,null,15,null,""]
[null,null,"Other Expenses",null,"Qty","No.","Cost","Total"," Notes",null,null,null,null,null,null,16,null,""]
[null,null,null,null,1,1,0,{"$f":"G42*F42*E42","v":0},null,null,null,null,null,null,null,17,null,""]
[null,null,null,null,1,1,0,{"$f":"G43*F43*E43","v":0},null,null,null,null,null,null,null,18,null,""]
[null,null,null,null,1,1,0,{"$f":"G44*F44*E44","v":0},null,null,null,null,null,null,null,19,null,""]
[null,null,null,null,1,1,0,0,null,null,null,null,null,null,null,20,null,""]
[null,null,null,null,1,1,0,0,null,null,null,null,null,null,null,21,null,""]
[null,null,null,null,1,1,0,0,null,null,null,null,null,null,null,22,null,""]
[null,null,null,null,1,1,0,0,null,null,null,null,null,null,null,23,null,""]
[null,null,null,null,1,1,0,0,null,null,null,null,null,null,null,24,null,""]
[null,null,null,null,1,1,0,0,null,null,null,null,null,null,null,25,null,""]
[null,null,null,null,1,1,0,0,null,null,null,null,null,null,null,26,null,""]
[null,null,null,null,1,1,0,0,null,null,null,null,null,null,null,27,null,""]
[null,null,null,null,1,1,0,0,null,null,null,null,null,null,null,28,null,""]
[null,null,null,null,1,1,0,0,null,null,null,null,null,null,null,29,null,""]
[null,null,null,null,1,1,0,0,null,null,null,null,null,null,null,30,null,""]
[null,null,null,null,1,1,0,0,null,null,null,null,null,null,null,31,null,""]
[null,null,null,null,1,1,0,0,null,null,null,null,null,null,null,32,null,""]
[null,null,null,null,1,1,0,0,null,null,null,null,null,null,null,33,null,""]
[null,null,null,null,1,1,0,0,null,null,null,null,null,null,null,34,null,""]
[null,null,null,null,1,1,0,0,null,null,null,null,null,null,null,35,null,""]
[null,null,null,null,1,1,0,0,null,null,null,null,null,null,null,36,null,""]
[null,null,null,null,1,1,0,0,null,null,null,null,null,null,null,37,null,""]
[null,null,null,null,null,null,null,{"$f":"SUM(H42:H62)","v":0},null,null,null,null,null,null,null,38,null,""]
[null,null,null,null,null,null,null,null,null,null,null,null,null,null,null,39,null,""]
[null,null,null,null,null,null,null,null,null,null,null,null,null,null,null,40,null,""]
[null,null,null,null,null,null,null,null,null,null,null,null,null,null,null,41,null,""]
[null,null,null,null,null,null,null,null,null,null,null,null,null,null,null,42,null,""]
[null,null,null,null,null,null,null,null,null,null,null,null,null,null,null,43,null,""]
[null,null,null,null,null,null,null,null,null,null,null,null,null,null,null,44,null,""]
[null,null,null,null,null,null,null,null,null,null,null,null,null,null,null,45,null,""]
[null,null,null,null,null,null,null,null,null,null,null,null,null,null,null,46,null,""]
[null,null,null,null,null,null,null,null,null,null,null,null,null,null,null,47,null,""]
[null,null,null,null,null,null,null,null,null,null,null,null,null,null,null,48,null,""]
[null,null,null,null,null,null,null,null,null,null,null,null,null,null,null,49,null,""]
[null,null,null,null,null,null,null,null,null,null,null,null,null,null,null,50,null,""]
[null,null,null,null,null,null,null,null,null,null,null,null,null,null,null,51,null,""]
[null,null,null,null,null,null,null,null,null,null,null,null,null,null,null,52,null,""]
[null,null,null,null,null,null,null,null,null,null,null,null,null,null,null,53,null,""]
[null,null,null,null,null,null,null,null,null,null,null,null,null,null,null,54,null,""]
[null,null,null,null,null,null,null,null,null,null,null,null,null,null,null,55,null,""]
[null,null,null,null,null,null,null,null,null,null,null,null,null,null,null,56,null,""]
[null,null,null,null,null,null,null,null,null,null,null,null,null,null,null,57,null,""]
[null,null,null,null,null,null,null,null,null,null,null,null,null,null,null,58,null,""]
[null,null,null,null,null,null,null,null,null,null,null,null,null,null,null,59,null,""]
[null,null,null,null,null,null,null,null,null,null,null,null,null,null,null,60,null,""]
[null,null,null,null,null,null,null,null,null,null,null,null,null,null,null,61,null,""]
[null,null,null,null,null,null,null,null,null,null,null,null,null,null,null,62,null,""]
[null,null,null,null,null,null,null,null,null,null,null,null,null,null,null,63,null,""]
[null,null,null,null,null,null,null,null,null,null,null,null,null,null,null,64,null,""]
[null,null,null,null,null,null,null,null,null,null,null,null,null,null,null,65,null,""]
[null,null,null,null,null,null,null,null,null,null,null,null,null,null,null,66,null,{"$f":"IF(Q91=\"\",\"\",IF(Q91=\"\",\"\",1))","v":""}]
[null,null,null,null,null,null,null,null,null,null,null,null,null,null,null,67,null,""]
[null,null,null,null,null,null,null,null,null,null,null,null,null,null,null,68,null,""]
[null,null,null,null,null,null,null,null,null,null,null,null,null,null,null,69,null,""]
[null,null,null,null,null,null,null,null,null,null,null,null,null,null,null,70,null,""]
[null,null,null,null,null,null,null,null,null,null,null,null,null,null,null,71,null,""]
[null,null,null,null,null,null,null,null,null,null,null,null,null,null,null,72,null,""]
[null,null,null,null,null,null,null,null,null,null,null,null,null,null,null,73,null,""]
[null,null,null,null,null,null,null,null,null,null,null,null,null,null,null,74,null,""]
[null,null,null,null,null,null,null,null,null,null,null,null,null,null,null,75,null,""]
[null,null,null,null,null,null,null,null,null,null,null,null,null,null,null,76,null,""]
[null,null,null,null,null,null,null,null,null,null,null,null,null,null,null,77,null,""]
[null,null,null,null,null,null,null,null,null,null,null,null,null,null,null,78,null,""]
[null,null,null,null,null,null,null,null,null,null,null,null,null,null,null,79,null,""]
[null,null,null,null,null,null,null,null,null,null,null,null,null,null,null,80,null,""]
[null,null,null,null,null,null,null,null,null,null,null,null,null,null,null,81,null,""]
[null,null,null,null,null,null,null,null,null,null,null,null,null,null,null,82,null,""]
[null,null,null,null,null,null,null,null,null,null,null,null,null,null,null,83,null,""]
[null,null,null,null,null,null,null,null,null,null,null,null,null,null,null,84,null,""]
[null,null,null,null,null,null,null,null,null,null,null,null,null,null,null,85,null,""]
[null,null,null,null,null,null,null,null,null,null,null,null,null,null,null,86,null,""]
[null,null,null,null,null,null,null,null,null,null,null,null,null,null,null,87,null,""]
[null,null,null,null,null,null,null,null,null,null,null,null,null,null,null,88,null,""]
[null,null,null,null,null,null,null,null,null,null,null,null,null,null,null,89,null,""]
[null,null,null,null,null,null,null,null,null,null,null,null,null,null,null,90,null,""]
[null,null,null,null,null,null,null,null,null,null,null,null,null,null,null,91,null,""]
[null,null,null,null,null,null,null,null,null,null,null,null,null,null,null,92,null,""]
[null,null,null,null,null,null,null,null,null,null,null,null,null,null,null,93,null,""]
[null,null,null,null,null,null,null,null,null,null,null,null,null,null,null,94,null,""]
[null,null,null,null,null,null,null,null,null,null,null,null,null,null,null,95,null,""]
[null,null,null,null,null,null,null,null,null,null,null,null,null,null,null,96,null,""]
[null,null,null,null,null,null,null,null,null,null,null,null,null,null,null,97,null,""]
[null,null,null,null,null,null,null,null,null,null,null,null,null,null,null,98,null,""]
[null,null,null,null,null,null,null,null,null,null,null,null,null,null,null,99,null,""]
[null,null,null,null,null,null,null,null,null,null,null,null,null,null,null,100,null,""]

{"sheet":"Trip (17)","index":17,"n_rows":125,"n_cols":20,"rows_kept":125,"cut":false,"hidden":false,"merged":[[24,19,24,30],[40,8,40,13],[120,19,120,30],[121,19,121,30],[122,19,122,30],[123,19,123,30],[124,19,124,30],[115,19,115,30],[116,19,116,30],[117,19,117,30],[118,19,118,30],[119,19,119,30],[110,19,110,30],[111,19,111,30],[112,19,112,30],[113,19,113,30],[114,19,114,30],[105,19,105,30],[106,19,106,30],[107,19,107,30],[108,19,108,30],[109,19,109,30],[100,19,100,30],[101,19,101,30],[102,19,102,30],[103,19,103,30],[104,19,104,30],[95,19,95,30],[96,19,96,30],[97,19,97,30],[98,19,98,30],[99,19,99,30],[90,19,90,30],[91,19,91,30],[92,19,92,30],[93,19,93,30],[94,19,94,30],[85,19,85,30],[86,19,86,30],[87,19,87,30],[88,19,88,30],[89,19,89,30],[80,19,80,30],[81,19,81,30],[82,19,82,30],[83,19,83,30],[84,19,84,30],[76,19,76,30],[77,19,77,30],[78,19,78,30],[79,19,79,30],[70,19,70,30],[71,19,71,30],[72,19,72,30],[73,19,73,30],[74,19,74,30],[67,19,67,30],[68,19,68,30],[69,19,69,30],[60,19,60,30],[61,19,61,30],[62,19,62,30],[63,19,63,30],[64,19,64,30],[75,19,75,30],[58,19,58,30],[59,19,59,30],[50,19,50,30],[51,19,51,30],[52,19,52,30],[53,19,53,30],[54,19,54,30],[65,19,65,30],[66,19,66,30],[49,19,49,30],[40,19,40,30],[41,19,41,30],[42,19,42,30],[43,19,43,30],[44,19,44,30],[55,19,55,30],[56,19,56,30],[57,19,57,30],[30,19,30,30],[31,19,31,30],[32,19,32,30],[33,19,33,30],[34,19,34,30],[45,19,45,30],[46,19,46,30],[47,19,47,30],[48,19,48,30],[25,19,25,30],[26,19,26,30],[27,19,27,30],[28,19,28,30],[29,19,29,30],[75,8,75,9],[76,8,76,9],[77,8,77,9],[78,8,78,9],[69,8,69,9],[70,8,70,9],[71,8,71,9],[72,8,72,9],[73,8,73,9],[74,8,74,9],[68,8,68,9],[67,8,67,9],[42,8,42,13],[43,8,43,13],[35,19,35,30],[36,19,36,30],[37,19,37,30],[38,19,38,30],[39,19,39,30],[58,2,58,3],[58,8,58,13],[59,2,59,3],[59,8,59,13],[60,2,60,3],[60,8,60,13],[61,2,61,3],[61,8,61,13],[63,8,63,10],[63,12,63,13],[55,2,55,3],[55,8,55,13],[56,2,56,3],[56,8,56,13],[57,2,57,3],[57,8,57,13],[52,2,52,3],[52,8,52,13],[53,2,53,3],[53,8,53,13],[54,2,54,3],[54,8,54,13],[49,2,49,3],[49,8,49,13],[50,2,50,3],[50,8,50,13],[51,2,51,3],[51,8,51,13],[46,2,46,3],[46,8,46,13],[47,2,47,3],[47,8,47,13],[48,2,48,3],[48,8,48,13],[44,2,44,3],[44,8,44,13],[45,2,45,3],[45,8,45,13],[41,8,41,13],[34,2,34,3],[34,8,34,13],[35,2,35,3],[35,8,35,13],[36,2,36,3],[36,8,36,13],[37,2,37,3],[37,8,37,13],[38,2,38,3],[39,10,39,11],[40,2,40,3],[41,2,41,3],[42,2,42,3],[43,2,43,3],[31,2,31,3],[31,8,31,13],[32,2,32,3],[32,8,32,13],[33,2,33,3],[33,8,33,13],[28,2,28,3],[28,8,28,13],[29,2,29,3],[29,8,29,13],[30,2,30,3],[30,8,30,13],[22,18,23,18],[25,2,25,3],[25,8,25,13],[26,2,26,3],[26,8,26,13],[15,17,23,17],[27,2,27,3],[27,8,27,13],[8,3,8,12],[10,3,10,6],[10,10,10,12],[12,10,12,12],[16,10,16,12],[18,10,18,12]]}
[]
[null,null,null,null,null,null,null,"Leeds University Union Caving Society"]
[]
[]
[{"$f":"CONCATENATE(\"Trip Name:  \",D9)","v":"Trip Name:  "}]
[]
[]
[null,"Trip details:",null,"Title"]
[null,null,"Trip Name:"]
[]
[null,null,"Location:",null,null,null,null,null,null,"Organizer:"]
[]
[null,null,"Date/s:",null,null,null,null,null,null,"Caving Hut","-"]
[]
[]
[null,null,null,null,null,null,null,null,null,null,null,null,null,null,null,null,null,"No. of people going"]
[null,null,"Trip Expenses",{"$f":"H39+H63","v":0},null,null,null,null,null,"Number of people going",{"$f":"R25","v":0}]
[]
[null,null,"Trip Revenue",{"$f":"S25","v":0}]
[]
[]
[]
[null,null,null,null,null,null,null,null,null,null,null,null,null,null,null,null,null,null,"Trip cost per person"]
[]
[null,null,null,"Transport","      Days:","Qty.","Cost","Total","Notes",null,null,null,null,null,null,null,"Trip Attenden Names",{"$f":"SUM(R26:R125)","v":0},{"$f":"SUM(S26:S77)","v":0},"  Notes"]
[null,null,null,null,1,1,0,{"$f":"G26*E26*F26","v":0},null,null,null,null,null,null,null,1,null,{"$f":"IF(Q26=\"\",\"\",IF(Q26=\"\",\"\",1))","v":""}]
[null,null,null,null,1,1,0,{"$f":"G27*E27*F27","v":0},null,null,null,null,null,null,null,2,null,{"$f":"IF(Q27=\"\",\"\",IF(Q27=\"\",\"\",1))","v":""}]
[null,null,null,null,1,1,0,0,null,null,null,null,null,null,null,3,null,""]
[null,null,null,null,1,1,0,0,null,null,null,null,null,null,null,4,null,""]
[null,null,null,null,1,1,0,0,null,null,null,null,null,null,null,5,null,""]
[null,null,null,null,1,1,0,0,null,null,null,null,null,null,null,6,null,""]
[null,null,null,null,1,1,0,0,null,null,null,null,null,null,null,7,null,""]
[null,null,null,null,1,1,0,0,null,null,null,null,null,null,null,8,null,""]
[null,null,null,null,1,1,0,0,null,null,null,null,null,null,null,9,null,""]
[null,null,null,null,1,1,0,0,null,null,null,null,null,null,null,10,null,""]
[null,null,null,null,1,1,0,0,null,null,null,null,null,null,null,11,null,""]
[null,null,null,null,1,1,0,0,null,null,null,null,null,null,null,12,null,""]
[null,null,null,null,1,1,0,{"$f":"G38*E38*F38","v":0},null,null,null,null,null,null,null,13,null,""]
[null,null,null,null,null,null,null,{"$f":"SUM(H26:H38)","v":0},null,null,null,null,null,null,null,14,null,""]
[null,null,null,null,null,null,null,null,null,null,null,null,null,null,null,15,null,""]
[null,null,"Other Expenses",null,"Qty","No.","Cost","Total"," Notes",null,null,null,null,null,null,16,null,""]
[null,null,null,null,1,1,0,{"$f":"G42*F42*E42","v":0},null,null,null,null,null,null,null,17,null,""]
[null,null,null,null,1,1,0,{"$f":"G43*F43*E43","v":0},null,null,null,null,null,null,null,18,null,""]
[null,null,null,null,1,1,0,{"$f":"G44*F44*E44","v":0},null,null,null,null,null,null,null,19,null,""]
[null,null,null,null,1,1,0,0,null,null,null,null,null,null,null,20,null,""]
[null,null,null,null,1,1,0,0,null,null,null,null,null,null,null,21,null,""]
[null,null,null,null,1,1,0,0,null,null,null,null,null,null,null,22,null,""]
[null,null,null,null,1,1,0,0,null,null,null,null,null,null,null,23,null,""]
[null,null,null,null,1,1,0,0,null,null,null,null,null,null,null,24,null,""]
[null,null,null,null,1,1,0,0,null,null,null,null,null,null,null,25,null,""]
[null,null,null,null,1,1,0,0,null,null,null,null,null,null,null,26,null,""]
[null,null,null,null,1,1,0,0,null,null,null,null,null,null,null,27,null,""]
[null,null,null,null,1,1,0,0,null,null,null,null,null,null,null,28,null,""]
[null,null,null,null,1,1,0,0,null,null,null,null,null,null,null,29,null,""]
[null,null,null,null,1,1,0,0,null,null,null,null,null,null,null,30,null,""]
[null,null,null,null,1,1,0,0,null,null,null,null,null,null,null,31,null,""]
[null,null,null,null,1,1,0,0,null,null,null,null,null,null,null,32,null,""]
[null,null,null,null,1,1,0,0,null,null,null,null,null,null,null,33,null,""]
[null,null,null,null,1,1,0,0,null,null,null,null,null,null,null,34,null,""]
[null,null,null,null,1,1,0,0,null,null,null,null,null,null,null,35,null,""]
[null,null,null,null,1,1,0,0,null,null,null,null,null,null,null,36,null,""]
[null,null,null,null,1,1,0,0,null,null,null,null,null,null,null,37,null,""]
[null,null,null,null,null,null,null,{"$f":"SUM(H42:H62)","v":0},null,null,null,null,null,null,null,38,null,""]
[null,null,null,null,null,null,null,null,null,null,null,null,null,null,null,39,null,""]
[null,null,null,null,null,null,null,null,null,null,null,null,null,null,null,40,null,""]
[null,null,null,null,null,null,null,null,null,null,null,null,null,null,null,41,null,""]
[null,null,null,null,null,null,null,null,null,null,null,null,null,null,null,42,null,""]
[null,null,null,null,null,null,null,null,null,null,null,null,null,null,null,43,null,""]
[null,null,null,null,null,null,null,null,null,null,null,null,null,null,null,44,null,""]
[null,null,null,null,null,null,null,null,null,null,null,null,null,null,null,45,null,""]
[null,null,null,null,null,null,null,null,null,null,null,null,null,null,null,46,null,""]
[null,null,null,null,null,null,null,null,null,null,null,null,null,null,null,47,null,""]
[null,null,null,null,null,null,null,null,null,null,null,null,null,null,null,48,null,""]
[null,null,null,null,null,null,null,null,null,null,null,null,null,null,null,49,null,""]
[null,null,null,null,null,null,null,null,null,null,null,null,null,null,null,50,null,""]
[null,null,null,null,null,null,null,null,null,null,null,null,null,null,null,51,null,""]
[null,null,null,null,null,null,null,null,null,null,null,null,null,null,null,52,null,""]
[null,null,null,null,null,null,null,null,null,null,null,null,null,null,null,53,null,""]
[null,null,null,null,null,null,null,null,null,null,null,null,null,null,null,54,null,""]
[null,null,null,null,null,null,null,null,null,null,null,null,null,null,null,55,null,""]
[null,null,null,null,null,null,null,null,null,null,null,null,null,null,null,56,null,""]
[null,null,null,null,null,null,null,null,null,null,null,null,null,null,null,57,null,""]
[null,null,null,null,null,null,null,null,null,null,null,null,null,null,null,58,null,""]
[null,null,null,null,null,null,null,null,null,null,null,null,null,null,null,59,null,""]
[null,null,null,null,null,null,null,null,null,null,null,null,null,null,null,60,null,""]
[null,null,null,null,null,null,null,null,null,null,null,null,null,null,null,61,null,""]
[null,null,null,null,null,null,null,null,null,null,null,null,null,null,null,62,null,""]
[null,null,null,null,null,null,null,null,null,null,null,null,null,null,null,63,null,""]
[null,null,null,null,null,null,null,null,null,null,null,null,null,null,null,64,null,""]
[null,null,null,null,null,null,null,null,null,null,null,null,null,null,null,65,null,""]
[null,null,null,null,null,null,null,null,null,null,null,null,null,null,null,66,null,{"$f":"IF(Q91=\"\",\"\",IF(Q91=\"\",\"\",1))","v":""}]
[null,null,null,null,null,null,null,null,null,null,null,null,null,null,null,67,null,""]
[null,null,null,null,null,null,null,null,null,null,null,null,null,null,null,68,null,""]
[null,null,null,null,null,null,null,null,null,null,null,null,null,null,null,69,null,""]
[null,null,null,null,null,null,null,null,null,null,null,null,null,null,null,70,null,""]
[null,null,null,null,null,null,null,null,null,null,null,null,null,null,null,71,null,""]
[null,null,null,null,null,null,null,null,null,null,null,null,null,null,null,72,null,""]
[null,null,null,null,null,null,null,null,null,null,null,null,null,null,null,73,null,""]
[null,null,null,null,null,null,null,null,null,null,null,null,null,null,null,74,null,""]
[null,null,null,null,null,null,null,null,null,null,null,null,null,null,null,75,null,""]
[null,null,null,null,null,null,null,null,null,null,null,null,null,null,null,76,null,""]
[null,null,null,null,null,null,null,null,null,null,null,null,null,null,null,77,null,""]
[null,null,null,null,null,null,null,null,null,null,null,null,null,null,null,78,null,""]
[null,null,null,null,null,null,null,null,null,null,null,null,null,null,null,79,null,""]
[null,null,null,null,null,null,null,null,null,null,null,null,null,null,null,80,null,""]
[null,null,null,null,null,null,null,null,null,null,null,null,null,null,null,81,null,""]
[null,null,null,null,null,null,null,null,null,null,null,null,null,null,null,82,null,""]
[null,null,null,null,null,null,null,null,null,null,null,null,null,null,null,83,null,""]
[null,null,null,null,null,null,null,null,null,null,null,null,null,null,null,84,null,""]
[null,null,null,null,null,null,null,null,null,null,null,null,null,null,null,85,null,""]
[null,null,null,null,null,null,null,null,null,null,null,null,null,null,null,86,null,""]
[null,null,null,null,null,null,null,null,null,null,null,null,null,null,null,87,null,""]
[null,null,null,null,null,null,null,null,null,null,null,null,null,null,null,88,null,""]
[null,null,null,null,null,null,null,null,null,null,null,null,null,null,null,89,null,""]
[null,null,null,null,null,null,null,null,null,null,null,null,null,null,null,90,null,""]
[null,null,null,null,null,null,null,null,null,null,null,null,null,null,null,91,null,""]
[null,null,null,null,null,null,null,null,null,null,null,null,null,null,null,92,null,""]
[null,null,null,null,null,null,null,null,null,null,null,null,null,null,null,93,null,""]
[null,null,null,null,null,null,null,null,null,null,null,null,null,null,null,94,null,""]
[null,null,null,null,null,null,null,null,null,null,null,null,null,null,null,95,null,""]
[null,null,null,null,null,null,null,null,null,null,null,null,null,null,null,96,null,""]
[null,null,null,null,null,null,null,null,null,null,null,null,null,null,null,97,null,""]
[null,null,null,null,null,null,null,null,null,null,null,null,null,null,null,98,null,""]
[null,null,null,null,null,null,null,null,null,null,null,null,null,null,null,99,null,""]
[null,null,null,null,null,null,null,null,null,null,null,null,null,null,null,100,null,""]

{"sheet":"Trip (18)","index":18,"n_rows":125,"n_cols":20,"rows_kept":125,"cut":false,"hidden":false,"merged":[[24,19,24,30],[40,8,40,13],[120,19,120,30],[121,19,121,30],[122,19,122,30],[123,19,123,30],[124,19,124,30],[115,19,115,30],[116,19,116,30],[117,19,117,30],[118,19,118,30],[119,19,119,30],[110,19,110,30],[111,19,111,30],[112,19,112,30],[113,19,113,30],[114,19,114,30],[105,19,105,30],[106,19,106,30],[107,19,107,30],[108,19,108,30],[109,19,109,30],[100,19,100,30],[101,19,101,30],[102,19,102,30],[103,19,103,30],[104,19,104,30],[95,19,95,30],[96,19,96,30],[97,19,97,30],[98,19,98,30],[99,19,99,30],[90,19,90,30],[91,19,91,30],[92,19,92,30],[93,19,93,30],[94,19,94,30],[85,19,85,30],[86,19,86,30],[87,19,87,30],[88,19,88,30],[89,19,89,30],[80,19,80,30],[81,19,81,30],[82,19,82,30],[83,19,83,30],[84,19,84,30],[76,19,76,30],[77,19,77,30],[78,19,78,30],[79,19,79,30],[70,19,70,30],[71,19,71,30],[72,19,72,30],[73,19,73,30],[74,19,74,30],[67,19,67,30],[68,19,68,30],[69,19,69,30],[60,19,60,30],[61,19,61,30],[62,19,62,30],[63,19,63,30],[64,19,64,30],[75,19,75,30],[58,19,58,30],[59,19,59,30],[50,19,50,30],[51,19,51,30],[52,19,52,30],[53,19,53,30],[54,19,54,30],[65,19,65,30],[66,19,66,30],[49,19,49,30],[40,19,40,30],[41,19,41,30],[42,19,42,30],[43,19,43,30],[44,19,44,30],[55,19,55,30],[56,19,56,30],[57,19,57,30],[30,19,30,30],[31,19,31,30],[32,19,32,30],[33,19,33,30],[34,19,34,30],[45,19,45,30],[46,19,46,30],[47,19,47,30],[48,19,48,30],[25,19,25,30],[26,19,26,30],[27,19,27,30],[28,19,28,30],[29,19,29,30],[75,8,75,9],[76,8,76,9],[77,8,77,9],[78,8,78,9],[69,8,69,9],[70,8,70,9],[71,8,71,9],[72,8,72,9],[73,8,73,9],[74,8,74,9],[68,8,68,9],[67,8,67,9],[42,8,42,13],[43,8,43,13],[35,19,35,30],[36,19,36,30],[37,19,37,30],[38,19,38,30],[39,19,39,30],[58,2,58,3],[58,8,58,13],[59,2,59,3],[59,8,59,13],[60,2,60,3],[60,8,60,13],[61,2,61,3],[61,8,61,13],[63,8,63,10],[63,12,63,13],[55,2,55,3],[55,8,55,13],[56,2,56,3],[56,8,56,13],[57,2,57,3],[57,8,57,13],[52,2,52,3],[52,8,52,13],[53,2,53,3],[53,8,53,13],[54,2,54,3],[54,8,54,13],[49,2,49,3],[49,8,49,13],[50,2,50,3],[50,8,50,13],[51,2,51,3],[51,8,51,13],[46,2,46,3],[46,8,46,13],[47,2,47,3],[47,8,47,13],[48,2,48,3],[48,8,48,13],[44,2,44,3],[44,8,44,13],[45,2,45,3],[45,8,45,13],[41,8,41,13],[34,2,34,3],[34,8,34,13],[35,2,35,3],[35,8,35,13],[36,2,36,3],[36,8,36,13],[37,2,37,3],[37,8,37,13],[38,2,38,3],[39,10,39,11],[40,2,40,3],[41,2,41,3],[42,2,42,3],[43,2,43,3],[31,2,31,3],[31,8,31,13],[32,2,32,3],[32,8,32,13],[33,2,33,3],[33,8,33,13],[28,2,28,3],[28,8,28,13],[29,2,29,3],[29,8,29,13],[30,2,30,3],[30,8,30,13],[22,18,23,18],[25,2,25,3],[25,8,25,13],[26,2,26,3],[26,8,26,13],[15,17,23,17],[27,2,27,3],[27,8,27,13],[8,3,8,12],[10,3,10,6],[10,10,10,12],[12,10,12,12],[16,10,16,12],[18,10,18,12]]}
[]
[null,null,null,null,null,null,null,"Leeds University Union Caving Society"]
[]
[]
[{"$f":"CONCATENATE(\"Trip Name:  \",D9)","v":"Trip Name:  "}]
[]
[]
[null,"Trip details:",null,"Title"]
[null,null,"Trip Name:"]
[]
[null,null,"Location:",null,null,null,null,null,null,"Organizer:"]
[]
[null,null,"Date/s:",null,null,null,null,null,null,"Caving Hut","-"]
[]
[]
[null,null,null,null,null,null,null,null,null,null,null,null,null,null,null,null,null,"No. of people going"]
[null,null,"Trip Expenses",{"$f":"H39+H63","v":0},null,null,null,null,null,"Number of people going",{"$f":"R25","v":0}]
[]
[null,null,"Trip Revenue",{"$f":"S25","v":0}]
[]
[]
[]
[null,null,null,null,null,null,null,null,null,null,null,null,null,null,null,null,null,null,"Trip cost per person"]
[]
[null,null,null,"Transport","      Days:","Qty.","Cost","Total","Notes",null,null,null,null,null,null,null,"Trip Attenden Names",{"$f":"SUM(R26:R125)","v":0},{"$f":"SUM(S26:S77)","v":0},"  Notes"]
[null,null,null,null,1,1,0,{"$f":"G26*E26*F26","v":0},null,null,null,null,null,null,null,1,null,{"$f":"IF(Q26=\"\",\"\",IF(Q26=\"\",\"\",1))","v":""}]
[null,null,null,null,1,1,0,{"$f":"G27*E27*F27","v":0},null,null,null,null,null,null,null,2,null,{"$f":"IF(Q27=\"\",\"\",IF(Q27=\"\",\"\",1))","v":""}]
[null,null,null,null,1,1,0,0,null,null,null,null,null,null,null,3,null,""]
[null,null,null,null,1,1,0,0,null,null,null,null,null,null,null,4,null,""]
[null,null,null,null,1,1,0,0,null,null,null,null,null,null,null,5,null,""]
[null,null,null,null,1,1,0,0,null,null,null,null,null,null,null,6,null,""]
[null,null,null,null,1,1,0,0,null,null,null,null,null,null,null,7,null,""]
[null,null,null,null,1,1,0,0,null,null,null,null,null,null,null,8,null,""]
[null,null,null,null,1,1,0,0,null,null,null,null,null,null,null,9,null,""]
[null,null,null,null,1,1,0,0,null,null,null,null,null,null,null,10,null,""]
[null,null,null,null,1,1,0,0,null,null,null,null,null,null,null,11,null,""]
[null,null,null,null,1,1,0,0,null,null,null,null,null,null,null,12,null,""]
[null,null,null,null,1,1,0,{"$f":"G38*E38*F38","v":0},null,null,null,null,null,null,null,13,null,""]
[null,null,null,null,null,null,null,{"$f":"SUM(H26:H38)","v":0},null,null,null,null,null,null,null,14,null,""]
[null,null,null,null,null,null,null,null,null,null,null,null,null,null,null,15,null,""]
[null,null,"Other Expenses",null,"Qty","No.","Cost","Total"," Notes",null,null,null,null,null,null,16,null,""]
[null,null,null,null,1,1,0,{"$f":"G42*F42*E42","v":0},null,null,null,null,null,null,null,17,null,""]
[null,null,null,null,1,1,0,{"$f":"G43*F43*E43","v":0},null,null,null,null,null,null,null,18,null,""]
[null,null,null,null,1,1,0,{"$f":"G44*F44*E44","v":0},null,null,null,null,null,null,null,19,null,""]
[null,null,null,null,1,1,0,0,null,null,null,null,null,null,null,20,null,""]
[null,null,null,null,1,1,0,0,null,null,null,null,null,null,null,21,null,""]
[null,null,null,null,1,1,0,0,null,null,null,null,null,null,null,22,null,""]
[null,null,null,null,1,1,0,0,null,null,null,null,null,null,null,23,null,""]
[null,null,null,null,1,1,0,0,null,null,null,null,null,null,null,24,null,""]
[null,null,null,null,1,1,0,0,null,null,null,null,null,null,null,25,null,""]
[null,null,null,null,1,1,0,0,null,null,null,null,null,null,null,26,null,""]
[null,null,null,null,1,1,0,0,null,null,null,null,null,null,null,27,null,""]
[null,null,null,null,1,1,0,0,null,null,null,null,null,null,null,28,null,""]
[null,null,null,null,1,1,0,0,null,null,null,null,null,null,null,29,null,""]
[null,null,null,null,1,1,0,0,null,null,null,null,null,null,null,30,null,""]
[null,null,null,null,1,1,0,0,null,null,null,null,null,null,null,31,null,""]
[null,null,null,null,1,1,0,0,null,null,null,null,null,null,null,32,null,""]
[null,null,null,null,1,1,0,0,null,null,null,null,null,null,null,33,null,""]
[null,null,null,null,1,1,0,0,null,null,null,null,null,null,null,34,null,""]
[null,null,null,null,1,1,0,0,null,null,null,null,null,null,null,35,null,""]
[null,null,null,null,1,1,0,0,null,null,null,null,null,null,null,36,null,""]
[null,null,null,null,1,1,0,0,null,null,null,null,null,null,null,37,null,""]
[null,null,null,null,null,null,null,{"$f":"SUM(H42:H62)","v":0},null,null,null,null,null,null,null,38,null,""]
[null,null,null,null,null,null,null,null,null,null,null,null,null,null,null,39,null,""]
[null,null,null,null,null,null,null,null,null,null,null,null,null,null,null,40,null,""]
[null,null,null,null,null,null,null,null,null,null,null,null,null,null,null,41,null,""]
[null,null,null,null,null,null,null,null,null,null,null,null,null,null,null,42,null,""]
[null,null,null,null,null,null,null,null,null,null,null,null,null,null,null,43,null,""]
[null,null,null,null,null,null,null,null,null,null,null,null,null,null,null,44,null,""]
[null,null,null,null,null,null,null,null,null,null,null,null,null,null,null,45,null,""]
[null,null,null,null,null,null,null,null,null,null,null,null,null,null,null,46,null,""]
[null,null,null,null,null,null,null,null,null,null,null,null,null,null,null,47,null,""]
[null,null,null,null,null,null,null,null,null,null,null,null,null,null,null,48,null,""]
[null,null,null,null,null,null,null,null,null,null,null,null,null,null,null,49,null,""]
[null,null,null,null,null,null,null,null,null,null,null,null,null,null,null,50,null,""]
[null,null,null,null,null,null,null,null,null,null,null,null,null,null,null,51,null,""]
[null,null,null,null,null,null,null,null,null,null,null,null,null,null,null,52,null,""]
[null,null,null,null,null,null,null,null,null,null,null,null,null,null,null,53,null,""]
[null,null,null,null,null,null,null,null,null,null,null,null,null,null,null,54,null,""]
[null,null,null,null,null,null,null,null,null,null,null,null,null,null,null,55,null,""]
[null,null,null,null,null,null,null,null,null,null,null,null,null,null,null,56,null,""]
[null,null,null,null,null,null,null,null,null,null,null,null,null,null,null,57,null,""]
[null,null,null,null,null,null,null,null,null,null,null,null,null,null,null,58,null,""]
[null,null,null,null,null,null,null,null,null,null,null,null,null,null,null,59,null,""]
[null,null,null,null,null,null,null,null,null,null,null,null,null,null,null,60,null,""]
[null,null,null,null,null,null,null,null,null,null,null,null,null,null,null,61,null,""]
[null,null,null,null,null,null,null,null,null,null,null,null,null,null,null,62,null,""]
[null,null,null,null,null,null,null,null,null,null,null,null,null,null,null,63,null,""]
[null,null,null,null,null,null,null,null,null,null,null,null,null,null,null,64,null,""]
[null,null,null,null,null,null,null,null,null,null,null,null,null,null,null,65,null,""]
[null,null,null,null,null,null,null,null,null,null,null,null,null,null,null,66,null,{"$f":"IF(Q91=\"\",\"\",IF(Q91=\"\",\"\",1))","v":""}]
[null,null,null,null,null,null,null,null,null,null,null,null,null,null,null,67,null,""]
[null,null,null,null,null,null,null,null,null,null,null,null,null,null,null,68,null,""]
[null,null,null,null,null,null,null,null,null,null,null,null,null,null,null,69,null,""]
[null,null,null,null,null,null,null,null,null,null,null,null,null,null,null,70,null,""]
[null,null,null,null,null,null,null,null,null,null,null,null,null,null,null,71,null,""]
[null,null,null,null,null,null,null,null,null,null,null,null,null,null,null,72,null,""]
[null,null,null,null,null,null,null,null,null,null,null,null,null,null,null,73,null,""]
[null,null,null,null,null,null,null,null,null,null,null,null,null,null,null,74,null,""]
[null,null,null,null,null,null,null,null,null,null,null,null,null,null,null,75,null,""]
[null,null,null,null,null,null,null,null,null,null,null,null,null,null,null,76,null,""]
[null,null,null,null,null,null,null,null,null,null,null,null,null,null,null,77,null,""]
[null,null,null,null,null,null,null,null,null,null,null,null,null,null,null,78,null,""]
[null,null,null,null,null,null,null,null,null,null,null,null,null,null,null,79,null,""]
[null,null,null,null,null,null,null,null,null,null,null,null,null,null,null,80,null,""]
[null,null,null,null,null,null,null,null,null,null,null,null,null,null,null,81,null,""]
[null,null,null,null,null,null,null,null,null,null,null,null,null,null,null,82,null,""]
[null,null,null,null,null,null,null,null,null,null,null,null,null,null,null,83,null,""]
[null,null,null,null,null,null,null,null,null,null,null,null,null,null,null,84,null,""]
[null,null,null,null,null,null,null,null,null,null,null,null,null,null,null,85,null,""]
[null,null,null,null,null,null,null,null,null,null,null,null,null,null,null,86,null,""]
[null,null,null,null,null,null,null,null,null,null,null,null,null,null,null,87,null,""]
[null,null,null,null,null,null,null,null,null,null,null,null,null,null,null,88,null,""]
[null,null,null,null,null,null,null,null,null,null,null,null,null,null,null,89,null,""]
[null,null,null,null,null,null,null,null,null,null,null,null,null,null,null,90,null,""]
[null,null,null,null,null,null,null,null,null,null,null,null,null,null,null,91,null,""]
[null,null,null,null,null,null,null,null,null,null,null,null,null,null,null,92,null,""]
[null,null,null,null,null,null,null,null,null,null,null,null,null,null,null,93,null,""]
[null,null,null,null,null,null,null,null,null,null,null,null,null,null,null,94,null,""]
[null,null,null,null,null,null,null,null,null,null,null,null,null,null,null,95,null,""]
[null,null,null,null,null,null,null,null,null,null,null,null,null,null,null,96,null,""]
[null,null,null,null,null,null,null,null,null,null,null,null,null,null,null,97,null,""]
[null,null,null,null,null,null,null,null,null,null,null,null,null,null,null,98,null,""]
[null,null,null,null,null,null,null,null,null,null,null,null,null,null,null,99,null,""]
[null,null,null,null,null,null,null,null,null,null,null,null,null,null,null,100,null,""]

{"sheet":"Trip (19)","index":19,"n_rows":125,"n_cols":20,"rows_kept":125,"cut":false,"hidden":false,"merged":[[24,19,24,30],[40,8,40,13],[120,19,120,30],[121,19,121,30],[122,19,122,30],[123,19,123,30],[124,19,124,30],[115,19,115,30],[116,19,116,30],[117,19,117,30],[118,19,118,30],[119,19,119,30],[110,19,110,30],[111,19,111,30],[112,19,112,30],[113,19,113,30],[114,19,114,30],[105,19,105,30],[106,19,106,30],[107,19,107,30],[108,19,108,30],[109,19,109,30],[100,19,100,30],[101,19,101,30],[102,19,102,30],[103,19,103,30],[104,19,104,30],[95,19,95,30],[96,19,96,30],[97,19,97,30],[98,19,98,30],[99,19,99,30],[90,19,90,30],[91,19,91,30],[92,19,92,30],[93,19,93,30],[94,19,94,30],[85,19,85,30],[86,19,86,30],[87,19,87,30],[88,19,88,30],[89,19,89,30],[80,19,80,30],[81,19,81,30],[82,19,82,30],[83,19,83,30],[84,19,84,30],[76,19,76,30],[77,19,77,30],[78,19,78,30],[79,19,79,30],[70,19,70,30],[71,19,71,30],[72,19,72,30],[73,19,73,30],[74,19,74,30],[67,19,67,30],[68,19,68,30],[69,19,69,30],[60,19,60,30],[61,19,61,30],[62,19,62,30],[63,19,63,30],[64,19,64,30],[75,19,75,30],[58,19,58,30],[59,19,59,30],[50,19,50,30],[51,19,51,30],[52,19,52,30],[53,19,53,30],[54,19,54,30],[65,19,65,30],[66,19,66,30],[49,19,49,30],[40,19,40,30],[41,19,41,30],[42,19,42,30],[43,19,43,30],[44,19,44,30],[55,19,55,30],[56,19,56,30],[57,19,57,30],[30,19,30,30],[31,19,31,30],[32,19,32,30],[33,19,33,30],[34,19,34,30],[45,19,45,30],[46,19,46,30],[47,19,47,30],[48,19,48,30],[25,19,25,30],[26,19,26,30],[27,19,27,30],[28,19,28,30],[29,19,29,30],[75,8,75,9],[76,8,76,9],[77,8,77,9],[78,8,78,9],[69,8,69,9],[70,8,70,9],[71,8,71,9],[72,8,72,9],[73,8,73,9],[74,8,74,9],[68,8,68,9],[67,8,67,9],[42,8,42,13],[43,8,43,13],[35,19,35,30],[36,19,36,30],[37,19,37,30],[38,19,38,30],[39,19,39,30],[58,2,58,3],[58,8,58,13],[59,2,59,3],[59,8,59,13],[60,2,60,3],[60,8,60,13],[61,2,61,3],[61,8,61,13],[63,8,63,10],[63,12,63,13],[55,2,55,3],[55,8,55,13],[56,2,56,3],[56,8,56,13],[57,2,57,3],[57,8,57,13],[52,2,52,3],[52,8,52,13],[53,2,53,3],[53,8,53,13],[54,2,54,3],[54,8,54,13],[49,2,49,3],[49,8,49,13],[50,2,50,3],[50,8,50,13],[51,2,51,3],[51,8,51,13],[46,2,46,3],[46,8,46,13],[47,2,47,3],[47,8,47,13],[48,2,48,3],[48,8,48,13],[44,2,44,3],[44,8,44,13],[45,2,45,3],[45,8,45,13],[41,8,41,13],[34,2,34,3],[34,8,34,13],[35,2,35,3],[35,8,35,13],[36,2,36,3],[36,8,36,13],[37,2,37,3],[37,8,37,13],[38,2,38,3],[39,10,39,11],[40,2,40,3],[41,2,41,3],[42,2,42,3],[43,2,43,3],[31,2,31,3],[31,8,31,13],[32,2,32,3],[32,8,32,13],[33,2,33,3],[33,8,33,13],[28,2,28,3],[28,8,28,13],[29,2,29,3],[29,8,29,13],[30,2,30,3],[30,8,30,13],[22,18,23,18],[25,2,25,3],[25,8,25,13],[26,2,26,3],[26,8,26,13],[15,17,23,17],[27,2,27,3],[27,8,27,13],[8,3,8,12],[10,3,10,6],[10,10,10,12],[12,10,12,12],[16,10,16,12],[18,10,18,12]]}
[]
[null,null,null,null,null,null,null,"Leeds University Union Caving Society"]
[]
[]
[{"$f":"CONCATENATE(\"Trip Name:  \",D9)","v":"Trip Name:  "}]
[]
[]
[null,"Trip details:",null,"Title"]
[null,null,"Trip Name:"]
[]
[null,null,"Location:",null,null,null,null,null,null,"Organizer:"]
[]
[null,null,"Date/s:",null,null,null,null,null,null,"Caving Hut","-"]
[]
[]
[null,null,null,null,null,null,null,null,null,null,null,null,null,null,null,null,null,"No. of people going"]
[null,null,"Trip Expenses",{"$f":"H39+H63","v":0},null,null,null,null,null,"Number of people going",{"$f":"R25","v":0}]
[]
[null,null,"Trip Revenue",{"$f":"S25","v":0}]
[]
[]
[]
[null,null,null,null,null,null,null,null,null,null,null,null,null,null,null,null,null,null,"Trip cost per person"]
[]
[null,null,null,"Transport","      Days:","Qty.","Cost","Total","Notes",null,null,null,null,null,null,null,"Trip Attenden Names",{"$f":"SUM(R26:R125)","v":0},{"$f":"SUM(S26:S77)","v":0},"  Notes"]
[null,null,null,null,1,1,0,{"$f":"G26*E26*F26","v":0},null,null,null,null,null,null,null,1,null,{"$f":"IF(Q26=\"\",\"\",IF(Q26=\"\",\"\",1))","v":""}]
[null,null,null,null,1,1,0,{"$f":"G27*E27*F27","v":0},null,null,null,null,null,null,null,2,null,{"$f":"IF(Q27=\"\",\"\",IF(Q27=\"\",\"\",1))","v":""}]
[null,null,null,null,1,1,0,0,null,null,null,null,null,null,null,3,null,""]
[null,null,null,null,1,1,0,0,null,null,null,null,null,null,null,4,null,""]
[null,null,null,null,1,1,0,0,null,null,null,null,null,null,null,5,null,""]
[null,null,null,null,1,1,0,0,null,null,null,null,null,null,null,6,null,""]
[null,null,null,null,1,1,0,0,null,null,null,null,null,null,null,7,null,""]
[null,null,null,null,1,1,0,0,null,null,null,null,null,null,null,8,null,""]
[null,null,null,null,1,1,0,0,null,null,null,null,null,null,null,9,null,""]
[null,null,null,null,1,1,0,0,null,null,null,null,null,null,null,10,null,""]
[null,null,null,null,1,1,0,0,null,null,null,null,null,null,null,11,null,""]
[null,null,null,null,1,1,0,0,null,null,null,null,null,null,null,12,null,""]
[null,null,null,null,1,1,0,{"$f":"G38*E38*F38","v":0},null,null,null,null,null,null,null,13,null,""]
[null,null,null,null,null,null,null,{"$f":"SUM(H26:H38)","v":0},null,null,null,null,null,null,null,14,null,""]
[null,null,null,null,null,null,null,null,null,null,null,null,null,null,null,15,null,""]
[null,null,"Other Expenses",null,"Qty","No.","Cost","Total"," Notes",null,null,null,null,null,null,16,null,""]
[null,null,null,null,1,1,0,{"$f":"G42*F42*E42","v":0},null,null,null,null,null,null,null,17,null,""]
[null,null,null,null,1,1,0,{"$f":"G43*F43*E43","v":0},null,null,null,null,null,null,null,18,null,""]
[null,null,null,null,1,1,0,{"$f":"G44*F44*E44","v":0},null,null,null,null,null,null,null,19,null,""]
[null,null,null,null,1,1,0,0,null,null,null,null,null,null,null,20,null,""]
[null,null,null,null,1,1,0,0,null,null,null,null,null,null,null,21,null,""]
[null,null,null,null,1,1,0,0,null,null,null,null,null,null,null,22,null,""]
[null,null,null,null,1,1,0,0,null,null,null,null,null,null,null,23,null,""]
[null,null,null,null,1,1,0,0,null,null,null,null,null,null,null,24,null,""]
[null,null,null,null,1,1,0,0,null,null,null,null,null,null,null,25,null,""]
[null,null,null,null,1,1,0,0,null,null,null,null,null,null,null,26,null,""]
[null,null,null,null,1,1,0,0,null,null,null,null,null,null,null,27,null,""]
[null,null,null,null,1,1,0,0,null,null,null,null,null,null,null,28,null,""]
[null,null,null,null,1,1,0,0,null,null,null,null,null,null,null,29,null,""]
[null,null,null,null,1,1,0,0,null,null,null,null,null,null,null,30,null,""]
[null,null,null,null,1,1,0,0,null,null,null,null,null,null,null,31,null,""]
[null,null,null,null,1,1,0,0,null,null,null,null,null,null,null,32,null,""]
[null,null,null,null,1,1,0,0,null,null,null,null,null,null,null,33,null,""]
[null,null,null,null,1,1,0,0,null,null,null,null,null,null,null,34,null,""]
[null,null,null,null,1,1,0,0,null,null,null,null,null,null,null,35,null,""]
[null,null,null,null,1,1,0,0,null,null,null,null,null,null,null,36,null,""]
[null,null,null,null,1,1,0,0,null,null,null,null,null,null,null,37,null,""]
[null,null,null,null,null,null,null,{"$f":"SUM(H42:H62)","v":0},null,null,null,null,null,null,null,38,null,""]
[null,null,null,null,null,null,null,null,null,null,null,null,null,null,null,39,null,""]
[null,null,null,null,null,null,null,null,null,null,null,null,null,null,null,40,null,""]
[null,null,null,null,null,null,null,null,null,null,null,null,null,null,null,41,null,""]
[null,null,null,null,null,null,null,null,null,null,null,null,null,null,null,42,null,""]
[null,null,null,null,null,null,null,null,null,null,null,null,null,null,null,43,null,""]
[null,null,null,null,null,null,null,null,null,null,null,null,null,null,null,44,null,""]
[null,null,null,null,null,null,null,null,null,null,null,null,null,null,null,45,null,""]
[null,null,null,null,null,null,null,null,null,null,null,null,null,null,null,46,null,""]
[null,null,null,null,null,null,null,null,null,null,null,null,null,null,null,47,null,""]
[null,null,null,null,null,null,null,null,null,null,null,null,null,null,null,48,null,""]
[null,null,null,null,null,null,null,null,null,null,null,null,null,null,null,49,null,""]
[null,null,null,null,null,null,null,null,null,null,null,null,null,null,null,50,null,""]
[null,null,null,null,null,null,null,null,null,null,null,null,null,null,null,51,null,""]
[null,null,null,null,null,null,null,null,null,null,null,null,null,null,null,52,null,""]
[null,null,null,null,null,null,null,null,null,null,null,null,null,null,null,53,null,""]
[null,null,null,null,null,null,null,null,null,null,null,null,null,null,null,54,null,""]
[null,null,null,null,null,null,null,null,null,null,null,null,null,null,null,55,null,""]
[null,null,null,null,null,null,null,null,null,null,null,null,null,null,null,56,null,""]
[null,null,null,null,null,null,null,null,null,null,null,null,null,null,null,57,null,""]
[null,null,null,null,null,null,null,null,null,null,null,null,null,null,null,58,null,""]
[null,null,null,null,null,null,null,null,null,null,null,null,null,null,null,59,null,""]
[null,null,null,null,null,null,null,null,null,null,null,null,null,null,null,60,null,""]
[null,null,null,null,null,null,null,null,null,null,null,null,null,null,null,61,null,""]
[null,null,null,null,null,null,null,null,null,null,null,null,null,null,null,62,null,""]
[null,null,null,null,null,null,null,null,null,null,null,null,null,null,null,63,null,""]
[null,null,null,null,null,null,null,null,null,null,null,null,null,null,null,64,null,""]
[null,null,null,null,null,null,null,null,null,null,null,null,null,null,null,65,null,""]
[null,null,null,null,null,null,null,null,null,null,null,null,null,null,null,66,null,{"$f":"IF(Q91=\"\",\"\",IF(Q91=\"\",\"\",1))","v":""}]
[null,null,null,null,null,null,null,null,null,null,null,null,null,null,null,67,null,""]
[null,null,null,null,null,null,null,null,null,null,null,null,null,null,null,68,null,""]
[null,null,null,null,null,null,null,null,null,null,null,null,null,null,null,69,null,""]
[null,null,null,null,null,null,null,null,null,null,null,null,null,null,null,70,null,""]
[null,null,null,null,null,null,null,null,null,null,null,null,null,null,null,71,null,""]
[null,null,null,null,null,null,null,null,null,null,null,null,null,null,null,72,null,""]
[null,null,null,null,null,null,null,null,null,null,null,null,null,null,null,73,null,""]
[null,null,null,null,null,null,null,null,null,null,null,null,null,null,null,74,null,""]
[null,null,null,null,null,null,null,null,null,null,null,null,null,null,null,75,null,""]
[null,null,null,null,null,null,null,null,null,null,null,null,null,null,null,76,null,""]
[null,null,null,null,null,null,null,null,null,null,null,null,null,null,null,77,null,""]
[null,null,null,null,null,null,null,null,null,null,null,null,null,null,null,78,null,""]
[null,null,null,null,null,null,null,null,null,null,null,null,null,null,null,79,null,""]
[null,null,null,null,null,null,null,null,null,null,null,null,null,null,null,80,null,""]
[null,null,null,null,null,null,null,null,null,null,null,null,null,null,null,81,null,""]
[null,null,null,null,null,null,null,null,null,null,null,null,null,null,null,82,null,""]
[null,null,null,null,null,null,null,null,null,null,null,null,null,null,null,83,null,""]
[null,null,null,null,null,null,null,null,null,null,null,null,null,null,null,84,null,""]
[null,null,null,null,null,null,null,null,null,null,null,null,null,null,null,85,null,""]
[null,null,null,null,null,null,null,null,null,null,null,null,null,null,null,86,null,""]
[null,null,null,null,null,null,null,null,null,null,null,null,null,null,null,87,null,""]
[null,null,null,null,null,null,null,null,null,null,null,null,null,null,null,88,null,""]
[null,null,null,null,null,null,null,null,null,null,null,null,null,null,null,89,null,""]
[null,null,null,null,null,null,null,null,null,null,null,null,null,null,null,90,null,""]
[null,null,null,null,null,null,null,null,null,null,null,null,null,null,null,91,null,""]
[null,null,null,null,null,null,null,null,null,null,null,null,null,null,null,92,null,""]
[null,null,null,null,null,null,null,null,null,null,null,null,null,null,null,93,null,""]
[null,null,null,null,null,null,null,null,null,null,null,null,null,null,null,94,null,""]
[null,null,null,null,null,null,null,null,null,null,null,null,null,null,null,95,null,""]
[null,null,null,null,null,null,null,null,null,null,null,null,null,null,null,96,null,""]
[null,null,null,null,null,null,null,null,null,null,null,null,null,null,null,97,null,""]
[null,null,null,null,null,null,null,null,null,null,null,null,null,null,null,98,null,""]
[null,null,null,null,null,null,null,null,null,null,null,null,null,null,null,99,null,""]
[null,null,null,null,null,null,null,null,null,null,null,null,null,null,null,100,null,""]

{"sheet":"Trip (20)","index":20,"n_rows":125,"n_cols":20,"rows_kept":125,"cut":false,"hidden":false,"merged":[[24,19,24,30],[40,8,40,13],[120,19,120,30],[121,19,121,30],[122,19,122,30],[123,19,123,30],[124,19,124,30],[115,19,115,30],[116,19,116,30],[117,19,117,30],[118,19,118,30],[119,19,119,30],[110,19,110,30],[111,19,111,30],[112,19,112,30],[113,19,113,30],[114,19,114,30],[105,19,105,30],[106,19,106,30],[107,19,107,30],[108,19,108,30],[109,19,109,30],[100,19,100,30],[101,19,101,30],[102,19,102,30],[103,19,103,30],[104,19,104,30],[95,19,95,30],[96,19,96,30],[97,19,97,30],[98,19,98,30],[99,19,99,30],[90,19,90,30],[91,19,91,30],[92,19,92,30],[93,19,93,30],[94,19,94,30],[85,19,85,30],[86,19,86,30],[87,19,87,30],[88,19,88,30],[89,19,89,30],[80,19,80,30],[81,19,81,30],[82,19,82,30],[83,19,83,30],[84,19,84,30],[76,19,76,30],[77,19,77,30],[78,19,78,30],[79,19,79,30],[70,19,70,30],[71,19,71,30],[72,19,72,30],[73,19,73,30],[74,19,74,30],[67,19,67,30],[68,19,68,30],[69,19,69,30],[60,19,60,30],[61,19,61,30],[62,19,62,30],[63,19,63,30],[64,19,64,30],[75,19,75,30],[58,19,58,30],[59,19,59,30],[50,19,50,30],[51,19,51,30],[52,19,52,30],[53,19,53,30],[54,19,54,30],[65,19,65,30],[66,19,66,30],[49,19,49,30],[40,19,40,30],[41,19,41,30],[42,19,42,30],[43,19,43,30],[44,19,44,30],[55,19,55,30],[56,19,56,30],[57,19,57,30],[30,19,30,30],[31,19,31,30],[32,19,32,30],[33,19,33,30],[34,19,34,30],[45,19,45,30],[46,19,46,30],[47,19,47,30],[48,19,48,30],[25,19,25,30],[26,19,26,30],[27,19,27,30],[28,19,28,30],[29,19,29,30],[75,8,75,9],[76,8,76,9],[77,8,77,9],[78,8,78,9],[69,8,69,9],[70,8,70,9],[71,8,71,9],[72,8,72,9],[73,8,73,9],[74,8,74,9],[68,8,68,9],[67,8,67,9],[42,8,42,13],[43,8,43,13],[35,19,35,30],[36,19,36,30],[37,19,37,30],[38,19,38,30],[39,19,39,30],[58,2,58,3],[58,8,58,13],[59,2,59,3],[59,8,59,13],[60,2,60,3],[60,8,60,13],[61,2,61,3],[61,8,61,13],[63,8,63,10],[63,12,63,13],[55,2,55,3],[55,8,55,13],[56,2,56,3],[56,8,56,13],[57,2,57,3],[57,8,57,13],[52,2,52,3],[52,8,52,13],[53,2,53,3],[53,8,53,13],[54,2,54,3],[54,8,54,13],[49,2,49,3],[49,8,49,13],[50,2,50,3],[50,8,50,13],[51,2,51,3],[51,8,51,13],[46,2,46,3],[46,8,46,13],[47,2,47,3],[47,8,47,13],[48,2,48,3],[48,8,48,13],[44,2,44,3],[44,8,44,13],[45,2,45,3],[45,8,45,13],[41,8,41,13],[34,2,34,3],[34,8,34,13],[35,2,35,3],[35,8,35,13],[36,2,36,3],[36,8,36,13],[37,2,37,3],[37,8,37,13],[38,2,38,3],[39,10,39,11],[40,2,40,3],[41,2,41,3],[42,2,42,3],[43,2,43,3],[31,2,31,3],[31,8,31,13],[32,2,32,3],[32,8,32,13],[33,2,33,3],[33,8,33,13],[28,2,28,3],[28,8,28,13],[29,2,29,3],[29,8,29,13],[30,2,30,3],[30,8,30,13],[22,18,23,18],[25,2,25,3],[25,8,25,13],[26,2,26,3],[26,8,26,13],[15,17,23,17],[27,2,27,3],[27,8,27,13],[8,3,8,12],[10,3,10,6],[10,10,10,12],[12,10,12,12],[16,10,16,12],[18,10,18,12]]}
[]
[null,null,null,null,null,null,null,"Leeds University Union Caving Society"]
[]
[]
[{"$f":"CONCATENATE(\"Trip Name:  \",D9)","v":"Trip Name:  "}]
[]
[]
[null,"Trip details:",null,"Title"]
[null,null,"Trip Name:"]
[]
[null,null,"Location:",null,null,null,null,null,null,"Organizer:"]
[]
[null,null,"Date/s:",null,null,null,null,null,null,"Caving Hut","-"]
[]
[]
[null,null,null,null,null,null,null,null,null,null,null,null,null,null,null,null,null,"No. of people going"]
[null,null,"Trip Expenses",{"$f":"H39+H63","v":0},null,null,null,null,null,"Number of people going",{"$f":"R25","v":0}]
[]
[null,null,"Trip Revenue",{"$f":"S25","v":0}]
[]
[]
[]
[null,null,null,null,null,null,null,null,null,null,null,null,null,null,null,null,null,null,"Trip cost per person"]
[]
[null,null,null,"Transport","      Days:","Qty.","Cost","Total","Notes",null,null,null,null,null,null,null,"Trip Attenden Names",{"$f":"SUM(R26:R125)","v":0},{"$f":"SUM(S26:S77)","v":0},"  Notes"]
[null,null,null,null,1,1,0,{"$f":"G26*E26*F26","v":0},null,null,null,null,null,null,null,1,null,{"$f":"IF(Q26=\"\",\"\",IF(Q26=\"\",\"\",1))","v":""}]
[null,null,null,null,1,1,0,{"$f":"G27*E27*F27","v":0},null,null,null,null,null,null,null,2,null,{"$f":"IF(Q27=\"\",\"\",IF(Q27=\"\",\"\",1))","v":""}]
[null,null,null,null,1,1,0,0,null,null,null,null,null,null,null,3,null,""]
[null,null,null,null,1,1,0,0,null,null,null,null,null,null,null,4,null,""]
[null,null,null,null,1,1,0,0,null,null,null,null,null,null,null,5,null,""]
[null,null,null,null,1,1,0,0,null,null,null,null,null,null,null,6,null,""]
[null,null,null,null,1,1,0,0,null,null,null,null,null,null,null,7,null,""]
[null,null,null,null,1,1,0,0,null,null,null,null,null,null,null,8,null,""]
[null,null,null,null,1,1,0,0,null,null,null,null,null,null,null,9,null,""]
[null,null,null,null,1,1,0,0,null,null,null,null,null,null,null,10,null,""]
[null,null,null,null,1,1,0,0,null,null,null,null,null,null,null,11,null,""]
[null,null,null,null,1,1,0,0,null,null,null,null,null,null,null,12,null,""]
[null,null,null,null,1,1,0,{"$f":"G38*E38*F38","v":0},null,null,null,null,null,null,null,13,null,""]
[null,null,null,null,null,null,null,{"$f":"SUM(H26:H38)","v":0},null,null,null,null,null,null,null,14,null,""]
[null,null,null,null,null,null,null,null,null,null,null,null,null,null,null,15,null,""]
[null,null,"Other Expenses",null,"Qty","No.","Cost","Total"," Notes",null,null,null,null,null,null,16,null,""]
[null,null,null,null,1,1,0,{"$f":"G42*F42*E42","v":0},null,null,null,null,null,null,null,17,null,""]
[null,null,null,null,1,1,0,{"$f":"G43*F43*E43","v":0},null,null,null,null,null,null,null,18,null,""]
[null,null,null,null,1,1,0,{"$f":"G44*F44*E44","v":0},null,null,null,null,null,null,null,19,null,""]
[null,null,null,null,1,1,0,0,null,null,null,null,null,null,null,20,null,""]
[null,null,null,null,1,1,0,0,null,null,null,null,null,null,null,21,null,""]
[null,null,null,null,1,1,0,0,null,null,null,null,null,null,null,22,null,""]
[null,null,null,null,1,1,0,0,null,null,null,null,null,null,null,23,null,""]
[null,null,null,null,1,1,0,0,null,null,null,null,null,null,null,24,null,""]
[null,null,null,null,1,1,0,0,null,null,null,null,null,null,null,25,null,""]
[null,null,null,null,1,1,0,0,null,null,null,null,null,null,null,26,null,""]
[null,null,null,null,1,1,0,0,null,null,null,null,null,null,null,27,null,""]
[null,null,null,null,1,1,0,0,null,null,null,null,null,null,null,28,null,""]
[null,null,null,null,1,1,0,0,null,null,null,null,null,null,null,29,null,""]
[null,null,null,null,1,1,0,0,null,null,null,null,null,null,null,30,null,""]
[null,null,null,null,1,1,0,0,null,null,null,null,null,null,null,31,null,""]
[null,null,null,null,1,1,0,0,null,null,null,null,null,null,null,32,null,""]
[null,null,null,null,1,1,0,0,null,null,null,null,null,null,null,33,null,""]
[null,null,null,null,1,1,0,0,null,null,null,null,null,null,null,34,null,""]
[null,null,null,null,1,1,0,0,null,null,null,null,null,null,null,35,null,""]
[null,null,null,null,1,1,0,0,null,null,null,null,null,null,null,36,null,""]
[null,null,null,null,1,1,0,0,null,null,null,null,null,null,null,37,null,""]
[null,null,null,null,null,null,null,{"$f":"SUM(H42:H62)","v":0},null,null,null,null,null,null,null,38,null,""]
[null,null,null,null,null,null,null,null,null,null,null,null,null,null,null,39,null,""]
[null,null,null,null,null,null,null,null,null,null,null,null,null,null,null,40,null,""]
[null,null,null,null,null,null,null,null,null,null,null,null,null,null,null,41,null,""]
[null,null,null,null,null,null,null,null,null,null,null,null,null,null,null,42,null,""]
[null,null,null,null,null,null,null,null,null,null,null,null,null,null,null,43,null,""]
[null,null,null,null,null,null,null,null,null,null,null,null,null,null,null,44,null,""]
[null,null,null,null,null,null,null,null,null,null,null,null,null,null,null,45,null,""]
[null,null,null,null,null,null,null,null,null,null,null,null,null,null,null,46,null,""]
[null,null,null,null,null,null,null,null,null,null,null,null,null,null,null,47,null,""]
[null,null,null,null,null,null,null,null,null,null,null,null,null,null,null,48,null,""]
[null,null,null,null,null,null,null,null,null,null,null,null,null,null,null,49,null,""]
[null,null,null,null,null,null,null,null,null,null,null,null,null,null,null,50,null,""]
[null,null,null,null,null,null,null,null,null,null,null,null,null,null,null,51,null,""]
[null,null,null,null,null,null,null,null,null,null,null,null,null,null,null,52,null,""]
[null,null,null,null,null,null,null,null,null,null,null,null,null,null,null,53,null,""]
[null,null,null,null,null,null,null,null,null,null,null,null,null,null,null,54,null,""]
[null,null,null,null,null,null,null,null,null,null,null,null,null,null,null,55,null,""]
[null,null,null,null,null,null,null,null,null,null,null,null,null,null,null,56,null,""]
[null,null,null,null,null,null,null,null,null,null,null,null,null,null,null,57,null,""]
[null,null,null,null,null,null,null,null,null,null,null,null,null,null,null,58,null,""]
[null,null,null,null,null,null,null,null,null,null,null,null,null,null,null,59,null,""]
[null,null,null,null,null,null,null,null,null,null,null,null,null,null,null,60,null,""]
[null,null,null,null,null,null,null,null,null,null,null,null,null,null,null,61,null,""]
[null,null,null,null,null,null,null,null,null,null,null,null,null,null,null,62,null,""]
[null,null,null,null,null,null,null,null,null,null,null,null,null,null,null,63,null,""]
[null,null,null,null,null,null,null,null,null,null,null,null,null,null,null,64,null,""]
[null,null,null,null,null,null,null,null,null,null,null,null,null,null,null,65,null,""]
[null,null,null,null,null,null,null,null,null,null,null,null,null,null,null,66,null,{"$f":"IF(Q91=\"\",\"\",IF(Q91=\"\",\"\",1))","v":""}]
[null,null,null,null,null,null,null,null,null,null,null,null,null,null,null,67,null,""]
[null,null,null,null,null,null,null,null,null,null,null,null,null,null,null,68,null,""]
[null,null,null,null,null,null,null,null,null,null,null,null,null,null,null,69,null,""]
[null,null,null,null,null,null,null,null,null,null,null,null,null,null,null,70,null,""]
[null,null,null,null,null,null,null,null,null,null,null,null,null,null,null,71,null,""]
[null,null,null,null,null,null,null,null,null,null,null,null,null,null,null,72,null,""]
[null,null,null,null,null,null,null,null,null,null,null,null,null,null,null,73,null,""]
[null,null,null,null,null,null,null,null,null,null,null,null,null,null,null,74,null,""]
[null,null,null,null,null,null,null,null,null,null,null,null,null,null,null,75,null,""]
[null,null,null,null,null,null,null,null,null,null,null,null,null,null,null,76,null,""]
[null,null,null,null,null,null,null,null,null,null,null,null,null,null,null,77,null,""]
[null,null,null,null,null,null,null,null,null,null,null,null,null,null,null,78,null,""]
[null,null,null,null,null,null,null,null,null,null,null,null,null,null,null,79,null,""]
[null,null,null,null,null,null,null,null,null,null,null,null,null,null,null,80,null,""]
[null,null,null,null,null,null,null,null,null,null,null,null,null,null,null,81,null,""]
[null,null,null,null,null,null,null,null,null,null,null,null,null,null,null,82,null,""]
[null,null,null,null,null,null,null,null,null,null,null,null,null,null,null,83,null,""]
[null,null,null,null,null,null,null,null,null,null,null,null,null,null,null,84,null,""]
[null,null,null,null,null,null,null,null,null,null,null,null,null,null,null,85,null,""]
[null,null,null,null,null,null,null,null,null,null,null,null,null,null,null,86,null,""]
[null,null,null,null,null,null,null,null,null,null,null,null,null,null,null,87,null,""]
[null,null,null,null,null,null,null,null,null,null,null,null,null,null,null,88,null,""]
[null,null,null,null,null,null,null,null,null,null,null,null,null,null,null,89,null,""]
[null,null,null,null,null,null,null,null,null,null,null,null,null,null,null,90,null,""]
[null,null,null,null,null,null,null,null,null,null,null,null,null,null,null,91,null,""]
[null,null,null,null,null,null,null,null,null,null,null,null,null,null,null,92,null,""]
[null,null,null,null,null,null,null,null,null,null,null,null,null,null,null,93,null,""]
[null,null,null,null,null,null,null,null,null,null,null,null,null,null,null,94,null,""]
[null,null,null,null,null,null,null,null,null,null,null,null,null,null,null,95,null,""]
[null,null,null,null,null,null,null,null,null,null,null,null,null,null,null,96,null,""]
[null,null,null,null,null,null,null,null,null,null,null,null,null,null,null,97,null,""]
[null,null,null,null,null,null,null,null,null,null,null,null,null,null,null,98,null,""]
[null,null,null,null,null,null,null,null,null,null,null,null,null,null,null,99,null,""]
[null,null,null,null,null,null,null,null,null,null,null,null,null,null,null,100,null,""]

{"sheet":"Trip (21)","index":21,"n_rows":125,"n_cols":20,"rows_kept":125,"cut":false,"hidden":false,"merged":[[24,19,24,30],[40,8,40,13],[120,19,120,30],[121,19,121,30],[122,19,122,30],[123,19,123,30],[124,19,124,30],[115,19,115,30],[116,19,116,30],[117,19,117,30],[118,19,118,30],[119,19,119,30],[110,19,110,30],[111,19,111,30],[112,19,112,30],[113,19,113,30],[114,19,114,30],[105,19,105,30],[106,19,106,30],[107,19,107,30],[108,19,108,30],[109,19,109,30],[100,19,100,30],[101,19,101,30],[102,19,102,30],[103,19,103,30],[104,19,104,30],[95,19,95,30],[96,19,96,30],[97,19,97,30],[98,19,98,30],[99,19,99,30],[90,19,90,30],[91,19,91,30],[92,19,92,30],[93,19,93,30],[94,19,94,30],[85,19,85,30],[86,19,86,30],[87,19,87,30],[88,19,88,30],[89,19,89,30],[80,19,80,30],[81,19,81,30],[82,19,82,30],[83,19,83,30],[84,19,84,30],[76,19,76,30],[77,19,77,30],[78,19,78,30],[79,19,79,30],[70,19,70,30],[71,19,71,30],[72,19,72,30],[73,19,73,30],[74,19,74,30],[67,19,67,30],[68,19,68,30],[69,19,69,30],[60,19,60,30],[61,19,61,30],[62,19,62,30],[63,19,63,30],[64,19,64,30],[75,19,75,30],[58,19,58,30],[59,19,59,30],[50,19,50,30],[51,19,51,30],[52,19,52,30],[53,19,53,30],[54,19,54,30],[65,19,65,30],[66,19,66,30],[49,19,49,30],[40,19,40,30],[41,19,41,30],[42,19,42,30],[43,19,43,30],[44,19,44,30],[55,19,55,30],[56,19,56,30],[57,19,57,30],[30,19,30,30],[31,19,31,30],[32,19,32,30],[33,19,33,30],[34,19,34,30],[45,19,45,30],[46,19,46,30],[47,19,47,30],[48,19,48,30],[25,19,25,30],[26,19,26,30],[27,19,27,30],[28,19,28,30],[29,19,29,30],[75,8,75,9],[76,8,76,9],[77,8,77,9],[78,8,78,9],[69,8,69,9],[70,8,70,9],[71,8,71,9],[72,8,72,9],[73,8,73,9],[74,8,74,9],[68,8,68,9],[67,8,67,9],[42,8,42,13],[43,8,43,13],[35,19,35,30],[36,19,36,30],[37,19,37,30],[38,19,38,30],[39,19,39,30],[58,2,58,3],[58,8,58,13],[59,2,59,3],[59,8,59,13],[60,2,60,3],[60,8,60,13],[61,2,61,3],[61,8,61,13],[63,8,63,10],[63,12,63,13],[55,2,55,3],[55,8,55,13],[56,2,56,3],[56,8,56,13],[57,2,57,3],[57,8,57,13],[52,2,52,3],[52,8,52,13],[53,2,53,3],[53,8,53,13],[54,2,54,3],[54,8,54,13],[49,2,49,3],[49,8,49,13],[50,2,50,3],[50,8,50,13],[51,2,51,3],[51,8,51,13],[46,2,46,3],[46,8,46,13],[47,2,47,3],[47,8,47,13],[48,2,48,3],[48,8,48,13],[44,2,44,3],[44,8,44,13],[45,2,45,3],[45,8,45,13],[41,8,41,13],[34,2,34,3],[34,8,34,13],[35,2,35,3],[35,8,35,13],[36,2,36,3],[36,8,36,13],[37,2,37,3],[37,8,37,13],[38,2,38,3],[39,10,39,11],[40,2,40,3],[41,2,41,3],[42,2,42,3],[43,2,43,3],[31,2,31,3],[31,8,31,13],[32,2,32,3],[32,8,32,13],[33,2,33,3],[33,8,33,13],[28,2,28,3],[28,8,28,13],[29,2,29,3],[29,8,29,13],[30,2,30,3],[30,8,30,13],[22,18,23,18],[25,2,25,3],[25,8,25,13],[26,2,26,3],[26,8,26,13],[15,17,23,17],[27,2,27,3],[27,8,27,13],[8,3,8,12],[10,3,10,6],[10,10,10,12],[12,10,12,12],[16,10,16,12],[18,10,18,12]]}
[]
[null,null,null,null,null,null,null,"Leeds University Union Caving Society"]
[]
[]
[{"$f":"CONCATENATE(\"Trip Name:  \",D9)","v":"Trip Name:  "}]
[]
[]
[null,"Trip details:",null,"Title"]
[null,null,"Trip Name:"]
[]
[null,null,"Location:",null,null,null,null,null,null,"Organizer:"]
[]
[null,null,"Date/s:",null,null,null,null,null,null,"Caving Hut","-"]
[]
[]
[null,null,null,null,null,null,null,null,null,null,null,null,null,null,null,null,null,"No. of people going"]
[null,null,"Trip Expenses",{"$f":"H39+H63","v":0},null,null,null,null,null,"Number of people going",{"$f":"R25","v":0}]
[]
[null,null,"Trip Revenue",{"$f":"S25","v":0}]
[]
[]
[]
[null,null,null,null,null,null,null,null,null,null,null,null,null,null,null,null,null,null,"Trip cost per person"]
[]
[null,null,null,"Transport","      Days:","Qty.","Cost","Total","Notes",null,null,null,null,null,null,null,"Trip Attenden Names",{"$f":"SUM(R26:R125)","v":0},{"$f":"SUM(S26:S77)","v":0},"  Notes"]
[null,null,null,null,1,1,0,{"$f":"G26*E26*F26","v":0},null,null,null,null,null,null,null,1,null,{"$f":"IF(Q26=\"\",\"\",IF(Q26=\"\",\"\",1))","v":""}]
[null,null,null,null,1,1,0,{"$f":"G27*E27*F27","v":0},null,null,null,null,null,null,null,2,null,{"$f":"IF(Q27=\"\",\"\",IF(Q27=\"\",\"\",1))","v":""}]
[null,null,null,null,1,1,0,0,null,null,null,null,null,null,null,3,null,""]
[null,null,null,null,1,1,0,0,null,null,null,null,null,null,null,4,null,""]
[null,null,null,null,1,1,0,0,null,null,null,null,null,null,null,5,null,""]
[null,null,null,null,1,1,0,0,null,null,null,null,null,null,null,6,null,""]
[null,null,null,null,1,1,0,0,null,null,null,null,null,null,null,7,null,""]
[null,null,null,null,1,1,0,0,null,null,null,null,null,null,null,8,null,""]
[null,null,null,null,1,1,0,0,null,null,null,null,null,null,null,9,null,""]
[null,null,null,null,1,1,0,0,null,null,null,null,null,null,null,10,null,""]
[null,null,null,null,1,1,0,0,null,null,null,null,null,null,null,11,null,""]
[null,null,null,null,1,1,0,0,null,null,null,null,null,null,null,12,null,""]
[null,null,null,null,1,1,0,{"$f":"G38*E38*F38","v":0},null,null,null,null,null,null,null,13,null,""]
[null,null,null,null,null,null,null,{"$f":"SUM(H26:H38)","v":0},null,null,null,null,null,null,null,14,null,""]
[null,null,null,null,null,null,null,null,null,null,null,null,null,null,null,15,null,""]
[null,null,"Other Expenses",null,"Qty","No.","Cost","Total"," Notes",null,null,null,null,null,null,16,null,""]
[null,null,null,null,1,1,0,{"$f":"G42*F42*E42","v":0},null,null,null,null,null,null,null,17,null,""]
[null,null,null,null,1,1,0,{"$f":"G43*F43*E43","v":0},null,null,null,null,null,null,null,18,null,""]
[null,null,null,null,1,1,0,{"$f":"G44*F44*E44","v":0},null,null,null,null,null,null,null,19,null,""]
[null,null,null,null,1,1,0,0,null,null,null,null,null,null,null,20,null,""]
[null,null,null,null,1,1,0,0,null,null,null,null,null,null,null,21,null,""]
[null,null,null,null,1,1,0,0,null,null,null,null,null,null,null,22,null,""]
[null,null,null,null,1,1,0,0,null,null,null,null,null,null,null,23,null,""]
[null,null,null,null,1,1,0,0,null,null,null,null,null,null,null,24,null,""]
[null,null,null,null,1,1,0,0,null,null,null,null,null,null,null,25,null,""]
[null,null,null,null,1,1,0,0,null,null,null,null,null,null,null,26,null,""]
[null,null,null,null,1,1,0,0,null,null,null,null,null,null,null,27,null,""]
[null,null,null,null,1,1,0,0,null,null,null,null,null,null,null,28,null,""]
[null,null,null,null,1,1,0,0,null,null,null,null,null,null,null,29,null,""]
[null,null,null,null,1,1,0,0,null,null,null,null,null,null,null,30,null,""]
[null,null,null,null,1,1,0,0,null,null,null,null,null,null,null,31,null,""]
[null,null,null,null,1,1,0,0,null,null,null,null,null,null,null,32,null,""]
[null,null,null,null,1,1,0,0,null,null,null,null,null,null,null,33,null,""]
[null,null,null,null,1,1,0,0,null,null,null,null,null,null,null,34,null,""]
[null,null,null,null,1,1,0,0,null,null,null,null,null,null,null,35,null,""]
[null,null,null,null,1,1,0,0,null,null,null,null,null,null,null,36,null,""]
[null,null,null,null,1,1,0,0,null,null,null,null,null,null,null,37,null,""]
[null,null,null,null,null,null,null,{"$f":"SUM(H42:H62)","v":0},null,null,null,null,null,null,null,38,null,""]
[null,null,null,null,null,null,null,null,null,null,null,null,null,null,null,39,null,""]
[null,null,null,null,null,null,null,null,null,null,null,null,null,null,null,40,null,""]
[null,null,null,null,null,null,null,null,null,null,null,null,null,null,null,41,null,""]
[null,null,null,null,null,null,null,null,null,null,null,null,null,null,null,42,null,""]
[null,null,null,null,null,null,null,null,null,null,null,null,null,null,null,43,null,""]
[null,null,null,null,null,null,null,null,null,null,null,null,null,null,null,44,null,""]
[null,null,null,null,null,null,null,null,null,null,null,null,null,null,null,45,null,""]
[null,null,null,null,null,null,null,null,null,null,null,null,null,null,null,46,null,""]
[null,null,null,null,null,null,null,null,null,null,null,null,null,null,null,47,null,""]
[null,null,null,null,null,null,null,null,null,null,null,null,null,null,null,48,null,""]
[null,null,null,null,null,null,null,null,null,null,null,null,null,null,null,49,null,""]
[null,null,null,null,null,null,null,null,null,null,null,null,null,null,null,50,null,""]
[null,null,null,null,null,null,null,null,null,null,null,null,null,null,null,51,null,""]
[null,null,null,null,null,null,null,null,null,null,null,null,null,null,null,52,null,""]
[null,null,null,null,null,null,null,null,null,null,null,null,null,null,null,53,null,""]
[null,null,null,null,null,null,null,null,null,null,null,null,null,null,null,54,null,""]
[null,null,null,null,null,null,null,null,null,null,null,null,null,null,null,55,null,""]
[null,null,null,null,null,null,null,null,null,null,null,null,null,null,null,56,null,""]
[null,null,null,null,null,null,null,null,null,null,null,null,null,null,null,57,null,""]
[null,null,null,null,null,null,null,null,null,null,null,null,null,null,null,58,null,""]
[null,null,null,null,null,null,null,null,null,null,null,null,null,null,null,59,null,""]
[null,null,null,null,null,null,null,null,null,null,null,null,null,null,null,60,null,""]
[null,null,null,null,null,null,null,null,null,null,null,null,null,null,null,61,null,""]
[null,null,null,null,null,null,null,null,null,null,null,null,null,null,null,62,null,""]
[null,null,null,null,null,null,null,null,null,null,null,null,null,null,null,63,null,""]
[null,null,null,null,null,null,null,null,null,null,null,null,null,null,null,64,null,""]
[null,null,null,null,null,null,null,null,null,null,null,null,null,null,null,65,null,""]
[null,null,null,null,null,null,null,null,null,null,null,null,null,null,null,66,null,{"$f":"IF(Q91=\"\",\"\",IF(Q91=\"\",\"\",1))","v":""}]
[null,null,null,null,null,null,null,null,null,null,null,null,null,null,null,67,null,""]
[null,null,null,null,null,null,null,null,null,null,null,null,null,null,null,68,null,""]
[null,null,null,null,null,null,null,null,null,null,null,null,null,null,null,69,null,""]
[null,null,null,null,null,null,null,null,null,null,null,null,null,null,null,70,null,""]
[null,null,null,null,null,null,null,null,null,null,null,null,null,null,null,71,null,""]
[null,null,null,null,null,null,null,null,null,null,null,null,null,null,null,72,null,""]
[null,null,null,null,null,null,null,null,null,null,null,null,null,null,null,73,null,""]
[null,null,null,null,null,null,null,null,null,null,null,null,null,null,null,74,null,""]
[null,null,null,null,null,null,null,null,null,null,null,null,null,null,null,75,null,""]
[null,null,null,null,null,null,null,null,null,null,null,null,null,null,null,76,null,""]
[null,null,null,null,null,null,null,null,null,null,null,null,null,null,null,77,null,""]
[null,null,null,null,null,null,null,null,null,null,null,null,null,null,null,78,null,""]
[null,null,null,null,null,null,null,null,null,null,null,null,null,null,null,79,null,""]
[null,null,null,null,null,null,null,null,null,null,null,null,null,null,null,80,null,""]
[null,null,null,null,null,null,null,null,null,null,null,null,null,null,null,81,null,""]
[null,null,null,null,null,null,null,null,null,null,null,null,null,null,null,82,null,""]
[null,null,null,null,null,null,null,null,null,null,null,null,null,null,null,83,null,""]
[null,null,null,null,null,null,null,null,null,null,null,null,null,null,null,84,null,""]
[null,null,null,null,null,null,null,null,null,null,null,null,null,null,null,85,null,""]
[null,null,null,null,null,null,null,null,null,null,null,null,null,null,null,86,null,""]
[null,null,null,null,null,null,null,null,null,null,null,null,null,null,null,87,null,""]
[null,null,null,null,null,null,null,null,null,null,null,null,null,null,null,88,null,""]
[null,null,null,null,null,null,null,null,null,null,null,null,null,null,null,89,null,""]
[null,null,null,null,null,null,null,null,null,null,null,null,null,null,null,90,null,""]
[null,null,null,null,null,null,null,null,null,null,null,null,null,null,null,91,null,""]
[null,null,null,null,null,null,null,null,null,null,null,null,null,null,null,92,null,""]
[null,null,null,null,null,null,null,null,null,null,null,null,null,null,null,93,null,""]
[null,null,null,null,null,null,null,null,null,null,null,null,null,null,null,94,null,""]
[null,null,null,null,null,null,null,null,null,null,null,null,null,null,null,95,null,""]
[null,null,null,null,null,null,null,null,null,null,null,null,null,null,null,96,null,""]
[null,null,null,null,null,null,null,null,null,null,null,null,null,null,null,97,null,""]
[null,null,null,null,null,null,null,null,null,null,null,null,null,null,null,98,null,""]
[null,null,null,null,null,null,null,null,null,null,null,null,null,null,null,99,null,""]
[null,null,null,null,null,null,null,null,null,null,null,null,null,null,null,100,null,""]

{"sheet":"Trip (22)","index":22,"n_rows":125,"n_cols":20,"rows_kept":125,"cut":false,"hidden":false,"merged":[[24,19,24,30],[40,8,40,13],[120,19,120,30],[121,19,121,30],[122,19,122,30],[123,19,123,30],[124,19,124,30],[115,19,115,30],[116,19,116,30],[117,19,117,30],[118,19,118,30],[119,19,119,30],[110,19,110,30],[111,19,111,30],[112,19,112,30],[113,19,113,30],[114,19,114,30],[105,19,105,30],[106,19,106,30],[107,19,107,30],[108,19,108,30],[109,19,109,30],[100,19,100,30],[101,19,101,30],[102,19,102,30],[103,19,103,30],[104,19,104,30],[95,19,95,30],[96,19,96,30],[97,19,97,30],[98,19,98,30],[99,19,99,30],[90,19,90,30],[91,19,91,30],[92,19,92,30],[93,19,93,30],[94,19,94,30],[85,19,85,30],[86,19,86,30],[87,19,87,30],[88,19,88,30],[89,19,89,30],[80,19,80,30],[81,19,81,30],[82,19,82,30],[83,19,83,30],[84,19,84,30],[76,19,76,30],[77,19,77,30],[78,19,78,30],[79,19,79,30],[70,19,70,30],[71,19,71,30],[72,19,72,30],[73,19,73,30],[74,19,74,30],[67,19,67,30],[68,19,68,30],[69,19,69,30],[60,19,60,30],[61,19,61,30],[62,19,62,30],[63,19,63,30],[64,19,64,30],[75,19,75,30],[58,19,58,30],[59,19,59,30],[50,19,50,30],[51,19,51,30],[52,19,52,30],[53,19,53,30],[54,19,54,30],[65,19,65,30],[66,19,66,30],[49,19,49,30],[40,19,40,30],[41,19,41,30],[42,19,42,30],[43,19,43,30],[44,19,44,30],[55,19,55,30],[56,19,56,30],[57,19,57,30],[30,19,30,30],[31,19,31,30],[32,19,32,30],[33,19,33,30],[34,19,34,30],[45,19,45,30],[46,19,46,30],[47,19,47,30],[48,19,48,30],[25,19,25,30],[26,19,26,30],[27,19,27,30],[28,19,28,30],[29,19,29,30],[75,8,75,9],[76,8,76,9],[77,8,77,9],[78,8,78,9],[69,8,69,9],[70,8,70,9],[71,8,71,9],[72,8,72,9],[73,8,73,9],[74,8,74,9],[68,8,68,9],[67,8,67,9],[42,8,42,13],[43,8,43,13],[35,19,35,30],[36,19,36,30],[37,19,37,30],[38,19,38,30],[39,19,39,30],[58,2,58,3],[58,8,58,13],[59,2,59,3],[59,8,59,13],[60,2,60,3],[60,8,60,13],[61,2,61,3],[61,8,61,13],[63,8,63,10],[63,12,63,13],[55,2,55,3],[55,8,55,13],[56,2,56,3],[56,8,56,13],[57,2,57,3],[57,8,57,13],[52,2,52,3],[52,8,52,13],[53,2,53,3],[53,8,53,13],[54,2,54,3],[54,8,54,13],[49,2,49,3],[49,8,49,13],[50,2,50,3],[50,8,50,13],[51,2,51,3],[51,8,51,13],[46,2,46,3],[46,8,46,13],[47,2,47,3],[47,8,47,13],[48,2,48,3],[48,8,48,13],[44,2,44,3],[44,8,44,13],[45,2,45,3],[45,8,45,13],[41,8,41,13],[34,2,34,3],[34,8,34,13],[35,2,35,3],[35,8,35,13],[36,2,36,3],[36,8,36,13],[37,2,37,3],[37,8,37,13],[38,2,38,3],[39,10,39,11],[40,2,40,3],[41,2,41,3],[42,2,42,3],[43,2,43,3],[31,2,31,3],[31,8,31,13],[32,2,32,3],[32,8,32,13],[33,2,33,3],[33,8,33,13],[28,2,28,3],[28,8,28,13],[29,2,29,3],[29,8,29,13],[30,2,30,3],[30,8,30,13],[22,18,23,18],[25,2,25,3],[25,8,25,13],[26,2,26,3],[26,8,26,13],[15,17,23,17],[27,2,27,3],[27,8,27,13],[8,3,8,12],[10,3,10,6],[10,10,10,12],[12,10,12,12],[16,10,16,12],[18,10,18,12]]}
[]
[null,null,null,null,null,null,null,"Leeds University Union Caving Society"]
[]
[]
[{"$f":"CONCATENATE(\"Trip Name:  \",D9)","v":"Trip Name:  "}]
[]
[]
[null,"Trip details:",null,"Title"]
[null,null,"Trip Name:"]
[]
[null,null,"Location:",null,null,null,null,null,null,"Organizer:"]
[]
[null,null,"Date/s:",null,null,null,null,null,null,"Caving Hut","-"]
[]
[]
[null,null,null,null,null,null,null,null,null,null,null,null,null,null,null,null,null,"No. of people going"]
[null,null,"Trip Expenses",{"$f":"H39+H63","v":0},null,null,null,null,null,"Number of people going",{"$f":"R25","v":0}]
[]
[null,null,"Trip Revenue",{"$f":"S25","v":0}]
[]
[]
[]
[null,null,null,null,null,null,null,null,null,null,null,null,null,null,null,null,null,null,"Trip cost per person"]
[]
[null,null,null,"Transport","      Days:","Qty.","Cost","Total","Notes",null,null,null,null,null,null,null,"Trip Attenden Names",{"$f":"SUM(R26:R125)","v":0},{"$f":"SUM(S26:S77)","v":0},"  Notes"]
[null,null,null,null,1,1,0,{"$f":"G26*E26*F26","v":0},null,null,null,null,null,null,null,1,null,{"$f":"IF(Q26=\"\",\"\",IF(Q26=\"\",\"\",1))","v":""}]
[null,null,null,null,1,1,0,{"$f":"G27*E27*F27","v":0},null,null,null,null,null,null,null,2,null,{"$f":"IF(Q27=\"\",\"\",IF(Q27=\"\",\"\",1))","v":""}]
[null,null,null,null,1,1,0,0,null,null,null,null,null,null,null,3,null,""]
[null,null,null,null,1,1,0,0,null,null,null,null,null,null,null,4,null,""]
[null,null,null,null,1,1,0,0,null,null,null,null,null,null,null,5,null,""]
[null,null,null,null,1,1,0,0,null,null,null,null,null,null,null,6,null,""]
[null,null,null,null,1,1,0,0,null,null,null,null,null,null,null,7,null,""]
[null,null,null,null,1,1,0,0,null,null,null,null,null,null,null,8,null,""]
[null,null,null,null,1,1,0,0,null,null,null,null,null,null,null,9,null,""]
[null,null,null,null,1,1,0,0,null,null,null,null,null,null,null,10,null,""]
[null,null,null,null,1,1,0,0,null,null,null,null,null,null,null,11,null,""]
[null,null,null,null,1,1,0,0,null,null,null,null,null,null,null,12,null,""]
[null,null,null,null,1,1,0,{"$f":"G38*E38*F38","v":0},null,null,null,null,null,null,null,13,null,""]
[null,null,null,null,null,null,null,{"$f":"SUM(H26:H38)","v":0},null,null,null,null,null,null,null,14,null,""]
[null,null,null,null,null,null,null,null,null,null,null,null,null,null,null,15,null,""]
[null,null,"Other Expenses",null,"Qty","No.","Cost","Total"," Notes",null,null,null,null,null,null,16,null,""]
[null,null,null,null,1,1,0,{"$f":"G42*F42*E42","v":0},null,null,null,null,null,null,null,17,null,""]
[null,null,null,null,1,1,0,{"$f":"G43*F43*E43","v":0},null,null,null,null,null,null,null,18,null,""]
[null,null,null,null,1,1,0,{"$f":"G44*F44*E44","v":0},null,null,null,null,null,null,null,19,null,""]
[null,null,null,null,1,1,0,0,null,null,null,null,null,null,null,20,null,""]
[null,null,null,null,1,1,0,0,null,null,null,null,null,null,null,21,null,""]
[null,null,null,null,1,1,0,0,null,null,null,null,null,null,null,22,null,""]
[null,null,null,null,1,1,0,0,null,null,null,null,null,null,null,23,null,""]
[null,null,null,null,1,1,0,0,null,null,null,null,null,null,null,24,null,""]
[null,null,null,null,1,1,0,0,null,null,null,null,null,null,null,25,null,""]
[null,null,null,null,1,1,0,0,null,null,null,null,null,null,null,26,null,""]
[null,null,null,null,1,1,0,0,null,null,null,null,null,null,null,27,null,""]
[null,null,null,null,1,1,0,0,null,null,null,null,null,null,null,28,null,""]
[null,null,null,null,1,1,0,0,null,null,null,null,null,null,null,29,null,""]
[null,null,null,null,1,1,0,0,null,null,null,null,null,null,null,30,null,""]
[null,null,null,null,1,1,0,0,null,null,null,null,null,null,null,31,null,""]
[null,null,null,null,1,1,0,0,null,null,null,null,null,null,null,32,null,""]
[null,null,null,null,1,1,0,0,null,null,null,null,null,null,null,33,null,""]
[null,null,null,null,1,1,0,0,null,null,null,null,null,null,null,34,null,""]
[null,null,null,null,1,1,0,0,null,null,null,null,null,null,null,35,null,""]
[null,null,null,null,1,1,0,0,null,null,null,null,null,null,null,36,null,""]
[null,null,null,null,1,1,0,0,null,null,null,null,null,null,null,37,null,""]
[null,null,null,null,null,null,null,{"$f":"SUM(H42:H62)","v":0},null,null,null,null,null,null,null,38,null,""]
[null,null,null,null,null,null,null,null,null,null,null,null,null,null,null,39,null,""]
[null,null,null,null,null,null,null,null,null,null,null,null,null,null,null,40,null,""]
[null,null,null,null,null,null,null,null,null,null,null,null,null,null,null,41,null,""]
[null,null,null,null,null,null,null,null,null,null,null,null,null,null,null,42,null,""]
[null,null,null,null,null,null,null,null,null,null,null,null,null,null,null,43,null,""]
[null,null,null,null,null,null,null,null,null,null,null,null,null,null,null,44,null,""]
[null,null,null,null,null,null,null,null,null,null,null,null,null,null,null,45,null,""]
[null,null,null,null,null,null,null,null,null,null,null,null,null,null,null,46,null,""]
[null,null,null,null,null,null,null,null,null,null,null,null,null,null,null,47,null,""]
[null,null,null,null,null,null,null,null,null,null,null,null,null,null,null,48,null,""]
[null,null,null,null,null,null,null,null,null,null,null,null,null,null,null,49,null,""]
[null,null,null,null,null,null,null,null,null,null,null,null,null,null,null,50,null,""]
[null,null,null,null,null,null,null,null,null,null,null,null,null,null,null,51,null,""]
[null,null,null,null,null,null,null,null,null,null,null,null,null,null,null,52,null,""]
[null,null,null,null,null,null,null,null,null,null,null,null,null,null,null,53,null,""]
[null,null,null,null,null,null,null,null,null,null,null,null,null,null,null,54,null,""]
[null,null,null,null,null,null,null,null,null,null,null,null,null,null,null,55,null,""]
[null,null,null,null,null,null,null,null,null,null,null,null,null,null,null,56,null,""]
[null,null,null,null,null,null,null,null,null,null,null,null,null,null,null,57,null,""]
[null,null,null,null,null,null,null,null,null,null,null,null,null,null,null,58,null,""]
[null,null,null,null,null,null,null,null,null,null,null,null,null,null,null,59,null,""]
[null,null,null,null,null,null,null,null,null,null,null,null,null,null,null,60,null,""]
[null,null,null,null,null,null,null,null,null,null,null,null,null,null,null,61,null,""]
[null,null,null,null,null,null,null,null,null,null,null,null,null,null,null,62,null,""]
[null,null,null,null,null,null,null,null,null,null,null,null,null,null,null,63,null,""]
[null,null,null,null,null,null,null,null,null,null,null,null,null,null,null,64,null,""]
[null,null,null,null,null,null,null,null,null,null,null,null,null,null,null,65,null,""]
[null,null,null,null,null,null,null,null,null,null,null,null,null,null,null,66,null,{"$f":"IF(Q91=\"\",\"\",IF(Q91=\"\",\"\",1))","v":""}]
[null,null,null,null,null,null,null,null,null,null,null,null,null,null,null,67,null,""]
[null,null,null,null,null,null,null,null,null,null,null,null,null,null,null,68,null,""]
[null,null,null,null,null,null,null,null,null,null,null,null,null,null,null,69,null,""]
[null,null,null,null,null,null,null,null,null,null,null,null,null,null,null,70,null,""]
[null,null,null,null,null,null,null,null,null,null,null,null,null,null,null,71,null,""]
[null,null,null,null,null,null,null,null,null,null,null,null,null,null,null,72,null,""]
[null,null,null,null,null,null,null,null,null,null,null,null,null,null,null,73,null,""]
[null,null,null,null,null,null,null,null,null,null,null,null,null,null,null,74,null,""]
[null,null,null,null,null,null,null,null,null,null,null,null,null,null,null,75,null,""]
[null,null,null,null,null,null,null,null,null,null,null,null,null,null,null,76,null,""]
[null,null,null,null,null,null,null,null,null,null,null,null,null,null,null,77,null,""]
[null,null,null,null,null,null,null,null,null,null,null,null,null,null,null,78,null,""]
[null,null,null,null,null,null,null,null,null,null,null,null,null,null,null,79,null,""]
[null,null,null,null,null,null,null,null,null,null,null,null,null,null,null,80,null,""]
[null,null,null,null,null,null,null,null,null,null,null,null,null,null,null,81,null,""]
[null,null,null,null,null,null,null,null,null,null,null,null,null,null,null,82,null,""]
[null,null,null,null,null,null,null,null,null,null,null,null,null,null,null,83,null,""]
[null,null,null,null,null,null,null,null,null,null,null,null,null,null,null,84,null,""]
[null,null,null,null,null,null,null,null,null,null,null,null,null,null,null,85,null,""]
[null,null,null,null,null,null,null,null,null,null,null,null,null,null,null,86,null,""]
[null,null,null,null,null,null,null,null,null,null,null,null,null,null,null,87,null,""]
[null,null,null,null,null,null,null,null,null,null,null,null,null,null,null,88,null,""]
[null,null,null,null,null,null,null,null,null,null,null,null,null,null,null,89,null,""]
[null,null,null,null,null,null,null,null,null,null,null,null,null,null,null,90,null,""]
[null,null,null,null,null,null,null,null,null,null,null,null,null,null,null,91,null,""]
[null,null,null,null,null,null,null,null,null,null,null,null,null,null,null,92,null,""]
[null,null,null,null,null,null,null,null,null,null,null,null,null,null,null,93,null,""]
[null,null,null,null,null,null,null,null,null,null,null,null,null,null,null,94,null,""]
[null,null,null,null,null,null,null,null,null,null,null,null,null,null,null,95,null,""]
[null,null,null,null,null,null,null,null,null,null,null,null,null,null,null,96,null,""]
[null,null,null,null,null,null,null,null,null,null,null,null,null,null,null,97,null,""]
[null,null,null,null,null,null,null,null,null,null,null,null,null,null,null,98,null,""]
[null,null,null,null,null,null,null,null,null,null,null,null,null,null,null,99,null,""]
[null,null,null,null,null,null,null,null,null,null,null,null,null,null,null,100,null,""]

{"sheet":"Trip (23)","index":23,"n_rows":125,"n_cols":20,"rows_kept":125,"cut":false,"hidden":false,"merged":[[24,19,24,30],[40,8,40,13],[120,19,120,30],[121,19,121,30],[122,19,122,30],[123,19,123,30],[124,19,124,30],[115,19,115,30],[116,19,116,30],[117,19,117,30],[118,19,118,30],[119,19,119,30],[110,19,110,30],[111,19,111,30],[112,19,112,30],[113,19,113,30],[114,19,114,30],[105,19,105,30],[106,19,106,30],[107,19,107,30],[108,19,108,30],[109,19,109,30],[100,19,100,30],[101,19,101,30],[102,19,102,30],[103,19,103,30],[104,19,104,30],[95,19,95,30],[96,19,96,30],[97,19,97,30],[98,19,98,30],[99,19,99,30],[90,19,90,30],[91,19,91,30],[92,19,92,30],[93,19,93,30],[94,19,94,30],[85,19,85,30],[86,19,86,30],[87,19,87,30],[88,19,88,30],[89,19,89,30],[80,19,80,30],[81,19,81,30],[82,19,82,30],[83,19,83,30],[84,19,84,30],[76,19,76,30],[77,19,77,30],[78,19,78,30],[79,19,79,30],[70,19,70,30],[71,19,71,30],[72,19,72,30],[73,19,73,30],[74,19,74,30],[67,19,67,30],[68,19,68,30],[69,19,69,30],[60,19,60,30],[61,19,61,30],[62,19,62,30],[63,19,63,30],[64,19,64,30],[75,19,75,30],[58,19,58,30],[59,19,59,30],[50,19,50,30],[51,19,51,30],[52,19,52,30],[53,19,53,30],[54,19,54,30],[65,19,65,30],[66,19,66,30],[49,19,49,30],[40,19,40,30],[41,19,41,30],[42,19,42,30],[43,19,43,30],[44,19,44,30],[55,19,55,30],[56,19,56,30],[57,19,57,30],[30,19,30,30],[31,19,31,30],[32,19,32,30],[33,19,33,30],[34,19,34,30],[45,19,45,30],[46,19,46,30],[47,19,47,30],[48,19,48,30],[25,19,25,30],[26,19,26,30],[27,19,27,30],[28,19,28,30],[29,19,29,30],[75,8,75,9],[76,8,76,9],[77,8,77,9],[78,8,78,9],[69,8,69,9],[70,8,70,9],[71,8,71,9],[72,8,72,9],[73,8,73,9],[74,8,74,9],[68,8,68,9],[67,8,67,9],[42,8,42,13],[43,8,43,13],[35,19,35,30],[36,19,36,30],[37,19,37,30],[38,19,38,30],[39,19,39,30],[58,2,58,3],[58,8,58,13],[59,2,59,3],[59,8,59,13],[60,2,60,3],[60,8,60,13],[61,2,61,3],[61,8,61,13],[63,8,63,10],[63,12,63,13],[55,2,55,3],[55,8,55,13],[56,2,56,3],[56,8,56,13],[57,2,57,3],[57,8,57,13],[52,2,52,3],[52,8,52,13],[53,2,53,3],[53,8,53,13],[54,2,54,3],[54,8,54,13],[49,2,49,3],[49,8,49,13],[50,2,50,3],[50,8,50,13],[51,2,51,3],[51,8,51,13],[46,2,46,3],[46,8,46,13],[47,2,47,3],[47,8,47,13],[48,2,48,3],[48,8,48,13],[44,2,44,3],[44,8,44,13],[45,2,45,3],[45,8,45,13],[41,8,41,13],[34,2,34,3],[34,8,34,13],[35,2,35,3],[35,8,35,13],[36,2,36,3],[36,8,36,13],[37,2,37,3],[37,8,37,13],[38,2,38,3],[39,10,39,11],[40,2,40,3],[41,2,41,3],[42,2,42,3],[43,2,43,3],[31,2,31,3],[31,8,31,13],[32,2,32,3],[32,8,32,13],[33,2,33,3],[33,8,33,13],[28,2,28,3],[28,8,28,13],[29,2,29,3],[29,8,29,13],[30,2,30,3],[30,8,30,13],[22,18,23,18],[25,2,25,3],[25,8,25,13],[26,2,26,3],[26,8,26,13],[15,17,23,17],[27,2,27,3],[27,8,27,13],[8,3,8,12],[10,3,10,6],[10,10,10,12],[12,10,12,12],[16,10,16,12],[18,10,18,12]]}
[]
[null,null,null,null,null,null,null,"Leeds University Union Caving Society"]
[]
[]
[{"$f":"CONCATENATE(\"Trip Name:  \",D9)","v":"Trip Name:  "}]
[]
[]
[null,"Trip details:",null,"Title"]
[null,null,"Trip Name:"]
[]
[null,null,"Location:",null,null,null,null,null,null,"Organizer:"]
[]
[null,null,"Date/s:",null,null,null,null,null,null,"Caving Hut","-"]
[]
[]
[null,null,null,null,null,null,null,null,null,null,null,null,null,null,null,null,null,"No. of people going"]
[null,null,"Trip Expenses",{"$f":"H39+H63","v":0},null,null,null,null,null,"Number of people going",{"$f":"R25","v":0}]
[]
[null,null,"Trip Revenue",{"$f":"S25","v":0}]
[]
[]
[]
[null,null,null,null,null,null,null,null,null,null,null,null,null,null,null,null,null,null,"Trip cost per person"]
[]
[null,null,null,"Transport","      Days:","Qty.","Cost","Total","Notes",null,null,null,null,null,null,null,"Trip Attenden Names",{"$f":"SUM(R26:R125)","v":0},{"$f":"SUM(S26:S77)","v":0},"  Notes"]
[null,null,null,null,1,1,0,{"$f":"G26*E26*F26","v":0},null,null,null,null,null,null,null,1,null,{"$f":"IF(Q26=\"\",\"\",IF(Q26=\"\",\"\",1))","v":""}]
[null,null,null,null,1,1,0,{"$f":"G27*E27*F27","v":0},null,null,null,null,null,null,null,2,null,{"$f":"IF(Q27=\"\",\"\",IF(Q27=\"\",\"\",1))","v":""}]
[null,null,null,null,1,1,0,0,null,null,null,null,null,null,null,3,null,""]
[null,null,null,null,1,1,0,0,null,null,null,null,null,null,null,4,null,""]
[null,null,null,null,1,1,0,0,null,null,null,null,null,null,null,5,null,""]
[null,null,null,null,1,1,0,0,null,null,null,null,null,null,null,6,null,""]
[null,null,null,null,1,1,0,0,null,null,null,null,null,null,null,7,null,""]
[null,null,null,null,1,1,0,0,null,null,null,null,null,null,null,8,null,""]
[null,null,null,null,1,1,0,0,null,null,null,null,null,null,null,9,null,""]
[null,null,null,null,1,1,0,0,null,null,null,null,null,null,null,10,null,""]
[null,null,null,null,1,1,0,0,null,null,null,null,null,null,null,11,null,""]
[null,null,null,null,1,1,0,0,null,null,null,null,null,null,null,12,null,""]
[null,null,null,null,1,1,0,{"$f":"G38*E38*F38","v":0},null,null,null,null,null,null,null,13,null,""]
[null,null,null,null,null,null,null,{"$f":"SUM(H26:H38)","v":0},null,null,null,null,null,null,null,14,null,""]
[null,null,null,null,null,null,null,null,null,null,null,null,null,null,null,15,null,""]
[null,null,"Other Expenses",null,"Qty","No.","Cost","Total"," Notes",null,null,null,null,null,null,16,null,""]
[null,null,null,null,1,1,0,{"$f":"G42*F42*E42","v":0},null,null,null,null,null,null,null,17,null,""]
[null,null,null,null,1,1,0,{"$f":"G43*F43*E43","v":0},null,null,null,null,null,null,null,18,null,""]
[null,null,null,null,1,1,0,{"$f":"G44*F44*E44","v":0},null,null,null,null,null,null,null,19,null,""]
[null,null,null,null,1,1,0,0,null,null,null,null,null,null,null,20,null,""]
[null,null,null,null,1,1,0,0,null,null,null,null,null,null,null,21,null,""]
[null,null,null,null,1,1,0,0,null,null,null,null,null,null,null,22,null,""]
[null,null,null,null,1,1,0,0,null,null,null,null,null,null,null,23,null,""]
[null,null,null,null,1,1,0,0,null,null,null,null,null,null,null,24,null,""]
[null,null,null,null,1,1,0,0,null,null,null,null,null,null,null,25,null,""]
[null,null,null,null,1,1,0,0,null,null,null,null,null,null,null,26,null,""]
[null,null,null,null,1,1,0,0,null,null,null,null,null,null,null,27,null,""]
[null,null,null,null,1,1,0,0,null,null,null,null,null,null,null,28,null,""]
[null,null,null,null,1,1,0,0,null,null,null,null,null,null,null,29,null,""]
[null,null,null,null,1,1,0,0,null,null,null,null,null,null,null,30,null,""]
[null,null,null,null,1,1,0,0,null,null,null,null,null,null,null,31,null,""]
[null,null,null,null,1,1,0,0,null,null,null,null,null,null,null,32,null,""]
[null,null,null,null,1,1,0,0,null,null,null,null,null,null,null,33,null,""]
[null,null,null,null,1,1,0,0,null,null,null,null,null,null,null,34,null,""]
[null,null,null,null,1,1,0,0,null,null,null,null,null,null,null,35,null,""]
[null,null,null,null,1,1,0,0,null,null,null,null,null,null,null,36,null,""]
[null,null,null,null,1,1,0,0,null,null,null,null,null,null,null,37,null,""]
[null,null,null,null,null,null,null,{"$f":"SUM(H42:H62)","v":0},null,null,null,null,null,null,null,38,null,""]
[null,null,null,null,null,null,null,null,null,null,null,null,null,null,null,39,null,""]
[null,null,null,null,null,null,null,null,null,null,null,null,null,null,null,40,null,""]
[null,null,null,null,null,null,null,null,null,null,null,null,null,null,null,41,null,""]
[null,null,null,null,null,null,null,null,null,null,null,null,null,null,null,42,null,""]
[null,null,null,null,null,null,null,null,null,null,null,null,null,null,null,43,null,""]
[null,null,null,null,null,null,null,null,null,null,null,null,null,null,null,44,null,""]
[null,null,null,null,null,null,null,null,null,null,null,null,null,null,null,45,null,""]
[null,null,null,null,null,null,null,null,null,null,null,null,null,null,null,46,null,""]
[null,null,null,null,null,null,null,null,null,null,null,null,null,null,null,47,null,""]
[null,null,null,null,null,null,null,null,null,null,null,null,null,null,null,48,null,""]
[null,null,null,null,null,null,null,null,null,null,null,null,null,null,null,49,null,""]
[null,null,null,null,null,null,null,null,null,null,null,null,null,null,null,50,null,""]
[null,null,null,null,null,null,null,null,null,null,null,null,null,null,null,51,null,""]
[null,null,null,null,null,null,null,null,null,null,null,null,null,null,null,52,null,""]
[null,null,null,null,null,null,null,null,null,null,null,null,null,null,null,53,null,""]
[null,null,null,null,null,null,null,null,null,null,null,null,null,null,null,54,null,""]
[null,null,null,null,null,null,null,null,null,null,null,null,null,null,null,55,null,""]
[null,null,null,null,null,null,null,null,null,null,null,null,null,null,null,56,null,""]
[null,null,null,null,null,null,null,null,null,null,null,null,null,null,null,57,null,""]
[null,null,null,null,null,null,null,null,null,null,null,null,null,null,null,58,null,""]
[null,null,null,null,null,null,null,null,null,null,null,null,null,null,null,59,null,""]
[null,null,null,null,null,null,null,null,null,null,null,null,null,null,null,60,null,""]
[null,null,null,null,null,null,null,null,null,null,null,null,null,null,null,61,null,""]
[null,null,null,null,null,null,null,null,null,null,null,null,null,null,null,62,null,""]
[null,null,null,null,null,null,null,null,null,null,null,null,null,null,null,63,null,""]
[null,null,null,null,null,null,null,null,null,null,null,null,null,null,null,64,null,""]
[null,null,null,null,null,null,null,null,null,null,null,null,null,null,null,65,null,""]
[null,null,null,null,null,null,null,null,null,null,null,null,null,null,null,66,null,{"$f":"IF(Q91=\"\",\"\",IF(Q91=\"\",\"\",1))","v":""}]
[null,null,null,null,null,null,null,null,null,null,null,null,null,null,null,67,null,""]
[null,null,null,null,null,null,null,null,null,null,null,null,null,null,null,68,null,""]
[null,null,null,null,null,null,null,null,null,null,null,null,null,null,null,69,null,""]
[null,null,null,null,null,null,null,null,null,null,null,null,null,null,null,70,null,""]
[null,null,null,null,null,null,null,null,null,null,null,null,null,null,null,71,null,""]
[null,null,null,null,null,null,null,null,null,null,null,null,null,null,null,72,null,""]
[null,null,null,null,null,null,null,null,null,null,null,null,null,null,null,73,null,""]
[null,null,null,null,null,null,null,null,null,null,null,null,null,null,null,74,null,""]
[null,null,null,null,null,null,null,null,null,null,null,null,null,null,null,75,null,""]
[null,null,null,null,null,null,null,null,null,null,null,null,null,null,null,76,null,""]
[null,null,null,null,null,null,null,null,null,null,null,null,null,null,null,77,null,""]
[null,null,null,null,null,null,null,null,null,null,null,null,null,null,null,78,null,""]
[null,null,null,null,null,null,null,null,null,null,null,null,null,null,null,79,null,""]
[null,null,null,null,null,null,null,null,null,null,null,null,null,null,null,80,null,""]
[null,null,null,null,null,null,null,null,null,null,null,null,null,null,null,81,null,""]
[null,null,null,null,null,null,null,null,null,null,null,null,null,null,null,82,null,""]
[null,null,null,null,null,null,null,null,null,null,null,null,null,null,null,83,null,""]
[null,null,null,null,null,null,null,null,null,null,null,null,null,null,null,84,null,""]
[null,null,null,null,null,null,null,null,null,null,null,null,null,null,null,85,null,""]
[null,null,null,null,null,null,null,null,null,null,null,null,null,null,null,86,null,""]
[null,null,null,null,null,null,null,null,null,null,null,null,null,null,null,87,null,""]
[null,null,null,null,null,null,null,null,null,null,null,null,null,null,null,88,null,""]
[null,null,null,null,null,null,null,null,null,null,null,null,null,null,null,89,null,""]
[null,null,null,null,null,null,null,null,null,null,null,null,null,null,null,90,null,""]
[null,null,null,null,null,null,null,null,null,null,null,null,null,null,null,91,null,""]
[null,null,null,null,null,null,null,null,null,null,null,null,null,null,null,92,null,""]
[null,null,null,null,null,null,null,null,null,null,null,null,null,null,null,93,null,""]
[null,null,null,null,null,null,null,null,null,null,null,null,null,null,null,94,null,""]
[null,null,null,null,null,null,null,null,null,null,null,null,null,null,null,95,null,""]
[null,null,null,null,null,null,null,null,null,null,null,null,null,null,null,96,null,""]
[null,null,null,null,null,null,null,null,null,null,null,null,null,null,null,97,null,""]
[null,null,null,null,null,null,null,null,null,null,null,null,null,null,null,98,null,""]
[null,null,null,null,null,null,null,null,null,null,null,null,null,null,null,99,null,""]
[null,null,null,null,null,null,null,null,null,null,null,null,null,null,null,100,null,""]

{"sheet":"Trip (24)","index":24,"n_rows":125,"n_cols":20,"rows_kept":125,"cut":false,"hidden":false,"merged":[[24,19,24,30],[40,8,40,13],[120,19,120,30],[121,19,121,30],[122,19,122,30],[123,19,123,30],[124,19,124,30],[115,19,115,30],[116,19,116,30],[117,19,117,30],[118,19,118,30],[119,19,119,30],[110,19,110,30],[111,19,111,30],[112,19,112,30],[113,19,113,30],[114,19,114,30],[105,19,105,30],[106,19,106,30],[107,19,107,30],[108,19,108,30],[109,19,109,30],[100,19,100,30],[101,19,101,30],[102,19,102,30],[103,19,103,30],[104,19,104,30],[95,19,95,30],[96,19,96,30],[97,19,97,30],[98,19,98,30],[99,19,99,30],[90,19,90,30],[91,19,91,30],[92,19,92,30],[93,19,93,30],[94,19,94,30],[85,19,85,30],[86,19,86,30],[87,19,87,30],[88,19,88,30],[89,19,89,30],[80,19,80,30],[81,19,81,30],[82,19,82,30],[83,19,83,30],[84,19,84,30],[76,19,76,30],[77,19,77,30],[78,19,78,30],[79,19,79,30],[70,19,70,30],[71,19,71,30],[72,19,72,30],[73,19,73,30],[74,19,74,30],[67,19,67,30],[68,19,68,30],[69,19,69,30],[60,19,60,30],[61,19,61,30],[62,19,62,30],[63,19,63,30],[64,19,64,30],[75,19,75,30],[58,19,58,30],[59,19,59,30],[50,19,50,30],[51,19,51,30],[52,19,52,30],[53,19,53,30],[54,19,54,30],[65,19,65,30],[66,19,66,30],[49,19,49,30],[40,19,40,30],[41,19,41,30],[42,19,42,30],[43,19,43,30],[44,19,44,30],[55,19,55,30],[56,19,56,30],[57,19,57,30],[30,19,30,30],[31,19,31,30],[32,19,32,30],[33,19,33,30],[34,19,34,30],[45,19,45,30],[46,19,46,30],[47,19,47,30],[48,19,48,30],[25,19,25,30],[26,19,26,30],[27,19,27,30],[28,19,28,30],[29,19,29,30],[75,8,75,9],[76,8,76,9],[77,8,77,9],[78,8,78,9],[69,8,69,9],[70,8,70,9],[71,8,71,9],[72,8,72,9],[73,8,73,9],[74,8,74,9],[68,8,68,9],[67,8,67,9],[42,8,42,13],[43,8,43,13],[35,19,35,30],[36,19,36,30],[37,19,37,30],[38,19,38,30],[39,19,39,30],[58,2,58,3],[58,8,58,13],[59,2,59,3],[59,8,59,13],[60,2,60,3],[60,8,60,13],[61,2,61,3],[61,8,61,13],[63,8,63,10],[63,12,63,13],[55,2,55,3],[55,8,55,13],[56,2,56,3],[56,8,56,13],[57,2,57,3],[57,8,57,13],[52,2,52,3],[52,8,52,13],[53,2,53,3],[53,8,53,13],[54,2,54,3],[54,8,54,13],[49,2,49,3],[49,8,49,13],[50,2,50,3],[50,8,50,13],[51,2,51,3],[51,8,51,13],[46,2,46,3],[46,8,46,13],[47,2,47,3],[47,8,47,13],[48,2,48,3],[48,8,48,13],[44,2,44,3],[44,8,44,13],[45,2,45,3],[45,8,45,13],[41,8,41,13],[34,2,34,3],[34,8,34,13],[35,2,35,3],[35,8,35,13],[36,2,36,3],[36,8,36,13],[37,2,37,3],[37,8,37,13],[38,2,38,3],[39,10,39,11],[40,2,40,3],[41,2,41,3],[42,2,42,3],[43,2,43,3],[31,2,31,3],[31,8,31,13],[32,2,32,3],[32,8,32,13],[33,2,33,3],[33,8,33,13],[28,2,28,3],[28,8,28,13],[29,2,29,3],[29,8,29,13],[30,2,30,3],[30,8,30,13],[22,18,23,18],[25,2,25,3],[25,8,25,13],[26,2,26,3],[26,8,26,13],[15,17,23,17],[27,2,27,3],[27,8,27,13],[8,3,8,12],[10,3,10,6],[10,10,10,12],[12,10,12,12],[16,10,16,12],[18,10,18,12]]}
[]
[null,null,null,null,null,null,null,"Leeds University Union Caving Society"]
[]
[]
[{"$f":"CONCATENATE(\"Trip Name:  \",D9)","v":"Trip Name:  "}]
[]
[]
[null,"Trip details:",null,"Title"]
[null,null,"Trip Name:"]
[]
[null,null,"Location:",null,null,null,null,null,null,"Organizer:"]
[]
[null,null,"Date/s:",null,null,null,null,null,null,"Caving Hut","-"]
[]
[]
[null,null,null,null,null,null,null,null,null,null,null,null,null,null,null,null,null,"No. of people going"]
[null,null,"Trip Expenses",{"$f":"H39+H63","v":0},null,null,null,null,null,"Number of people going",{"$f":"R25","v":0}]
[]
[null,null,"Trip Revenue",{"$f":"S25","v":0}]
[]
[]
[]
[null,null,null,null,null,null,null,null,null,null,null,null,null,null,null,null,null,null,"Trip cost per person"]
[]
[null,null,null,"Transport","      Days:","Qty.","Cost","Total","Notes",null,null,null,null,null,null,null,"Trip Attenden Names",{"$f":"SUM(R26:R125)","v":0},{"$f":"SUM(S26:S77)","v":0},"  Notes"]
[null,null,null,null,1,1,0,{"$f":"G26*E26*F26","v":0},null,null,null,null,null,null,null,1,null,{"$f":"IF(Q26=\"\",\"\",IF(Q26=\"\",\"\",1))","v":""}]
[null,null,null,null,1,1,0,{"$f":"G27*E27*F27","v":0},null,null,null,null,null,null,null,2,null,{"$f":"IF(Q27=\"\",\"\",IF(Q27=\"\",\"\",1))","v":""}]
[null,null,null,null,1,1,0,0,null,null,null,null,null,null,null,3,null,""]
[null,null,null,null,1,1,0,0,null,null,null,null,null,null,null,4,null,""]
[null,null,null,null,1,1,0,0,null,null,null,null,null,null,null,5,null,""]
[null,null,null,null,1,1,0,0,null,null,null,null,null,null,null,6,null,""]
[null,null,null,null,1,1,0,0,null,null,null,null,null,null,null,7,null,""]
[null,null,null,null,1,1,0,0,null,null,null,null,null,null,null,8,null,""]
[null,null,null,null,1,1,0,0,null,null,null,null,null,null,null,9,null,""]
[null,null,null,null,1,1,0,0,null,null,null,null,null,null,null,10,null,""]
[null,null,null,null,1,1,0,0,null,null,null,null,null,null,null,11,null,""]
[null,null,null,null,1,1,0,0,null,null,null,null,null,null,null,12,null,""]
[null,null,null,null,1,1,0,{"$f":"G38*E38*F38","v":0},null,null,null,null,null,null,null,13,null,""]
[null,null,null,null,null,null,null,{"$f":"SUM(H26:H38)","v":0},null,null,null,null,null,null,null,14,null,""]
[null,null,null,null,null,null,null,null,null,null,null,null,null,null,null,15,null,""]
[null,null,"Other Expenses",null,"Qty","No.","Cost","Total"," Notes",null,null,null,null,null,null,16,null,""]
[null,null,null,null,1,1,0,{"$f":"G42*F42*E42","v":0},null,null,null,null,null,null,null,17,null,""]
[null,null,null,null,1,1,0,{"$f":"G43*F43*E43","v":0},null,null,null,null,null,null,null,18,null,""]
[null,null,null,null,1,1,0,{"$f":"G44*F44*E44","v":0},null,null,null,null,null,null,null,19,null,""]
[null,null,null,null,1,1,0,0,null,null,null,null,null,null,null,20,null,""]
[null,null,null,null,1,1,0,0,null,null,null,null,null,null,null,21,null,""]
[null,null,null,null,1,1,0,0,null,null,null,null,null,null,null,22,null,""]
[null,null,null,null,1,1,0,0,null,null,null,null,null,null,null,23,null,""]
[null,null,null,null,1,1,0,0,null,null,null,null,null,null,null,24,null,""]
[null,null,null,null,1,1,0,0,null,null,null,null,null,null,null,25,null,""]
[null,null,null,null,1,1,0,0,null,null,null,null,null,null,null,26,null,""]
[null,null,null,null,1,1,0,0,null,null,null,null,null,null,null,27,null,""]
[null,null,null,null,1,1,0,0,null,null,null,null,null,null,null,28,null,""]
[null,null,null,null,1,1,0,0,null,null,null,null,null,null,null,29,null,""]
[null,null,null,null,1,1,0,0,null,null,null,null,null,null,null,30,null,""]
[null,null,null,null,1,1,0,0,null,null,null,null,null,null,null,31,null,""]
[null,null,null,null,1,1,0,0,null,null,null,null,null,null,null,32,null,""]
[null,null,null,null,1,1,0,0,null,null,null,null,null,null,null,33,null,""]
[null,null,null,null,1,1,0,0,null,null,null,null,null,null,null,34,null,""]
[null,null,null,null,1,1,0,0,null,null,null,null,null,null,null,35,null,""]
[null,null,null,null,1,1,0,0,null,null,null,null,null,null,null,36,null,""]
[null,null,null,null,1,1,0,0,null,null,null,null,null,null,null,37,null,""]
[null,null,null,null,null,null,null,{"$f":"SUM(H42:H62)","v":0},null,null,null,null,null,null,null,38,null,""]
[null,null,null,null,null,null,null,null,null,null,null,null,null,null,null,39,null,""]
[null,null,null,null,null,null,null,null,null,null,null,null,null,null,null,40,null,""]
[null,null,null,null,null,null,null,null,null,null,null,null,null,null,null,41,null,""]
[null,null,null,null,null,null,null,null,null,null,null,null,null,null,null,42,null,""]
[null,null,null,null,null,null,null,null,null,null,null,null,null,null,null,43,null,""]
[null,null,null,null,null,null,null,null,null,null,null,null,null,null,null,44,null,""]
[null,null,null,null,null,null,null,null,null,null,null,null,null,null,null,45,null,""]
[null,null,null,null,null,null,null,null,null,null,null,null,null,null,null,46,null,""]
[null,null,null,null,null,null,null,null,null,null,null,null,null,null,null,47,null,""]
[null,null,null,null,null,null,null,null,null,null,null,null,null,null,null,48,null,""]
[null,null,null,null,null,null,null,null,null,null,null,null,null,null,null,49,null,""]
[null,null,null,null,null,null,null,null,null,null,null,null,null,null,null,50,null,""]
[null,null,null,null,null,null,null,null,null,null,null,null,null,null,null,51,null,""]
[null,null,null,null,null,null,null,null,null,null,null,null,null,null,null,52,null,""]
[null,null,null,null,null,null,null,null,null,null,null,null,null,null,null,53,null,""]
[null,null,null,null,null,null,null,null,null,null,null,null,null,null,null,54,null,""]
[null,null,null,null,null,null,null,null,null,null,null,null,null,null,null,55,null,""]
[null,null,null,null,null,null,null,null,null,null,null,null,null,null,null,56,null,""]
[null,null,null,null,null,null,null,null,null,null,null,null,null,null,null,57,null,""]
[null,null,null,null,null,null,null,null,null,null,null,null,null,null,null,58,null,""]
[null,null,null,null,null,null,null,null,null,null,null,null,null,null,null,59,null,""]
[null,null,null,null,null,null,null,null,null,null,null,null,null,null,null,60,null,""]
[null,null,null,null,null,null,null,null,null,null,null,null,null,null,null,61,null,""]
[null,null,null,null,null,null,null,null,null,null,null,null,null,null,null,62,null,""]
[null,null,null,null,null,null,null,null,null,null,null,null,null,null,null,63,null,""]
[null,null,null,null,null,null,null,null,null,null,null,null,null,null,null,64,null,""]
[null,null,null,null,null,null,null,null,null,null,null,null,null,null,null,65,null,""]
[null,null,null,null,null,null,null,null,null,null,null,null,null,null,null,66,null,{"$f":"IF(Q91=\"\",\"\",IF(Q91=\"\",\"\",1))","v":""}]
[null,null,null,null,null,null,null,null,null,null,null,null,null,null,null,67,null,""]
[null,null,null,null,null,null,null,null,null,null,null,null,null,null,null,68,null,""]
[null,null,null,null,null,null,null,null,null,null,null,null,null,null,null,69,null,""]
[null,null,null,null,null,null,null,null,null,null,null,null,null,null,null,70,null,""]
[null,null,null,null,null,null,null,null,null,null,null,null,null,null,null,71,null,""]
[null,null,null,null,null,null,null,null,null,null,null,null,null,null,null,72,null,""]
[null,null,null,null,null,null,null,null,null,null,null,null,null,null,null,73,null,""]
[null,null,null,null,null,null,null,null,null,null,null,null,null,null,null,74,null,""]
[null,null,null,null,null,null,null,null,null,null,null,null,null,null,null,75,null,""]
[null,null,null,null,null,null,null,null,null,null,null,null,null,null,null,76,null,""]
[null,null,null,null,null,null,null,null,null,null,null,null,null,null,null,77,null,""]
[null,null,null,null,null,null,null,null,null,null,null,null,null,null,null,78,null,""]
[null,null,null,null,null,null,null,null,null,null,null,null,null,null,null,79,null,""]
[null,null,null,null,null,null,null,null,null,null,null,null,null,null,null,80,null,""]
[null,null,null,null,null,null,null,null,null,null,null,null,null,null,null,81,null,""]
[null,null,null,null,null,null,null,null,null,null,null,null,null,null,null,82,null,""]
[null,null,null,null,null,null,null,null,null,null,null,null,null,null,null,83,null,""]
[null,null,null,null,null,null,null,null,null,null,null,null,null,null,null,84,null,""]
[null,null,null,null,null,null,null,null,null,null,null,null,null,null,null,85,null,""]
[null,null,null,null,null,null,null,null,null,null,null,null,null,null,null,86,null,""]
[null,null,null,null,null,null,null,null,null,null,null,null,null,null,null,87,null,""]
[null,null,null,null,null,null,null,null,null,null,null,null,null,null,null,88,null,""]
[null,null,null,null,null,null,null,null,null,null,null,null,null,null,null,89,null,""]
[null,null,null,null,null,null,null,null,null,null,null,null,null,null,null,90,null,""]
[null,null,null,null,null,null,null,null,null,null,null,null,null,null,null,91,null,""]
[null,null,null,null,null,null,null,null,null,null,null,null,null,null,null,92,null,""]
[null,null,null,null,null,null,null,null,null,null,null,null,null,null,null,93,null,""]
[null,null,null,null,null,null,null,null,null,null,null,null,null,null,null,94,null,""]
[null,null,null,null,null,null,null,null,null,null,null,null,null,null,null,95,null,""]
[null,null,null,null,null,null,null,null,null,null,null,null,null,null,null,96,null,""]
[null,null,null,null,null,null,null,null,null,null,null,null,null,null,null,97,null,""]
[null,null,null,null,null,null,null,null,null,null,null,null,null,null,null,98,null,""]
[null,null,null,null,null,null,null,null,null,null,null,null,null,null,null,99,null,""]
[null,null,null,null,null,null,null,null,null,null,null,null,null,null,null,100,null,""]

{"sheet":"Trip (25)","index":25,"n_rows":125,"n_cols":20,"rows_kept":125,"cut":false,"hidden":false,"merged":[[24,19,24,30],[40,8,40,13],[120,19,120,30],[121,19,121,30],[122,19,122,30],[123,19,123,30],[124,19,124,30],[115,19,115,30],[116,19,116,30],[117,19,117,30],[118,19,118,30],[119,19,119,30],[110,19,110,30],[111,19,111,30],[112,19,112,30],[113,19,113,30],[114,19,114,30],[105,19,105,30],[106,19,106,30],[107,19,107,30],[108,19,108,30],[109,19,109,30],[100,19,100,30],[101,19,101,30],[102,19,102,30],[103,19,103,30],[104,19,104,30],[95,19,95,30],[96,19,96,30],[97,19,97,30],[98,19,98,30],[99,19,99,30],[90,19,90,30],[91,19,91,30],[92,19,92,30],[93,19,93,30],[94,19,94,30],[85,19,85,30],[86,19,86,30],[87,19,87,30],[88,19,88,30],[89,19,89,30],[80,19,80,30],[81,19,81,30],[82,19,82,30],[83,19,83,30],[84,19,84,30],[76,19,76,30],[77,19,77,30],[78,19,78,30],[79,19,79,30],[70,19,70,30],[71,19,71,30],[72,19,72,30],[73,19,73,30],[74,19,74,30],[67,19,67,30],[68,19,68,30],[69,19,69,30],[60,19,60,30],[61,19,61,30],[62,19,62,30],[63,19,63,30],[64,19,64,30],[75,19,75,30],[58,19,58,30],[59,19,59,30],[50,19,50,30],[51,19,51,30],[52,19,52,30],[53,19,53,30],[54,19,54,30],[65,19,65,30],[66,19,66,30],[49,19,49,30],[40,19,40,30],[41,19,41,30],[42,19,42,30],[43,19,43,30],[44,19,44,30],[55,19,55,30],[56,19,56,30],[57,19,57,30],[30,19,30,30],[31,19,31,30],[32,19,32,30],[33,19,33,30],[34,19,34,30],[45,19,45,30],[46,19,46,30],[47,19,47,30],[48,19,48,30],[25,19,25,30],[26,19,26,30],[27,19,27,30],[28,19,28,30],[29,19,29,30],[75,8,75,9],[76,8,76,9],[77,8,77,9],[78,8,78,9],[69,8,69,9],[70,8,70,9],[71,8,71,9],[72,8,72,9],[73,8,73,9],[74,8,74,9],[68,8,68,9],[67,8,67,9],[42,8,42,13],[43,8,43,13],[35,19,35,30],[36,19,36,30],[37,19,37,30],[38,19,38,30],[39,19,39,30],[58,2,58,3],[58,8,58,13],[59,2,59,3],[59,8,59,13],[60,2,60,3],[60,8,60,13],[61,2,61,3],[61,8,61,13],[63,8,63,10],[63,12,63,13],[55,2,55,3],[55,8,55,13],[56,2,56,3],[56,8,56,13],[57,2,57,3],[57,8,57,13],[52,2,52,3],[52,8,52,13],[53,2,53,3],[53,8,53,13],[54,2,54,3],[54,8,54,13],[49,2,49,3],[49,8,49,13],[50,2,50,3],[50,8,50,13],[51,2,51,3],[51,8,51,13],[46,2,46,3],[46,8,46,13],[47,2,47,3],[47,8,47,13],[48,2,48,3],[48,8,48,13],[44,2,44,3],[44,8,44,13],[45,2,45,3],[45,8,45,13],[41,8,41,13],[34,2,34,3],[34,8,34,13],[35,2,35,3],[35,8,35,13],[36,2,36,3],[36,8,36,13],[37,2,37,3],[37,8,37,13],[38,2,38,3],[39,10,39,11],[40,2,40,3],[41,2,41,3],[42,2,42,3],[43,2,43,3],[31,2,31,3],[31,8,31,13],[32,2,32,3],[32,8,32,13],[33,2,33,3],[33,8,33,13],[28,2,28,3],[28,8,28,13],[29,2,29,3],[29,8,29,13],[30,2,30,3],[30,8,30,13],[22,18,23,18],[25,2,25,3],[25,8,25,13],[26,2,26,3],[26,8,26,13],[15,17,23,17],[27,2,27,3],[27,8,27,13],[8,3,8,12],[10,3,10,6],[10,10,10,12],[12,10,12,12],[16,10,16,12],[18,10,18,12]]}
[]
[null,null,null,null,null,null,null,"Leeds University Union Caving Society"]
[]
[]
[{"$f":"CONCATENATE(\"Trip Name:  \",D9)","v":"Trip Name:  "}]
[]
[]
[null,"Trip details:",null,"Title"]
[null,null,"Trip Name:"]
[]
[null,null,"Location:",null,null,null,null,null,null,"Organizer:"]
[]
[null,null,"Date/s:",null,null,null,null,null,null,"Caving Hut","-"]
[]
[]
[null,null,null,null,null,null,null,null,null,null,null,null,null,null,null,null,null,"No. of people going"]
[null,null,"Trip Expenses",{"$f":"H39+H63","v":0},null,null,null,null,null,"Number of people going",{"$f":"R25","v":0}]
[]
[null,null,"Trip Revenue",{"$f":"S25","v":0}]
[]
[]
[]
[null,null,null,null,null,null,null,null,null,null,null,null,null,null,null,null,null,null,"Trip cost per person"]
[]
[null,null,null,"Transport","      Days:","Qty.","Cost","Total","Notes",null,null,null,null,null,null,null,"Trip Attenden Names",{"$f":"SUM(R26:R125)","v":0},{"$f":"SUM(S26:S77)","v":0},"  Notes"]
[null,null,null,null,1,1,0,{"$f":"G26*E26*F26","v":0},null,null,null,null,null,null,null,1,null,{"$f":"IF(Q26=\"\",\"\",IF(Q26=\"\",\"\",1))","v":""}]
[null,null,null,null,1,1,0,{"$f":"G27*E27*F27","v":0},null,null,null,null,null,null,null,2,null,{"$f":"IF(Q27=\"\",\"\",IF(Q27=\"\",\"\",1))","v":""}]
[null,null,null,null,1,1,0,0,null,null,null,null,null,null,null,3,null,""]
[null,null,null,null,1,1,0,0,null,null,null,null,null,null,null,4,null,""]
[null,null,null,null,1,1,0,0,null,null,null,null,null,null,null,5,null,""]
[null,null,null,null,1,1,0,0,null,null,null,null,null,null,null,6,null,""]
[null,null,null,null,1,1,0,0,null,null,null,null,null,null,null,7,null,""]
[null,null,null,null,1,1,0,0,null,null,null,null,null,null,null,8,null,""]
[null,null,null,null,1,1,0,0,null,null,null,null,null,null,null,9,null,""]
[null,null,null,null,1,1,0,0,null,null,null,null,null,null,null,10,null,""]
[null,null,null,null,1,1,0,0,null,null,null,null,null,null,null,11,null,""]
[null,null,null,null,1,1,0,0,null,null,null,null,null,null,null,12,null,""]
[null,null,null,null,1,1,0,{"$f":"G38*E38*F38","v":0},null,null,null,null,null,null,null,13,null,""]
[null,null,null,null,null,null,null,{"$f":"SUM(H26:H38)","v":0},null,null,null,null,null,null,null,14,null,""]
[null,null,null,null,null,null,null,null,null,null,null,null,null,null,null,15,null,""]
[null,null,"Other Expenses",null,"Qty","No.","Cost","Total"," Notes",null,null,null,null,null,null,16,null,""]
[null,null,null,null,1,1,0,{"$f":"G42*F42*E42","v":0},null,null,null,null,null,null,null,17,null,""]
[null,null,null,null,1,1,0,{"$f":"G43*F43*E43","v":0},null,null,null,null,null,null,null,18,null,""]
[null,null,null,null,1,1,0,{"$f":"G44*F44*E44","v":0},null,null,null,null,null,null,null,19,null,""]
[null,null,null,null,1,1,0,0,null,null,null,null,null,null,null,20,null,""]
[null,null,null,null,1,1,0,0,null,null,null,null,null,null,null,21,null,""]
[null,null,null,null,1,1,0,0,null,null,null,null,null,null,null,22,null,""]
[null,null,null,null,1,1,0,0,null,null,null,null,null,null,null,23,null,""]
[null,null,null,null,1,1,0,0,null,null,null,null,null,null,null,24,null,""]
[null,null,null,null,1,1,0,0,null,null,null,null,null,null,null,25,null,""]
[null,null,null,null,1,1,0,0,null,null,null,null,null,null,null,26,null,""]
[null,null,null,null,1,1,0,0,null,null,null,null,null,null,null,27,null,""]
[null,null,null,null,1,1,0,0,null,null,null,null,null,null,null,28,null,""]
[null,null,null,null,1,1,0,0,null,null,null,null,null,null,null,29,null,""]
[null,null,null,null,1,1,0,0,null,null,null,null,null,null,null,30,null,""]
[null,null,null,null,1,1,0,0,null,null,null,null,null,null,null,31,null,""]
[null,null,null,null,1,1,0,0,null,null,null,null,null,null,null,32,null,""]
[null,null,null,null,1,1,0,0,null,null,null,null,null,null,null,33,null,""]
[null,null,null,null,1,1,0,0,null,null,null,null,null,null,null,34,null,""]
[null,null,null,null,1,1,0,0,null,null,null,null,null,null,null,35,null,""]
[null,null,null,null,1,1,0,0,null,null,null,null,null,null,null,36,null,""]
[null,null,null,null,1,1,0,0,null,null,null,null,null,null,null,37,null,""]
[null,null,null,null,null,null,null,{"$f":"SUM(H42:H62)","v":0},null,null,null,null,null,null,null,38,null,""]
[null,null,null,null,null,null,null,null,null,null,null,null,null,null,null,39,null,""]
[null,null,null,null,null,null,null,null,null,null,null,null,null,null,null,40,null,""]
[null,null,null,null,null,null,null,null,null,null,null,null,null,null,null,41,null,""]
[null,null,null,null,null,null,null,null,null,null,null,null,null,null,null,42,null,""]
[null,null,null,null,null,null,null,null,null,null,null,null,null,null,null,43,null,""]
[null,null,null,null,null,null,null,null,null,null,null,null,null,null,null,44,null,""]
[null,null,null,null,null,null,null,null,null,null,null,null,null,null,null,45,null,""]
[null,null,null,null,null,null,null,null,null,null,null,null,null,null,null,46,null,""]
[null,null,null,null,null,null,null,null,null,null,null,null,null,null,null,47,null,""]
[null,null,null,null,null,null,null,null,null,null,null,null,null,null,null,48,null,""]
[null,null,null,null,null,null,null,null,null,null,null,null,null,null,null,49,null,""]
[null,null,null,null,null,null,null,null,null,null,null,null,null,null,null,50,null,""]
[null,null,null,null,null,null,null,null,null,null,null,null,null,null,null,51,null,""]
[null,null,null,null,null,null,null,null,null,null,null,null,null,null,null,52,null,""]
[null,null,null,null,null,null,null,null,null,null,null,null,null,null,null,53,null,""]
[null,null,null,null,null,null,null,null,null,null,null,null,null,null,null,54,null,""]
[null,null,null,null,null,null,null,null,null,null,null,null,null,null,null,55,null,""]
[null,null,null,null,null,null,null,null,null,null,null,null,null,null,null,56,null,""]
[null,null,null,null,null,null,null,null,null,null,null,null,null,null,null,57,null,""]
[null,null,null,null,null,null,null,null,null,null,null,null,null,null,null,58,null,""]
[null,null,null,null,null,null,null,null,null,null,null,null,null,null,null,59,null,""]
[null,null,null,null,null,null,null,null,null,null,null,null,null,null,null,60,null,""]
[null,null,null,null,null,null,null,null,null,null,null,null,null,null,null,61,null,""]
[null,null,null,null,null,null,null,null,null,null,null,null,null,null,null,62,null,""]
[null,null,null,null,null,null,null,null,null,null,null,null,null,null,null,63,null,""]
[null,null,null,null,null,null,null,null,null,null,null,null,null,null,null,64,null,""]
[null,null,null,null,null,null,null,null,null,null,null,null,null,null,null,65,null,""]
[null,null,null,null,null,null,null,null,null,null,null,null,null,null,null,66,null,{"$f":"IF(Q91=\"\",\"\",IF(Q91=\"\",\"\",1))","v":""}]
[null,null,null,null,null,null,null,null,null,null,null,null,null,null,null,67,null,""]
[null,null,null,null,null,null,null,null,null,null,null,null,null,null,null,68,null,""]
[null,null,null,null,null,null,null,null,null,null,null,null,null,null,null,69,null,""]
[null,null,null,null,null,null,null,null,null,null,null,null,null,null,null,70,null,""]
[null,null,null,null,null,null,null,null,null,null,null,null,null,null,null,71,null,""]
[null,null,null,null,null,null,null,null,null,null,null,null,null,null,null,72,null,""]
[null,null,null,null,null,null,null,null,null,null,null,null,null,null,null,73,null,""]
[null,null,null,null,null,null,null,null,null,null,null,null,null,null,null,74,null,""]
[null,null,null,null,null,null,null,null,null,null,null,null,null,null,null,75,null,""]
[null,null,null,null,null,null,null,null,null,null,null,null,null,null,null,76,null,""]
[null,null,null,null,null,null,null,null,null,null,null,null,null,null,null,77,null,""]
[null,null,null,null,null,null,null,null,null,null,null,null,null,null,null,78,null,""]
[null,null,null,null,null,null,null,null,null,null,null,null,null,null,null,79,null,""]
[null,null,null,null,null,null,null,null,null,null,null,null,null,null,null,80,null,""]
[null,null,null,null,null,null,null,null,null,null,null,null,null,null,null,81,null,""]
[null,null,null,null,null,null,null,null,null,null,null,null,null,null,null,82,null,""]
[null,null,null,null,null,null,null,null,null,null,null,null,null,null,null,83,null,""]
[null,null,null,null,null,null,null,null,null,null,null,null,null,null,null,84,null,""]
[null,null,null,null,null,null,null,null,null,null,null,null,null,null,null,85,null,""]
[null,null,null,null,null,null,null,null,null,null,null,null,null,null,null,86,null,""]
[null,null,null,null,null,null,null,null,null,null,null,null,null,null,null,87,null,""]
[null,null,null,null,null,null,null,null,null,null,null,null,null,null,null,88,null,""]
[null,null,null,null,null,null,null,null,null,null,null,null,null,null,null,89,null,""]
[null,null,null,null,null,null,null,null,null,null,null,null,null,null,null,90,null,""]
[null,null,null,null,null,null,null,null,null,null,null,null,null,null,null,91,null,""]
[null,null,null,null,null,null,null,null,null,null,null,null,null,null,null,92,null,""]
[null,null,null,null,null,null,null,null,null,null,null,null,null,null,null,93,null,""]
[null,null,null,null,null,null,null,null,null,null,null,null,null,null,null,94,null,""]
[null,null,null,null,null,null,null,null,null,null,null,null,null,null,null,95,null,""]
[null,null,null,null,null,null,null,null,null,null,null,null,null,null,null,96,null,""]
[null,null,null,null,null,null,null,null,null,null,null,null,null,null,null,97,null,""]
[null,null,null,null,null,null,null,null,null,null,null,null,null,null,null,98,null,""]
[null,null,null,null,null,null,null,null,null,null,null,null,null,null,null,99,null,""]
[null,null,null,null,null,null,null,null,null,null,null,null,null,null,null,100,null,""]

{"sheet":"Trip (26)","index":26,"n_rows":125,"n_cols":20,"rows_kept":125,"cut":false,"hidden":false,"merged":[[24,19,24,30],[40,8,40,13],[120,19,120,30],[121,19,121,30],[122,19,122,30],[123,19,123,30],[124,19,124,30],[115,19,115,30],[116,19,116,30],[117,19,117,30],[118,19,118,30],[119,19,119,30],[110,19,110,30],[111,19,111,30],[112,19,112,30],[113,19,113,30],[114,19,114,30],[105,19,105,30],[106,19,106,30],[107,19,107,30],[108,19,108,30],[109,19,109,30],[100,19,100,30],[101,19,101,30],[102,19,102,30],[103,19,103,30],[104,19,104,30],[95,19,95,30],[96,19,96,30],[97,19,97,30],[98,19,98,30],[99,19,99,30],[90,19,90,30],[91,19,91,30],[92,19,92,30],[93,19,93,30],[94,19,94,30],[85,19,85,30],[86,19,86,30],[87,19,87,30],[88,19,88,30],[89,19,89,30],[80,19,80,30],[81,19,81,30],[82,19,82,30],[83,19,83,30],[84,19,84,30],[76,19,76,30],[77,19,77,30],[78,19,78,30],[79,19,79,30],[70,19,70,30],[71,19,71,30],[72,19,72,30],[73,19,73,30],[74,19,74,30],[67,19,67,30],[68,19,68,30],[69,19,69,30],[60,19,60,30],[61,19,61,30],[62,19,62,30],[63,19,63,30],[64,19,64,30],[75,19,75,30],[58,19,58,30],[59,19,59,30],[50,19,50,30],[51,19,51,30],[52,19,52,30],[53,19,53,30],[54,19,54,30],[65,19,65,30],[66,19,66,30],[49,19,49,30],[40,19,40,30],[41,19,41,30],[42,19,42,30],[43,19,43,30],[44,19,44,30],[55,19,55,30],[56,19,56,30],[57,19,57,30],[30,19,30,30],[31,19,31,30],[32,19,32,30],[33,19,33,30],[34,19,34,30],[45,19,45,30],[46,19,46,30],[47,19,47,30],[48,19,48,30],[25,19,25,30],[26,19,26,30],[27,19,27,30],[28,19,28,30],[29,19,29,30],[75,8,75,9],[76,8,76,9],[77,8,77,9],[78,8,78,9],[69,8,69,9],[70,8,70,9],[71,8,71,9],[72,8,72,9],[73,8,73,9],[74,8,74,9],[68,8,68,9],[67,8,67,9],[42,8,42,13],[43,8,43,13],[35,19,35,30],[36,19,36,30],[37,19,37,30],[38,19,38,30],[39,19,39,30],[58,2,58,3],[58,8,58,13],[59,2,59,3],[59,8,59,13],[60,2,60,3],[60,8,60,13],[61,2,61,3],[61,8,61,13],[63,8,63,10],[63,12,63,13],[55,2,55,3],[55,8,55,13],[56,2,56,3],[56,8,56,13],[57,2,57,3],[57,8,57,13],[52,2,52,3],[52,8,52,13],[53,2,53,3],[53,8,53,13],[54,2,54,3],[54,8,54,13],[49,2,49,3],[49,8,49,13],[50,2,50,3],[50,8,50,13],[51,2,51,3],[51,8,51,13],[46,2,46,3],[46,8,46,13],[47,2,47,3],[47,8,47,13],[48,2,48,3],[48,8,48,13],[44,2,44,3],[44,8,44,13],[45,2,45,3],[45,8,45,13],[41,8,41,13],[34,2,34,3],[34,8,34,13],[35,2,35,3],[35,8,35,13],[36,2,36,3],[36,8,36,13],[37,2,37,3],[37,8,37,13],[38,2,38,3],[39,10,39,11],[40,2,40,3],[41,2,41,3],[42,2,42,3],[43,2,43,3],[31,2,31,3],[31,8,31,13],[32,2,32,3],[32,8,32,13],[33,2,33,3],[33,8,33,13],[28,2,28,3],[28,8,28,13],[29,2,29,3],[29,8,29,13],[30,2,30,3],[30,8,30,13],[22,18,23,18],[25,2,25,3],[25,8,25,13],[26,2,26,3],[26,8,26,13],[15,17,23,17],[27,2,27,3],[27,8,27,13],[8,3,8,12],[10,3,10,6],[10,10,10,12],[12,10,12,12],[16,10,16,12],[18,10,18,12]]}
[]
[null,null,null,null,null,null,null,"Leeds University Union Caving Society"]
[]
[]
[{"$f":"CONCATENATE(\"Trip Name:  \",D9)","v":"Trip Name:  "}]
[]
[]
[null,"Trip details:",null,"Title"]
[null,null,"Trip Name:"]
[]
[null,null,"Location:",null,null,null,null,null,null,"Organizer:"]
[]
[null,null,"Date/s:",null,null,null,null,null,null,"Caving Hut","-"]
[]
[]
[null,null,null,null,null,null,null,null,null,null,null,null,null,null,null,null,null,"No. of people going"]
[null,null,"Trip Expenses",{"$f":"H39+H63","v":0},null,null,null,null,null,"Number of people going",{"$f":"R25","v":0}]
[]
[null,null,"Trip Revenue",{"$f":"S25","v":0}]
[]
[]
[]
[null,null,null,null,null,null,null,null,null,null,null,null,null,null,null,null,null,null,"Trip cost per person"]
[]
[null,null,null,"Transport","      Days:","Qty.","Cost","Total","Notes",null,null,null,null,null,null,null,"Trip Attenden Names",{"$f":"SUM(R26:R125)","v":0},{"$f":"SUM(S26:S77)","v":0},"  Notes"]
[null,null,null,null,1,1,0,{"$f":"G26*E26*F26","v":0},null,null,null,null,null,null,null,1,null,{"$f":"IF(Q26=\"\",\"\",IF(Q26=\"\",\"\",1))","v":""}]
[null,null,null,null,1,1,0,{"$f":"G27*E27*F27","v":0},null,null,null,null,null,null,null,2,null,{"$f":"IF(Q27=\"\",\"\",IF(Q27=\"\",\"\",1))","v":""}]
[null,null,null,null,1,1,0,0,null,null,null,null,null,null,null,3,null,""]
[null,null,null,null,1,1,0,0,null,null,null,null,null,null,null,4,null,""]
[null,null,null,null,1,1,0,0,null,null,null,null,null,null,null,5,null,""]
[null,null,null,null,1,1,0,0,null,null,null,null,null,null,null,6,null,""]
[null,null,null,null,1,1,0,0,null,null,null,null,null,null,null,7,null,""]
[null,null,null,null,1,1,0,0,null,null,null,null,null,null,null,8,null,""]
[null,null,null,null,1,1,0,0,null,null,null,null,null,null,null,9,null,""]
[null,null,null,null,1,1,0,0,null,null,null,null,null,null,null,10,null,""]
[null,null,null,null,1,1,0,0,null,null,null,null,null,null,null,11,null,""]
[null,null,null,null,1,1,0,0,null,null,null,null,null,null,null,12,null,""]
[null,null,null,null,1,1,0,{"$f":"G38*E38*F38","v":0},null,null,null,null,null,null,null,13,null,""]
[null,null,null,null,null,null,null,{"$f":"SUM(H26:H38)","v":0},null,null,null,null,null,null,null,14,null,""]
[null,null,null,null,null,null,null,null,null,null,null,null,null,null,null,15,null,""]
[null,null,"Other Expenses",null,"Qty","No.","Cost","Total"," Notes",null,null,null,null,null,null,16,null,""]
[null,null,null,null,1,1,0,{"$f":"G42*F42*E42","v":0},null,null,null,null,null,null,null,17,null,""]
[null,null,null,null,1,1,0,{"$f":"G43*F43*E43","v":0},null,null,null,null,null,null,null,18,null,""]
[null,null,null,null,1,1,0,{"$f":"G44*F44*E44","v":0},null,null,null,null,null,null,null,19,null,""]
[null,null,null,null,1,1,0,0,null,null,null,null,null,null,null,20,null,""]
[null,null,null,null,1,1,0,0,null,null,null,null,null,null,null,21,null,""]
[null,null,null,null,1,1,0,0,null,null,null,null,null,null,null,22,null,""]
[null,null,null,null,1,1,0,0,null,null,null,null,null,null,null,23,null,""]
[null,null,null,null,1,1,0,0,null,null,null,null,null,null,null,24,null,""]
[null,null,null,null,1,1,0,0,null,null,null,null,null,null,null,25,null,""]
[null,null,null,null,1,1,0,0,null,null,null,null,null,null,null,26,null,""]
[null,null,null,null,1,1,0,0,null,null,null,null,null,null,null,27,null,""]
[null,null,null,null,1,1,0,0,null,null,null,null,null,null,null,28,null,""]
[null,null,null,null,1,1,0,0,null,null,null,null,null,null,null,29,null,""]
[null,null,null,null,1,1,0,0,null,null,null,null,null,null,null,30,null,""]
[null,null,null,null,1,1,0,0,null,null,null,null,null,null,null,31,null,""]
[null,null,null,null,1,1,0,0,null,null,null,null,null,null,null,32,null,""]
[null,null,null,null,1,1,0,0,null,null,null,null,null,null,null,33,null,""]
[null,null,null,null,1,1,0,0,null,null,null,null,null,null,null,34,null,""]
[null,null,null,null,1,1,0,0,null,null,null,null,null,null,null,35,null,""]
[null,null,null,null,1,1,0,0,null,null,null,null,null,null,null,36,null,""]
[null,null,null,null,1,1,0,0,null,null,null,null,null,null,null,37,null,""]
[null,null,null,null,null,null,null,{"$f":"SUM(H42:H62)","v":0},null,null,null,null,null,null,null,38,null,""]
[null,null,null,null,null,null,null,null,null,null,null,null,null,null,null,39,null,""]
[null,null,null,null,null,null,null,null,null,null,null,null,null,null,null,40,null,""]
[null,null,null,null,null,null,null,null,null,null,null,null,null,null,null,41,null,""]
[null,null,null,null,null,null,null,null,null,null,null,null,null,null,null,42,null,""]
[null,null,null,null,null,null,null,null,null,null,null,null,null,null,null,43,null,""]
[null,null,null,null,null,null,null,null,null,null,null,null,null,null,null,44,null,""]
[null,null,null,null,null,null,null,null,null,null,null,null,null,null,null,45,null,""]
[null,null,null,null,null,null,null,null,null,null,null,null,null,null,null,46,null,""]
[null,null,null,null,null,null,null,null,null,null,null,null,null,null,null,47,null,""]
[null,null,null,null,null,null,null,null,null,null,null,null,null,null,null,48,null,""]
[null,null,null,null,null,null,null,null,null,null,null,null,null,null,null,49,null,""]
[null,null,null,null,null,null,null,null,null,null,null,null,null,null,null,50,null,""]
[null,null,null,null,null,null,null,null,null,null,null,null,null,null,null,51,null,""]
[null,null,null,null,null,null,null,null,null,null,null,null,null,null,null,52,null,""]
[null,null,null,null,null,null,null,null,null,null,null,null,null,null,null,53,null,""]
[null,null,null,null,null,null,null,null,null,null,null,null,null,null,null,54,null,""]
[null,null,null,null,null,null,null,null,null,null,null,null,null,null,null,55,null,""]
[null,null,null,null,null,null,null,null,null,null,null,null,null,null,null,56,null,""]
[null,null,null,null,null,null,null,null,null,null,null,null,null,null,null,57,null,""]
[null,null,null,null,null,null,null,null,null,null,null,null,null,null,null,58,null,""]
[null,null,null,null,null,null,null,null,null,null,null,null,null,null,null,59,null,""]
[null,null,null,null,null,null,null,null,null,null,null,null,null,null,null,60,null,""]
[null,null,null,null,null,null,null,null,null,null,null,null,null,null,null,61,null,""]
[null,null,null,null,null,null,null,null,null,null,null,null,null,null,null,62,null,""]
[null,null,null,null,null,null,null,null,null,null,null,null,null,null,null,63,null,""]
[null,null,null,null,null,null,null,null,null,null,null,null,null,null,null,64,null,""]
[null,null,null,null,null,null,null,null,null,null,null,null,null,null,null,65,null,""]
[null,null,null,null,null,null,null,null,null,null,null,null,null,null,null,66,null,{"$f":"IF(Q91=\"\",\"\",IF(Q91=\"\",\"\",1))","v":""}]
[null,null,null,null,null,null,null,null,null,null,null,null,null,null,null,67,null,""]
[null,null,null,null,null,null,null,null,null,null,null,null,null,null,null,68,null,""]
[null,null,null,null,null,null,null,null,null,null,null,null,null,null,null,69,null,""]
[null,null,null,null,null,null,null,null,null,null,null,null,null,null,null,70,null,""]
[null,null,null,null,null,null,null,null,null,null,null,null,null,null,null,71,null,""]
[null,null,null,null,null,null,null,null,null,null,null,null,null,null,null,72,null,""]
[null,null,null,null,null,null,null,null,null,null,null,null,null,null,null,73,null,""]
[null,null,null,null,null,null,null,null,null,null,null,null,null,null,null,74,null,""]
[null,null,null,null,null,null,null,null,null,null,null,null,null,null,null,75,null,""]
[null,null,null,null,null,null,null,null,null,null,null,null,null,null,null,76,null,""]
[null,null,null,null,null,null,null,null,null,null,null,null,null,null,null,77,null,""]
[null,null,null,null,null,null,null,null,null,null,null,null,null,null,null,78,null,""]
[null,null,null,null,null,null,null,null,null,null,null,null,null,null,null,79,null,""]
[null,null,null,null,null,null,null,null,null,null,null,null,null,null,null,80,null,""]
[null,null,null,null,null,null,null,null,null,null,null,null,null,null,null,81,null,""]
[null,null,null,null,null,null,null,null,null,null,null,null,null,null,null,82,null,""]
[null,null,null,null,null,null,null,null,null,null,null,null,null,null,null,83,null,""]
[null,null,null,null,null,null,null,null,null,null,null,null,null,null,null,84,null,""]
[null,null,null,null,null,null,null,null,null,null,null,null,null,null,null,85,null,""]
[null,null,null,null,null,null,null,null,null,null,null,null,null,null,null,86,null,""]
[null,null,null,null,null,null,null,null,null,null,null,null,null,null,null,87,null,""]
[null,null,null,null,null,null,null,null,null,null,null,null,null,null,null,88,null,""]
[null,null,null,null,null,null,null,null,null,null,null,null,null,null,null,89,null,""]
[null,null,null,null,null,null,null,null,null,null,null,null,null,null,null,90,null,""]
[null,null,null,null,null,null,null,null,null,null,null,null,null,null,null,91,null,""]
[null,null,null,null,null,null,null,null,null,null,null,null,null,null,null,92,null,""]
[null,null,null,null,null,null,null,null,null,null,null,null,null,null,null,93,null,""]
[null,null,null,null,null,null,null,null,null,null,null,null,null,null,null,94,null,""]
[null,null,null,null,null,null,null,null,null,null,null,null,null,null,null,95,null,""]
[null,null,null,null,null,null,null,null,null,null,null,null,null,null,null,96,null,""]
[null,null,null,null,null,null,null,null,null,null,null,null,null,null,null,97,null,""]
[null,null,null,null,null,null,null,null,null,null,null,null,null,null,null,98,null,""]
[null,null,null,null,null,null,null,null,null,null,null,null,null,null,null,99,null,""]
[null,null,null,null,null,null,null,null,null,null,null,null,null,null,null,100,null,""]

{"sheet":"Trip (27)","index":27,"n_rows":125,"n_cols":20,"rows_kept":125,"cut":false,"hidden":false,"merged":[[24,19,24,30],[40,8,40,13],[120,19,120,30],[121,19,121,30],[122,19,122,30],[123,19,123,30],[124,19,124,30],[115,19,115,30],[116,19,116,30],[117,19,117,30],[118,19,118,30],[119,19,119,30],[110,19,110,30],[111,19,111,30],[112,19,112,30],[113,19,113,30],[114,19,114,30],[105,19,105,30],[106,19,106,30],[107,19,107,30],[108,19,108,30],[109,19,109,30],[100,19,100,30],[101,19,101,30],[102,19,102,30],[103,19,103,30],[104,19,104,30],[95,19,95,30],[96,19,96,30],[97,19,97,30],[98,19,98,30],[99,19,99,30],[90,19,90,30],[91,19,91,30],[92,19,92,30],[93,19,93,30],[94,19,94,30],[85,19,85,30],[86,19,86,30],[87,19,87,30],[88,19,88,30],[89,19,89,30],[80,19,80,30],[81,19,81,30],[82,19,82,30],[83,19,83,30],[84,19,84,30],[76,19,76,30],[77,19,77,30],[78,19,78,30],[79,19,79,30],[70,19,70,30],[71,19,71,30],[72,19,72,30],[73,19,73,30],[74,19,74,30],[67,19,67,30],[68,19,68,30],[69,19,69,30],[60,19,60,30],[61,19,61,30],[62,19,62,30],[63,19,63,30],[64,19,64,30],[75,19,75,30],[58,19,58,30],[59,19,59,30],[50,19,50,30],[51,19,51,30],[52,19,52,30],[53,19,53,30],[54,19,54,30],[65,19,65,30],[66,19,66,30],[49,19,49,30],[40,19,40,30],[41,19,41,30],[42,19,42,30],[43,19,43,30],[44,19,44,30],[55,19,55,30],[56,19,56,30],[57,19,57,30],[30,19,30,30],[31,19,31,30],[32,19,32,30],[33,19,33,30],[34,19,34,30],[45,19,45,30],[46,19,46,30],[47,19,47,30],[48,19,48,30],[25,19,25,30],[26,19,26,30],[27,19,27,30],[28,19,28,30],[29,19,29,30],[75,8,75,9],[76,8,76,9],[77,8,77,9],[78,8,78,9],[69,8,69,9],[70,8,70,9],[71,8,71,9],[72,8,72,9],[73,8,73,9],[74,8,74,9],[68,8,68,9],[67,8,67,9],[42,8,42,13],[43,8,43,13],[35,19,35,30],[36,19,36,30],[37,19,37,30],[38,19,38,30],[39,19,39,30],[58,2,58,3],[58,8,58,13],[59,2,59,3],[59,8,59,13],[60,2,60,3],[60,8,60,13],[61,2,61,3],[61,8,61,13],[63,8,63,10],[63,12,63,13],[55,2,55,3],[55,8,55,13],[56,2,56,3],[56,8,56,13],[57,2,57,3],[57,8,57,13],[52,2,52,3],[52,8,52,13],[53,2,53,3],[53,8,53,13],[54,2,54,3],[54,8,54,13],[49,2,49,3],[49,8,49,13],[50,2,50,3],[50,8,50,13],[51,2,51,3],[51,8,51,13],[46,2,46,3],[46,8,46,13],[47,2,47,3],[47,8,47,13],[48,2,48,3],[48,8,48,13],[44,2,44,3],[44,8,44,13],[45,2,45,3],[45,8,45,13],[41,8,41,13],[34,2,34,3],[34,8,34,13],[35,2,35,3],[35,8,35,13],[36,2,36,3],[36,8,36,13],[37,2,37,3],[37,8,37,13],[38,2,38,3],[39,10,39,11],[40,2,40,3],[41,2,41,3],[42,2,42,3],[43,2,43,3],[31,2,31,3],[31,8,31,13],[32,2,32,3],[32,8,32,13],[33,2,33,3],[33,8,33,13],[28,2,28,3],[28,8,28,13],[29,2,29,3],[29,8,29,13],[30,2,30,3],[30,8,30,13],[22,18,23,18],[25,2,25,3],[25,8,25,13],[26,2,26,3],[26,8,26,13],[15,17,23,17],[27,2,27,3],[27,8,27,13],[8,3,8,12],[10,3,10,6],[10,10,10,12],[12,10,12,12],[16,10,16,12],[18,10,18,12]]}
[]
[null,null,null,null,null,null,null,"Leeds University Union Caving Society"]
[]
[]
[{"$f":"CONCATENATE(\"Trip Name:  \",D9)","v":"Trip Name:  "}]
[]
[]
[null,"Trip details:",null,"Title"]
[null,null,"Trip Name:"]
[]
[null,null,"Location:",null,null,null,null,null,null,"Organizer:"]
[]
[null,null,"Date/s:",null,null,null,null,null,null,"Caving Hut","-"]
[]
[]
[null,null,null,null,null,null,null,null,null,null,null,null,null,null,null,null,null,"No. of people going"]
[null,null,"Trip Expenses",{"$f":"H39+H63","v":0},null,null,null,null,null,"Number of people going",{"$f":"R25","v":0}]
[]
[null,null,"Trip Revenue",{"$f":"S25","v":0}]
[]
[]
[]
[null,null,null,null,null,null,null,null,null,null,null,null,null,null,null,null,null,null,"Trip cost per person"]
[]
[null,null,null,"Transport","      Days:","Qty.","Cost","Total","Notes",null,null,null,null,null,null,null,"Trip Attenden Names",{"$f":"SUM(R26:R125)","v":0},{"$f":"SUM(S26:S77)","v":0},"  Notes"]
[null,null,null,null,1,1,0,{"$f":"G26*E26*F26","v":0},null,null,null,null,null,null,null,1,null,{"$f":"IF(Q26=\"\",\"\",IF(Q26=\"\",\"\",1))","v":""}]
[null,null,null,null,1,1,0,{"$f":"G27*E27*F27","v":0},null,null,null,null,null,null,null,2,null,{"$f":"IF(Q27=\"\",\"\",IF(Q27=\"\",\"\",1))","v":""}]
[null,null,null,null,1,1,0,0,null,null,null,null,null,null,null,3,null,""]
[null,null,null,null,1,1,0,0,null,null,null,null,null,null,null,4,null,""]
[null,null,null,null,1,1,0,0,null,null,null,null,null,null,null,5,null,""]
[null,null,null,null,1,1,0,0,null,null,null,null,null,null,null,6,null,""]
[null,null,null,null,1,1,0,0,null,null,null,null,null,null,null,7,null,""]
[null,null,null,null,1,1,0,0,null,null,null,null,null,null,null,8,null,""]
[null,null,null,null,1,1,0,0,null,null,null,null,null,null,null,9,null,""]
[null,null,null,null,1,1,0,0,null,null,null,null,null,null,null,10,null,""]
[null,null,null,null,1,1,0,0,null,null,null,null,null,null,null,11,null,""]
[null,null,null,null,1,1,0,0,null,null,null,null,null,null,null,12,null,""]
[null,null,null,null,1,1,0,{"$f":"G38*E38*F38","v":0},null,null,null,null,null,null,null,13,null,""]
[null,null,null,null,null,null,null,{"$f":"SUM(H26:H38)","v":0},null,null,null,null,null,null,null,14,null,""]
[null,null,null,null,null,null,null,null,null,null,null,null,null,null,null,15,null,""]
[null,null,"Other Expenses",null,"Qty","No.","Cost","Total"," Notes",null,null,null,null,null,null,16,null,""]
[null,null,null,null,1,1,0,{"$f":"G42*F42*E42","v":0},null,null,null,null,null,null,null,17,null,""]
[null,null,null,null,1,1,0,{"$f":"G43*F43*E43","v":0},null,null,null,null,null,null,null,18,null,""]
[null,null,null,null,1,1,0,{"$f":"G44*F44*E44","v":0},null,null,null,null,null,null,null,19,null,""]
[null,null,null,null,1,1,0,0,null,null,null,null,null,null,null,20,null,""]
[null,null,null,null,1,1,0,0,null,null,null,null,null,null,null,21,null,""]
[null,null,null,null,1,1,0,0,null,null,null,null,null,null,null,22,null,""]
[null,null,null,null,1,1,0,0,null,null,null,null,null,null,null,23,null,""]
[null,null,null,null,1,1,0,0,null,null,null,null,null,null,null,24,null,""]
[null,null,null,null,1,1,0,0,null,null,null,null,null,null,null,25,null,""]
[null,null,null,null,1,1,0,0,null,null,null,null,null,null,null,26,null,""]
[null,null,null,null,1,1,0,0,null,null,null,null,null,null,null,27,null,""]
[null,null,null,null,1,1,0,0,null,null,null,null,null,null,null,28,null,""]
[null,null,null,null,1,1,0,0,null,null,null,null,null,null,null,29,null,""]
[null,null,null,null,1,1,0,0,null,null,null,null,null,null,null,30,null,""]
[null,null,null,null,1,1,0,0,null,null,null,null,null,null,null,31,null,""]
[null,null,null,null,1,1,0,0,null,null,null,null,null,null,null,32,null,""]
[null,null,null,null,1,1,0,0,null,null,null,null,null,null,null,33,null,""]
[null,null,null,null,1,1,0,0,null,null,null,null,null,null,null,34,null,""]
[null,null,null,null,1,1,0,0,null,null,null,null,null,null,null,35,null,""]
[null,null,null,null,1,1,0,0,null,null,null,null,null,null,null,36,null,""]
[null,null,null,null,1,1,0,0,null,null,null,null,null,null,null,37,null,""]
[null,null,null,null,null,null,null,{"$f":"SUM(H42:H62)","v":0},null,null,null,null,null,null,null,38,null,""]
[null,null,null,null,null,null,null,null,null,null,null,null,null,null,null,39,null,""]
[null,null,null,null,null,null,null,null,null,null,null,null,null,null,null,40,null,""]
[null,null,null,null,null,null,null,null,null,null,null,null,null,null,null,41,null,""]
[null,null,null,null,null,null,null,null,null,null,null,null,null,null,null,42,null,""]
[null,null,null,null,null,null,null,null,null,null,null,null,null,null,null,43,null,""]
[null,null,null,null,null,null,null,null,null,null,null,null,null,null,null,44,null,""]
[null,null,null,null,null,null,null,null,null,null,null,null,null,null,null,45,null,""]
[null,null,null,null,null,null,null,null,null,null,null,null,null,null,null,46,null,""]
[null,null,null,null,null,null,null,null,null,null,null,null,null,null,null,47,null,""]
[null,null,null,null,null,null,null,null,null,null,null,null,null,null,null,48,null,""]
[null,null,null,null,null,null,null,null,null,null,null,null,null,null,null,49,null,""]
[null,null,null,null,null,null,null,null,null,null,null,null,null,null,null,50,null,""]
[null,null,null,null,null,null,null,null,null,null,null,null,null,null,null,51,null,""]
[null,null,null,null,null,null,null,null,null,null,null,null,null,null,null,52,null,""]
[null,null,null,null,null,null,null,null,null,null,null,null,null,null,null,53,null,""]
[null,null,null,null,null,null,null,null,null,null,null,null,null,null,null,54,null,""]
[null,null,null,null,null,null,null,null,null,null,null,null,null,null,null,55,null,""]
[null,null,null,null,null,null,null,null,null,null,null,null,null,null,null,56,null,""]
[null,null,null,null,null,null,null,null,null,null,null,null,null,null,null,57,null,""]
[null,null,null,null,null,null,null,null,null,null,null,null,null,null,null,58,null,""]
[null,null,null,null,null,null,null,null,null,null,null,null,null,null,null,59,null,""]
[null,null,null,null,null,null,null,null,null,null,null,null,null,null,null,60,null,""]
[null,null,null,null,null,null,null,null,null,null,null,null,null,null,null,61,null,""]
[null,null,null,null,null,null,null,null,null,null,null,null,null,null,null,62,null,""]
[null,null,null,null,null,null,null,null,null,null,null,null,null,null,null,63,null,""]
[null,null,null,null,null,null,null,null,null,null,null,null,null,null,null,64,null,""]
[null,null,null,null,null,null,null,null,null,null,null,null,null,null,null,65,null,""]
[null,null,null,null,null,null,null,null,null,null,null,null,null,null,null,66,null,{"$f":"IF(Q91=\"\",\"\",IF(Q91=\"\",\"\",1))","v":""}]
[null,null,null,null,null,null,null,null,null,null,null,null,null,null,null,67,null,""]
[null,null,null,null,null,null,null,null,null,null,null,null,null,null,null,68,null,""]
[null,null,null,null,null,null,null,null,null,null,null,null,null,null,null,69,null,""]
[null,null,null,null,null,null,null,null,null,null,null,null,null,null,null,70,null,""]
[null,null,null,null,null,null,null,null,null,null,null,null,null,null,null,71,null,""]
[null,null,null,null,null,null,null,null,null,null,null,null,null,null,null,72,null,""]
[null,null,null,null,null,null,null,null,null,null,null,null,null,null,null,73,null,""]
[null,null,null,null,null,null,null,null,null,null,null,null,null,null,null,74,null,""]
[null,null,null,null,null,null,null,null,null,null,null,null,null,null,null,75,null,""]
[null,null,null,null,null,null,null,null,null,null,null,null,null,null,null,76,null,""]
[null,null,null,null,null,null,null,null,null,null,null,null,null,null,null,77,null,""]
[null,null,null,null,null,null,null,null,null,null,null,null,null,null,null,78,null,""]
[null,null,null,null,null,null,null,null,null,null,null,null,null,null,null,79,null,""]
[null,null,null,null,null,null,null,null,null,null,null,null,null,null,null,80,null,""]
[null,null,null,null,null,null,null,null,null,null,null,null,null,null,null,81,null,""]
[null,null,null,null,null,null,null,null,null,null,null,null,null,null,null,82,null,""]
[null,null,null,null,null,null,null,null,null,null,null,null,null,null,null,83,null,""]
[null,null,null,null,null,null,null,null,null,null,null,null,null,null,null,84,null,""]
[null,null,null,null,null,null,null,null,null,null,null,null,null,null,null,85,null,""]
[null,null,null,null,null,null,null,null,null,null,null,null,null,null,null,86,null,""]
[null,null,null,null,null,null,null,null,null,null,null,null,null,null,null,87,null,""]
[null,null,null,null,null,null,null,null,null,null,null,null,null,null,null,88,null,""]
[null,null,null,null,null,null,null,null,null,null,null,null,null,null,null,89,null,""]
[null,null,null,null,null,null,null,null,null,null,null,null,null,null,null,90,null,""]
[null,null,null,null,null,null,null,null,null,null,null,null,null,null,null,91,null,""]
[null,null,null,null,null,null,null,null,null,null,null,null,null,null,null,92,null,""]
[null,null,null,null,null,null,null,null,null,null,null,null,null,null,null,93,null,""]
[null,null,null,null,null,null,null,null,null,null,null,null,null,null,null,94,null,""]
[null,null,null,null,null,null,null,null,null,null,null,null,null,null,null,95,null,""]
[null,null,null,null,null,null,null,null,null,null,null,null,null,null,null,96,null,""]
[null,null,null,null,null,null,null,null,null,null,null,null,null,null,null,97,null,""]
[null,null,null,null,null,null,null,null,null,null,null,null,null,null,null,98,null,""]
[null,null,null,null,null,null,null,null,null,null,null,null,null,null,null,99,null,""]
[null,null,null,null,null,null,null,null,null,null,null,null,null,null,null,100,null,""]

{"sheet":"Trip (28)","index":28,"n_rows":125,"n_cols":20,"rows_kept":125,"cut":false,"hidden":false,"merged":[[24,19,24,30],[40,8,40,13],[120,19,120,30],[121,19,121,30],[122,19,122,30],[123,19,123,30],[124,19,124,30],[115,19,115,30],[116,19,116,30],[117,19,117,30],[118,19,118,30],[119,19,119,30],[110,19,110,30],[111,19,111,30],[112,19,112,30],[113,19,113,30],[114,19,114,30],[105,19,105,30],[106,19,106,30],[107,19,107,30],[108,19,108,30],[109,19,109,30],[100,19,100,30],[101,19,101,30],[102,19,102,30],[103,19,103,30],[104,19,104,30],[95,19,95,30],[96,19,96,30],[97,19,97,30],[98,19,98,30],[99,19,99,30],[90,19,90,30],[91,19,91,30],[92,19,92,30],[93,19,93,30],[94,19,94,30],[85,19,85,30],[86,19,86,30],[87,19,87,30],[88,19,88,30],[89,19,89,30],[80,19,80,30],[81,19,81,30],[82,19,82,30],[83,19,83,30],[84,19,84,30],[76,19,76,30],[77,19,77,30],[78,19,78,30],[79,19,79,30],[70,19,70,30],[71,19,71,30],[72,19,72,30],[73,19,73,30],[74,19,74,30],[67,19,67,30],[68,19,68,30],[69,19,69,30],[60,19,60,30],[61,19,61,30],[62,19,62,30],[63,19,63,30],[64,19,64,30],[75,19,75,30],[58,19,58,30],[59,19,59,30],[50,19,50,30],[51,19,51,30],[52,19,52,30],[53,19,53,30],[54,19,54,30],[65,19,65,30],[66,19,66,30],[49,19,49,30],[40,19,40,30],[41,19,41,30],[42,19,42,30],[43,19,43,30],[44,19,44,30],[55,19,55,30],[56,19,56,30],[57,19,57,30],[30,19,30,30],[31,19,31,30],[32,19,32,30],[33,19,33,30],[34,19,34,30],[45,19,45,30],[46,19,46,30],[47,19,47,30],[48,19,48,30],[25,19,25,30],[26,19,26,30],[27,19,27,30],[28,19,28,30],[29,19,29,30],[75,8,75,9],[76,8,76,9],[77,8,77,9],[78,8,78,9],[69,8,69,9],[70,8,70,9],[71,8,71,9],[72,8,72,9],[73,8,73,9],[74,8,74,9],[68,8,68,9],[67,8,67,9],[42,8,42,13],[43,8,43,13],[35,19,35,30],[36,19,36,30],[37,19,37,30],[38,19,38,30],[39,19,39,30],[58,2,58,3],[58,8,58,13],[59,2,59,3],[59,8,59,13],[60,2,60,3],[60,8,60,13],[61,2,61,3],[61,8,61,13],[63,8,63,10],[63,12,63,13],[55,2,55,3],[55,8,55,13],[56,2,56,3],[56,8,56,13],[57,2,57,3],[57,8,57,13],[52,2,52,3],[52,8,52,13],[53,2,53,3],[53,8,53,13],[54,2,54,3],[54,8,54,13],[49,2,49,3],[49,8,49,13],[50,2,50,3],[50,8,50,13],[51,2,51,3],[51,8,51,13],[46,2,46,3],[46,8,46,13],[47,2,47,3],[47,8,47,13],[48,2,48,3],[48,8,48,13],[44,2,44,3],[44,8,44,13],[45,2,45,3],[45,8,45,13],[41,8,41,13],[34,2,34,3],[34,8,34,13],[35,2,35,3],[35,8,35,13],[36,2,36,3],[36,8,36,13],[37,2,37,3],[37,8,37,13],[38,2,38,3],[39,10,39,11],[40,2,40,3],[41,2,41,3],[42,2,42,3],[43,2,43,3],[31,2,31,3],[31,8,31,13],[32,2,32,3],[32,8,32,13],[33,2,33,3],[33,8,33,13],[28,2,28,3],[28,8,28,13],[29,2,29,3],[29,8,29,13],[30,2,30,3],[30,8,30,13],[22,18,23,18],[25,2,25,3],[25,8,25,13],[26,2,26,3],[26,8,26,13],[15,17,23,17],[27,2,27,3],[27,8,27,13],[8,3,8,12],[10,3,10,6],[10,10,10,12],[12,10,12,12],[16,10,16,12],[18,10,18,12]]}
[]
[null,null,null,null,null,null,null,"Leeds University Union Caving Society"]
[]
[]
[{"$f":"CONCATENATE(\"Trip Name:  \",D9)","v":"Trip Name:  "}]
[]
[]
[null,"Trip details:",null,"Title"]
[null,null,"Trip Name:"]
[]
[null,null,"Location:",null,null,null,null,null,null,"Organizer:"]
[]
[null,null,"Date/s:",null,null,null,null,null,null,"Caving Hut","-"]
[]
[]
[null,null,null,null,null,null,null,null,null,null,null,null,null,null,null,null,null,"No. of people going"]
[null,null,"Trip Expenses",{"$f":"H39+H63","v":0},null,null,null,null,null,"Number of people going",{"$f":"R25","v":0}]
[]
[null,null,"Trip Revenue",{"$f":"S25","v":0}]
[]
[]
[]
[null,null,null,null,null,null,null,null,null,null,null,null,null,null,null,null,null,null,"Trip cost per person"]
[]
[null,null,null,"Transport","      Days:","Qty.","Cost","Total","Notes",null,null,null,null,null,null,null,"Trip Attenden Names",{"$f":"SUM(R26:R125)","v":0},{"$f":"SUM(S26:S77)","v":0},"  Notes"]
[null,null,null,null,1,1,0,{"$f":"G26*E26*F26","v":0},null,null,null,null,null,null,null,1,null,{"$f":"IF(Q26=\"\",\"\",IF(Q26=\"\",\"\",1))","v":""}]
[null,null,null,null,1,1,0,{"$f":"G27*E27*F27","v":0},null,null,null,null,null,null,null,2,null,{"$f":"IF(Q27=\"\",\"\",IF(Q27=\"\",\"\",1))","v":""}]
[null,null,null,null,1,1,0,0,null,null,null,null,null,null,null,3,null,""]
[null,null,null,null,1,1,0,0,null,null,null,null,null,null,null,4,null,""]
[null,null,null,null,1,1,0,0,null,null,null,null,null,null,null,5,null,""]
[null,null,null,null,1,1,0,0,null,null,null,null,null,null,null,6,null,""]
[null,null,null,null,1,1,0,0,null,null,null,null,null,null,null,7,null,""]
[null,null,null,null,1,1,0,0,null,null,null,null,null,null,null,8,null,""]
[null,null,null,null,1,1,0,0,null,null,null,null,null,null,null,9,null,""]
[null,null,null,null,1,1,0,0,null,null,null,null,null,null,null,10,null,""]
[null,null,null,null,1,1,0,0,null,null,null,null,null,null,null,11,null,""]
[null,null,null,null,1,1,0,0,null,null,null,null,null,null,null,12,null,""]
[null,null,null,null,1,1,0,{"$f":"G38*E38*F38","v":0},null,null,null,null,null,null,null,13,null,""]
[null,null,null,null,null,null,null,{"$f":"SUM(H26:H38)","v":0},null,null,null,null,null,null,null,14,null,""]
[null,null,null,null,null,null,null,null,null,null,null,null,null,null,null,15,null,""]
[null,null,"Other Expenses",null,"Qty","No.","Cost","Total"," Notes",null,null,null,null,null,null,16,null,""]
[null,null,null,null,1,1,0,{"$f":"G42*F42*E42","v":0},null,null,null,null,null,null,null,17,null,""]
[null,null,null,null,1,1,0,{"$f":"G43*F43*E43","v":0},null,null,null,null,null,null,null,18,null,""]
[null,null,null,null,1,1,0,{"$f":"G44*F44*E44","v":0},null,null,null,null,null,null,null,19,null,""]
[null,null,null,null,1,1,0,0,null,null,null,null,null,null,null,20,null,""]
[null,null,null,null,1,1,0,0,null,null,null,null,null,null,null,21,null,""]
[null,null,null,null,1,1,0,0,null,null,null,null,null,null,null,22,null,""]
[null,null,null,null,1,1,0,0,null,null,null,null,null,null,null,23,null,""]
[null,null,null,null,1,1,0,0,null,null,null,null,null,null,null,24,null,""]
[null,null,null,null,1,1,0,0,null,null,null,null,null,null,null,25,null,""]
[null,null,null,null,1,1,0,0,null,null,null,null,null,null,null,26,null,""]
[null,null,null,null,1,1,0,0,null,null,null,null,null,null,null,27,null,""]
[null,null,null,null,1,1,0,0,null,null,null,null,null,null,null,28,null,""]
[null,null,null,null,1,1,0,0,null,null,null,null,null,null,null,29,null,""]
[null,null,null,null,1,1,0,0,null,null,null,null,null,null,null,30,null,""]
[null,null,null,null,1,1,0,0,null,null,null,null,null,null,null,31,null,""]
[null,null,null,null,1,1,0,0,null,null,null,null,null,null,null,32,null,""]
[null,null,null,null,1,1,0,0,null,null,null,null,null,null,null,33,null,""]
[null,null,null,null,1,1,0,0,null,null,null,null,null,null,null,34,null,""]
[null,null,null,null,1,1,0,0,null,null,null,null,null,null,null,35,null,""]
[null,null,null,null,1,1,0,0,null,null,null,null,null,null,null,36,null,""]
[null,null,null,null,1,1,0,0,null,null,null,null,null,null,null,37,null,""]
[null,null,null,null,null,null,null,{"$f":"SUM(H42:H62)","v":0},null,null,null,null,null,null,null,38,null,""]
[null,null,null,null,null,null,null,null,null,null,null,null,null,null,null,39,null,""]
[null,null,null,null,null,null,null,null,null,null,null,null,null,null,null,40,null,""]
[null,null,null,null,null,null,null,null,null,null,null,null,null,null,null,41,null,""]
[null,null,null,null,null,null,null,null,null,null,null,null,null,null,null,42,null,""]
[null,null,null,null,null,null,null,null,null,null,null,null,null,null,null,43,null,""]
[null,null,null,null,null,null,null,null,null,null,null,null,null,null,null,44,null,""]
[null,null,null,null,null,null,null,null,null,null,null,null,null,null,null,45,null,""]
[null,null,null,null,null,null,null,null,null,null,null,null,null,null,null,46,null,""]
[null,null,null,null,null,null,null,null,null,null,null,null,null,null,null,47,null,""]
[null,null,null,null,null,null,null,null,null,null,null,null,null,null,null,48,null,""]
[null,null,null,null,null,null,null,null,null,null,null,null,null,null,null,49,null,""]
[null,null,null,null,null,null,null,null,null,null,null,null,null,null,null,50,null,""]
[null,null,null,null,null,null,null,null,null,null,null,null,null,null,null,51,null,""]
[null,null,null,null,null,null,null,null,null,null,null,null,null,null,null,52,null,""]
[null,null,null,null,null,null,null,null,null,null,null,null,null,null,null,53,null,""]
[null,null,null,null,null,null,null,null,null,null,null,null,null,null,null,54,null,""]
[null,null,null,null,null,null,null,null,null,null,null,null,null,null,null,55,null,""]
[null,null,null,null,null,null,null,null,null,null,null,null,null,null,null,56,null,""]
[null,null,null,null,null,null,null,null,null,null,null,null,null,null,null,57,null,""]
[null,null,null,null,null,null,null,null,null,null,null,null,null,null,null,58,null,""]
[null,null,null,null,null,null,null,null,null,null,null,null,null,null,null,59,null,""]
[null,null,null,null,null,null,null,null,null,null,null,null,null,null,null,60,null,""]
[null,null,null,null,null,null,null,null,null,null,null,null,null,null,null,61,null,""]
[null,null,null,null,null,null,null,null,null,null,null,null,null,null,null,62,null,""]
[null,null,null,null,null,null,null,null,null,null,null,null,null,null,null,63,null,""]
[null,null,null,null,null,null,null,null,null,null,null,null,null,null,null,64,null,""]
[null,null,null,null,null,null,null,null,null,null,null,null,null,null,null,65,null,""]
[null,null,null,null,null,null,null,null,null,null,null,null,null,null,null,66,null,{"$f":"IF(Q91=\"\",\"\",IF(Q91=\"\",\"\",1))","v":""}]
[null,null,null,null,null,null,null,null,null,null,null,null,null,null,null,67,null,""]
[null,null,null,null,null,null,null,null,null,null,null,null,null,null,null,68,null,""]
[null,null,null,null,null,null,null,null,null,null,null,null,null,null,null,69,null,""]
[null,null,null,null,null,null,null,null,null,null,null,null,null,null,null,70,null,""]
[null,null,null,null,null,null,null,null,null,null,null,null,null,null,null,71,null,""]
[null,null,null,null,null,null,null,null,null,null,null,null,null,null,null,72,null,""]
[null,null,null,null,null,null,null,null,null,null,null,null,null,null,null,73,null,""]
[null,null,null,null,null,null,null,null,null,null,null,null,null,null,null,74,null,""]
[null,null,null,null,null,null,null,null,null,null,null,null,null,null,null,75,null,""]
[null,null,null,null,null,null,null,null,null,null,null,null,null,null,null,76,null,""]
[null,null,null,null,null,null,null,null,null,null,null,null,null,null,null,77,null,""]
[null,null,null,null,null,null,null,null,null,null,null,null,null,null,null,78,null,""]
[null,null,null,null,null,null,null,null,null,null,null,null,null,null,null,79,null,""]
[null,null,null,null,null,null,null,null,null,null,null,null,null,null,null,80,null,""]
[null,null,null,null,null,null,null,null,null,null,null,null,null,null,null,81,null,""]
[null,null,null,null,null,null,null,null,null,null,null,null,null,null,null,82,null,""]
[null,null,null,null,null,null,null,null,null,null,null,null,null,null,null,83,null,""]
[null,null,null,null,null,null,null,null,null,null,null,null,null,null,null,84,null,""]
[null,null,null,null,null,null,null,null,null,null,null,null,null,null,null,85,null,""]
[null,null,null,null,null,null,null,null,null,null,null,null,null,null,null,86,null,""]
[null,null,null,null,null,null,null,null,null,null,null,null,null,null,null,87,null,""]
[null,null,null,null,null,null,null,null,null,null,null,null,null,null,null,88,null,""]
[null,null,null,null,null,null,null,null,null,null,null,null,null,null,null,89,null,""]
[null,null,null,null,null,null,null,null,null,null,null,null,null,null,null,90,null,""]
[null,null,null,null,null,null,null,null,null,null,null,null,null,null,null,91,null,""]
[null,null,null,null,null,null,null,null,null,null,null,null,null,null,null,92,null,""]
[null,null,null,null,null,null,null,null,null,null,null,null,null,null,null,93,null,""]
[null,null,null,null,null,null,null,null,null,null,null,null,null,null,null,94,null,""]
[null,null,null,null,null,null,null,null,null,null,null,null,null,null,null,95,null,""]
[null,null,null,null,null,null,null,null,null,null,null,null,null,null,null,96,null,""]
[null,null,null,null,null,null,null,null,null,null,null,null,null,null,null,97,null,""]
[null,null,null,null,null,null,null,null,null,null,null,null,null,null,null,98,null,""]
[null,null,null,null,null,null,null,null,null,null,null,null,null,null,null,99,null,""]
[null,null,null,null,null,null,null,null,null,null,null,null,null,null,null,100,null,""]

{"sheet":"Trip (29)","index":29,"n_rows":125,"n_cols":20,"rows_kept":125,"cut":false,"hidden":false,"merged":[[24,19,24,30],[40,8,40,13],[120,19,120,30],[121,19,121,30],[122,19,122,30],[123,19,123,30],[124,19,124,30],[115,19,115,30],[116,19,116,30],[117,19,117,30],[118,19,118,30],[119,19,119,30],[110,19,110,30],[111,19,111,30],[112,19,112,30],[113,19,113,30],[114,19,114,30],[105,19,105,30],[106,19,106,30],[107,19,107,30],[108,19,108,30],[109,19,109,30],[100,19,100,30],[101,19,101,30],[102,19,102,30],[103,19,103,30],[104,19,104,30],[95,19,95,30],[96,19,96,30],[97,19,97,30],[98,19,98,30],[99,19,99,30],[90,19,90,30],[91,19,91,30],[92,19,92,30],[93,19,93,30],[94,19,94,30],[85,19,85,30],[86,19,86,30],[87,19,87,30],[88,19,88,30],[89,19,89,30],[80,19,80,30],[81,19,81,30],[82,19,82,30],[83,19,83,30],[84,19,84,30],[76,19,76,30],[77,19,77,30],[78,19,78,30],[79,19,79,30],[70,19,70,30],[71,19,71,30],[72,19,72,30],[73,19,73,30],[74,19,74,30],[67,19,67,30],[68,19,68,30],[69,19,69,30],[60,19,60,30],[61,19,61,30],[62,19,62,30],[63,19,63,30],[64,19,64,30],[75,19,75,30],[58,19,58,30],[59,19,59,30],[50,19,50,30],[51,19,51,30],[52,19,52,30],[53,19,53,30],[54,19,54,30],[65,19,65,30],[66,19,66,30],[49,19,49,30],[40,19,40,30],[41,19,41,30],[42,19,42,30],[43,19,43,30],[44,19,44,30],[55,19,55,30],[56,19,56,30],[57,19,57,30],[30,19,30,30],[31,19,31,30],[32,19,32,30],[33,19,33,30],[34,19,34,30],[45,19,45,30],[46,19,46,30],[47,19,47,30],[48,19,48,30],[25,19,25,30],[26,19,26,30],[27,19,27,30],[28,19,28,30],[29,19,29,30],[75,8,75,9],[76,8,76,9],[77,8,77,9],[78,8,78,9],[69,8,69,9],[70,8,70,9],[71,8,71,9],[72,8,72,9],[73,8,73,9],[74,8,74,9],[68,8,68,9],[67,8,67,9],[42,8,42,13],[43,8,43,13],[35,19,35,30],[36,19,36,30],[37,19,37,30],[38,19,38,30],[39,19,39,30],[58,2,58,3],[58,8,58,13],[59,2,59,3],[59,8,59,13],[60,2,60,3],[60,8,60,13],[61,2,61,3],[61,8,61,13],[63,8,63,10],[63,12,63,13],[55,2,55,3],[55,8,55,13],[56,2,56,3],[56,8,56,13],[57,2,57,3],[57,8,57,13],[52,2,52,3],[52,8,52,13],[53,2,53,3],[53,8,53,13],[54,2,54,3],[54,8,54,13],[49,2,49,3],[49,8,49,13],[50,2,50,3],[50,8,50,13],[51,2,51,3],[51,8,51,13],[46,2,46,3],[46,8,46,13],[47,2,47,3],[47,8,47,13],[48,2,48,3],[48,8,48,13],[44,2,44,3],[44,8,44,13],[45,2,45,3],[45,8,45,13],[41,8,41,13],[34,2,34,3],[34,8,34,13],[35,2,35,3],[35,8,35,13],[36,2,36,3],[36,8,36,13],[37,2,37,3],[37,8,37,13],[38,2,38,3],[39,10,39,11],[40,2,40,3],[41,2,41,3],[42,2,42,3],[43,2,43,3],[31,2,31,3],[31,8,31,13],[32,2,32,3],[32,8,32,13],[33,2,33,3],[33,8,33,13],[28,2,28,3],[28,8,28,13],[29,2,29,3],[29,8,29,13],[30,2,30,3],[30,8,30,13],[22,18,23,18],[25,2,25,3],[25,8,25,13],[26,2,26,3],[26,8,26,13],[15,17,23,17],[27,2,27,3],[27,8,27,13],[8,3,8,12],[10,3,10,6],[10,10,10,12],[12,10,12,12],[16,10,16,12],[18,10,18,12]]}
[]
[null,null,null,null,null,null,null,"Leeds University Union Caving Society"]
[]
[]
[{"$f":"CONCATENATE(\"Trip Name:  \",D9)","v":"Trip Name:  "}]
[]
[]
[null,"Trip details:",null,"Title"]
[null,null,"Trip Name:"]
[]
[null,null,"Location:",null,null,null,null,null,null,"Organizer:"]
[]
[null,null,"Date/s:",null,null,null,null,null,null,"Caving Hut","-"]
[]
[]
[null,null,null,null,null,null,null,null,null,null,null,null,null,null,null,null,null,"No. of people going"]
[null,null,"Trip Expenses",{"$f":"H39+H63","v":0},null,null,null,null,null,"Number of people going",{"$f":"R25","v":0}]
[]
[null,null,"Trip Revenue",{"$f":"S25","v":0}]
[]
[]
[]
[null,null,null,null,null,null,null,null,null,null,null,null,null,null,null,null,null,null,"Trip cost per person"]
[]
[null,null,null,"Transport","      Days:","Qty.","Cost","Total","Notes",null,null,null,null,null,null,null,"Trip Attenden Names",{"$f":"SUM(R26:R125)","v":0},{"$f":"SUM(S26:S77)","v":0},"  Notes"]
[null,null,null,null,1,1,0,{"$f":"G26*E26*F26","v":0},null,null,null,null,null,null,null,1,null,{"$f":"IF(Q26=\"\",\"\",IF(Q26=\"\",\"\",1))","v":""}]
[null,null,null,null,1,1,0,{"$f":"G27*E27*F27","v":0},null,null,null,null,null,null,null,2,null,{"$f":"IF(Q27=\"\",\"\",IF(Q27=\"\",\"\",1))","v":""}]
[null,null,null,null,1,1,0,0,null,null,null,null,null,null,null,3,null,""]
[null,null,null,null,1,1,0,0,null,null,null,null,null,null,null,4,null,""]
[null,null,null,null,1,1,0,0,null,null,null,null,null,null,null,5,null,""]
[null,null,null,null,1,1,0,0,null,null,null,null,null,null,null,6,null,""]
[null,null,null,null,1,1,0,0,null,null,null,null,null,null,null,7,null,""]
[null,null,null,null,1,1,0,0,null,null,null,null,null,null,null,8,null,""]
[null,null,null,null,1,1,0,0,null,null,null,null,null,null,null,9,null,""]
[null,null,null,null,1,1,0,0,null,null,null,null,null,null,null,10,null,""]
[null,null,null,null,1,1,0,0,null,null,null,null,null,null,null,11,null,""]
[null,null,null,null,1,1,0,0,null,null,null,null,null,null,null,12,null,""]
[null,null,null,null,1,1,0,{"$f":"G38*E38*F38","v":0},null,null,null,null,null,null,null,13,null,""]
[null,null,null,null,null,null,null,{"$f":"SUM(H26:H38)","v":0},null,null,null,null,null,null,null,14,null,""]
[null,null,null,null,null,null,null,null,null,null,null,null,null,null,null,15,null,""]
[null,null,"Other Expenses",null,"Qty","No.","Cost","Total"," Notes",null,null,null,null,null,null,16,null,""]
[null,null,null,null,1,1,0,{"$f":"G42*F42*E42","v":0},null,null,null,null,null,null,null,17,null,""]
[null,null,null,null,1,1,0,{"$f":"G43*F43*E43","v":0},null,null,null,null,null,null,null,18,null,""]
[null,null,null,null,1,1,0,{"$f":"G44*F44*E44","v":0},null,null,null,null,null,null,null,19,null,""]
[null,null,null,null,1,1,0,0,null,null,null,null,null,null,null,20,null,""]
[null,null,null,null,1,1,0,0,null,null,null,null,null,null,null,21,null,""]
[null,null,null,null,1,1,0,0,null,null,null,null,null,null,null,22,null,""]
[null,null,null,null,1,1,0,0,null,null,null,null,null,null,null,23,null,""]
[null,null,null,null,1,1,0,0,null,null,null,null,null,null,null,24,null,""]
[null,null,null,null,1,1,0,0,null,null,null,null,null,null,null,25,null,""]
[null,null,null,null,1,1,0,0,null,null,null,null,null,null,null,26,null,""]
[null,null,null,null,1,1,0,0,null,null,null,null,null,null,null,27,null,""]
[null,null,null,null,1,1,0,0,null,null,null,null,null,null,null,28,null,""]
[null,null,null,null,1,1,0,0,null,null,null,null,null,null,null,29,null,""]
[null,null,null,null,1,1,0,0,null,null,null,null,null,null,null,30,null,""]
[null,null,null,null,1,1,0,0,null,null,null,null,null,null,null,31,null,""]
[null,null,null,null,1,1,0,0,null,null,null,null,null,null,null,32,null,""]
[null,null,null,null,1,1,0,0,null,null,null,null,null,null,null,33,null,""]
[null,null,null,null,1,1,0,0,null,null,null,null,null,null,null,34,null,""]
[null,null,null,null,1,1,0,0,null,null,null,null,null,null,null,35,null,""]
[null,null,null,null,1,1,0,0,null,null,null,null,null,null,null,36,null,""]
[null,null,null,null,1,1,0,0,null,null,null,null,null,null,null,37,null,""]
[null,null,null,null,null,null,null,{"$f":"SUM(H42:H62)","v":0},null,null,null,null,null,null,null,38,null,""]
[null,null,null,null,null,null,null,null,null,null,null,null,null,null,null,39,null,""]
[null,null,null,null,null,null,null,null,null,null,null,null,null,null,null,40,null,""]
[null,null,null,null,null,null,null,null,null,null,null,null,null,null,null,41,null,""]
[null,null,null,null,null,null,null,null,null,null,null,null,null,null,null,42,null,""]
[null,null,null,null,null,null,null,null,null,null,null,null,null,null,null,43,null,""]
[null,null,null,null,null,null,null,null,null,null,null,null,null,null,null,44,null,""]
[null,null,null,null,null,null,null,null,null,null,null,null,null,null,null,45,null,""]
[null,null,null,null,null,null,null,null,null,null,null,null,null,null,null,46,null,""]
[null,null,null,null,null,null,null,null,null,null,null,null,null,null,null,47,null,""]
[null,null,null,null,null,null,null,null,null,null,null,null,null,null,null,48,null,""]
[null,null,null,null,null,null,null,null,null,null,null,null,null,null,null,49,null,""]
[null,null,null,null,null,null,null,null,null,null,null,null,null,null,null,50,null,""]
[null,null,null,null,null,null,null,null,null,null,null,null,null,null,null,51,null,""]
[null,null,null,null,null,null,null,null,null,null,null,null,null,null,null,52,null,""]
[null,null,null,null,null,null,null,null,null,null,null,null,null,null,null,53,null,""]
[null,null,null,null,null,null,null,null,null,null,null,null,null,null,null,54,null,""]
[null,null,null,null,null,null,null,null,null,null,null,null,null,null,null,55,null,""]
[null,null,null,null,null,null,null,null,null,null,null,null,null,null,null,56,null,""]
[null,null,null,null,null,null,null,null,null,null,null,null,null,null,null,57,null,""]
[null,null,null,null,null,null,null,null,null,null,null,null,null,null,null,58,null,""]
[null,null,null,null,null,null,null,null,null,null,null,null,null,null,null,59,null,""]
[null,null,null,null,null,null,null,null,null,null,null,null,null,null,null,60,null,""]
[null,null,null,null,null,null,null,null,null,null,null,null,null,null,null,61,null,""]
[null,null,null,null,null,null,null,null,null,null,null,null,null,null,null,62,null,""]
[null,null,null,null,null,null,null,null,null,null,null,null,null,null,null,63,null,""]
[null,null,null,null,null,null,null,null,null,null,null,null,null,null,null,64,null,""]
[null,null,null,null,null,null,null,null,null,null,null,null,null,null,null,65,null,""]
[null,null,null,null,null,null,null,null,null,null,null,null,null,null,null,66,null,{"$f":"IF(Q91=\"\",\"\",IF(Q91=\"\",\"\",1))","v":""}]
[null,null,null,null,null,null,null,null,null,null,null,null,null,null,null,67,null,""]
[null,null,null,null,null,null,null,null,null,null,null,null,null,null,null,68,null,""]
[null,null,null,null,null,null,null,null,null,null,null,null,null,null,null,69,null,""]
[null,null,null,null,null,null,null,null,null,null,null,null,null,null,null,70,null,""]
[null,null,null,null,null,null,null,null,null,null,null,null,null,null,null,71,null,""]
[null,null,null,null,null,null,null,null,null,null,null,null,null,null,null,72,null,""]
[null,null,null,null,null,null,null,null,null,null,null,null,null,null,null,73,null,""]
[null,null,null,null,null,null,null,null,null,null,null,null,null,null,null,74,null,""]
[null,null,null,null,null,null,null,null,null,null,null,null,null,null,null,75,null,""]
[null,null,null,null,null,null,null,null,null,null,null,null,null,null,null,76,null,""]
[null,null,null,null,null,null,null,null,null,null,null,null,null,null,null,77,null,""]
[null,null,null,null,null,null,null,null,null,null,null,null,null,null,null,78,null,""]
[null,null,null,null,null,null,null,null,null,null,null,null,null,null,null,79,null,""]
[null,null,null,null,null,null,null,null,null,null,null,null,null,null,null,80,null,""]
[null,null,null,null,null,null,null,null,null,null,null,null,null,null,null,81,null,""]
[null,null,null,null,null,null,null,null,null,null,null,null,null,null,null,82,null,""]
[null,null,null,null,null,null,null,null,null,null,null,null,null,null,null,83,null,""]
[null,null,null,null,null,null,null,null,null,null,null,null,null,null,null,84,null,""]
[null,null,null,null,null,null,null,null,null,null,null,null,null,null,null,85,null,""]
[null,null,null,null,null,null,null,null,null,null,null,null,null,null,null,86,null,""]
[null,null,null,null,null,null,null,null,null,null,null,null,null,null,null,87,null,""]
[null,null,null,null,null,null,null,null,null,null,null,null,null,null,null,88,null,""]
[null,null,null,null,null,null,null,null,null,null,null,null,null,null,null,89,null,""]
[null,null,null,null,null,null,null,null,null,null,null,null,null,null,null,90,null,""]
[null,null,null,null,null,null,null,null,null,null,null,null,null,null,null,91,null,""]
[null,null,null,null,null,null,null,null,null,null,null,null,null,null,null,92,null,""]
[null,null,null,null,null,null,null,null,null,null,null,null,null,null,null,93,null,""]
[null,null,null,null,null,null,null,null,null,null,null,null,null,null,null,94,null,""]
[null,null,null,null,null,null,null,null,null,null,null,null,null,null,null,95,null,""]
[null,null,null,null,null,null,null,null,null,null,null,null,null,null,null,96,null,""]
[null,null,null,null,null,null,null,null,null,null,null,null,null,null,null,97,null,""]
[null,null,null,null,null,null,null,null,null,null,null,null,null,null,null,98,null,""]
[null,null,null,null,null,null,null,null,null,null,null,null,null,null,null,99,null,""]
[null,null,null,null,null,null,null,null,null,null,null,null,null,null,null,100,null,""]

{"sheet":"Trip (30)","index":30,"n_rows":125,"n_cols":20,"rows_kept":125,"cut":false,"hidden":false,"merged":[[24,19,24,30],[40,8,40,13],[120,19,120,30],[121,19,121,30],[122,19,122,30],[123,19,123,30],[124,19,124,30],[115,19,115,30],[116,19,116,30],[117,19,117,30],[118,19,118,30],[119,19,119,30],[110,19,110,30],[111,19,111,30],[112,19,112,30],[113,19,113,30],[114,19,114,30],[105,19,105,30],[106,19,106,30],[107,19,107,30],[108,19,108,30],[109,19,109,30],[100,19,100,30],[101,19,101,30],[102,19,102,30],[103,19,103,30],[104,19,104,30],[95,19,95,30],[96,19,96,30],[97,19,97,30],[98,19,98,30],[99,19,99,30],[90,19,90,30],[91,19,91,30],[92,19,92,30],[93,19,93,30],[94,19,94,30],[85,19,85,30],[86,19,86,30],[87,19,87,30],[88,19,88,30],[89,19,89,30],[80,19,80,30],[81,19,81,30],[82,19,82,30],[83,19,83,30],[84,19,84,30],[76,19,76,30],[77,19,77,30],[78,19,78,30],[79,19,79,30],[70,19,70,30],[71,19,71,30],[72,19,72,30],[73,19,73,30],[74,19,74,30],[67,19,67,30],[68,19,68,30],[69,19,69,30],[60,19,60,30],[61,19,61,30],[62,19,62,30],[63,19,63,30],[64,19,64,30],[75,19,75,30],[58,19,58,30],[59,19,59,30],[50,19,50,30],[51,19,51,30],[52,19,52,30],[53,19,53,30],[54,19,54,30],[65,19,65,30],[66,19,66,30],[49,19,49,30],[40,19,40,30],[41,19,41,30],[42,19,42,30],[43,19,43,30],[44,19,44,30],[55,19,55,30],[56,19,56,30],[57,19,57,30],[30,19,30,30],[31,19,31,30],[32,19,32,30],[33,19,33,30],[34,19,34,30],[45,19,45,30],[46,19,46,30],[47,19,47,30],[48,19,48,30],[25,19,25,30],[26,19,26,30],[27,19,27,30],[28,19,28,30],[29,19,29,30],[75,8,75,9],[76,8,76,9],[77,8,77,9],[78,8,78,9],[69,8,69,9],[70,8,70,9],[71,8,71,9],[72,8,72,9],[73,8,73,9],[74,8,74,9],[68,8,68,9],[67,8,67,9],[42,8,42,13],[43,8,43,13],[35,19,35,30],[36,19,36,30],[37,19,37,30],[38,19,38,30],[39,19,39,30],[58,2,58,3],[58,8,58,13],[59,2,59,3],[59,8,59,13],[60,2,60,3],[60,8,60,13],[61,2,61,3],[61,8,61,13],[63,8,63,10],[63,12,63,13],[55,2,55,3],[55,8,55,13],[56,2,56,3],[56,8,56,13],[57,2,57,3],[57,8,57,13],[52,2,52,3],[52,8,52,13],[53,2,53,3],[53,8,53,13],[54,2,54,3],[54,8,54,13],[49,2,49,3],[49,8,49,13],[50,2,50,3],[50,8,50,13],[51,2,51,3],[51,8,51,13],[46,2,46,3],[46,8,46,13],[47,2,47,3],[47,8,47,13],[48,2,48,3],[48,8,48,13],[44,2,44,3],[44,8,44,13],[45,2,45,3],[45,8,45,13],[41,8,41,13],[34,2,34,3],[34,8,34,13],[35,2,35,3],[35,8,35,13],[36,2,36,3],[36,8,36,13],[37,2,37,3],[37,8,37,13],[38,2,38,3],[39,10,39,11],[40,2,40,3],[41,2,41,3],[42,2,42,3],[43,2,43,3],[31,2,31,3],[31,8,31,13],[32,2,32,3],[32,8,32,13],[33,2,33,3],[33,8,33,13],[28,2,28,3],[28,8,28,13],[29,2,29,3],[29,8,29,13],[30,2,30,3],[30,8,30,13],[22,18,23,18],[25,2,25,3],[25,8,25,13],[26,2,26,3],[26,8,26,13],[15,17,23,17],[27,2,27,3],[27,8,27,13],[8,3,8,12],[10,3,10,6],[10,10,10,12],[12,10,12,12],[16,10,16,12],[18,10,18,12]]}
[]
[null,null,null,null,null,null,null,"Leeds University Union Caving Society"]
[]
[]
[{"$f":"CONCATENATE(\"Trip Name:  \",D9)","v":"Trip Name:  "}]
[]
[]
[null,"Trip details:",null,"Title"]
[null,null,"Trip Name:"]
[]
[null,null,"Location:",null,null,null,null,null,null,"Organizer:"]
[]
[null,null,"Date/s:",null,null,null,null,null,null,"Caving Hut","-"]
[]
[]
[null,null,null,null,null,null,null,null,null,null,null,null,null,null,null,null,null,"No. of people going"]
[null,null,"Trip Expenses",{"$f":"H39+H63","v":0},null,null,null,null,null,"Number of people going",{"$f":"R25","v":0}]
[]
[null,null,"Trip Revenue",{"$f":"S25","v":0}]
[]
[]
[]
[null,null,null,null,null,null,null,null,null,null,null,null,null,null,null,null,null,null,"Trip cost per person"]
[]
[null,null,null,"Transport","      Days:","Qty.","Cost","Total","Notes",null,null,null,null,null,null,null,"Trip Attenden Names",{"$f":"SUM(R26:R125)","v":0},{"$f":"SUM(S26:S77)","v":0},"  Notes"]
[null,null,null,null,1,1,0,{"$f":"G26*E26*F26","v":0},null,null,null,null,null,null,null,1,null,{"$f":"IF(Q26=\"\",\"\",IF(Q26=\"\",\"\",1))","v":""}]
[null,null,null,null,1,1,0,{"$f":"G27*E27*F27","v":0},null,null,null,null,null,null,null,2,null,{"$f":"IF(Q27=\"\",\"\",IF(Q27=\"\",\"\",1))","v":""}]
[null,null,null,null,1,1,0,0,null,null,null,null,null,null,null,3,null,""]
[null,null,null,null,1,1,0,0,null,null,null,null,null,null,null,4,null,""]
[null,null,null,null,1,1,0,0,null,null,null,null,null,null,null,5,null,""]
[null,null,null,null,1,1,0,0,null,null,null,null,null,null,null,6,null,""]
[null,null,null,null,1,1,0,0,null,null,null,null,null,null,null,7,null,""]
[null,null,null,null,1,1,0,0,null,null,null,null,null,null,null,8,null,""]
[null,null,null,null,1,1,0,0,null,null,null,null,null,null,null,9,null,""]
[null,null,null,null,1,1,0,0,null,null,null,null,null,null,null,10,null,""]
[null,null,null,null,1,1,0,0,null,null,null,null,null,null,null,11,null,""]
[null,null,null,null,1,1,0,0,null,null,null,null,null,null,null,12,null,""]
[null,null,null,null,1,1,0,{"$f":"G38*E38*F38","v":0},null,null,null,null,null,null,null,13,null,""]
[null,null,null,null,null,null,null,{"$f":"SUM(H26:H38)","v":0},null,null,null,null,null,null,null,14,null,""]
[null,null,null,null,null,null,null,null,null,null,null,null,null,null,null,15,null,""]
[null,null,"Other Expenses",null,"Qty","No.","Cost","Total"," Notes",null,null,null,null,null,null,16,null,""]
[null,null,null,null,1,1,0,{"$f":"G42*F42*E42","v":0},null,null,null,null,null,null,null,17,null,""]
[null,null,null,null,1,1,0,{"$f":"G43*F43*E43","v":0},null,null,null,null,null,null,null,18,null,""]
[null,null,null,null,1,1,0,{"$f":"G44*F44*E44","v":0},null,null,null,null,null,null,null,19,null,""]
[null,null,null,null,1,1,0,0,null,null,null,null,null,null,null,20,null,""]
[null,null,null,null,1,1,0,0,null,null,null,null,null,null,null,21,null,""]
[null,null,null,null,1,1,0,0,null,null,null,null,null,null,null,22,null,""]
[null,null,null,null,1,1,0,0,null,null,null,null,null,null,null,23,null,""]
[null,null,null,null,1,1,0,0,null,null,null,null,null,null,null,24,null,""]
[null,null,null,null,1,1,0,0,null,null,null,null,null,null,null,25,null,""]
[null,null,null,null,1,1,0,0,null,null,null,null,null,null,null,26,null,""]
[null,null,null,null,1,1,0,0,null,null,null,null,null,null,null,27,null,""]
[null,null,null,null,1,1,0,0,null,null,null,null,null,null,null,28,null,""]
[null,null,null,null,1,1,0,0,null,null,null,null,null,null,null,29,null,""]
[null,null,null,null,1,1,0,0,null,null,null,null,null,null,null,30,null,""]
[null,null,null,null,1,1,0,0,null,null,null,null,null,null,null,31,null,""]
[null,null,null,null,1,1,0,0,null,null,null,null,null,null,null,32,null,""]
[null,null,null,null,1,1,0,0,null,null,null,null,null,null,null,33,null,""]
[null,null,null,null,1,1,0,0,null,null,null,null,null,null,null,34,null,""]
[null,null,null,null,1,1,0,0,null,null,null,null,null,null,null,35,null,""]
[null,null,null,null,1,1,0,0,null,null,null,null,null,null,null,36,null,""]
[null,null,null,null,1,1,0,0,null,null,null,null,null,null,null,37,null,""]
[null,null,null,null,null,null,null,{"$f":"SUM(H42:H62)","v":0},null,null,null,null,null,null,null,38,null,""]
[null,null,null,null,null,null,null,null,null,null,null,null,null,null,null,39,null,""]
[null,null,null,null,null,null,null,null,null,null,null,null,null,null,null,40,null,""]
[null,null,null,null,null,null,null,null,null,null,null,null,null,null,null,41,null,""]
[null,null,null,null,null,null,null,null,null,null,null,null,null,null,null,42,null,""]
[null,null,null,null,null,null,null,null,null,null,null,null,null,null,null,43,null,""]
[null,null,null,null,null,null,null,null,null,null,null,null,null,null,null,44,null,""]
[null,null,null,null,null,null,null,null,null,null,null,null,null,null,null,45,null,""]
[null,null,null,null,null,null,null,null,null,null,null,null,null,null,null,46,null,""]
[null,null,null,null,null,null,null,null,null,null,null,null,null,null,null,47,null,""]
[null,null,null,null,null,null,null,null,null,null,null,null,null,null,null,48,null,""]
[null,null,null,null,null,null,null,null,null,null,null,null,null,null,null,49,null,""]
[null,null,null,null,null,null,null,null,null,null,null,null,null,null,null,50,null,""]
[null,null,null,null,null,null,null,null,null,null,null,null,null,null,null,51,null,""]
[null,null,null,null,null,null,null,null,null,null,null,null,null,null,null,52,null,""]
[null,null,null,null,null,null,null,null,null,null,null,null,null,null,null,53,null,""]
[null,null,null,null,null,null,null,null,null,null,null,null,null,null,null,54,null,""]
[null,null,null,null,null,null,null,null,null,null,null,null,null,null,null,55,null,""]
[null,null,null,null,null,null,null,null,null,null,null,null,null,null,null,56,null,""]
[null,null,null,null,null,null,null,null,null,null,null,null,null,null,null,57,null,""]
[null,null,null,null,null,null,null,null,null,null,null,null,null,null,null,58,null,""]
[null,null,null,null,null,null,null,null,null,null,null,null,null,null,null,59,null,""]
[null,null,null,null,null,null,null,null,null,null,null,null,null,null,null,60,null,""]
[null,null,null,null,null,null,null,null,null,null,null,null,null,null,null,61,null,""]
[null,null,null,null,null,null,null,null,null,null,null,null,null,null,null,62,null,""]
[null,null,null,null,null,null,null,null,null,null,null,null,null,null,null,63,null,""]
[null,null,null,null,null,null,null,null,null,null,null,null,null,null,null,64,null,""]
[null,null,null,null,null,null,null,null,null,null,null,null,null,null,null,65,null,""]
[null,null,null,null,null,null,null,null,null,null,null,null,null,null,null,66,null,{"$f":"IF(Q91=\"\",\"\",IF(Q91=\"\",\"\",1))","v":""}]
[null,null,null,null,null,null,null,null,null,null,null,null,null,null,null,67,null,""]
[null,null,null,null,null,null,null,null,null,null,null,null,null,null,null,68,null,""]
[null,null,null,null,null,null,null,null,null,null,null,null,null,null,null,69,null,""]
[null,null,null,null,null,null,null,null,null,null,null,null,null,null,null,70,null,""]
[null,null,null,null,null,null,null,null,null,null,null,null,null,null,null,71,null,""]
[null,null,null,null,null,null,null,null,null,null,null,null,null,null,null,72,null,""]
[null,null,null,null,null,null,null,null,null,null,null,null,null,null,null,73,null,""]
[null,null,null,null,null,null,null,null,null,null,null,null,null,null,null,74,null,""]
[null,null,null,null,null,null,null,null,null,null,null,null,null,null,null,75,null,""]
[null,null,null,null,null,null,null,null,null,null,null,null,null,null,null,76,null,""]
[null,null,null,null,null,null,null,null,null,null,null,null,null,null,null,77,null,""]
[null,null,null,null,null,null,null,null,null,null,null,null,null,null,null,78,null,""]
[null,null,null,null,null,null,null,null,null,null,null,null,null,null,null,79,null,""]
[null,null,null,null,null,null,null,null,null,null,null,null,null,null,null,80,null,""]
[null,null,null,null,null,null,null,null,null,null,null,null,null,null,null,81,null,""]
[null,null,null,null,null,null,null,null,null,null,null,null,null,null,null,82,null,""]
[null,null,null,null,null,null,null,null,null,null,null,null,null,null,null,83,null,""]
[null,null,null,null,null,null,null,null,null,null,null,null,null,null,null,84,null,""]
[null,null,null,null,null,null,null,null,null,null,null,null,null,null,null,85,null,""]
[null,null,null,null,null,null,null,null,null,null,null,null,null,null,null,86,null,""]
[null,null,null,null,null,null,null,null,null,null,null,null,null,null,null,87,null,""]
[null,null,null,null,null,null,null,null,null,null,null,null,null,null,null,88,null,""]
[null,null,null,null,null,null,null,null,null,null,null,null,null,null,null,89,null,""]
[null,null,null,null,null,null,null,null,null,null,null,null,null,null,null,90,null,""]
[null,null,null,null,null,null,null,null,null,null,null,null,null,null,null,91,null,""]
[null,null,null,null,null,null,null,null,null,null,null,null,null,null,null,92,null,""]
[null,null,null,null,null,null,null,null,null,null,null,null,null,null,null,93,null,""]
[null,null,null,null,null,null,null,null,null,null,null,null,null,null,null,94,null,""]
[null,null,null,null,null,null,null,null,null,null,null,null,null,null,null,95,null,""]
[null,null,null,null,null,null,null,null,null,null,null,null,null,null,null,96,null,""]
[null,null,null,null,null,null,null,null,null,null,null,null,null,null,null,97,null,""]
[null,null,null,null,null,null,null,null,null,null,null,null,null,null,null,98,null,""]
[null,null,null,null,null,null,null,null,null,null,null,null,null,null,null,99,null,""]
[null,null,null,null,null,null,null,null,null,null,null,null,null,null,null,100,null,""]